Workbook

Sheet District
X1: Do Not | AE1: Aberdeen
F2: District Name | G2: ABERDEEN | J2: <- Please select distrtict from this drop-down | X2: Change | AE2: Brewster
F3: CCDDD | G3: =VLOOKUP(G2,CCDDD!B:C,2,0) -> 14005 | H3: 2022-23 | J3: 2021-22 | L3: 2020-21 | N3: 2011-12 | P3: 2010-11 | R3: 2009-10 | T3: 2008-09 | V3: 2007-08 | AE3: Bridgeport
U4: %% | AE4: Burlington
H5: Final 22-23 | I5: % of PY | J5: Final 2021-22 | K5: % of PY | L5: Final 2020-21 | N5: Prelim 2011-12 | O5: % of PY | P5: Final 2010-11 | Q5: % of PY | R5: Final 2009-10 | S5: % of PY | T5: =[2]Assumptions!AC4 -> Final 2008-09 | U5: of Prior Year | V5: 2007-08 | AE5: Cascade
F6: Regular Allocation | AE6: Cashmere
B7: 2 | F7: K-12 Migrant Students | G7: Average Number | H7: =IFERROR(VLOOKUP($G$3,'2022-23 Final'!$B:$Z,4,0),0) -> 130 | I7: =IFERROR(H7/J7-1,0) -> 0 | J7: =IFERROR(VLOOKUP($G$3,'[2]2021-22 Final'!$B:$R,3,0),0) -> 130 | K7: 0 | L7: =IFERROR(VLOOKUP($G$3,'[2]2020-21 Final'!$B:$R,3,0),0) -> 130 | N7: =VLOOKUP($G$2,#REF!,$B7,FALSE) ->  | O7: =IF(P7=0,0,N7/P7) ->  | P7: =VLOOKUP($G$2,#REF!,$B7,FALSE) ->  | Q7: =IF(R7>0,P7/R7,"-") ->  | R7: =VLOOKUP($G$2,#REF!,$B7,FALSE) ->  | S7: =IF(T7>0,R7/T7,"-") ->  | T7: =VLOOKUP($G$2,#REF!,$B7,FALSE) ->  | U7: =IF(V7>0,T7/V7,"-") ->  | V7: =VLOOKUP($G$2,#REF!,$B7,FALSE) ->  | X7: 1 | Y7: 3 | AE7: Centralia
B8: 3 | G8: Regular Dollars | H8: =IFERROR(VLOOKUP($G$3,'2022-23 Final'!$B:$Z,5,0),0) -> 56026 | I8: -0.08407853651 | J8: =IFERROR(VLOOKUP($G$3,'[2]2021-22 Final'!$B:$R,4,0),0) -> 61169 | K8: 0.1748583501 | L8: =IFERROR(VLOOKUP($G$3,'[2]2020-21 Final'!$B:$R,4,0),0) -> 52065 | N8: =VLOOKUP($G$2,#REF!,$B8,FALSE) ->  | P8: =VLOOKUP($G$2,#REF!,$B8,FALSE) ->  | Q8: =IF(R8>0,P8/R8,"-") ->  | R8: =VLOOKUP($G$2,#REF!,$B8,FALSE) ->  | S8: =IF(T8>0,R8/T8,"-") ->  | T8: =VLOOKUP($G$2,#REF!,$B8,FALSE) ->  | V8: =VLOOKUP($G$2,#REF!,$B8,FALSE) ->  | X8: 2 | Y8: 3 | AE8: College Place
B9: 4 | F9: Needs Support | G9: Average Number | H9: =IFERROR(VLOOKUP($G$3,'2022-23 Final'!$B:$Z,6,0),0) -> 30 | I9: 0 | J9: =IFERROR(VLOOKUP($G$3,'[2]2021-22 Final'!$B:$R,5,0),0) -> 30 | K9: 0 | L9: =IFERROR(VLOOKUP($G$3,'[2]2020-21 Final'!$B:$R,5,0),0) -> 30 | N9: =VLOOKUP($G$2,#REF!,$B9,FALSE) ->  | O9: =IF(P9=0,0,N9/P9) ->  | P9: =VLOOKUP($G$2,#REF!,$B9,FALSE) ->  | R9: =VLOOKUP($G$2,#REF!,$B9,FALSE) ->  | T9: =VLOOKUP($G$2,#REF!,$B9,FALSE) ->  | V9: =VLOOKUP($G$2,#REF!,$B9,FALSE) ->  | X9: 1 | Y9: 4 | AE9: Columbia
B10: 5 | G10: Regular Dollars | H10: =IFERROR(VLOOKUP($G$3,'2022-23 Final'!$B:$Z,7,0),0) -> 3232 | I10: -0.08415981865 | J10: =IFERROR(VLOOKUP($G$3,'[2]2021-22 Final'!$B:$R,6,0),0) -> 3529 | K10: 0.1747669774 | L10: =IFERROR(VLOOKUP($G$3,'[2]2020-21 Final'!$B:$R,6,0),0) -> 3004 | N10: =VLOOKUP($G$2,#REF!,$B10,FALSE) ->  | O10: =IF(P10=0,0,N10/P10) ->  | P10: =VLOOKUP($G$2,#REF!,$B10,FALSE) ->  | R10: =VLOOKUP($G$2,#REF!,$B10,FALSE) ->  | T10: =VLOOKUP($G$2,#REF!,$B10,FALSE) ->  | V10: =VLOOKUP($G$2,#REF!,$B10,FALSE) ->  | X10: 2 | Y10: 4 | AE10: Conway
B11: 6 | F11: Priority Interruption | G11: Priority Number | H11: =IFERROR(VLOOKUP($G$3,'2022-23 Final'!$B:$Z,8,0),0) -> 42 | I11: 0 | J11: =IFERROR(VLOOKUP($G$3,'[2]2021-22 Final'!$B:$R,7,0),0) -> 42 | K11: 0 | L11: =IFERROR(VLOOKUP($G$3,'[2]2020-21 Final'!$B:$R,7,0),0) -> 42 | N11: =VLOOKUP($G$2,#REF!,$B11,FALSE) ->  | P11: =VLOOKUP($G$2,#REF!,$B11,FALSE) ->  | R11: =VLOOKUP($G$2,#REF!,$B11,FALSE) ->  | T11: =VLOOKUP($G$2,#REF!,$B11,FALSE) ->  | V11: =VLOOKUP($G$2,#REF!,$B11,FALSE) ->  | X11: 1 | Y11: 5 | AE11: East Valley
B12: 7 | G12: Priority Dollars | H12: =IFERROR(VLOOKUP($G$3,'2022-23 Final'!$B:$Z,9,0),0) -> 18101 | I12: -0.08405019735 | J12: =IFERROR(VLOOKUP($G$3,'[2]2021-22 Final'!$B:$R,8,0),0) -> 19762 | K12: 0.1748409726 | L12: =IFERROR(VLOOKUP($G$3,'[2]2020-21 Final'!$B:$R,8,0),0) -> 16821 | N12: =VLOOKUP($G$2,#REF!,$B12,FALSE) ->  | P12: =VLOOKUP($G$2,#REF!,$B12,FALSE) ->  | R12: =VLOOKUP($G$2,#REF!,$B12,FALSE) ->  | T12: =VLOOKUP($G$2,#REF!,$B12,FALSE) ->  | V12: =VLOOKUP($G$2,#REF!,$B12,FALSE) ->  | X12: 3 | Y12: 5 | AE12: Eastmont
B13: 8 | C13: Grades 1-5 | F13: Top 1/4 | G13: Attendance | I13: =H13/J13-1 ->  | K13: =J13/L13-1 ->  | P13: =VLOOKUP($G$2,#REF!,$B13,FALSE) ->  | R13: =VLOOKUP($G$2,#REF!,$B13,FALSE) ->  | T13: =VLOOKUP($G$2,#REF!,$B13,FALSE) ->  | V13: =VLOOKUP($G$2,#REF!,$B13,FALSE) ->  | X13: 1 | Y13: 6 | AE13: Ellensburg
B14: 9 | G14: Dollars | P14: =VLOOKUP($G$2,#REF!,$B14,FALSE) ->  | R14: =VLOOKUP($G$2,#REF!,$B14,FALSE) ->  | T14: =VLOOKUP($G$2,#REF!,$B14,FALSE) ->  | V14: =VLOOKUP($G$2,#REF!,$B14,FALSE) ->  | X14: 4 | Y14: 6 | AE14: Entiat
B15: 10 | F15: middle 2/4 | G15: Attendance | P15: =VLOOKUP($G$2,#REF!,$B15,FALSE) ->  | R15: =VLOOKUP($G$2,#REF!,$B15,FALSE) ->  | T15: =VLOOKUP($G$2,#REF!,$B15,FALSE) ->  | V15: =VLOOKUP($G$2,#REF!,$B15,FALSE) ->  | X15: 1 | Y15: 7 | AE15: Ephrata
B16: 11 | G16: Dollars | P16: =VLOOKUP($G$2,#REF!,$B16,FALSE) ->  | R16: =VLOOKUP($G$2,#REF!,$B16,FALSE) ->  | T16: =VLOOKUP($G$2,#REF!,$B16,FALSE) ->  | V16: =VLOOKUP($G$2,#REF!,$B16,FALSE) ->  | X16: 4 | Y16: 7 | AE16: Ferndale
B17: 12 | C17: Grades 6-8 | F17: Top 1/4 | G17: Attendance | P17: =VLOOKUP($G$2,#REF!,$B17,FALSE) ->  | R17: =VLOOKUP($G$2,#REF!,$B17,FALSE) ->  | T17: =VLOOKUP($G$2,#REF!,$B17,FALSE) ->  | V17: =VLOOKUP($G$2,#REF!,$B17,FALSE) ->  | X17: 1 | Y17: 8 | AE17: Finley
B18: 13 | G18: Dollars | P18: =VLOOKUP($G$2,#REF!,$B18,FALSE) ->  | R18: =VLOOKUP($G$2,#REF!,$B18,FALSE) ->  | T18: =VLOOKUP($G$2,#REF!,$B18,FALSE) ->  | V18: =VLOOKUP($G$2,#REF!,$B18,FALSE) ->  | X18: 4 | Y18: 8 | AE18: Goldendale
B19: 14 | F19: middle 2/4 | G19: Attendance | P19: =VLOOKUP($G$2,#REF!,$B19,FALSE) ->  | R19: =VLOOKUP($G$2,#REF!,$B19,FALSE) ->  | T19: =VLOOKUP($G$2,#REF!,$B19,FALSE) ->  | V19: =VLOOKUP($G$2,#REF!,$B19,FALSE) ->  | X19: 1 | Y19: 9 | AE19: Grandview
B20: 15 | G20: Dollars | P20: =VLOOKUP($G$2,#REF!,$B20,FALSE) ->  | R20: =VLOOKUP($G$2,#REF!,$B20,FALSE) ->  | T20: =VLOOKUP($G$2,#REF!,$B20,FALSE) ->  | V20: =VLOOKUP($G$2,#REF!,$B20,FALSE) ->  | X20: 4 | Y20: 9 | AE20: Granger
B21: 16 | C21: Grades 9-12 | F21: Top 1/4 | G21: Attendance | P21: =VLOOKUP($G$2,#REF!,$B21,FALSE) ->  | R21: =VLOOKUP($G$2,#REF!,$B21,FALSE) ->  | T21: =VLOOKUP($G$2,#REF!,$B21,FALSE) ->  | V21: =VLOOKUP($G$2,#REF!,$B21,FALSE) ->  | X21: 1 | Y21: 10 | AE21: Highland
B22: 17 | G22: Dollars | P22: =VLOOKUP($G$2,#REF!,$B22,FALSE) ->  | R22: =VLOOKUP($G$2,#REF!,$B22,FALSE) ->  | T22: =VLOOKUP($G$2,#REF!,$B22,FALSE) ->  | V22: =VLOOKUP($G$2,#REF!,$B22,FALSE) ->  | X22: 4 | Y22: 10 | AE22: Hoquiam
B23: 18 | F23: middle 2/4 | G23: Attendance | P23: =VLOOKUP($G$2,#REF!,$B23,FALSE) ->  | R23: =VLOOKUP($G$2,#REF!,$B23,FALSE) ->  | T23: =VLOOKUP($G$2,#REF!,$B23,FALSE) ->  | V23: =VLOOKUP($G$2,#REF!,$B23,FALSE) ->  | X23: 1 | Y23: 11 | AE23: Kennewick
B24: 19 | G24: Dollars | P24: =VLOOKUP($G$2,#REF!,$B24,FALSE) ->  | R24: =VLOOKUP($G$2,#REF!,$B24,FALSE) ->  | T24: =VLOOKUP($G$2,#REF!,$B24,FALSE) ->  | V24: =VLOOKUP($G$2,#REF!,$B24,FALSE) ->  | X24: 4 | Y24: 11 | AE24: Kiona Benton
B26: 20 | G26: Subtotal Dollars | H26: =IFERROR(VLOOKUP($G$3,'2022-23 Final'!$B:$Z,10,0),0) -> 77359 | I26: =IFERROR(H26/J26-1,0) -> -0.08407530192 | J26: =IFERROR(VLOOKUP($G$3,'[2]2021-22 Final'!$B:$R,9,0),0) -> 84460 | K26: =IFERROR(J26/L26-1,0) -> 0.174850466 | L26: =IFERROR(VLOOKUP($G$3,'[2]2020-21 Final'!$B:$R,9,0),0) -> 71890 | N26: =VLOOKUP($G$2,#REF!,8,FALSE) ->  | P26: =VLOOKUP($G$2,#REF!,$B26,FALSE) ->  | R26: =VLOOKUP($G$2,#REF!,$B26,FALSE) ->  | T26: =VLOOKUP($G$2,#REF!,$B26,FALSE) ->  | V26: =VLOOKUP($G$2,#REF!,$B26,FALSE) ->  | AE26: La Conner
B28: 21 | F28: Other Fund Factor | H28: =IFERROR(VLOOKUP($G$3,'2022-23 Final'!$B:$Z,11,0),0) -> 0.95 | I28: =IFERROR(H28/J28-1,0) -> 0 | J28: =IFERROR(VLOOKUP($G$3,'[2]2021-22 Final'!$B:$R,10,0),0) -> 0.95 | K28: =IFERROR(J28/L28-1,0) -> 0 | L28: =IFERROR(VLOOKUP($G$3,'[2]2020-21 Final'!$B:$R,10,0),0) -> 0.95 | N28: N/A | P28: =VLOOKUP($G$2,#REF!,$B28,FALSE) ->  | R28: =VLOOKUP($G$2,#REF!,$B28,FALSE) ->  | T28: =VLOOKUP($G$2,#REF!,$B28,FALSE) ->  | V28: =VLOOKUP($G$2,#REF!,$B28,FALSE) ->  | X28: 1 | Y28: 12 | AE28: Lake Chelan
B29: 22 | F29: Rural Factor | H29: =IFERROR(VLOOKUP($G$3,'2022-23 Final'!$B:$Z,13,0),0) -> 1.1 | I29: =IFERROR(H29/J29-1,0) -> 0 | J29: =IFERROR(VLOOKUP($G$3,'[2]2021-22 Final'!$B:$R,12,0),0) -> 1.1 | K29: =IFERROR(J29/L29-1,0) -> 0 | L29: =IFERROR(VLOOKUP($G$3,'[2]2020-21 Final'!$B:$R,12,0),0) -> 1.1 | P29: =VLOOKUP($G$2,#REF!,$B29,FALSE) ->  | R29: =VLOOKUP($G$2,#REF!,$B29,FALSE) ->  | T29: =VLOOKUP($G$2,#REF!,$B29,FALSE) ->  | V29: =VLOOKUP($G$2,#REF!,$B29,FALSE) ->  | X29: 2 | Y29: 12 | AE29: Lake Quinault
B30: 23 | G30: Total Allocated Amount | H30: =IFERROR(VLOOKUP($G$3,'2022-23 Final'!$B:$Z,18,0),0) -> 80840 | I30: =IFERROR(H30/J30-1,0) -> -0.08408017131 | J30: =IFERROR(VLOOKUP($G$3,'[2]2021-22 Final'!$B:$R,17,0),0) -> 88261 | K30: =IFERROR(J30/L30-1,0) -> 0.1748396028 | L30: =IFERROR(VLOOKUP($G$3,'[2]2020-21 Final'!$B:$R,17,0),0) -> 75126 | N30: =VLOOKUP($G$2,#REF!,9,FALSE) ->  | O30: =IF(P30=0,0,N30/P30) ->  | P30: =VLOOKUP($G$2,#REF!,$B30,FALSE) ->  | R30: =VLOOKUP($G$2,#REF!,$B30,FALSE) ->  | T30: =VLOOKUP($G$2,#REF!,$B30,FALSE) ->  | V30: =VLOOKUP($G$2,#REF!,$B30,FALSE) ->  | X30: 25 | AE30: Lind
N31: =IF(VLOOKUP($G$3,#REF!,15,FALSE)="Y","Not participating","") ->  | P31: =IF(VLOOKUP($G$3,#REF!,29,FALSE)="Y","Not participating","") ->  | AE31: Lynden
F32: Summer Allocation | AE32: Mabton
F33: Allocation Factors | G33: Total Student | L33: =IFERROR(VLOOKUP($G$3,'[2]Summer 2021'!A:K,4,0),0) -> 130 | P33: =IF(ISNA(VLOOKUP($G$2,#REF!,X33,FALSE)),0,VLOOKUP($G$2,#REF!,X33,FALSE)) ->  | R33: =IF(ISNA(VLOOKUP($G$2,#REF!,Z33,FALSE)),0,VLOOKUP($G$2,#REF!,Z33,FALSE)) ->  | T33: =IF(ISNA(VLOOKUP($G$2,#REF!,$X$33,FALSE)),0,VLOOKUP($G$2,#REF!,$X$33,FALSE)) ->  | V33: =IF(ISNA(VLOOKUP($G$2,#REF!,Z33,FALSE)),0,VLOOKUP($G$2,#REF!,Z33,FALSE)) ->  | X33: 2 | Z33: 2 | AE33: Manson
G34: Needs Service | L34: =IFERROR(VLOOKUP($G$3,'[2]Summer 2021'!A:K,6,0),0) -> 30 | P34: =IF(ISNA(VLOOKUP($G$2,#REF!,$Z$34,FALSE)),0,VLOOKUP($G$2,#REF!,$Z$34,FALSE)) ->  | R34: =IF(ISNA(VLOOKUP($G$2,#REF!,$Z$34,FALSE)),0,VLOOKUP($G$2,#REF!,$Z$34,FALSE)) ->  | T34: =IF(ISNA(VLOOKUP($G$2,#REF!,$X$34,FALSE)),0,VLOOKUP($G$2,#REF!,$X$34,FALSE)) ->  | V34: =IF(ISNA(VLOOKUP($G$2,#REF!,Z34,FALSE)),0,VLOOKUP($G$2,#REF!,Z34,FALSE)) ->  | X34: 3 | Z34: 3 | AE34: Monroe
G35: Priority | L35: =IFERROR(VLOOKUP($G$3,'[2]Summer 2021'!A:K,8,0),0) -> 42 | P35: =IF(ISNA(VLOOKUP($G$2,#REF!,$Z$35,FALSE)),0,VLOOKUP($G$2,#REF!,$Z$35,FALSE)) ->  | R35: =IF(ISNA(VLOOKUP($G$2,#REF!,$Z$35,FALSE)),0,VLOOKUP($G$2,#REF!,$Z$35,FALSE)) ->  | T35: =IF(ISNA(VLOOKUP($G$2,#REF!,$X$35,FALSE)),0,VLOOKUP($G$2,#REF!,$X$35,FALSE)) ->  | V35: =IF(ISNA(VLOOKUP($G$2,#REF!,Z35,FALSE)),0,VLOOKUP($G$2,#REF!,Z35,FALSE)) ->  | X35: 4 | Z35: 4 | AE35: Moses Lake
F36: Dollars | L36: =IFERROR(VLOOKUP($G$3,'[2]Summer 2021'!A:V,22,0),0) -> 10162 | P36: =IF(ISNA(VLOOKUP($G$2,#REF!,$Z$36,FALSE)),0,VLOOKUP($G$2,#REF!,$Z$36,FALSE)) ->  | R36: =IF(ISNA(VLOOKUP($G$2,#REF!,$Z$36,FALSE)),0,VLOOKUP($G$2,#REF!,$Z$36,FALSE)) ->  | T36: =IF(ISNA(VLOOKUP($G$2,#REF!,$X$36,FALSE)),0,VLOOKUP($G$2,#REF!,$X$36,FALSE)) ->  | V36: =IF(ISNA(VLOOKUP($G$2,#REF!,Z36,FALSE)),0,VLOOKUP($G$2,#REF!,Z36,FALSE)) ->  | X36: 5 | Z36: 5 | AE36: Mossyrock
P37: =IF(ISNA(VLOOKUP($G$2,#REF!,$Z$37,FALSE)),0,VLOOKUP($G$2,#REF!,$Z$37,FALSE)) ->  | R37: =IF(ISNA(VLOOKUP($G$2,#REF!,$Z$37,FALSE)),0,VLOOKUP($G$2,#REF!,$Z$37,FALSE)) ->  | T37: =IF(ISNA(VLOOKUP($G$2,#REF!,$X$37,FALSE)),0,VLOOKUP($G$2,#REF!,$X$37,FALSE)) ->  | V37: =IF(ISNA(VLOOKUP($G$2,#REF!,Z37,FALSE)),0,VLOOKUP($G$2,#REF!,Z37,FALSE)) ->  | X37: 6 | Z37: 6 | AE37: Mount Vernon
F38: SY 21-22 Health Support Grant | H38: =IFERROR(VLOOKUP($G$3,'2022-23 Final'!$B:$Z,24,0),0) -> 2500 | J38: =IFERROR(VLOOKUP($G$3,'[2]2021-22 Final'!$B:$X,22,0),0) -> 2500 | P38: =IF(ISNA(VLOOKUP($G$2,#REF!,$Z$38,FALSE)),0,VLOOKUP($G$2,#REF!,$Z$38,FALSE)) ->  | R38: =IF(ISNA(VLOOKUP($G$2,#REF!,$Z$38,FALSE)),0,VLOOKUP($G$2,#REF!,$Z$38,FALSE)) ->  | T38: =IF(ISNA(VLOOKUP($G$2,#REF!,$X$38,FALSE)),0,VLOOKUP($G$2,#REF!,$X$38,FALSE)) ->  | V38: =IF(ISNA(VLOOKUP($G$2,#REF!,Z38,FALSE)),0,VLOOKUP($G$2,#REF!,Z38,FALSE)) ->  | X38: 7 | Z38: 7 | AE38: Mt Adams
G39: Total Allocated Amount | H39: =H38+H30 -> 83340 | J39: =J38+J30 -> 90761 | P39: =IF(ISNA(VLOOKUP($G$2,#REF!,$Z$39,FALSE)),0,VLOOKUP($G$2,#REF!,$Z$39,FALSE)) ->  | R39: =IF(ISNA(VLOOKUP($G$2,#REF!,$Z$39,FALSE)),0,VLOOKUP($G$2,#REF!,$Z$39,FALSE)) ->  | T39: =IF(ISNA(VLOOKUP($G$2,#REF!,$X$39,FALSE)),0,VLOOKUP($G$2,#REF!,$X$39,FALSE)) ->  | U39: =IF(V39>0,T39/V39,"-") ->  | V39: =IF(ISNA(VLOOKUP($G$2,#REF!,Z39,FALSE)),0,VLOOKUP($G$2,#REF!,Z39,FALSE)) ->  | X39: 8 | Z39: 8 | AE39: Naches
AE40: Naselle-Grays River
AE41: Nooksack Valley
AE42: North Franklin
AE43: Ocean Beach
AE44: Ocosta
AE45: Okanogan
AE46: Omak
AE47: Orondo
AE48: Oroville
AE49: Othello
AE50: Palisades
AE51: Pasco
AE52: Pateros
AE53: Paterson
AE54: Prosser
AE55: Quillayute Valley
AE56: Quincy
AE57: Rochester
AE58: Roosevelt
AE59: Royal City
AE60: Seattle
AE61: Sedro Woolley
AE62: Shelton
AE63: Soap Lake
AE64: South Bend
AE65: Sunnyside
AE66: Tacoma
AE67: Tonasket
AE68: Toppenish
AE69: Touchet
AE70: Union Gap
AE71: Vancouver
AE72: Wahkiakum
AE73: Wahluke
AE74: Walla Walla
AE75: Wapato
AE76: Warden
AE77: Waterville
AE78: Wenatchee
AE79: West Valley
AE80: White Salmon
AE81: Winlock
AE82: Yakima
AE83: Zillah

Sheet 2022-23 Final (hidden)
J1: From Assumptions Page:
D2: Constant Dollar Multipliers - Do Not Change Here | J2: Target Amounts | O2: =Assumptions!C24 -> 20768148
D3: =[2]Assumptions!$AO$4 -> 0 | F3: 2.036969198e+66 | G3: 430.9654675 | H3: Use CTRL K | J3: Actual Amounts | O3: =O18 -> 20768148
J4: Difference | O4: =O3-O2 -> 0
J6: =O18 -> 20768148
H7: Put total here | J7: =Assumptions!C24 -> 20768148
J10: Go to H9 & Control K to set dollar amount
E14: Migrant Students | V14: Accepting Funding? | X14: HOLD HARMLESS
D15: =G3 -> 430.9654675 | E15: K-12 | G15: Needs Support | I15: Priority Interuption | S15: =S18 -> 20768148
C16: CCDDD | D16: District | E16: Ave. number | F16: Regular Dollars | G16: Ave. number | H16: Regular Dollars | I16: Priority Number | J16: Priority Dollars | K16: Subtotal | L16: Other Funds Factor | M16: Subtotal 2 | N16: Add'l Rural Factor | O16: Total Allocated Amount | Q16: MOE | R16: MOE Red. | S16: Subtotal After MOE | V16: Y for yes, N for no (reallocates money) | X16: Override funding? Y for yes, otherwise blank. | Y16: Health Support Grant | Z16: Total
E17: 10 | F17: =F18/E18 -> 464.3864753 | G17: 0.25 | H17: =H18/G18 -> 110.2483823 | I17: 1 | J17: =J18/I18 -> 434.6471498 | N17: 0.1 | O17: 124
A18: 0 | C18: 99999 | D18: State Total | E18: =SUMIF(E19:E152,">-10") -> 29117 | F18: =SUM(F19:F156) -> 13521541 | G18: =SUMIF(G19:G156,">=10") -> 8036 | H18: =SUM(H19:H156) -> 885956 | I18: =SUMIF(I19:I156,">=10") -> 16157 | J18: =SUM(J19:J156) -> 7022594 | K18: =SUM(K19:K156) -> 21430091 | M18: =SUM(M19:M156) -> 22039546 | O18: =SUM(O19:O156) -> 20768148 | R18: =SUM(R19:R152) -> 0 | S18: =SUM(S19:S156) -> 20768148 | T18: Previous Year Final Allocations | U18: Allocation Difference | W18: Consortia | Y18: =SUM(Y19:Y152) -> 190500 | Z18: =SUM(Z19:Z156) -> 20665567
A19: 1 | B19: 14005 | C19: 14005 | D19: ABERDEEN | E19: =IFERROR(VLOOKUP(C19,'Enrollment 22-23'!A:E,3,FALSE),0) -> 130 | F19: =IF(E19>=10,ROUND(E19*$G$3,0),0) -> 56026 | G19: =IFERROR(VLOOKUP(C19,'Enrollment 22-23'!A:E,5,0),0) -> 30 | H19: =IF(E19>=$E$17,ROUND(G19*$G$3*$G$17,0),0) -> 3232 | I19: =IFERROR(VLOOKUP(C19,'Enrollment 22-23'!A:E,4,FALSE),0) -> 42 | J19: =IF(E19>=$E$17,ROUND(I19*$G$3*$I$17,0),0) -> 18101 | K19: =+F19+H19+J19 -> 77359 | L19: =IF(E19>$E$17,_xlfn.IFNA(VLOOKUP(C19,'other funds ftr 2022'!A:I,9,FALSE),0),1) -> 0.95 | M19: =IF(L19=0,K19,ROUND(K19*L19,0)) -> 73491 | N19: =1+IF(ISNA(VLOOKUP(VALUE(C19),'Rural and Low Income 22-23'!$A:$B,2,FALSE)),0,'2022-23 Final'!$N$17) -> 1.1 | O19: =IF(V19="y",ROUND(M19*N19,0),0) -> 80840 | R19: =ROUND(IF(Q19>0,-(0.9-Q19)*O19,0),0) -> 0 | S19: =O19+R19 -> 80840 | T19: =VLOOKUP(TRIM(C19),'2021-22 Final'!B:X,17,FALSE) -> 88261 | U19: =S19-T19 -> -7421 | V19: Y | Y19: =IF(V19="Y",IF(E19<=99,1500,IF(AND(E19>=100,E19<=399),2500,4000)),0) -> 2500 | Z19: =IF(W19=1, 0, Y19+S19) -> 83340
A20: 2 | B20: 29103 | C20: 29103 | D20: ANACORTES | E20: =IFERROR(VLOOKUP(C20,'Enrollment 22-23'!A:E,3,FALSE),0) -> 13 | F20: =IF(E20>=10,ROUND(E20*$G$3,0),0) -> 5603 | G20: =IFERROR(VLOOKUP(C20,'Enrollment 22-23'!A:E,5,0),0) -> 2 | H20: =IF(E20>=$E$17,ROUND(G20*$G$3*$G$17,0),0) -> 215 | I20: =IFERROR(VLOOKUP(C20,'Enrollment 22-23'!A:E,4,FALSE),0) -> 6 | J20: =IF(E20>=$E$17,ROUND(I20*$G$3*$I$17,0),0) -> 2586 | K20: 8404 | L20: =IF(E20>$E$17,_xlfn.IFNA(VLOOKUP(C20,'other funds ftr 2022'!A:I,9,FALSE),0),1) -> 0 | M20: 8404 | N20: =1+IF(ISNA(VLOOKUP(VALUE(C20),'Rural and Low Income 22-23'!$A:$B,2,FALSE)),0,'2022-23 Final'!$N$17) -> 1 | O20: 0 | R20: 0 | S20: 0 | T20: =VLOOKUP(TRIM(C20),'2021-22 Final'!B:X,17,FALSE) ->  | V20: N | Y20: =IF(V20="Y",IF(E20<=99,1500,IF(AND(E20>=100,E20<=399),2500,4000)),0) -> 0 | Z20: =IF(W20=1, 0, Y20+S20) -> 0
A21: 3 | B21: 31016 | C21: 31016 | D21: ARLINGTON | E21: =IFERROR(VLOOKUP(C21,'Enrollment 22-23'!A:E,3,FALSE),0) -> 48 | F21: 20686 | G21: =IFERROR(VLOOKUP(C21,'Enrollment 22-23'!A:E,5,0),0) -> 13 | H21: 1401 | I21: =IFERROR(VLOOKUP(C21,'Enrollment 22-23'!A:E,4,FALSE),0) -> 31 | J21: 13360 | K21: 35447 | L21: =IF(E21>$E$17,_xlfn.IFNA(VLOOKUP(C21,'other funds ftr 2022'!A:I,9,FALSE),0),1) -> 0 | M21: 35447 | N21: =1+IF(ISNA(VLOOKUP(VALUE(C21),'Rural and Low Income 22-23'!$A:$B,2,FALSE)),0,'2022-23 Final'!$N$17) -> 1 | O21: 0 | R21: 0 | S21: 0 | T21: =VLOOKUP(TRIM(C21),'2021-22 Final'!B:X,17,FALSE) -> 0 | U21: 0 | V21: N | Y21: 0 | Z21: 0
A22: 4 | B22: 17408 | C22: 17408 | D22: AUBURN | E22: =IFERROR(VLOOKUP(C22,'Enrollment 22-23'!A:E,3,FALSE),0) -> 39 | F22: 16808 | G22: =IFERROR(VLOOKUP(C22,'Enrollment 22-23'!A:E,5,0),0) -> 9 | H22: 970 | I22: =IFERROR(VLOOKUP(C22,'Enrollment 22-23'!A:E,4,FALSE),0) -> 4 | J22: 1724 | K22: 19502 | L22: =IF(E22>$E$17,_xlfn.IFNA(VLOOKUP(C22,'other funds ftr 2022'!A:I,9,FALSE),0),1) -> 0 | M22: 19502 | N22: =1+IF(ISNA(VLOOKUP(VALUE(C22),'Rural and Low Income 22-23'!$A:$B,2,FALSE)),0,'2022-23 Final'!$N$17) -> 1 | O22: 0 | R22: 0 | S22: 0 | T22: =VLOOKUP(TRIM(C22),'2021-22 Final'!B:X,17,FALSE) -> 0 | U22: 0 | V22: N | Y22: 0 | Z22: 0
A23: 5 | B23: 06119 | C23: 06119 | D23: BATTLE GROUND | E23: =IFERROR(VLOOKUP(C23,'Enrollment 22-23'!A:E,3,FALSE),0) -> 21 | F23: 9050 | G23: =IFERROR(VLOOKUP(C23,'Enrollment 22-23'!A:E,5,0),0) -> 5 | H23: 539 | I23: =IFERROR(VLOOKUP(C23,'Enrollment 22-23'!A:E,4,FALSE),0) -> 1 | J23: 431 | K23: 10020 | L23: =IF(E23>$E$17,_xlfn.IFNA(VLOOKUP(C23,'other funds ftr 2022'!A:I,9,FALSE),0),1) -> 0 | M23: 10020 | N23: =1+IF(ISNA(VLOOKUP(VALUE(C23),'Rural and Low Income 22-23'!$A:$B,2,FALSE)),0,'2022-23 Final'!$N$17) -> 1 | O23: 0 | R23: 0 | S23: 0 | T23: =VLOOKUP(TRIM(C23),'2021-22 Final'!B:X,17,FALSE) -> 0 | U23: 0 | V23: N | Y23: 0 | Z23: 0
A24: 6 | B24: 17405 | C24: 17405 | D24: BELLEVUE | E24: =IFERROR(VLOOKUP(C24,'Enrollment 22-23'!A:E,3,FALSE),0) -> 10 | F24: 4310 | G24: =IFERROR(VLOOKUP(C24,'Enrollment 22-23'!A:E,5,0),0) -> 3 | H24: 323 | I24: =IFERROR(VLOOKUP(C24,'Enrollment 22-23'!A:E,4,FALSE),0) -> 2 | J24: 862 | K24: 5495 | L24: =IF(E24>$E$17,_xlfn.IFNA(VLOOKUP(C24,'other funds ftr 2022'!A:I,9,FALSE),0),1) -> 1 | M24: 5495 | N24: =1+IF(ISNA(VLOOKUP(VALUE(C24),'Rural and Low Income 22-23'!$A:$B,2,FALSE)),0,'2022-23 Final'!$N$17) -> 1 | O24: 0 | R24: 0 | S24: 0 | T24: =VLOOKUP(TRIM(C24),'2021-22 Final'!B:X,17,FALSE) ->  | V24: N | Y24: 0 | Z24: 0
A25: 7 | B25: 37501 | C25: 37501 | D25: BELLINGHAM | E25: =IFERROR(VLOOKUP(C25,'Enrollment 22-23'!A:E,3,FALSE),0) -> 163 | F25: 70247 | G25: =IFERROR(VLOOKUP(C25,'Enrollment 22-23'!A:E,5,0),0) -> 46 | H25: 4956 | I25: =IFERROR(VLOOKUP(C25,'Enrollment 22-23'!A:E,4,FALSE),0) -> 63 | J25: 27151 | K25: 102354 | L25: =IF(E25>$E$17,_xlfn.IFNA(VLOOKUP(C25,'other funds ftr 2022'!A:I,9,FALSE),0),1) -> 0 | M25: 102354 | N25: =1+IF(ISNA(VLOOKUP(VALUE(C25),'Rural and Low Income 22-23'!$A:$B,2,FALSE)),0,'2022-23 Final'!$N$17) -> 1 | O25: 0 | R25: 0 | S25: 0 | T25: =VLOOKUP(TRIM(C25),'2021-22 Final'!B:X,17,FALSE) -> 0 | U25: 0 | V25: N | Y25: 0 | Z25: 0
A26: 8 | B26: 27403 | C26: 27403 | D26: BETHEL | E26: =IFERROR(VLOOKUP(C26,'Enrollment 22-23'!A:E,3,FALSE),0) -> 11 | F26: 4741 | G26: =IFERROR(VLOOKUP(C26,'Enrollment 22-23'!A:E,5,0),0) -> 3 | H26: 323 | I26: =IFERROR(VLOOKUP(C26,'Enrollment 22-23'!A:E,4,FALSE),0) -> 8 | J26: 3448 | K26: 8512 | L26: =IF(E26>$E$17,_xlfn.IFNA(VLOOKUP(C26,'other funds ftr 2022'!A:I,9,FALSE),0),1) -> 0 | M26: 8512 | N26: =1+IF(ISNA(VLOOKUP(VALUE(C26),'Rural and Low Income 22-23'!$A:$B,2,FALSE)),0,'2022-23 Final'!$N$17) -> 1 | O26: 0 | R26: 0 | S26: 0 | T26: =VLOOKUP(TRIM(C26),'2021-22 Final'!B:X,17,FALSE) ->  | V26: N | Y26: 0 | Z26: 0
A27: 9 | B27: 18100 | C27: 18100 | D27: BREMERTON | E27: =IFERROR(VLOOKUP(C27,'Enrollment 22-23'!A:E,3,FALSE),0) -> 84 | F27: 36201 | G27: =IFERROR(VLOOKUP(C27,'Enrollment 22-23'!A:E,5,0),0) -> 21 | H27: 2263 | I27: =IFERROR(VLOOKUP(C27,'Enrollment 22-23'!A:E,4,FALSE),0) -> 17 | J27: 7326 | K27: 45790 | L27: =IF(E27>$E$17,_xlfn.IFNA(VLOOKUP(C27,'other funds ftr 2022'!A:I,9,FALSE),0),1) -> 0 | M27: 45790 | N27: =1+IF(ISNA(VLOOKUP(VALUE(C27),'Rural and Low Income 22-23'!$A:$B,2,FALSE)),0,'2022-23 Final'!$N$17) -> 1 | O27: 45790 | R27: 0 | S27: 45790 | T27: =VLOOKUP(TRIM(C27),'2021-22 Final'!B:X,17,FALSE) -> 0 | U27: 45790 | V27: Y | Y27: 1500 | Z27: 47290
A28: 10 | B28: 24111 | C28: 24111 | D28: BREWSTER | E28: =IFERROR(VLOOKUP(C28,'Enrollment 22-23'!A:E,3,FALSE),0) -> 220 | F28: 94812 | G28: =IFERROR(VLOOKUP(C28,'Enrollment 22-23'!A:E,5,0),0) -> 50 | H28: 5387 | I28: =IFERROR(VLOOKUP(C28,'Enrollment 22-23'!A:E,4,FALSE),0) -> 108 | J28: 46544 | K28: 146743 | L28: =IF(E28>$E$17,_xlfn.IFNA(VLOOKUP(C28,'other funds ftr 2022'!A:I,9,FALSE),0),1) -> 1.05 | M28: 154080 | N28: =1+IF(ISNA(VLOOKUP(VALUE(C28),'Rural and Low Income 22-23'!$A:$B,2,FALSE)),0,'2022-23 Final'!$N$17) -> 1.1 | O28: 169488 | R28: 0 | S28: 169488 | T28: =VLOOKUP(TRIM(C28),'2021-22 Final'!B:X,17,FALSE) -> 163854 | U28: 5634 | V28: Y | Y28: 2500 | Z28: 171988
A29: 11 | B29: 09075 | C29: 09075 | D29: BRIDGEPORT | E29: =IFERROR(VLOOKUP(C29,'Enrollment 22-23'!A:E,3,FALSE),0) -> 230 | F29: 99122 | G29: =IFERROR(VLOOKUP(C29,'Enrollment 22-23'!A:E,5,0),0) -> 47 | H29: 5064 | I29: =IFERROR(VLOOKUP(C29,'Enrollment 22-23'!A:E,4,FALSE),0) -> 38 | J29: 16377 | K29: 120563 | L29: =IF(E29>$E$17,_xlfn.IFNA(VLOOKUP(C29,'other funds ftr 2022'!A:I,9,FALSE),0),1) -> 1.05 | M29: 126591 | N29: =1+IF(ISNA(VLOOKUP(VALUE(C29),'Rural and Low Income 22-23'!$A:$B,2,FALSE)),0,'2022-23 Final'!$N$17) -> 1 | O29: 126591 | R29: 0 | S29: 126591 | T29: =VLOOKUP(TRIM(C29),'2021-22 Final'!B:X,17,FALSE) -> 152034 | U29: -25443 | V29: Y | Y29: 2500 | Z29: 129091
A30: 12 | B30: 29100 | C30: 29100 | D30: BURLINGTON-EDISON | E30: =IFERROR(VLOOKUP(C30,'Enrollment 22-23'!A:E,3,FALSE),0) -> 388 | F30: 167215 | G30: =IFERROR(VLOOKUP(C30,'Enrollment 22-23'!A:E,5,0),0) -> 123 | H30: 13252 | I30: =IFERROR(VLOOKUP(C30,'Enrollment 22-23'!A:E,4,FALSE),0) -> 183 | J30: 78867 | K30: 259334 | L30: =IF(E30>$E$17,_xlfn.IFNA(VLOOKUP(C30,'other funds ftr 2022'!A:I,9,FALSE),0),1) -> 0.95 | M30: 246367 | N30: =1+IF(ISNA(VLOOKUP(VALUE(C30),'Rural and Low Income 22-23'!$A:$B,2,FALSE)),0,'2022-23 Final'!$N$17) -> 1 | O30: 246367 | R30: 0 | S30: 246367 | T30: =VLOOKUP(TRIM(C30),'2021-22 Final'!B:X,17,FALSE) -> 205956 | U30: 40411 | V30: Y | Y30: 2500 | Z30: 248867
A31: 14 | B31: 04228 | C31: 04228 | D31: CASCADE | E31: =IFERROR(VLOOKUP(C31,'Enrollment 22-23'!A:E,3,FALSE),0) -> 59 | F31: 25427 | G31: =IFERROR(VLOOKUP(C31,'Enrollment 22-23'!A:E,5,0),0) -> 12 | H31: 1293 | I31: =IFERROR(VLOOKUP(C31,'Enrollment 22-23'!A:E,4,FALSE),0) -> 36 | J31: 15515 | K31: 42235 | L31: =IF(E31>$E$17,_xlfn.IFNA(VLOOKUP(C31,'other funds ftr 2022'!A:I,9,FALSE),0),1) -> 0.95 | M31: 40123 | N31: =1+IF(ISNA(VLOOKUP(VALUE(C31),'Rural and Low Income 22-23'!$A:$B,2,FALSE)),0,'2022-23 Final'!$N$17) -> 1 | O31: 40123 | R31: 0 | S31: 40123 | T31: =VLOOKUP(TRIM(C31),'2021-22 Final'!B:X,17,FALSE) -> 41924 | U31: -1801 | V31: Y | Y31: 1500 | Z31: 41623
A32: 13 | B32: 04222 | C32: 04222 | D32: CASHMERE | E32: =IFERROR(VLOOKUP(C32,'Enrollment 22-23'!A:E,3,FALSE),0) -> 257 | F32: 110758 | G32: =IFERROR(VLOOKUP(C32,'Enrollment 22-23'!A:E,5,0),0) -> 20 | H32: 2155 | I32: =IFERROR(VLOOKUP(C32,'Enrollment 22-23'!A:E,4,FALSE),0) -> 44 | J32: 18962 | K32: 131875 | L32: =IF(E32>$E$17,_xlfn.IFNA(VLOOKUP(C32,'other funds ftr 2022'!A:I,9,FALSE),0),1) -> 1.15 | M32: 151656 | N32: =1+IF(ISNA(VLOOKUP(VALUE(C32),'Rural and Low Income 22-23'!$A:$B,2,FALSE)),0,'2022-23 Final'!$N$17) -> 1 | O32: 151656 | R32: =ROUND(IF(Q32>0,-(0.9-Q32)*O32,0),0) -> 0 | S32: 151656 | T32: =VLOOKUP(TRIM(C32),'2021-22 Final'!B:X,17,FALSE) -> 165579 | U32: -13923 | V32: Y | Y32: 2500 | Z32: 154156
A33: 15 | B33: 18401 | C33: 18401 | D33: CENTRAL KITSAP | E33: =IFERROR(VLOOKUP(C33,'Enrollment 22-23'!A:E,3,FALSE),0) -> 16 | F33: 6895 | G33: =IFERROR(VLOOKUP(C33,'Enrollment 22-23'!A:E,5,0),0) -> 5 | H33: 539 | I33: =IFERROR(VLOOKUP(C33,'Enrollment 22-23'!A:E,4,FALSE),0) -> 8 | J33: 3448 | K33: 10882 | L33: =IF(E33>$E$17,_xlfn.IFNA(VLOOKUP(C33,'other funds ftr 2022'!A:I,9,FALSE),0),1) -> 0 | M33: 10882 | N33: =1+IF(ISNA(VLOOKUP(VALUE(C33),'Rural and Low Income 22-23'!$A:$B,2,FALSE)),0,'2022-23 Final'!$N$17) -> 1 | O33: 0 | R33: =ROUND(IF(Q33>0,-(0.9-Q33)*O33,0),0) -> 0 | S33: 0 | T33: =VLOOKUP(TRIM(C33),'2021-22 Final'!B:X,17,FALSE) -> 0 | U33: 0 | V33: N | Y33: 0 | Z33: 0
A34: 16 | B34: 32356 | C34: 32356 | D34: CENTRAL VALLEY | E34: =IFERROR(VLOOKUP(C34,'Enrollment 22-23'!A:E,3,FALSE),0) -> 16 | F34: 6895 | G34: =IFERROR(VLOOKUP(C34,'Enrollment 22-23'!A:E,5,0),0) -> 4 | H34: 431 | I34: =IFERROR(VLOOKUP(C34,'Enrollment 22-23'!A:E,4,FALSE),0) -> 5 | J34: 2155 | K34: 9481 | L34: =IF(E34>$E$17,_xlfn.IFNA(VLOOKUP(C34,'other funds ftr 2022'!A:I,9,FALSE),0),1) -> 0 | M34: 9481 | N34: =1+IF(ISNA(VLOOKUP(VALUE(C34),'Rural and Low Income 22-23'!$A:$B,2,FALSE)),0,'2022-23 Final'!$N$17) -> 1 | O34: 0 | R34: =ROUND(IF(Q34>0,-(0.9-Q34)*O34,0),0) -> 0 | S34: 0 | T34: =VLOOKUP(TRIM(C34),'2021-22 Final'!B:X,17,FALSE) -> 0 | U34: 0 | V34: N | X34: Y | Y34: 0 | Z34: 0
A35: 17 | B35: 21401 | C35: 21401 | D35: CENTRALIA | E35: =IFERROR(VLOOKUP(C35,'Enrollment 22-23'!A:E,3,FALSE),0) -> 122 | F35: 52578 | G35: =IFERROR(VLOOKUP(C35,'Enrollment 22-23'!A:E,5,0),0) -> 42 | H35: 4525 | I35: =IFERROR(VLOOKUP(C35,'Enrollment 22-23'!A:E,4,FALSE),0) -> 51 | J35: 21979 | K35: 79082 | L35: =IF(E35>$E$17,_xlfn.IFNA(VLOOKUP(C35,'other funds ftr 2022'!A:I,9,FALSE),0),1) -> 0.85 | M35: 67220 | N35: =1+IF(ISNA(VLOOKUP(VALUE(C35),'Rural and Low Income 22-23'!$A:$B,2,FALSE)),0,'2022-23 Final'!$N$17) -> 1 | O35: 67220 | R35: 0 | S35: 67220 | T35: =VLOOKUP(TRIM(C35),'2021-22 Final'!B:X,17,FALSE) -> 60052 | U35: 7168 | V35: Y | Y35: 2500 | Z35: 69720
A36: 18 | B36: 21302 | C36: 21302 | D36: CHEHALIS | E36: =IFERROR(VLOOKUP(C36,'Enrollment 22-23'!A:E,3,FALSE),0) -> 34 | F36: 14653 | G36: =IFERROR(VLOOKUP(C36,'Enrollment 22-23'!A:E,5,0),0) -> 14 | H36: 1508 | I36: =IFERROR(VLOOKUP(C36,'Enrollment 22-23'!A:E,4,FALSE),0) -> 14 | J36: 6034 | K36: 22195 | L36: =IF(E36>$E$17,_xlfn.IFNA(VLOOKUP(C36,'other funds ftr 2022'!A:I,9,FALSE),0),1) -> 0.85 | M36: 18866 | N36: =1+IF(ISNA(VLOOKUP(VALUE(C36),'Rural and Low Income 22-23'!$A:$B,2,FALSE)),0,'2022-23 Final'!$N$17) -> 1 | O36: 18866 | R36: =ROUND(IF(Q36>0,-(0.9-Q36)*O36,0),0) -> 0 | S36: 18866 | T36: =VLOOKUP(TRIM(C36),'2021-22 Final'!B:X,17,FALSE) -> 20597 | U36: -1731 | V36: Y | X36: Y | Y36: 1500 | Z36: 20366
A37: 19 | B37: 32360 | C37: 32360 | D37: CHENEY | E37: =IFERROR(VLOOKUP(C37,'Enrollment 22-23'!A:E,3,FALSE),0) -> 10 | F37: 4310 | G37: =IFERROR(VLOOKUP(C37,'Enrollment 22-23'!A:E,5,0),0) -> 0 | H37: 0 | I37: =IFERROR(VLOOKUP(C37,'Enrollment 22-23'!A:E,4,FALSE),0) -> 7 | J37: 3017 | K37: 7327 | L37: =IF(E37>$E$17,_xlfn.IFNA(VLOOKUP(C37,'other funds ftr 2022'!A:I,9,FALSE),0),1) -> 1 | M37: 7327 | N37: =1+IF(ISNA(VLOOKUP(VALUE(C37),'Rural and Low Income 22-23'!$A:$B,2,FALSE)),0,'2022-23 Final'!$N$17) -> 1 | O37: 0 | R37: 0 | S37: 0 | T37: =VLOOKUP(TRIM(C37),'2021-22 Final'!B:X,17,FALSE) ->  | V37: N | Y37: 0 | Z37: 0
A38: 20 | B38: 27901 | C38: 27901 | D38: CHIEF LESCHI TRIBAL COMPACT | E38: =IFERROR(VLOOKUP(C38,'Enrollment 22-23'!A:E,3,FALSE),0) -> 13 | F38: 5603 | G38: =IFERROR(VLOOKUP(C38,'Enrollment 22-23'!A:E,5,0),0) -> 0 | H38: 0 | I38: =IFERROR(VLOOKUP(C38,'Enrollment 22-23'!A:E,4,FALSE),0) -> 11 | J38: 4741 | K38: 10344 | L38: =IF(E38>$E$17,_xlfn.IFNA(VLOOKUP(C38,'other funds ftr 2022'!A:I,9,FALSE),0),1) -> 0 | M38: 10344 | N38: =1+IF(ISNA(VLOOKUP(VALUE(C38),'Rural and Low Income 22-23'!$A:$B,2,FALSE)),0,'2022-23 Final'!$N$17) -> 1 | O38: 10344 | R38: 0 | S38: 10344 | T38: =VLOOKUP(TRIM(C38),'2021-22 Final'!B:X,17,FALSE) -> 6587 | U38: 3757 | V38: Y | Y38: 1500 | Z38: 11844
A39: 21 | B39: 27400 | C39: 27400 | D39: CLOVER PARK | E39: =IFERROR(VLOOKUP(C39,'Enrollment 22-23'!A:E,3,FALSE),0) -> 13 | F39: 5603 | G39: =IFERROR(VLOOKUP(C39,'Enrollment 22-23'!A:E,5,0),0) -> 2 | H39: 215 | I39: =IFERROR(VLOOKUP(C39,'Enrollment 22-23'!A:E,4,FALSE),0) -> 9 | J39: 3879 | K39: 9697 | L39: =IF(E39>$E$17,_xlfn.IFNA(VLOOKUP(C39,'other funds ftr 2022'!A:I,9,FALSE),0),1) -> 0 | M39: 9697 | N39: =1+IF(ISNA(VLOOKUP(VALUE(C39),'Rural and Low Income 22-23'!$A:$B,2,FALSE)),0,'2022-23 Final'!$N$17) -> 1 | O39: 0 | R39: 0 | S39: 0 | T39: =VLOOKUP(TRIM(C39),'2021-22 Final'!B:X,17,FALSE) ->  | V39: N | Y39: 0 | Z39: 0
A40: 22 | B40: 36250 | C40: 36250 | D40: COLLEGE PLACE | E40: =IFERROR(VLOOKUP(C40,'Enrollment 22-23'!A:E,3,FALSE),0) -> 116 | F40: 49992 | G40: =IFERROR(VLOOKUP(C40,'Enrollment 22-23'!A:E,5,0),0) -> 31 | H40: 3340 | I40: =IFERROR(VLOOKUP(C40,'Enrollment 22-23'!A:E,4,FALSE),0) -> 62 | J40: 26720 | K40: 80052 | L40: =IF(E40>$E$17,_xlfn.IFNA(VLOOKUP(C40,'other funds ftr 2022'!A:I,9,FALSE),0),1) -> 0.95 | M40: 76049 | N40: =1+IF(ISNA(VLOOKUP(VALUE(C40),'Rural and Low Income 22-23'!$A:$B,2,FALSE)),0,'2022-23 Final'!$N$17) -> 1 | O40: 76049 | R40: 0 | S40: 76049 | T40: =VLOOKUP(TRIM(C40),'2021-22 Final'!B:X,17,FALSE) -> 57551 | U40: 18498 | V40: Y | Y40: 2500 | Z40: 78549
A41: 23 | B41: 36400 | C41: 36400 | D41: COLUMBIA (WALLA WALLA) | E41: =IFERROR(VLOOKUP(C41,'Enrollment 22-23'!A:E,3,FALSE),0) -> 44 | F41: 18962 | G41: =IFERROR(VLOOKUP(C41,'Enrollment 22-23'!A:E,5,0),0) -> 4 | H41: 431 | I41: =IFERROR(VLOOKUP(C41,'Enrollment 22-23'!A:E,4,FALSE),0) -> 29 | J41: 12498 | K41: 31891 | L41: =IF(E41>$E$17,_xlfn.IFNA(VLOOKUP(C41,'other funds ftr 2022'!A:I,9,FALSE),0),1) -> 0.95 | M41: 30296 | N41: =1+IF(ISNA(VLOOKUP(VALUE(C41),'Rural and Low Income 22-23'!$A:$B,2,FALSE)),0,'2022-23 Final'!$N$17) -> 1 | O41: 30296 | R41: 0 | S41: 30296 | T41: =VLOOKUP(TRIM(C41),'2021-22 Final'!B:X,17,FALSE) -> 37739 | U41: -7443 | V41: Y | W41: 1 | Y41: 1500 | Z41: 0
A42: 24 | B42: 29317 | C42: 29317 | D42: CONWAY | E42: =IFERROR(VLOOKUP(C42,'Enrollment 22-23'!A:E,3,FALSE),0) -> 31 | F42: 13360 | G42: =IFERROR(VLOOKUP(C42,'Enrollment 22-23'!A:E,5,0),0) -> 8 | H42: 862 | I42: =IFERROR(VLOOKUP(C42,'Enrollment 22-23'!A:E,4,FALSE),0) -> 13 | J42: 5603 | K42: 19825 | L42: =IF(E42>$E$17,_xlfn.IFNA(VLOOKUP(C42,'other funds ftr 2022'!A:I,9,FALSE),0),1) -> 1.15 | M42: 22799 | N42: =1+IF(ISNA(VLOOKUP(VALUE(C42),'Rural and Low Income 22-23'!$A:$B,2,FALSE)),0,'2022-23 Final'!$N$17) -> 1.1 | O42: 25079 | R42: 0 | S42: 25079 | T42: =VLOOKUP(TRIM(C42),'2021-22 Final'!B:X,17,FALSE) -> 24891 | U42: 188 | V42: Y | Y42: 1500 | Z42: 26579
A43: 25 | B43: 15204 | C43: 15204 | D43: COUPEVILLE | E43: =IFERROR(VLOOKUP(C43,'Enrollment 22-23'!A:E,3,FALSE),0) -> 16 | F43: 6895 | G43: =IFERROR(VLOOKUP(C43,'Enrollment 22-23'!A:E,5,0),0) -> 7 | H43: 754 | I43: =IFERROR(VLOOKUP(C43,'Enrollment 22-23'!A:E,4,FALSE),0) -> 6 | J43: 2586 | K43: 10235 | L43: =IF(E43>$E$17,_xlfn.IFNA(VLOOKUP(C43,'other funds ftr 2022'!A:I,9,FALSE),0),1) -> 0.85 | M43: 8700 | N43: =1+IF(ISNA(VLOOKUP(VALUE(C43),'Rural and Low Income 22-23'!$A:$B,2,FALSE)),0,'2022-23 Final'!$N$17) -> 1 | O43: 8700 | R43: 0 | S43: 8700 | T43: =VLOOKUP(TRIM(C43),'2021-22 Final'!B:X,17,FALSE) -> 7099 | U43: 1601 | V43: Y | Y43: 1500 | Z43: 10200
A44: 26 | B44: 39090 | C44: 39090 | D44: EAST VALLEY (YAKIMA) | E44: =IFERROR(VLOOKUP(C44,'Enrollment 22-23'!A:E,3,FALSE),0) -> 235 | F44: 101277 | G44: =IFERROR(VLOOKUP(C44,'Enrollment 22-23'!A:E,5,0),0) -> 32 | H44: 3448 | I44: =IFERROR(VLOOKUP(C44,'Enrollment 22-23'!A:E,4,FALSE),0) -> 160 | J44: 68954 | K44: 173679 | L44: =IF(E44>$E$17,_xlfn.IFNA(VLOOKUP(C44,'other funds ftr 2022'!A:I,9,FALSE),0),1) -> 0 | M44: 173679 | N44: =1+IF(ISNA(VLOOKUP(VALUE(C44),'Rural and Low Income 22-23'!$A:$B,2,FALSE)),0,'2022-23 Final'!$N$17) -> 1 | O44: 0 | R44: 0 | S44: 0 | T44: =VLOOKUP(TRIM(C44),'2021-22 Final'!B:X,17,FALSE) -> 0 | U44: 0 | V44: N | Y44: 0 | Z44: 0
A45: 27 | B45: 09206 | C45: 09206 | D45: EASTMONT | E45: =IFERROR(VLOOKUP(C45,'Enrollment 22-23'!A:E,3,FALSE),0) -> 852 | F45: 367183 | G45: =IFERROR(VLOOKUP(C45,'Enrollment 22-23'!A:E,5,0),0) -> 174 | H45: 18747 | I45: =IFERROR(VLOOKUP(C45,'Enrollment 22-23'!A:E,4,FALSE),0) -> 521 | J45: 224533 | K45: 610463 | L45: =IF(E45>$E$17,_xlfn.IFNA(VLOOKUP(C45,'other funds ftr 2022'!A:I,9,FALSE),0),1) -> 1.05 | M45: 640986 | N45: =1+IF(ISNA(VLOOKUP(VALUE(C45),'Rural and Low Income 22-23'!$A:$B,2,FALSE)),0,'2022-23 Final'!$N$17) -> 1 | O45: 640986 | R45: 0 | S45: 640986 | T45: =VLOOKUP(TRIM(C45),'2021-22 Final'!B:X,17,FALSE) -> 601515 | U45: 39471 | V45: Y | Y45: 4000 | Z45: 644986
A46: 28 | B46: 31015 | C46: 31015 | D46: EDMONDS | E46: =IFERROR(VLOOKUP(C46,'Enrollment 22-23'!A:E,3,FALSE),0) -> 19 | F46: 8188 | G46: =IFERROR(VLOOKUP(C46,'Enrollment 22-23'!A:E,5,0),0) -> 1 | H46: 108 | I46: =IFERROR(VLOOKUP(C46,'Enrollment 22-23'!A:E,4,FALSE),0) -> 5 | J46: 2155 | K46: 10451 | L46: =IF(E46>$E$17,_xlfn.IFNA(VLOOKUP(C46,'other funds ftr 2022'!A:I,9,FALSE),0),1) -> 0 | M46: 10451 | N46: =1+IF(ISNA(VLOOKUP(VALUE(C46),'Rural and Low Income 22-23'!$A:$B,2,FALSE)),0,'2022-23 Final'!$N$17) -> 1 | O46: 0 | R46: 0 | S46: 0 | T46: =VLOOKUP(TRIM(C46),'2021-22 Final'!B:X,17,FALSE) -> 0 | U46: 0 | V46: N | Y46: 0 | Z46: 0
A47: 29 | B47: 19401 | C47: 19401 | D47: ELLENSBURG | E47: =IFERROR(VLOOKUP(C47,'Enrollment 22-23'!A:E,3,FALSE),0) -> 64 | F47: 27582 | G47: =IFERROR(VLOOKUP(C47,'Enrollment 22-23'!A:E,5,0),0) -> 23 | H47: 2478 | I47: =IFERROR(VLOOKUP(C47,'Enrollment 22-23'!A:E,4,FALSE),0) -> 24 | J47: 10343 | K47: 40403 | L47: =IF(E47>$E$17,_xlfn.IFNA(VLOOKUP(C47,'other funds ftr 2022'!A:I,9,FALSE),0),1) -> 0.85 | M47: 34343 | N47: =1+IF(ISNA(VLOOKUP(VALUE(C47),'Rural and Low Income 22-23'!$A:$B,2,FALSE)),0,'2022-23 Final'!$N$17) -> 1 | O47: 0 | R47: 0 | S47: 0 | T47: =VLOOKUP(TRIM(C47),'2021-22 Final'!B:X,17,FALSE) -> 30397 | U47: -30397 | V47: N | Y47: 0 | Z47: 0
A48: 30 | B48: 14068 | C48: 14068 | D48: ELMA | E48: =IFERROR(VLOOKUP(C48,'Enrollment 22-23'!A:E,3,FALSE),0) -> 35 | F48: 15084 | G48: =IFERROR(VLOOKUP(C48,'Enrollment 22-23'!A:E,5,0),0) -> 13 | H48: 1401 | I48: =IFERROR(VLOOKUP(C48,'Enrollment 22-23'!A:E,4,FALSE),0) -> 19 | J48: 8188 | K48: 24673 | L48: =IF(E48>$E$17,_xlfn.IFNA(VLOOKUP(C48,'other funds ftr 2022'!A:I,9,FALSE),0),1) -> 0 | M48: 24673 | N48: =1+IF(ISNA(VLOOKUP(VALUE(C48),'Rural and Low Income 22-23'!$A:$B,2,FALSE)),0,'2022-23 Final'!$N$17) -> 1 | O48: 0 | R48: 0 | S48: 0 | T48: =VLOOKUP(TRIM(C48),'2021-22 Final'!B:X,17,FALSE) -> 0 | U48: 0 | V48: N | Y48: 0 | Z48: 0
A49: 31 | B49: 04127 | C49: 04127 | D49: ENTIAT | E49: =IFERROR(VLOOKUP(C49,'Enrollment 22-23'!A:E,3,FALSE),0) -> 35 | F49: 15084 | G49: =IFERROR(VLOOKUP(C49,'Enrollment 22-23'!A:E,5,0),0) -> 3 | H49: 323 | I49: =IFERROR(VLOOKUP(C49,'Enrollment 22-23'!A:E,4,FALSE),0) -> 12 | J49: 5172 | K49: 20579 | L49: =IF(E49>$E$17,_xlfn.IFNA(VLOOKUP(C49,'other funds ftr 2022'!A:I,9,FALSE),0),1) -> 0 | M49: 20579 | N49: =1+IF(ISNA(VLOOKUP(VALUE(C49),'Rural and Low Income 22-23'!$A:$B,2,FALSE)),0,'2022-23 Final'!$N$17) -> 1.1 | O49: 0 | R49: 0 | S49: 0 | T49: =VLOOKUP(TRIM(C49),'2021-22 Final'!B:X,17,FALSE) -> 0 | U49: 0 | V49: N | Y49: 0 | Z49: 0
A50: 32 | B50: 13165 | C50: 13165 | D50: EPHRATA | E50: =IFERROR(VLOOKUP(C50,'Enrollment 22-23'!A:E,3,FALSE),0) -> 218 | F50: 93950 | G50: =IFERROR(VLOOKUP(C50,'Enrollment 22-23'!A:E,5,0),0) -> 57 | H50: 6141 | I50: =IFERROR(VLOOKUP(C50,'Enrollment 22-23'!A:E,4,FALSE),0) -> 99 | J50: 42666 | K50: 142757 | L50: =IF(E50>$E$17,_xlfn.IFNA(VLOOKUP(C50,'other funds ftr 2022'!A:I,9,FALSE),0),1) -> 1 | M50: 142757 | N50: =1+IF(ISNA(VLOOKUP(VALUE(C50),'Rural and Low Income 22-23'!$A:$B,2,FALSE)),0,'2022-23 Final'!$N$17) -> 1 | O50: 142757 | R50: 0 | S50: 142757 | T50: =VLOOKUP(TRIM(C50),'2021-22 Final'!B:X,17,FALSE) -> 136448 | U50: 6309 | V50: Y | Y50: 2500 | Z50: 145257
A51: 33 | B51: 31002 | C51: 31002 | D51: EVERETT | E51: =IFERROR(VLOOKUP(C51,'Enrollment 22-23'!A:E,3,FALSE),0) -> 50 | F51: 21548 | G51: =IFERROR(VLOOKUP(C51,'Enrollment 22-23'!A:E,5,0),0) -> 3 | H51: 323 | I51: =IFERROR(VLOOKUP(C51,'Enrollment 22-23'!A:E,4,FALSE),0) -> 39 | J51: 16808 | K51: 38679 | L51: =IF(E51>$E$17,_xlfn.IFNA(VLOOKUP(C51,'other funds ftr 2022'!A:I,9,FALSE),0),1) -> 0 | M51: 38679 | N51: =1+IF(ISNA(VLOOKUP(VALUE(C51),'Rural and Low Income 22-23'!$A:$B,2,FALSE)),0,'2022-23 Final'!$N$17) -> 1 | O51: 0 | R51: 0 | S51: 0 | T51: =VLOOKUP(TRIM(C51),'2021-22 Final'!B:X,17,FALSE) -> 0 | U51: 0 | V51: N | Y51: 0 | Z51: 0
A52: 34 | B52: 06114 | C52: 06114 | D52: EVERGREEN (CLARK) | E52: =IFERROR(VLOOKUP(C52,'Enrollment 22-23'!A:E,3,FALSE),0) -> 37 | F52: 15946 | G52: =IFERROR(VLOOKUP(C52,'Enrollment 22-23'!A:E,5,0),0) -> 13 | H52: 1401 | I52: =IFERROR(VLOOKUP(C52,'Enrollment 22-23'!A:E,4,FALSE),0) -> 15 | J52: 6464 | K52: 23811 | L52: =IF(E52>$E$17,_xlfn.IFNA(VLOOKUP(C52,'other funds ftr 2022'!A:I,9,FALSE),0),1) -> 0 | M52: 23811 | N52: =1+IF(ISNA(VLOOKUP(VALUE(C52),'Rural and Low Income 22-23'!$A:$B,2,FALSE)),0,'2022-23 Final'!$N$17) -> 1 | O52: 0 | R52: 0 | S52: 0 | T52: =VLOOKUP(TRIM(C52),'2021-22 Final'!B:X,17,FALSE) -> 0 | U52: 0 | V52: N | Y52: 0 | Z52: 0
A53: 35 | B53: 17210 | C53: 17210 | D53: FEDERAL WAY | E53: =IFERROR(VLOOKUP(C53,'Enrollment 22-23'!A:E,3,FALSE),0) -> 78 | F53: 33615 | G53: =IFERROR(VLOOKUP(C53,'Enrollment 22-23'!A:E,5,0),0) -> 7 | H53: 754 | I53: =IFERROR(VLOOKUP(C53,'Enrollment 22-23'!A:E,4,FALSE),0) -> 31 | J53: 13360 | K53: 47729 | L53: =IF(E53>$E$17,_xlfn.IFNA(VLOOKUP(C53,'other funds ftr 2022'!A:I,9,FALSE),0),1) -> 0 | M53: 47729 | N53: =1+IF(ISNA(VLOOKUP(VALUE(C53),'Rural and Low Income 22-23'!$A:$B,2,FALSE)),0,'2022-23 Final'!$N$17) -> 1 | O53: 47729 | R53: 0 | S53: 47729 | T53: =VLOOKUP(TRIM(C53),'2021-22 Final'!B:X,17,FALSE) -> 0 | U53: 47729 | V53: Y | Y53: 1500 | Z53: 49229
A54: 36 | B54: 37502 | C54: 37502 | D54: FERNDALE | E54: =IFERROR(VLOOKUP(C54,'Enrollment 22-23'!A:E,3,FALSE),0) -> 187 | F54: 80591 | G54: =IFERROR(VLOOKUP(C54,'Enrollment 22-23'!A:E,5,0),0) -> 32 | H54: 3448 | I54: =IFERROR(VLOOKUP(C54,'Enrollment 22-23'!A:E,4,FALSE),0) -> 39 | J54: 16808 | K54: 100847 | L54: =IF(E54>$E$17,_xlfn.IFNA(VLOOKUP(C54,'other funds ftr 2022'!A:I,9,FALSE),0),1) -> 0.95 | M54: 95805 | N54: =1+IF(ISNA(VLOOKUP(VALUE(C54),'Rural and Low Income 22-23'!$A:$B,2,FALSE)),0,'2022-23 Final'!$N$17) -> 1 | O54: 95805 | R54: 0 | S54: 95805 | T54: =VLOOKUP(TRIM(C54),'2021-22 Final'!B:X,17,FALSE) -> 104599 | U54: -8794 | V54: Y | Y54: 2500 | Z54: 98305
A55: 37 | B55: 03053 | C55: 03053 | D55: FINLEY | E55: =IFERROR(VLOOKUP(C55,'Enrollment 22-23'!A:E,3,FALSE),0) -> 106 | F55: 45682 | G55: =IFERROR(VLOOKUP(C55,'Enrollment 22-23'!A:E,5,0),0) -> 23 | H55: 2478 | I55: =IFERROR(VLOOKUP(C55,'Enrollment 22-23'!A:E,4,FALSE),0) -> 61 | J55: 26289 | K55: 74449 | L55: =IF(E55>$E$17,_xlfn.IFNA(VLOOKUP(C55,'other funds ftr 2022'!A:I,9,FALSE),0),1) -> 0.95 | M55: 70727 | N55: =1+IF(ISNA(VLOOKUP(VALUE(C55),'Rural and Low Income 22-23'!$A:$B,2,FALSE)),0,'2022-23 Final'!$N$17) -> 1 | O55: 70727 | R55: 0 | S55: 70727 | T55: =VLOOKUP(TRIM(C55),'2021-22 Final'!B:X,17,FALSE) -> 49954 | U55: 20773 | V55: Y | W55: 1 | X55: Y | Y55: 2500 | Z55: 0
A56: 38 | B56: 27402 | C56: 27402 | D56: FRANKLIN PIERCE | E56: =IFERROR(VLOOKUP(C56,'Enrollment 22-23'!A:E,3,FALSE),0) -> 11 | F56: 4741 | G56: =IFERROR(VLOOKUP(C56,'Enrollment 22-23'!A:E,5,0),0) -> 1 | H56: 108 | I56: =IFERROR(VLOOKUP(C56,'Enrollment 22-23'!A:E,4,FALSE),0) -> 6 | J56: 2586 | K56: 7435 | L56: =IF(E56>$E$17,_xlfn.IFNA(VLOOKUP(C56,'other funds ftr 2022'!A:I,9,FALSE),0),1) -> 0 | M56: 7435 | N56: =1+IF(ISNA(VLOOKUP(VALUE(C56),'Rural and Low Income 22-23'!$A:$B,2,FALSE)),0,'2022-23 Final'!$N$17) -> 1 | O56: 0 | R56: 0 | S56: 0 | T56: =VLOOKUP(TRIM(C56),'2021-22 Final'!B:X,17,FALSE) -> 0 | U56: 0 | V56: N | X56: Y | Y56: 0 | Z56: 0
A57: 39 | B57: 20404 | C57: 20404 | D57: GOLDENDALE | E57: =IFERROR(VLOOKUP(C57,'Enrollment 22-23'!A:E,3,FALSE),0) -> 67 | F57: 28875 | G57: =IFERROR(VLOOKUP(C57,'Enrollment 22-23'!A:E,5,0),0) -> 10 | H57: 1077 | I57: =IFERROR(VLOOKUP(C57,'Enrollment 22-23'!A:E,4,FALSE),0) -> 41 | J57: 17670 | K57: 47622 | L57: =IF(E57>$E$17,_xlfn.IFNA(VLOOKUP(C57,'other funds ftr 2022'!A:I,9,FALSE),0),1) -> 0.95 | M57: 45241 | N57: =1+IF(ISNA(VLOOKUP(VALUE(C57),'Rural and Low Income 22-23'!$A:$B,2,FALSE)),0,'2022-23 Final'!$N$17) -> 1 | O57: 45241 | R57: 0 | S57: 45241 | T57: =VLOOKUP(TRIM(C57),'2021-22 Final'!B:X,17,FALSE) -> 56417 | U57: -11176 | V57: Y | Y57: 1500 | Z57: 46741
A58: 40 | B58: 13301 | C58: 13301 | D58: GRAND COULEE DAM | E58: =IFERROR(VLOOKUP(C58,'Enrollment 22-23'!A:E,3,FALSE),0) -> 164 | F58: 70678 | G58: =IFERROR(VLOOKUP(C58,'Enrollment 22-23'!A:E,5,0),0) -> 31 | H58: 3340 | I58: =IFERROR(VLOOKUP(C58,'Enrollment 22-23'!A:E,4,FALSE),0) -> 87 | J58: 37494 | K58: 111512 | L58: =IF(E58>$E$17,_xlfn.IFNA(VLOOKUP(C58,'other funds ftr 2022'!A:I,9,FALSE),0),1) -> 0 | M58: 111512 | N58: =1+IF(ISNA(VLOOKUP(VALUE(C58),'Rural and Low Income 22-23'!$A:$B,2,FALSE)),0,'2022-23 Final'!$N$17) -> 1 | O58: 111512 | R58: 0 | S58: 111512 | T58: =VLOOKUP(TRIM(C58),'2021-22 Final'!B:X,17,FALSE) -> 0 | U58: 111512 | V58: Y | Y58: 2500 | Z58: 114012
A59: 41 | B59: 39200 | C59: 39200 | D59: GRANDVIEW | E59: =IFERROR(VLOOKUP(C59,'Enrollment 22-23'!A:E,3,FALSE),0) -> 512 | F59: 220654 | G59: =IFERROR(VLOOKUP(C59,'Enrollment 22-23'!A:E,5,0),0) -> 122 | H59: 13144 | I59: =IFERROR(VLOOKUP(C59,'Enrollment 22-23'!A:E,4,FALSE),0) -> 299 | J59: 128859 | K59: 362657 | L59: =IF(E59>$E$17,_xlfn.IFNA(VLOOKUP(C59,'other funds ftr 2022'!A:I,9,FALSE),0),1) -> 1 | M59: 362657 | N59: =1+IF(ISNA(VLOOKUP(VALUE(C59),'Rural and Low Income 22-23'!$A:$B,2,FALSE)),0,'2022-23 Final'!$N$17) -> 1 | O59: 362657 | R59: 0 | S59: 362657 | T59: =VLOOKUP(TRIM(C59),'2021-22 Final'!B:X,17,FALSE) -> 411868 | U59: -49211 | V59: Y | Y59: 4000 | Z59: 366657
A60: 42 | B60: 39204 | C60: 39204 | D60: GRANGER | E60: =IFERROR(VLOOKUP(C60,'Enrollment 22-23'!A:E,3,FALSE),0) -> 350 | F60: 150838 | G60: =IFERROR(VLOOKUP(C60,'Enrollment 22-23'!A:E,5,0),0) -> 119 | H60: 12821 | I60: =IFERROR(VLOOKUP(C60,'Enrollment 22-23'!A:E,4,FALSE),0) -> 156 | J60: 67231 | K60: 230890 | L60: =IF(E60>$E$17,_xlfn.IFNA(VLOOKUP(C60,'other funds ftr 2022'!A:I,9,FALSE),0),1) -> 1.05 | M60: 242435 | N60: =1+IF(ISNA(VLOOKUP(VALUE(C60),'Rural and Low Income 22-23'!$A:$B,2,FALSE)),0,'2022-23 Final'!$N$17) -> 1.1 | O60: 266679 | R60: 0 | S60: 266679 | T60: =VLOOKUP(TRIM(C60),'2021-22 Final'!B:X,17,FALSE) -> 287899 | U60: -21220 | V60: Y | Y60: 2500 | Z60: 269179
A61: 43 | B61: 39203 | C61: 39203 | D61: HIGHLAND | E61: =IFERROR(VLOOKUP(C61,'Enrollment 22-23'!A:E,3,FALSE),0) -> 205 | F61: 88348 | G61: =IFERROR(VLOOKUP(C61,'Enrollment 22-23'!A:E,5,0),0) -> 45 | H61: 4848 | I61: =IFERROR(VLOOKUP(C61,'Enrollment 22-23'!A:E,4,FALSE),0) -> 39 | J61: 16808 | K61: 110004 | L61: =IF(E61>$E$17,_xlfn.IFNA(VLOOKUP(C61,'other funds ftr 2022'!A:I,9,FALSE),0),1) -> 1 | M61: 110004 | N61: =1+IF(ISNA(VLOOKUP(VALUE(C61),'Rural and Low Income 22-23'!$A:$B,2,FALSE)),0,'2022-23 Final'!$N$17) -> 1 | O61: 110004 | R61: 0 | S61: 110004 | T61: =VLOOKUP(TRIM(C61),'2021-22 Final'!B:X,17,FALSE) -> 126108 | U61: -16104 | V61: Y | Y61: 2500 | Z61: 112504
A62: 44 | B62: 17401 | C62: 17401 | D62: HIGHLINE | E62: =IFERROR(VLOOKUP(C62,'Enrollment 22-23'!A:E,3,FALSE),0) -> 17 | F62: 7326 | G62: =IFERROR(VLOOKUP(C62,'Enrollment 22-23'!A:E,5,0),0) -> 5 | H62: 539 | I62: =IFERROR(VLOOKUP(C62,'Enrollment 22-23'!A:E,4,FALSE),0) -> 11 | J62: 4741 | K62: 12606 | L62: =IF(E62>$E$17,_xlfn.IFNA(VLOOKUP(C62,'other funds ftr 2022'!A:I,9,FALSE),0),1) -> 0 | M62: 12606 | N62: =1+IF(ISNA(VLOOKUP(VALUE(C62),'Rural and Low Income 22-23'!$A:$B,2,FALSE)),0,'2022-23 Final'!$N$17) -> 1 | O62: 0 | R62: 0 | S62: 0 | T62: =VLOOKUP(TRIM(C62),'2021-22 Final'!B:X,17,FALSE) -> 0 | U62: 0 | V62: N | Y62: 0 | Z62: 0
A63: 45 | B63: 23404 | C63: 23404 | D63: HOOD CANAL | E63: =IFERROR(VLOOKUP(C63,'Enrollment 22-23'!A:E,3,FALSE),0) -> 41 | F63: 17670 | G63: =IFERROR(VLOOKUP(C63,'Enrollment 22-23'!A:E,5,0),0) -> 1 | H63: 108 | I63: =IFERROR(VLOOKUP(C63,'Enrollment 22-23'!A:E,4,FALSE),0) -> 30 | J63: 12929 | K63: 30707 | L63: =IF(E63>$E$17,_xlfn.IFNA(VLOOKUP(C63,'other funds ftr 2022'!A:I,9,FALSE),0),1) -> 0 | M63: 30707 | N63: =1+IF(ISNA(VLOOKUP(VALUE(C63),'Rural and Low Income 22-23'!$A:$B,2,FALSE)),0,'2022-23 Final'!$N$17) -> 1.1 | O63: 0 | R63: 0 | S63: 0 | T63: =VLOOKUP(TRIM(C63),'2021-22 Final'!B:X,17,FALSE) -> 0 | U63: 0 | V63: N | Y63: 0 | Z63: 0
A64: 46 | B64: 14028 | C64: 14028 | D64: HOQUIAM | E64: =IFERROR(VLOOKUP(C64,'Enrollment 22-23'!A:E,3,FALSE),0) -> 42 | F64: 18101 | G64: =IFERROR(VLOOKUP(C64,'Enrollment 22-23'!A:E,5,0),0) -> 12 | H64: 1293 | I64: =IFERROR(VLOOKUP(C64,'Enrollment 22-23'!A:E,4,FALSE),0) -> 19 | J64: 8188 | K64: 27582 | L64: =IF(E64>$E$17,_xlfn.IFNA(VLOOKUP(C64,'other funds ftr 2022'!A:I,9,FALSE),0),1) -> 0.85 | M64: 23445 | N64: =1+IF(ISNA(VLOOKUP(VALUE(C64),'Rural and Low Income 22-23'!$A:$B,2,FALSE)),0,'2022-23 Final'!$N$17) -> 1.1 | O64: 0 | R64: 0 | S64: 0 | T64: =VLOOKUP(TRIM(C64),'2021-22 Final'!B:X,17,FALSE) -> 0 | U64: 0 | V64: N | X64: Y | Y64: 0 | Z64: 0
A65: 47 | B65: 10070 | C65: 10070 | D65: INCHELIUM | E65: =IFERROR(VLOOKUP(C65,'Enrollment 22-23'!A:E,3,FALSE),0) -> 18 | F65: 7757 | G65: =IFERROR(VLOOKUP(C65,'Enrollment 22-23'!A:E,5,0),0) -> 0 | H65: 0 | I65: =IFERROR(VLOOKUP(C65,'Enrollment 22-23'!A:E,4,FALSE),0) -> 13 | J65: 5603 | K65: 13360 | L65: =IF(E65>$E$17,_xlfn.IFNA(VLOOKUP(C65,'other funds ftr 2022'!A:I,9,FALSE),0),1) -> 0 | M65: 13360 | N65: =1+IF(ISNA(VLOOKUP(VALUE(C65),'Rural and Low Income 22-23'!$A:$B,2,FALSE)),0,'2022-23 Final'!$N$17) -> 1.1 | O65: 0 | R65: 0 | S65: 0 | T65: =VLOOKUP(TRIM(C65),'2021-22 Final'!B:X,17,FALSE) ->  | V65: N | Y65: 0 | Z65: 0
A66: 48 | B66: 08458 | C66: 08458 | D66: KELSO | E66: =IFERROR(VLOOKUP(C66,'Enrollment 22-23'!A:E,3,FALSE),0) -> 29 | F66: 12498 | G66: =IFERROR(VLOOKUP(C66,'Enrollment 22-23'!A:E,5,0),0) -> 12 | H66: 1293 | I66: =IFERROR(VLOOKUP(C66,'Enrollment 22-23'!A:E,4,FALSE),0) -> 18 | J66: 7757 | K66: 21548 | L66: =IF(E66>$E$17,_xlfn.IFNA(VLOOKUP(C66,'other funds ftr 2022'!A:I,9,FALSE),0),1) -> 0 | M66: 21548 | N66: =1+IF(ISNA(VLOOKUP(VALUE(C66),'Rural and Low Income 22-23'!$A:$B,2,FALSE)),0,'2022-23 Final'!$N$17) -> 1 | O66: 0 | R66: 0 | S66: 0 | T66: =VLOOKUP(TRIM(C66),'2021-22 Final'!B:X,17,FALSE) -> 0 | U66: 0 | V66: N | Y66: 0 | Z66: 0
A67: 49 | B67: 03017 | C67: 03017 | D67: KENNEWICK | E67: =IFERROR(VLOOKUP(C67,'Enrollment 22-23'!A:E,3,FALSE),0) -> 3001 | F67: 1293327 | G67: =IFERROR(VLOOKUP(C67,'Enrollment 22-23'!A:E,5,0),0) -> 1012 | H67: 109034 | I67: =IFERROR(VLOOKUP(C67,'Enrollment 22-23'!A:E,4,FALSE),0) -> 1405 | J67: 605506 | K67: 2007867 | L67: =IF(E67>$E$17,_xlfn.IFNA(VLOOKUP(C67,'other funds ftr 2022'!A:I,9,FALSE),0),1) -> 1.05 | M67: 2108260 | N67: =1+IF(ISNA(VLOOKUP(VALUE(C67),'Rural and Low Income 22-23'!$A:$B,2,FALSE)),0,'2022-23 Final'!$N$17) -> 1 | O67: 2108260 | R67: 0 | S67: 2108260 | T67: =VLOOKUP(TRIM(C67),'2021-22 Final'!B:X,17,FALSE) -> 2108512 | U67: -252 | V67: Y | Y67: 4000 | Z67: 2112260
A68: 50 | B68: 17415 | C68: 17415 | D68: KENT | E68: =IFERROR(VLOOKUP(C68,'Enrollment 22-23'!A:E,3,FALSE),0) -> 50 | F68: 21548 | G68: =IFERROR(VLOOKUP(C68,'Enrollment 22-23'!A:E,5,0),0) -> 15 | H68: 1616 | I68: =IFERROR(VLOOKUP(C68,'Enrollment 22-23'!A:E,4,FALSE),0) -> 15 | J68: 6464 | K68: 29628 | L68: =IF(E68>$E$17,_xlfn.IFNA(VLOOKUP(C68,'other funds ftr 2022'!A:I,9,FALSE),0),1) -> 0 | M68: 29628 | N68: =1+IF(ISNA(VLOOKUP(VALUE(C68),'Rural and Low Income 22-23'!$A:$B,2,FALSE)),0,'2022-23 Final'!$N$17) -> 1 | O68: 0 | R68: 0 | S68: 0 | T68: =VLOOKUP(TRIM(C68),'2021-22 Final'!B:X,17,FALSE) -> 0 | U68: 0 | V68: N | Y68: 0 | Z68: 0
A69: 51 | B69: 03052 | C69: 03052 | D69: KIONA-BENTON CITY | E69: =IFERROR(VLOOKUP(C69,'Enrollment 22-23'!A:E,3,FALSE),0) -> 343 | F69: 147821 | G69: =IFERROR(VLOOKUP(C69,'Enrollment 22-23'!A:E,5,0),0) -> 113 | H69: 12175 | I69: =IFERROR(VLOOKUP(C69,'Enrollment 22-23'!A:E,4,FALSE),0) -> 209 | J69: 90072 | K69: 250068 | L69: =IF(E69>$E$17,_xlfn.IFNA(VLOOKUP(C69,'other funds ftr 2022'!A:I,9,FALSE),0),1) -> 1.15 | M69: 287578 | N69: =1+IF(ISNA(VLOOKUP(VALUE(C69),'Rural and Low Income 22-23'!$A:$B,2,FALSE)),0,'2022-23 Final'!$N$17) -> 1 | O69: 287578 | R69: 0 | S69: 287578 | T69: =VLOOKUP(TRIM(C69),'2021-22 Final'!B:X,17,FALSE) -> 262979 | U69: 24599 | V69: Y | Y69: 2500 | Z69: 290078
A70: 52 | B70: 19403 | C70: 19403 | D70: KITTITAS | E70: =IFERROR(VLOOKUP(C70,'Enrollment 22-23'!A:E,3,FALSE),0) -> 23 | F70: 9912 | G70: =IFERROR(VLOOKUP(C70,'Enrollment 22-23'!A:E,5,0),0) -> 8 | H70: 862 | I70: =IFERROR(VLOOKUP(C70,'Enrollment 22-23'!A:E,4,FALSE),0) -> 4 | J70: 1724 | K70: 12498 | L70: =IF(E70>$E$17,_xlfn.IFNA(VLOOKUP(C70,'other funds ftr 2022'!A:I,9,FALSE),0),1) -> 0 | M70: 12498 | N70: =1+IF(ISNA(VLOOKUP(VALUE(C70),'Rural and Low Income 22-23'!$A:$B,2,FALSE)),0,'2022-23 Final'!$N$17) -> 1 | O70: 0 | R70: 0 | S70: 0 | T70: =VLOOKUP(TRIM(C70),'2021-22 Final'!B:X,17,FALSE) -> 0 | U70: 0 | V70: N | Y70: 0 | Z70: 0
A71: 53 | B71: 29311 | C71: 29311 | D71: LA CONNER | E71: =IFERROR(VLOOKUP(C71,'Enrollment 22-23'!A:E,3,FALSE),0) -> 185 | F71: 79729 | G71: =IFERROR(VLOOKUP(C71,'Enrollment 22-23'!A:E,5,0),0) -> 24 | H71: 2586 | I71: =IFERROR(VLOOKUP(C71,'Enrollment 22-23'!A:E,4,FALSE),0) -> 139 | J71: 59904 | K71: 142219 | L71: =IF(E71>$E$17,_xlfn.IFNA(VLOOKUP(C71,'other funds ftr 2022'!A:I,9,FALSE),0),1) -> 0 | M71: 142219 | N71: =1+IF(ISNA(VLOOKUP(VALUE(C71),'Rural and Low Income 22-23'!$A:$B,2,FALSE)),0,'2022-23 Final'!$N$17) -> 1 | O71: 142219 | R71: 0 | S71: 142219 | T71: =VLOOKUP(TRIM(C71),'2021-22 Final'!B:X,17,FALSE) -> 137983 | U71: 4236 | V71: Y | Y71: 2500 | Z71: 144719
A72: 54 | B72: 04129 | C72: 04129 | D72: LAKE CHELAN | E72: =IFERROR(VLOOKUP(C72,'Enrollment 22-23'!A:E,3,FALSE),0) -> 223 | F72: 96105 | G72: =IFERROR(VLOOKUP(C72,'Enrollment 22-23'!A:E,5,0),0) -> 52 | H72: 5603 | I72: =IFERROR(VLOOKUP(C72,'Enrollment 22-23'!A:E,4,FALSE),0) -> 69 | J72: 29737 | K72: 131445 | L72: =IF(E72>$E$17,_xlfn.IFNA(VLOOKUP(C72,'other funds ftr 2022'!A:I,9,FALSE),0),1) -> 1.05 | M72: 138017 | N72: =1+IF(ISNA(VLOOKUP(VALUE(C72),'Rural and Low Income 22-23'!$A:$B,2,FALSE)),0,'2022-23 Final'!$N$17) -> 1 | O72: 138017 | R72: 0 | S72: 138017 | T72: =VLOOKUP(TRIM(C72),'2021-22 Final'!B:X,17,FALSE) -> 150688 | U72: -12671 | V72: Y | Y72: 2500 | Z72: 140517
A73: 55 | B73: 31306 | C73: 31306 | D73: LAKEWOOD | E73: =IFERROR(VLOOKUP(C73,'Enrollment 22-23'!A:E,3,FALSE),0) -> 14 | F73: 6034 | G73: =IFERROR(VLOOKUP(C73,'Enrollment 22-23'!A:E,5,0),0) -> 3 | H73: 323 | I73: =IFERROR(VLOOKUP(C73,'Enrollment 22-23'!A:E,4,FALSE),0) -> 3 | J73: 1293 | K73: 7650 | L73: =IF(E73>$E$17,_xlfn.IFNA(VLOOKUP(C73,'other funds ftr 2022'!A:I,9,FALSE),0),1) -> 0 | M73: 7650 | N73: =1+IF(ISNA(VLOOKUP(VALUE(C73),'Rural and Low Income 22-23'!$A:$B,2,FALSE)),0,'2022-23 Final'!$N$17) -> 1 | O73: 0 | R73: 0 | S73: 0 | T73: =VLOOKUP(TRIM(C73),'2021-22 Final'!B:X,17,FALSE) ->  | V73: N | Y73: 0 | Z73: 0
A74: 56 | B74: 01158 | C74: 01158 | D74: LIND | E74: =IFERROR(VLOOKUP(C74,'Enrollment 22-23'!A:E,3,FALSE),0) -> 48 | F74: 20686 | G74: =IFERROR(VLOOKUP(C74,'Enrollment 22-23'!A:E,5,0),0) -> 11 | H74: 1185 | I74: =IFERROR(VLOOKUP(C74,'Enrollment 22-23'!A:E,4,FALSE),0) -> 32 | J74: 13791 | K74: 35662 | L74: =IF(E74>$E$17,_xlfn.IFNA(VLOOKUP(C74,'other funds ftr 2022'!A:I,9,FALSE),0),1) -> 1.15 | M74: 41011 | N74: =1+IF(ISNA(VLOOKUP(VALUE(C74),'Rural and Low Income 22-23'!$A:$B,2,FALSE)),0,'2022-23 Final'!$N$17) -> 1.1 | O74: 45112 | R74: 0 | S74: 45112 | T74: =VLOOKUP(TRIM(C74),'2021-22 Final'!B:X,17,FALSE) -> 33954 | U74: 11158 | V74: Y | Y74: 1500 | Z74: 46612
A75: 57 | B75: 08122 | C75: 08122 | D75: LONGVIEW | E75: =IFERROR(VLOOKUP(C75,'Enrollment 22-23'!A:E,3,FALSE),0) -> 43 | F75: 18532 | G75: =IFERROR(VLOOKUP(C75,'Enrollment 22-23'!A:E,5,0),0) -> 14 | H75: 1508 | I75: =IFERROR(VLOOKUP(C75,'Enrollment 22-23'!A:E,4,FALSE),0) -> 23 | J75: 9912 | K75: 29952 | L75: =IF(E75>$E$17,_xlfn.IFNA(VLOOKUP(C75,'other funds ftr 2022'!A:I,9,FALSE),0),1) -> 0 | M75: 29952 | N75: =1+IF(ISNA(VLOOKUP(VALUE(C75),'Rural and Low Income 22-23'!$A:$B,2,FALSE)),0,'2022-23 Final'!$N$17) -> 1 | O75: 0 | R75: 0 | S75: 0 | T75: =VLOOKUP(TRIM(C75),'2021-22 Final'!B:X,17,FALSE) -> 0 | U75: 0 | V75: N | Y75: 0 | Z75: 0
A76: 58 | B76: 20406 | C76: 20406 | D76: LYLE | E76: =IFERROR(VLOOKUP(C76,'Enrollment 22-23'!A:E,3,FALSE),0) -> 42 | F76: 18101 | G76: =IFERROR(VLOOKUP(C76,'Enrollment 22-23'!A:E,5,0),0) -> 6 | H76: 646 | I76: =IFERROR(VLOOKUP(C76,'Enrollment 22-23'!A:E,4,FALSE),0) -> 10 | J76: 4310 | K76: 23057 | L76: =IF(E76>$E$17,_xlfn.IFNA(VLOOKUP(C76,'other funds ftr 2022'!A:I,9,FALSE),0),1) -> 0 | M76: 23057 | N76: =1+IF(ISNA(VLOOKUP(VALUE(C76),'Rural and Low Income 22-23'!$A:$B,2,FALSE)),0,'2022-23 Final'!$N$17) -> 1.1 | O76: 25363 | R76: 0 | S76: 25363 | T76: =VLOOKUP(TRIM(C76),'2021-22 Final'!B:X,17,FALSE) -> 0 | U76: 25363 | V76: Y | Y76: 1500 | Z76: 26863
A77: 59 | B77: 37504 | C77: 37504 | D77: LYNDEN | E77: =IFERROR(VLOOKUP(C77,'Enrollment 22-23'!A:E,3,FALSE),0) -> 172 | F77: 74126 | G77: =IFERROR(VLOOKUP(C77,'Enrollment 22-23'!A:E,5,0),0) -> 30 | H77: 3232 | I77: =IFERROR(VLOOKUP(C77,'Enrollment 22-23'!A:E,4,FALSE),0) -> 64 | J77: 27582 | K77: 104940 | L77: =IF(E77>$E$17,_xlfn.IFNA(VLOOKUP(C77,'other funds ftr 2022'!A:I,9,FALSE),0),1) -> 1 | M77: 104940 | N77: =1+IF(ISNA(VLOOKUP(VALUE(C77),'Rural and Low Income 22-23'!$A:$B,2,FALSE)),0,'2022-23 Final'!$N$17) -> 1 | O77: 104940 | R77: 0 | S77: 104940 | T77: =VLOOKUP(TRIM(C77),'2021-22 Final'!B:X,17,FALSE) -> 112692 | U77: -7752 | V77: Y | Y77: 2500 | Z77: 107440
A78: 60 | B78: 39120 | C78: 39120 | D78: MABTON | E78: =IFERROR(VLOOKUP(C78,'Enrollment 22-23'!A:E,3,FALSE),0) -> 355 | F78: 152993 | G78: =IFERROR(VLOOKUP(C78,'Enrollment 22-23'!A:E,5,0),0) -> 117 | H78: 12606 | I78: =IFERROR(VLOOKUP(C78,'Enrollment 22-23'!A:E,4,FALSE),0) -> 208 | J78: 89641 | K78: 255240 | L78: =IF(E78>$E$17,_xlfn.IFNA(VLOOKUP(C78,'other funds ftr 2022'!A:I,9,FALSE),0),1) -> 1.15 | M78: 293526 | N78: =1+IF(ISNA(VLOOKUP(VALUE(C78),'Rural and Low Income 22-23'!$A:$B,2,FALSE)),0,'2022-23 Final'!$N$17) -> 1.1 | O78: 322879 | R78: 0 | S78: 322879 | T78: =VLOOKUP(TRIM(C78),'2021-22 Final'!B:X,17,FALSE) -> 289725 | U78: 33154 | V78: Y | Y78: 2500 | Z78: 325379
A79: 61 | B79: 04019 | C79: 04019 | D79: MANSON | E79: =IFERROR(VLOOKUP(C79,'Enrollment 22-23'!A:E,3,FALSE),0) -> 82 | F79: 35339 | G79: =IFERROR(VLOOKUP(C79,'Enrollment 22-23'!A:E,5,0),0) -> 13 | H79: 1401 | I79: =IFERROR(VLOOKUP(C79,'Enrollment 22-23'!A:E,4,FALSE),0) -> 52 | J79: 22410 | K79: 59150 | L79: =IF(E79>$E$17,_xlfn.IFNA(VLOOKUP(C79,'other funds ftr 2022'!A:I,9,FALSE),0),1) -> 1 | M79: 59150 | N79: =1+IF(ISNA(VLOOKUP(VALUE(C79),'Rural and Low Income 22-23'!$A:$B,2,FALSE)),0,'2022-23 Final'!$N$17) -> 1 | O79: 59150 | R79: 0 | S79: 59150 | T79: =VLOOKUP(TRIM(C79),'2021-22 Final'!B:X,17,FALSE) -> 62698 | U79: -3548 | V79: Y | Y79: 1500 | Z79: 60650
A80: 62 | B80: 31025 | C80: 31025 | D80: MARYSVILLE | E80: =IFERROR(VLOOKUP(C80,'Enrollment 22-23'!A:E,3,FALSE),0) -> 299 | F80: 128859 | G80: =IFERROR(VLOOKUP(C80,'Enrollment 22-23'!A:E,5,0),0) -> 52 | H80: 5603 | I80: =IFERROR(VLOOKUP(C80,'Enrollment 22-23'!A:E,4,FALSE),0) -> 180 | J80: 77574 | K80: 212036 | L80: =IF(E80>$E$17,_xlfn.IFNA(VLOOKUP(C80,'other funds ftr 2022'!A:I,9,FALSE),0),1) -> 0.85 | M80: 180231 | N80: =1+IF(ISNA(VLOOKUP(VALUE(C80),'Rural and Low Income 22-23'!$A:$B,2,FALSE)),0,'2022-23 Final'!$N$17) -> 1 | O80: 180231 | R80: 0 | S80: 180231 | T80: =VLOOKUP(TRIM(C80),'2021-22 Final'!B:X,17,FALSE) -> 130683 | U80: 49548 | V80: Y | Y80: 2500 | Z80: 182731
A81: 63 | B81: 37505 | C81: 37505 | D81: MERIDIAN | E81: =IFERROR(VLOOKUP(C81,'Enrollment 22-23'!A:E,3,FALSE),0) -> 46 | F81: 19824 | G81: =IFERROR(VLOOKUP(C81,'Enrollment 22-23'!A:E,5,0),0) -> 10 | H81: 1077 | I81: =IFERROR(VLOOKUP(C81,'Enrollment 22-23'!A:E,4,FALSE),0) -> 33 | J81: 14222 | K81: 35123 | L81: =IF(E81>$E$17,_xlfn.IFNA(VLOOKUP(C81,'other funds ftr 2022'!A:I,9,FALSE),0),1) -> 0 | M81: 35123 | N81: =1+IF(ISNA(VLOOKUP(VALUE(C81),'Rural and Low Income 22-23'!$A:$B,2,FALSE)),0,'2022-23 Final'!$N$17) -> 1 | O81: 0 | R81: 0 | S81: 0 | T81: =VLOOKUP(TRIM(C81),'2021-22 Final'!B:X,17,FALSE) -> 0 | U81: 0 | V81: N | Y81: 0 | Z81: 0
A82: 64 | B82: 31103 | C82: 31103 | D82: MONROE | E82: =IFERROR(VLOOKUP(C82,'Enrollment 22-23'!A:E,3,FALSE),0) -> 15 | F82: 6464 | G82: =IFERROR(VLOOKUP(C82,'Enrollment 22-23'!A:E,5,0),0) -> 4 | H82: 431 | I82: =IFERROR(VLOOKUP(C82,'Enrollment 22-23'!A:E,4,FALSE),0) -> 8 | J82: 3448 | K82: 10343 | L82: =IF(E82>$E$17,_xlfn.IFNA(VLOOKUP(C82,'other funds ftr 2022'!A:I,9,FALSE),0),1) -> 0 | M82: 10343 | N82: =1+IF(ISNA(VLOOKUP(VALUE(C82),'Rural and Low Income 22-23'!$A:$B,2,FALSE)),0,'2022-23 Final'!$N$17) -> 1 | O82: 0 | R82: 0 | S82: 0 | T82: =VLOOKUP(TRIM(C82),'2021-22 Final'!B:X,17,FALSE) -> 0 | U82: 0 | V82: N | Y82: 0 | Z82: 0
A83: 65 | B83: 13161 | C83: 13161 | D83: MOSES LAKE | E83: =IFERROR(VLOOKUP(C83,'Enrollment 22-23'!A:E,3,FALSE),0) -> 497 | F83: 214190 | G83: =IFERROR(VLOOKUP(C83,'Enrollment 22-23'!A:E,5,0),0) -> 139 | H83: 14976 | I83: =IFERROR(VLOOKUP(C83,'Enrollment 22-23'!A:E,4,FALSE),0) -> 142 | J83: 61197 | K83: =+F83+H83+J83 -> 290363 | L83: =IF(E83>$E$17,_xlfn.IFNA(VLOOKUP(C83,'other funds ftr 2022'!A:I,9,FALSE),0),1) -> 0.95 | M83: =IF(L83=0,K83,ROUND(K83*L83,0)) -> 275845 | N83: =1+IF(ISNA(VLOOKUP(VALUE(C83),'Rural and Low Income 22-23'!$A:$B,2,FALSE)),0,'2022-23 Final'!$N$17) -> 1 | O83: =IF(V83="y",ROUND(M83*N83,0),0) -> 275845 | R83: 0 | S83: =O83+R83 -> 275845 | T83: =VLOOKUP(TRIM(C83),'2021-22 Final'!B:X,17,FALSE) -> 301169 | U83: =S83-T83 -> -25324 | V83: Y | Y83: 4000 | Z83: 279845
A84: 66 | B84: 21206 | C84: 21206 | D84: MOSSYROCK | E84: =IFERROR(VLOOKUP(C84,'Enrollment 22-23'!A:E,3,FALSE),0) -> 49 | F84: =IF(E84>=10,ROUND(E84*$G$3,0),0) -> 21117 | G84: =IFERROR(VLOOKUP(C84,'Enrollment 22-23'!A:E,5,0),0) -> 9 | H84: =IF(E84>=$E$17,ROUND(G84*$G$3*$G$17,0),0) -> 970 | I84: =IFERROR(VLOOKUP(C84,'Enrollment 22-23'!A:E,4,FALSE),0) -> 21 | J84: =IF(E84>=$E$17,ROUND(I84*$G$3*$I$17,0),0) -> 9050 | K84: 31137 | L84: =IF(E84>$E$17,_xlfn.IFNA(VLOOKUP(C84,'other funds ftr 2022'!A:I,9,FALSE),0),1) -> 1 | M84: 31137 | N84: =1+IF(ISNA(VLOOKUP(VALUE(C84),'Rural and Low Income 22-23'!$A:$B,2,FALSE)),0,'2022-23 Final'!$N$17) -> 1.1 | O84: 34251 | R84: 0 | S84: 34251 | T84: =VLOOKUP(TRIM(C84),'2021-22 Final'!B:X,17,FALSE) -> 32296 | U84: 1955 | V84: Y | Y84: =IF(V84="Y",IF(E84<=99,1500,IF(AND(E84>=100,E84<=399),2500,4000)),0) -> 1500 | Z84: =IF(W84=1, 0, Y84+S84) -> 35751
A85: 67 | B85: 39209 | C85: 39209 | D85: MOUNT ADAMS | E85: =IFERROR(VLOOKUP(C85,'Enrollment 22-23'!A:E,3,FALSE),0) -> 193 | F85: 83176 | G85: =IFERROR(VLOOKUP(C85,'Enrollment 22-23'!A:E,5,0),0) -> 18 | H85: 1939 | I85: =IFERROR(VLOOKUP(C85,'Enrollment 22-23'!A:E,4,FALSE),0) -> 158 | J85: 68093 | K85: 153208 | L85: =IF(E85>$E$17,_xlfn.IFNA(VLOOKUP(C85,'other funds ftr 2022'!A:I,9,FALSE),0),1) -> 0 | M85: 153208 | N85: =1+IF(ISNA(VLOOKUP(VALUE(C85),'Rural and Low Income 22-23'!$A:$B,2,FALSE)),0,'2022-23 Final'!$N$17) -> 1.1 | O85: 168529 | R85: 0 | S85: 168529 | T85: =VLOOKUP(TRIM(C85),'2021-22 Final'!B:X,17,FALSE) -> 103776 | U85: 64753 | V85: Y | X85: Y | Y85: 2500 | Z85: 171029
A86: 68 | B86: 37507 | C86: 37507 | D86: MOUNT BAKER | E86: =IFERROR(VLOOKUP(C86,'Enrollment 22-23'!A:E,3,FALSE),0) -> 55 | F86: 23703 | G86: =IFERROR(VLOOKUP(C86,'Enrollment 22-23'!A:E,5,0),0) -> 11 | H86: 1185 | I86: =IFERROR(VLOOKUP(C86,'Enrollment 22-23'!A:E,4,FALSE),0) -> 30 | J86: 12929 | K86: 37817 | L86: =IF(E86>$E$17,_xlfn.IFNA(VLOOKUP(C86,'other funds ftr 2022'!A:I,9,FALSE),0),1) -> 0.85 | M86: 32144 | N86: =1+IF(ISNA(VLOOKUP(VALUE(C86),'Rural and Low Income 22-23'!$A:$B,2,FALSE)),0,'2022-23 Final'!$N$17) -> 1 | O86: 32144 | R86: 0 | S86: 32144 | T86: =VLOOKUP(TRIM(C86),'2021-22 Final'!B:X,17,FALSE) -> 25897 | U86: 6247 | V86: Y | X86: Y | Y86: 1500 | Z86: 33644
A87: 69 | B87: 29320 | C87: 29320 | D87: MOUNT VERNON | E87: =IFERROR(VLOOKUP(C87,'Enrollment 22-23'!A:E,3,FALSE),0) -> 1586 | F87: 683511 | G87: =IFERROR(VLOOKUP(C87,'Enrollment 22-23'!A:E,5,0),0) -> 549 | H87: 59150 | I87: =IFERROR(VLOOKUP(C87,'Enrollment 22-23'!A:E,4,FALSE),0) -> 490 | J87: 211173 | K87: 953834 | L87: =IF(E87>$E$17,_xlfn.IFNA(VLOOKUP(C87,'other funds ftr 2022'!A:I,9,FALSE),0),1) -> 1.05 | M87: 1001526 | N87: =1+IF(ISNA(VLOOKUP(VALUE(C87),'Rural and Low Income 22-23'!$A:$B,2,FALSE)),0,'2022-23 Final'!$N$17) -> 1 | O87: 1001526 | R87: 0 | S87: 1001526 | T87: =VLOOKUP(TRIM(C87),'2021-22 Final'!B:X,17,FALSE) -> 1197611 | U87: -196085 | V87: Y | Y87: 4000 | Z87: 1005526
A88: 70 | B88: 17903 | C88: 17903 | D88: MUCKLESHOOT INDIAN TRIBE | E88: =IFERROR(VLOOKUP(C88,'Enrollment 22-23'!A:E,3,FALSE),0) -> 22 | F88: 9481 | G88: =IFERROR(VLOOKUP(C88,'Enrollment 22-23'!A:E,5,0),0) -> 1 | H88: 108 | I88: =IFERROR(VLOOKUP(C88,'Enrollment 22-23'!A:E,4,FALSE),0) -> 14 | J88: 6034 | K88: 15623 | L88: =IF(E88>$E$17,_xlfn.IFNA(VLOOKUP(C88,'other funds ftr 2022'!A:I,9,FALSE),0),1) -> 0 | M88: 15623 | N88: =1+IF(ISNA(VLOOKUP(VALUE(C88),'Rural and Low Income 22-23'!$A:$B,2,FALSE)),0,'2022-23 Final'!$N$17) -> 1 | O88: 15623 | R88: 0 | S88: 15623 | T88: =VLOOKUP(TRIM(C88),'2021-22 Final'!B:X,17,FALSE) -> 15057 | U88: 566 | V88: Y | Y88: 1500 | Z88: 17123
A89: 71 | B89: 31006 | C89: 31006 | D89: MUKILTEO | E89: =IFERROR(VLOOKUP(C89,'Enrollment 22-23'!A:E,3,FALSE),0) -> 33 | F89: 14222 | G89: =IFERROR(VLOOKUP(C89,'Enrollment 22-23'!A:E,5,0),0) -> 15 | H89: 1616 | I89: =IFERROR(VLOOKUP(C89,'Enrollment 22-23'!A:E,4,FALSE),0) -> 8 | J89: 3448 | K89: 19286 | L89: =IF(E89>$E$17,_xlfn.IFNA(VLOOKUP(C89,'other funds ftr 2022'!A:I,9,FALSE),0),1) -> 0 | M89: 19286 | N89: =1+IF(ISNA(VLOOKUP(VALUE(C89),'Rural and Low Income 22-23'!$A:$B,2,FALSE)),0,'2022-23 Final'!$N$17) -> 1 | O89: 0 | R89: 0 | S89: 0 | T89: =VLOOKUP(TRIM(C89),'2021-22 Final'!B:X,17,FALSE) -> 0 | U89: 0 | V89: N | Y89: 0 | Z89: 0
A90: 72 | B90: 39003 | C90: 39003 | D90: NACHES VALLEY | E90: =IFERROR(VLOOKUP(C90,'Enrollment 22-23'!A:E,3,FALSE),0) -> 118 | F90: 50854 | G90: =IFERROR(VLOOKUP(C90,'Enrollment 22-23'!A:E,5,0),0) -> 30 | H90: 3232 | I90: =IFERROR(VLOOKUP(C90,'Enrollment 22-23'!A:E,4,FALSE),0) -> 58 | J90: 24996 | K90: 79082 | L90: =IF(E90>$E$17,_xlfn.IFNA(VLOOKUP(C90,'other funds ftr 2022'!A:I,9,FALSE),0),1) -> 0 | M90: 79082 | N90: =1+IF(ISNA(VLOOKUP(VALUE(C90),'Rural and Low Income 22-23'!$A:$B,2,FALSE)),0,'2022-23 Final'!$N$17) -> 1 | O90: 0 | R90: 0 | S90: 0 | T90: =VLOOKUP(TRIM(C90),'2021-22 Final'!B:X,17,FALSE) -> 0 | U90: 0 | V90: N | Y90: 0 | Z90: 0
A91: 73 | B91: 25155 | C91: 25155 | D91: NASELLE-GRAYS RIVER VALLEY | E91: =IFERROR(VLOOKUP(C91,'Enrollment 22-23'!A:E,3,FALSE),0) -> 55 | F91: 23703 | G91: =IFERROR(VLOOKUP(C91,'Enrollment 22-23'!A:E,5,0),0) -> 12 | H91: 1293 | I91: =IFERROR(VLOOKUP(C91,'Enrollment 22-23'!A:E,4,FALSE),0) -> 33 | J91: 14222 | K91: 39218 | L91: =IF(E91>$E$17,_xlfn.IFNA(VLOOKUP(C91,'other funds ftr 2022'!A:I,9,FALSE),0),1) -> 1.15 | M91: 45101 | N91: =1+IF(ISNA(VLOOKUP(VALUE(C91),'Rural and Low Income 22-23'!$A:$B,2,FALSE)),0,'2022-23 Final'!$N$17) -> 1.1 | O91: 49611 | R91: 0 | S91: 49611 | T91: =VLOOKUP(TRIM(C91),'2021-22 Final'!B:X,17,FALSE) -> 49511 | U91: 100 | V91: Y | Y91: 1500 | Z91: 51111
A92: 74 | B92: 24014 | C92: 24014 | D92: NESPELEM | E92: =IFERROR(VLOOKUP(C92,'Enrollment 22-23'!A:E,3,FALSE),0) -> 44 | F92: 18962 | G92: =IFERROR(VLOOKUP(C92,'Enrollment 22-23'!A:E,5,0),0) -> 9 | H92: 970 | I92: =IFERROR(VLOOKUP(C92,'Enrollment 22-23'!A:E,4,FALSE),0) -> 7 | J92: 3017 | K92: 22949 | L92: =IF(E92>$E$17,_xlfn.IFNA(VLOOKUP(C92,'other funds ftr 2022'!A:I,9,FALSE),0),1) -> 1 | M92: 22949 | N92: =1+IF(ISNA(VLOOKUP(VALUE(C92),'Rural and Low Income 22-23'!$A:$B,2,FALSE)),0,'2022-23 Final'!$N$17) -> 1.1 | O92: 25244 | R92: 0 | S92: 25244 | T92: =VLOOKUP(TRIM(C92),'2021-22 Final'!B:X,17,FALSE) -> 25056 | U92: 188 | V92: Y | Y92: 1500 | Z92: 26744
A93: 75 | B93: 37506 | C93: 37506 | D93: NOOKSACK VALLEY | E93: =IFERROR(VLOOKUP(C93,'Enrollment 22-23'!A:E,3,FALSE),0) -> 201 | F93: 86624 | G93: =IFERROR(VLOOKUP(C93,'Enrollment 22-23'!A:E,5,0),0) -> 27 | H93: 2909 | I93: =IFERROR(VLOOKUP(C93,'Enrollment 22-23'!A:E,4,FALSE),0) -> 29 | J93: 12498 | K93: 102031 | L93: =IF(E93>$E$17,_xlfn.IFNA(VLOOKUP(C93,'other funds ftr 2022'!A:I,9,FALSE),0),1) -> 1 | M93: 102031 | N93: =1+IF(ISNA(VLOOKUP(VALUE(C93),'Rural and Low Income 22-23'!$A:$B,2,FALSE)),0,'2022-23 Final'!$N$17) -> 1 | O93: 102031 | R93: 0 | S93: 102031 | T93: =VLOOKUP(TRIM(C93),'2021-22 Final'!B:X,17,FALSE) -> 111398 | U93: -9367 | V93: Y | Y93: 2500 | Z93: 104531
A94: 76 | B94: 14064 | C94: 14064 | D94: NORTH BEACH | E94: =IFERROR(VLOOKUP(C94,'Enrollment 22-23'!A:E,3,FALSE),0) -> 45 | F94: 19393 | G94: =IFERROR(VLOOKUP(C94,'Enrollment 22-23'!A:E,5,0),0) -> 5 | H94: 539 | I94: =IFERROR(VLOOKUP(C94,'Enrollment 22-23'!A:E,4,FALSE),0) -> 26 | J94: 11205 | K94: 31137 | L94: =IF(E94>$E$17,_xlfn.IFNA(VLOOKUP(C94,'other funds ftr 2022'!A:I,9,FALSE),0),1) -> 0.85 | M94: 26466 | N94: =1+IF(ISNA(VLOOKUP(VALUE(C94),'Rural and Low Income 22-23'!$A:$B,2,FALSE)),0,'2022-23 Final'!$N$17) -> 1 | O94: 26466 | R94: 0 | S94: 26466 | T94: =VLOOKUP(TRIM(C94),'2021-22 Final'!B:X,17,FALSE) -> 13799 | U94: 12667 | V94: Y | Y94: 1500 | Z94: 27966
A95: 77 | B95: 11051 | C95: 11051 | D95: NORTH FRANKLIN | E95: =IFERROR(VLOOKUP(C95,'Enrollment 22-23'!A:E,3,FALSE),0) -> 686 | F95: 295642 | G95: =IFERROR(VLOOKUP(C95,'Enrollment 22-23'!A:E,5,0),0) -> 179 | H95: 19286 | I95: =IFERROR(VLOOKUP(C95,'Enrollment 22-23'!A:E,4,FALSE),0) -> 466 | J95: 200830 | K95: 515758 | L95: =IF(E95>$E$17,_xlfn.IFNA(VLOOKUP(C95,'other funds ftr 2022'!A:I,9,FALSE),0),1) -> 1.15 | M95: 593122 | N95: =1+IF(ISNA(VLOOKUP(VALUE(C95),'Rural and Low Income 22-23'!$A:$B,2,FALSE)),0,'2022-23 Final'!$N$17) -> 1 | O95: 593122 | R95: 0 | S95: 593122 | T95: =VLOOKUP(TRIM(C95),'2021-22 Final'!B:X,17,FALSE) -> 574835 | U95: 18287 | V95: Y | Y95: 4000 | Z95: 597122
A96: 78 | B96: 18400 | C96: 18400 | D96: NORTH KITSAP | E96: =IFERROR(VLOOKUP(C96,'Enrollment 22-23'!A:E,3,FALSE),0) -> 65 | F96: 28013 | G96: =IFERROR(VLOOKUP(C96,'Enrollment 22-23'!A:E,5,0),0) -> 28 | H96: 3017 | I96: =IFERROR(VLOOKUP(C96,'Enrollment 22-23'!A:E,4,FALSE),0) -> 12 | J96: 5172 | K96: 36202 | L96: =IF(E96>$E$17,_xlfn.IFNA(VLOOKUP(C96,'other funds ftr 2022'!A:I,9,FALSE),0),1) -> 0 | M96: 36202 | N96: =1+IF(ISNA(VLOOKUP(VALUE(C96),'Rural and Low Income 22-23'!$A:$B,2,FALSE)),0,'2022-23 Final'!$N$17) -> 1 | O96: 0 | R96: 0 | S96: 0 | T96: =VLOOKUP(TRIM(C96),'2021-22 Final'!B:X,17,FALSE) -> 0 | U96: 0 | V96: N | Y96: 0 | Z96: 0
A97: 79 | B97: 23403 | C97: 23403 | D97: NORTH MASON | E97: =IFERROR(VLOOKUP(C97,'Enrollment 22-23'!A:E,3,FALSE),0) -> 14 | F97: 6034 | G97: =IFERROR(VLOOKUP(C97,'Enrollment 22-23'!A:E,5,0),0) -> 3 | H97: 323 | I97: =IFERROR(VLOOKUP(C97,'Enrollment 22-23'!A:E,4,FALSE),0) -> 1 | J97: 431 | K97: 6788 | L97: =IF(E97>$E$17,_xlfn.IFNA(VLOOKUP(C97,'other funds ftr 2022'!A:I,9,FALSE),0),1) -> 0 | M97: 6788 | N97: =1+IF(ISNA(VLOOKUP(VALUE(C97),'Rural and Low Income 22-23'!$A:$B,2,FALSE)),0,'2022-23 Final'!$N$17) -> 1 | O97: 0 | R97: 0 | S97: 0 | T97: =VLOOKUP(TRIM(C97),'2021-22 Final'!B:X,17,FALSE) ->  | V97: N | Y97: 0 | Z97: 0
A98: 80 | B98: 34003 | C98: 34003 | D98: NORTH THURSTON PUBLIC SCHOOLS | E98: =IFERROR(VLOOKUP(C98,'Enrollment 22-23'!A:E,3,FALSE),0) -> 47 | F98: 20255 | G98: =IFERROR(VLOOKUP(C98,'Enrollment 22-23'!A:E,5,0),0) -> 6 | H98: 646 | I98: =IFERROR(VLOOKUP(C98,'Enrollment 22-23'!A:E,4,FALSE),0) -> 30 | J98: 12929 | K98: 33830 | L98: =IF(E98>$E$17,_xlfn.IFNA(VLOOKUP(C98,'other funds ftr 2022'!A:I,9,FALSE),0),1) -> 0 | M98: 33830 | N98: =1+IF(ISNA(VLOOKUP(VALUE(C98),'Rural and Low Income 22-23'!$A:$B,2,FALSE)),0,'2022-23 Final'!$N$17) -> 1 | O98: 0 | R98: 0 | S98: 0 | T98: =VLOOKUP(TRIM(C98),'2021-22 Final'!B:X,17,FALSE) -> 0 | U98: 0 | V98: N | Y98: 0 | Z98: 0
A99: 81 | B99: 15201 | C99: 15201 | D99: OAK HARBOR | E99: =IFERROR(VLOOKUP(C99,'Enrollment 22-23'!A:E,3,FALSE),0) -> 23 | F99: 9912 | G99: =IFERROR(VLOOKUP(C99,'Enrollment 22-23'!A:E,5,0),0) -> 8 | H99: 862 | I99: =IFERROR(VLOOKUP(C99,'Enrollment 22-23'!A:E,4,FALSE),0) -> 12 | J99: 5172 | K99: 15946 | L99: =IF(E99>$E$17,_xlfn.IFNA(VLOOKUP(C99,'other funds ftr 2022'!A:I,9,FALSE),0),1) -> 0 | M99: 15946 | N99: =1+IF(ISNA(VLOOKUP(VALUE(C99),'Rural and Low Income 22-23'!$A:$B,2,FALSE)),0,'2022-23 Final'!$N$17) -> 1 | O99: 0 | R99: 0 | S99: 0 | T99: =VLOOKUP(TRIM(C99),'2021-22 Final'!B:X,17,FALSE) -> 0 | U99: 0 | V99: N | Y99: 0 | Z99: 0
A100: 82 | B100: 25101 | C100: 25101 | D100: OCEAN BEACH | E100: =IFERROR(VLOOKUP(C100,'Enrollment 22-23'!A:E,3,FALSE),0) -> 56 | F100: 24134 | G100: =IFERROR(VLOOKUP(C100,'Enrollment 22-23'!A:E,5,0),0) -> 19 | H100: 2047 | I100: =IFERROR(VLOOKUP(C100,'Enrollment 22-23'!A:E,4,FALSE),0) -> 27 | J100: 11636 | K100: 37817 | L100: =IF(E100>$E$17,_xlfn.IFNA(VLOOKUP(C100,'other funds ftr 2022'!A:I,9,FALSE),0),1) -> 0.95 | M100: 35926 | N100: =1+IF(ISNA(VLOOKUP(VALUE(C100),'Rural and Low Income 22-23'!$A:$B,2,FALSE)),0,'2022-23 Final'!$N$17) -> 1 | O100: 35926 | R100: =ROUND(IF(Q100>0,-(0.9-Q100)*O100,0),0) -> 0 | S100: 35926 | T100: =VLOOKUP(TRIM(C100),'2021-22 Final'!B:X,17,FALSE) -> 34419 | U100: 1507 | V100: Y | Y100: 1500 | Z100: 37426
A101: 83 | B101: 14172 | C101: 14172 | D101: OCOSTA | E101: =IFERROR(VLOOKUP(C101,'Enrollment 22-23'!A:E,3,FALSE),0) -> 56 | F101: 24134 | G101: =IFERROR(VLOOKUP(C101,'Enrollment 22-23'!A:E,5,0),0) -> 15 | H101: 1616 | I101: =IFERROR(VLOOKUP(C101,'Enrollment 22-23'!A:E,4,FALSE),0) -> 18 | J101: 7757 | K101: 33507 | L101: =IF(E101>$E$17,_xlfn.IFNA(VLOOKUP(C101,'other funds ftr 2022'!A:I,9,FALSE),0),1) -> 1 | M101: 33507 | N101: =1+IF(ISNA(VLOOKUP(VALUE(C101),'Rural and Low Income 22-23'!$A:$B,2,FALSE)),0,'2022-23 Final'!$N$17) -> 1.1 | O101: 36858 | R101: 0 | S101: 36858 | T101: =VLOOKUP(TRIM(C101),'2021-22 Final'!B:X,17,FALSE) -> 38231 | U101: -1373 | V101: Y | Y101: 1500 | Z101: 38358
A102: 84 | B102: 24105 | C102: 24105 | D102: OKANOGAN | E102: =IFERROR(VLOOKUP(C102,'Enrollment 22-23'!A:E,3,FALSE),0) -> 83 | F102: 35770 | G102: =IFERROR(VLOOKUP(C102,'Enrollment 22-23'!A:E,5,0),0) -> 24 | H102: 2586 | I102: =IFERROR(VLOOKUP(C102,'Enrollment 22-23'!A:E,4,FALSE),0) -> 23 | J102: 9912 | K102: 48268 | L102: =IF(E102>$E$17,_xlfn.IFNA(VLOOKUP(C102,'other funds ftr 2022'!A:I,9,FALSE),0),1) -> 0 | M102: 48268 | N102: =1+IF(ISNA(VLOOKUP(VALUE(C102),'Rural and Low Income 22-23'!$A:$B,2,FALSE)),0,'2022-23 Final'!$N$17) -> 1.1 | O102: 0 | R102: 0 | S102: 0 | T102: =VLOOKUP(TRIM(C102),'2021-22 Final'!B:X,17,FALSE) -> 0 | U102: 0 | V102: N | Y102: 0 | Z102: 0
A103: 85 | B103: 34111 | C103: 34111 | D103: OLYMPIA | E103: =IFERROR(VLOOKUP(C103,'Enrollment 22-23'!A:E,3,FALSE),0) -> 32 | F103: 13791 | G103: =IFERROR(VLOOKUP(C103,'Enrollment 22-23'!A:E,5,0),0) -> 11 | H103: 1185 | I103: =IFERROR(VLOOKUP(C103,'Enrollment 22-23'!A:E,4,FALSE),0) -> 15 | J103: 6464 | K103: 21440 | L103: =IF(E103>$E$17,_xlfn.IFNA(VLOOKUP(C103,'other funds ftr 2022'!A:I,9,FALSE),0),1) -> 0 | M103: 21440 | N103: =1+IF(ISNA(VLOOKUP(VALUE(C103),'Rural and Low Income 22-23'!$A:$B,2,FALSE)),0,'2022-23 Final'!$N$17) -> 1 | O103: 21440 | R103: 0 | S103: 21440 | T103: =VLOOKUP(TRIM(C103),'2021-22 Final'!B:X,17,FALSE) -> 16498 | U103: 4942 | V103: Y | Y103: 1500 | Z103: 22940
A104: 86 | B104: 24019 | C104: 24019 | D104: OMAK | E104: =IFERROR(VLOOKUP(C104,'Enrollment 22-23'!A:E,3,FALSE),0) -> 51 | F104: 21979 | G104: =IFERROR(VLOOKUP(C104,'Enrollment 22-23'!A:E,5,0),0) -> 5 | H104: 539 | I104: =IFERROR(VLOOKUP(C104,'Enrollment 22-23'!A:E,4,FALSE),0) -> 28 | J104: 12067 | K104: 34585 | L104: =IF(E104>$E$17,_xlfn.IFNA(VLOOKUP(C104,'other funds ftr 2022'!A:I,9,FALSE),0),1) -> 0 | M104: 34585 | N104: =1+IF(ISNA(VLOOKUP(VALUE(C104),'Rural and Low Income 22-23'!$A:$B,2,FALSE)),0,'2022-23 Final'!$N$17) -> 1.1 | O104: 0 | R104: 0 | S104: 0 | T104: =VLOOKUP(TRIM(C104),'2021-22 Final'!B:X,17,FALSE) -> 0 | U104: 0 | V104: N | Y104: 0 | Z104: 0
A105: 87 | B105: 09013 | C105: 09013 | D105: ORONDO | E105: =IFERROR(VLOOKUP(C105,'Enrollment 22-23'!A:E,3,FALSE),0) -> 89 | F105: 38356 | G105: =IFERROR(VLOOKUP(C105,'Enrollment 22-23'!A:E,5,0),0) -> 15 | H105: 1616 | I105: =IFERROR(VLOOKUP(C105,'Enrollment 22-23'!A:E,4,FALSE),0) -> 11 | J105: 4741 | K105: 44713 | L105: =IF(E105>$E$17,_xlfn.IFNA(VLOOKUP(C105,'other funds ftr 2022'!A:I,9,FALSE),0),1) -> 1.15 | M105: 51420 | N105: =1+IF(ISNA(VLOOKUP(VALUE(C105),'Rural and Low Income 22-23'!$A:$B,2,FALSE)),0,'2022-23 Final'!$N$17) -> 1.1 | O105: 56562 | R105: 0 | S105: 56562 | T105: =VLOOKUP(TRIM(C105),'2021-22 Final'!B:X,17,FALSE) -> 56140 | U105: 422 | V105: Y | Y105: 1500 | Z105: 58062
A106: 88 | B106: 24410 | C106: 24410 | D106: OROVILLE | E106: =IFERROR(VLOOKUP(C106,'Enrollment 22-23'!A:E,3,FALSE),0) -> 79 | F106: 34046 | G106: =IFERROR(VLOOKUP(C106,'Enrollment 22-23'!A:E,5,0),0) -> 21 | H106: 2263 | I106: =IFERROR(VLOOKUP(C106,'Enrollment 22-23'!A:E,4,FALSE),0) -> 14 | J106: 6034 | K106: 42343 | L106: =IF(E106>$E$17,_xlfn.IFNA(VLOOKUP(C106,'other funds ftr 2022'!A:I,9,FALSE),0),1) -> 0 | M106: 42343 | N106: =1+IF(ISNA(VLOOKUP(VALUE(C106),'Rural and Low Income 22-23'!$A:$B,2,FALSE)),0,'2022-23 Final'!$N$17) -> 1.1 | O106: 0 | R106: 0 | S106: 0 | T106: =VLOOKUP(TRIM(C106),'2021-22 Final'!B:X,17,FALSE) -> 0 | U106: 0 | V106: N | Y106: 0 | Z106: 0
A107: 89 | B107: 01147 | C107: 01147 | D107: OTHELLO | E107: =IFERROR(VLOOKUP(C107,'Enrollment 22-23'!A:E,3,FALSE),0) -> 894 | F107: 385283 | G107: =IFERROR(VLOOKUP(C107,'Enrollment 22-23'!A:E,5,0),0) -> 255 | H107: 27474 | I107: =IFERROR(VLOOKUP(C107,'Enrollment 22-23'!A:E,4,FALSE),0) -> 475 | J107: 204709 | K107: 617466 | L107: =IF(E107>$E$17,_xlfn.IFNA(VLOOKUP(C107,'other funds ftr 2022'!A:I,9,FALSE),0),1) -> 1.05 | M107: 648339 | N107: =1+IF(ISNA(VLOOKUP(VALUE(C107),'Rural and Low Income 22-23'!$A:$B,2,FALSE)),0,'2022-23 Final'!$N$17) -> 1 | O107: 648339 | R107: 0 | S107: 648339 | T107: =VLOOKUP(TRIM(C107),'2021-22 Final'!B:X,17,FALSE) -> 726609 | U107: -78270 | V107: Y | Y107: 4000 | Z107: 652339
A108: 90 | B108: 11001 | C108: 11001 | D108: PASCO | E108: =IFERROR(VLOOKUP(C108,'Enrollment 22-23'!A:E,3,FALSE),0) -> 1939 | F108: 835642 | G108: =IFERROR(VLOOKUP(C108,'Enrollment 22-23'!A:E,5,0),0) -> 635 | H108: 68416 | I108: =IFERROR(VLOOKUP(C108,'Enrollment 22-23'!A:E,4,FALSE),0) -> 1044 | J108: 449928 | K108: 1353986 | L108: =IF(E108>$E$17,_xlfn.IFNA(VLOOKUP(C108,'other funds ftr 2022'!A:I,9,FALSE),0),1) -> 0.95 | M108: 1286287 | N108: =1+IF(ISNA(VLOOKUP(VALUE(C108),'Rural and Low Income 22-23'!$A:$B,2,FALSE)),0,'2022-23 Final'!$N$17) -> 1 | O108: 1286287 | R108: 0 | S108: 1286287 | T108: =VLOOKUP(TRIM(C108),'2021-22 Final'!B:X,17,FALSE) -> 1222204 | U108: 64083 | V108: Y | Y108: 4000 | Z108: 1290287
A109: 91 | B109: 24122 | C109: 24122 | D109: PATEROS | E109: =IFERROR(VLOOKUP(C109,'Enrollment 22-23'!A:E,3,FALSE),0) -> 68 | F109: 29306 | G109: =IFERROR(VLOOKUP(C109,'Enrollment 22-23'!A:E,5,0),0) -> 11 | H109: 1185 | I109: =IFERROR(VLOOKUP(C109,'Enrollment 22-23'!A:E,4,FALSE),0) -> 23 | J109: 9912 | K109: 40403 | L109: =IF(E109>$E$17,_xlfn.IFNA(VLOOKUP(C109,'other funds ftr 2022'!A:I,9,FALSE),0),1) -> 1.15 | M109: 46463 | N109: =1+IF(ISNA(VLOOKUP(VALUE(C109),'Rural and Low Income 22-23'!$A:$B,2,FALSE)),0,'2022-23 Final'!$N$17) -> 1.1 | O109: 51109 | R109: 0 | S109: 51109 | T109: =VLOOKUP(TRIM(C109),'2021-22 Final'!B:X,17,FALSE) -> 46318 | U109: 4791 | V109: Y | Y109: 1500 | Z109: 52609
A110: 92 | B110: 03050 | C110: 03050 | D110: PATERSON | E110: =IFERROR(VLOOKUP(C110,'Enrollment 22-23'!A:E,3,FALSE),0) -> 27 | F110: 11636 | G110: =IFERROR(VLOOKUP(C110,'Enrollment 22-23'!A:E,5,0),0) -> 7 | H110: 754 | I110: =IFERROR(VLOOKUP(C110,'Enrollment 22-23'!A:E,4,FALSE),0) -> 13 | J110: 5603 | K110: 17993 | L110: =IF(E110>$E$17,_xlfn.IFNA(VLOOKUP(C110,'other funds ftr 2022'!A:I,9,FALSE),0),1) -> 1.05 | M110: 18893 | N110: =1+IF(ISNA(VLOOKUP(VALUE(C110),'Rural and Low Income 22-23'!$A:$B,2,FALSE)),0,'2022-23 Final'!$N$17) -> 1.1 | O110: 20782 | R110: 0 | S110: 20782 | T110: =VLOOKUP(TRIM(C110),'2021-22 Final'!B:X,17,FALSE) -> 14946 | U110: 5836 | V110: Y | Y110: 1500 | Z110: 22282
A111: 93 | B111: 36402 | C111: 36402 | D111: PRESCOTT | E111: =IFERROR(VLOOKUP(C111,'Enrollment 22-23'!A:E,3,FALSE),0) -> 41 | F111: 17670 | G111: =IFERROR(VLOOKUP(C111,'Enrollment 22-23'!A:E,5,0),0) -> 9 | H111: 970 | I111: =IFERROR(VLOOKUP(C111,'Enrollment 22-23'!A:E,4,FALSE),0) -> 4 | J111: 1724 | K111: 20364 | L111: =IF(E111>$E$17,_xlfn.IFNA(VLOOKUP(C111,'other funds ftr 2022'!A:I,9,FALSE),0),1) -> 1.05 | M111: 21382 | N111: =1+IF(ISNA(VLOOKUP(VALUE(C111),'Rural and Low Income 22-23'!$A:$B,2,FALSE)),0,'2022-23 Final'!$N$17) -> 1.1 | O111: 23520 | R111: 0 | S111: 23520 | T111: =VLOOKUP(TRIM(C111),'2021-22 Final'!B:X,17,FALSE) -> 21121 | U111: 2399 | V111: Y | W111: 1 | Y111: 1500 | Z111: 0
A112: 94 | B112: 03116 | C112: 03116 | D112: PROSSER | E112: =IFERROR(VLOOKUP(C112,'Enrollment 22-23'!A:E,3,FALSE),0) -> 782 | F112: 337015 | G112: =IFERROR(VLOOKUP(C112,'Enrollment 22-23'!A:E,5,0),0) -> 284 | H112: 30599 | I112: =IFERROR(VLOOKUP(C112,'Enrollment 22-23'!A:E,4,FALSE),0) -> 451 | J112: 194365 | K112: 561979 | L112: =IF(E112>$E$17,_xlfn.IFNA(VLOOKUP(C112,'other funds ftr 2022'!A:I,9,FALSE),0),1) -> 1.15 | M112: 646276 | N112: =1+IF(ISNA(VLOOKUP(VALUE(C112),'Rural and Low Income 22-23'!$A:$B,2,FALSE)),0,'2022-23 Final'!$N$17) -> 1 | O112: 646276 | R112: 0 | S112: 646276 | T112: =VLOOKUP(TRIM(C112),'2021-22 Final'!B:X,17,FALSE) -> 542463 | U112: 103813 | V112: Y | Y112: 4000 | Z112: 650276
A113: 95 | B113: 16020 | C113: 16020 | D113: QUEETS-CLEARWATER | E113: =IFERROR(VLOOKUP(C113,'Enrollment 22-23'!A:E,3,FALSE),0) -> 11 | F113: 4741 | G113: =IFERROR(VLOOKUP(C113,'Enrollment 22-23'!A:E,5,0),0) -> 2 | H113: 215 | I113: =IFERROR(VLOOKUP(C113,'Enrollment 22-23'!A:E,4,FALSE),0) -> 5 | J113: 2155 | K113: 7111 | L113: =IF(E113>$E$17,_xlfn.IFNA(VLOOKUP(C113,'other funds ftr 2022'!A:I,9,FALSE),0),1) -> 0 | M113: 7111 | N113: =1+IF(ISNA(VLOOKUP(VALUE(C113),'Rural and Low Income 22-23'!$A:$B,2,FALSE)),0,'2022-23 Final'!$N$17) -> 1.1 | O113: 0 | R113: 0 | S113: 0 | T113: =VLOOKUP(TRIM(C113),'2021-22 Final'!B:X,17,FALSE) ->  | V113: N | Y113: 0 | Z113: 0
A114: 96 | B114: 05402 | C114: 05402 | D114: QUILLAYUTE VALLEY | E114: =IFERROR(VLOOKUP(C114,'Enrollment 22-23'!A:E,3,FALSE),0) -> 85 | F114: 36632 | G114: =IFERROR(VLOOKUP(C114,'Enrollment 22-23'!A:E,5,0),0) -> 32 | H114: 3448 | I114: =IFERROR(VLOOKUP(C114,'Enrollment 22-23'!A:E,4,FALSE),0) -> 35 | J114: 15084 | K114: 55164 | L114: =IF(E114>$E$17,_xlfn.IFNA(VLOOKUP(C114,'other funds ftr 2022'!A:I,9,FALSE),0),1) -> 0.85 | M114: 46889 | N114: =1+IF(ISNA(VLOOKUP(VALUE(C114),'Rural and Low Income 22-23'!$A:$B,2,FALSE)),0,'2022-23 Final'!$N$17) -> 1.1 | O114: 51578 | R114: 0 | S114: 51578 | T114: =VLOOKUP(TRIM(C114),'2021-22 Final'!B:X,17,FALSE) -> 50265 | U114: 1313 | V114: Y | Y114: 1500 | Z114: 53078
A115: 97 | B115: 13144 | C115: 13144 | D115: QUINCY | E115: =IFERROR(VLOOKUP(C115,'Enrollment 22-23'!A:E,3,FALSE),0) -> 520 | F115: 224102 | G115: =IFERROR(VLOOKUP(C115,'Enrollment 22-23'!A:E,5,0),0) -> 144 | H115: 15515 | I115: =IFERROR(VLOOKUP(C115,'Enrollment 22-23'!A:E,4,FALSE),0) -> 284 | J115: 122394 | K115: 362011 | L115: =IF(E115>$E$17,_xlfn.IFNA(VLOOKUP(C115,'other funds ftr 2022'!A:I,9,FALSE),0),1) -> 1 | M115: 362011 | N115: =1+IF(ISNA(VLOOKUP(VALUE(C115),'Rural and Low Income 22-23'!$A:$B,2,FALSE)),0,'2022-23 Final'!$N$17) -> 1 | O115: 362011 | R115: 0 | S115: 362011 | T115: =VLOOKUP(TRIM(C115),'2021-22 Final'!B:X,17,FALSE) -> 356227 | U115: 5784 | V115: Y | Y115: 4000 | Z115: 366011
A116: 98 | B116: 17403 | C116: 17403 | D116: RENTON | E116: =IFERROR(VLOOKUP(C116,'Enrollment 22-23'!A:E,3,FALSE),0) -> 26 | F116: 11205 | G116: =IFERROR(VLOOKUP(C116,'Enrollment 22-23'!A:E,5,0),0) -> 3 | H116: 323 | I116: =IFERROR(VLOOKUP(C116,'Enrollment 22-23'!A:E,4,FALSE),0) -> 18 | J116: 7757 | K116: 19285 | L116: =IF(E116>$E$17,_xlfn.IFNA(VLOOKUP(C116,'other funds ftr 2022'!A:I,9,FALSE),0),1) -> 0 | M116: 19285 | N116: =1+IF(ISNA(VLOOKUP(VALUE(C116),'Rural and Low Income 22-23'!$A:$B,2,FALSE)),0,'2022-23 Final'!$N$17) -> 1 | O116: 0 | R116: 0 | S116: 0 | T116: =VLOOKUP(TRIM(C116),'2021-22 Final'!B:X,17,FALSE) -> 0 | U116: 0 | V116: N | Y116: 0 | Z116: 0
A117: 99 | B117: 03400 | C117: 03400 | D117: RICHLAND | E117: =IFERROR(VLOOKUP(C117,'Enrollment 22-23'!A:E,3,FALSE),0) -> 230 | F117: 99122 | G117: =IFERROR(VLOOKUP(C117,'Enrollment 22-23'!A:E,5,0),0) -> 63 | H117: 6788 | I117: =IFERROR(VLOOKUP(C117,'Enrollment 22-23'!A:E,4,FALSE),0) -> 143 | J117: 61628 | K117: 167538 | L117: =IF(E117>$E$17,_xlfn.IFNA(VLOOKUP(C117,'other funds ftr 2022'!A:I,9,FALSE),0),1) -> 0 | M117: 167538 | N117: =1+IF(ISNA(VLOOKUP(VALUE(C117),'Rural and Low Income 22-23'!$A:$B,2,FALSE)),0,'2022-23 Final'!$N$17) -> 1 | O117: 167538 | R117: 0 | S117: 167538 | T117: =VLOOKUP(TRIM(C117),'2021-22 Final'!B:X,17,FALSE) -> 138806 | U117: 28732 | V117: Y | W117: 1 | Y117: 2500 | Z117: 0
A118: 100 | B118: 06122 | C118: 06122 | D118: RIDGEFIELD | E118: =IFERROR(VLOOKUP(C118,'Enrollment 22-23'!A:E,3,FALSE),0) -> 26 | F118: 11205 | G118: =IFERROR(VLOOKUP(C118,'Enrollment 22-23'!A:E,5,0),0) -> 10 | H118: 1077 | I118: =IFERROR(VLOOKUP(C118,'Enrollment 22-23'!A:E,4,FALSE),0) -> 14 | J118: 6034 | K118: 18316 | L118: =IF(E118>$E$17,_xlfn.IFNA(VLOOKUP(C118,'other funds ftr 2022'!A:I,9,FALSE),0),1) -> 0 | M118: 18316 | N118: =1+IF(ISNA(VLOOKUP(VALUE(C118),'Rural and Low Income 22-23'!$A:$B,2,FALSE)),0,'2022-23 Final'!$N$17) -> 1 | O118: 0 | R118: 0 | S118: 0 | T118: =VLOOKUP(TRIM(C118),'2021-22 Final'!B:X,17,FALSE) ->  | V118: N | Y118: 0 | Z118: 0
A119: 101 | B119: 34401 | C119: 34401 | D119: ROCHESTER | E119: =IFERROR(VLOOKUP(C119,'Enrollment 22-23'!A:E,3,FALSE),0) -> 38 | F119: 16377 | G119: =IFERROR(VLOOKUP(C119,'Enrollment 22-23'!A:E,5,0),0) -> 13 | H119: 1401 | I119: =IFERROR(VLOOKUP(C119,'Enrollment 22-23'!A:E,4,FALSE),0) -> 9 | J119: 3879 | K119: 21657 | L119: =IF(E119>$E$17,_xlfn.IFNA(VLOOKUP(C119,'other funds ftr 2022'!A:I,9,FALSE),0),1) -> 0 | M119: 21657 | N119: =1+IF(ISNA(VLOOKUP(VALUE(C119),'Rural and Low Income 22-23'!$A:$B,2,FALSE)),0,'2022-23 Final'!$N$17) -> 1 | O119: 21657 | R119: 0 | S119: 21657 | T119: =VLOOKUP(TRIM(C119),'2021-22 Final'!B:X,17,FALSE) -> 23644 | U119: -1987 | V119: Y | Y119: 1500 | Z119: 23157
A120: 102 | B120: 20403 | C120: 20403 | D120: ROOSEVELT | E120: =IFERROR(VLOOKUP(C120,'Enrollment 22-23'!A:E,3,FALSE),0) -> 29 | F120: 12498 | G120: =IFERROR(VLOOKUP(C120,'Enrollment 22-23'!A:E,5,0),0) -> 1 | H120: 108 | I120: =IFERROR(VLOOKUP(C120,'Enrollment 22-23'!A:E,4,FALSE),0) -> 4 | J120: 1724 | K120: 14330 | L120: =IF(E120>$E$17,_xlfn.IFNA(VLOOKUP(C120,'other funds ftr 2022'!A:I,9,FALSE),0),1) -> 0 | M120: 14330 | N120: =1+IF(ISNA(VLOOKUP(VALUE(C120),'Rural and Low Income 22-23'!$A:$B,2,FALSE)),0,'2022-23 Final'!$N$17) -> 1.1 | O120: 15763 | R120: 0 | S120: 15763 | T120: =VLOOKUP(TRIM(C120),'2021-22 Final'!B:X,17,FALSE) -> 0 | U120: 15763 | V120: Y | Y120: 1500 | Z120: 17263
A121: 103 | B121: 13160 | C121: 13160 | D121: ROYAL | E121: =IFERROR(VLOOKUP(C121,'Enrollment 22-23'!A:E,3,FALSE),0) -> 213 | F121: 91796 | G121: =IFERROR(VLOOKUP(C121,'Enrollment 22-23'!A:E,5,0),0) -> 40 | H121: 4310 | I121: =IFERROR(VLOOKUP(C121,'Enrollment 22-23'!A:E,4,FALSE),0) -> 119 | J121: 51285 | K121: 147391 | L121: =IF(E121>$E$17,_xlfn.IFNA(VLOOKUP(C121,'other funds ftr 2022'!A:I,9,FALSE),0),1) -> 1 | M121: 147391 | N121: =1+IF(ISNA(VLOOKUP(VALUE(C121),'Rural and Low Income 22-23'!$A:$B,2,FALSE)),0,'2022-23 Final'!$N$17) -> 1.1 | O121: 162130 | R121: 0 | S121: 162130 | T121: =VLOOKUP(TRIM(C121),'2021-22 Final'!B:X,17,FALSE) -> 167439 | U121: -5309 | V121: Y | Y121: 2500 | Z121: 164630
A122: 104 | B122: 28149 | C122: 28149 | D122: SAN JUAN ISLAND | E122: =IFERROR(VLOOKUP(C122,'Enrollment 22-23'!A:E,3,FALSE),0) -> 15 | F122: 6464 | G122: =IFERROR(VLOOKUP(C122,'Enrollment 22-23'!A:E,5,0),0) -> 2 | H122: 215 | I122: =IFERROR(VLOOKUP(C122,'Enrollment 22-23'!A:E,4,FALSE),0) -> 12 | J122: 5172 | K122: 11851 | L122: =IF(E122>$E$17,_xlfn.IFNA(VLOOKUP(C122,'other funds ftr 2022'!A:I,9,FALSE),0),1) -> 0 | M122: 11851 | N122: =1+IF(ISNA(VLOOKUP(VALUE(C122),'Rural and Low Income 22-23'!$A:$B,2,FALSE)),0,'2022-23 Final'!$N$17) -> 1 | O122: 11851 | R122: 0 | S122: 11851 | T122: =VLOOKUP(TRIM(C122),'2021-22 Final'!B:X,17,FALSE) ->  | V122: Y | Y122: 1500 | Z122: 13351
A123: 105 | B123: 17001 | C123: 17001 | D123: SEATTLE PUBLIC SCHOOLS | E123: =IFERROR(VLOOKUP(C123,'Enrollment 22-23'!A:E,3,FALSE),0) -> 226 | F123: 97398 | G123: =IFERROR(VLOOKUP(C123,'Enrollment 22-23'!A:E,5,0),0) -> 66 | H123: 7111 | I123: =IFERROR(VLOOKUP(C123,'Enrollment 22-23'!A:E,4,FALSE),0) -> 90 | J123: 38787 | K123: 143296 | L123: =IF(E123>$E$17,_xlfn.IFNA(VLOOKUP(C123,'other funds ftr 2022'!A:I,9,FALSE),0),1) -> 0.85 | M123: 121802 | N123: =1+IF(ISNA(VLOOKUP(VALUE(C123),'Rural and Low Income 22-23'!$A:$B,2,FALSE)),0,'2022-23 Final'!$N$17) -> 1 | O123: 121802 | R123: 0 | S123: 121802 | T123: =VLOOKUP(TRIM(C123),'2021-22 Final'!B:X,17,FALSE) -> 132984 | U123: -11182 | V123: Y | Y123: 2500 | Z123: 124302
A124: 106 | B124: 29101 | C124: 29101 | D124: SEDRO-WOOLLEY | E124: =IFERROR(VLOOKUP(C124,'Enrollment 22-23'!A:E,3,FALSE),0) -> 207 | F124: 89210 | G124: =IFERROR(VLOOKUP(C124,'Enrollment 22-23'!A:E,5,0),0) -> 38 | H124: 4094 | I124: =IFERROR(VLOOKUP(C124,'Enrollment 22-23'!A:E,4,FALSE),0) -> 89 | J124: 38356 | K124: 131660 | L124: =IF(E124>$E$17,_xlfn.IFNA(VLOOKUP(C124,'other funds ftr 2022'!A:I,9,FALSE),0),1) -> 0.95 | M124: 125077 | N124: =1+IF(ISNA(VLOOKUP(VALUE(C124),'Rural and Low Income 22-23'!$A:$B,2,FALSE)),0,'2022-23 Final'!$N$17) -> 1 | O124: 125077 | R124: 0 | S124: 125077 | T124: =VLOOKUP(TRIM(C124),'2021-22 Final'!B:X,17,FALSE) -> 136560 | U124: -11483 | V124: Y | Y124: 2500 | Z124: 127577
A125: 107 | B125: 39119 | C125: 39119 | D125: SELAH | E125: =IFERROR(VLOOKUP(C125,'Enrollment 22-23'!A:E,3,FALSE),0) -> 204 | F125: 87917 | G125: =IFERROR(VLOOKUP(C125,'Enrollment 22-23'!A:E,5,0),0) -> 74 | H125: 7973 | I125: =IFERROR(VLOOKUP(C125,'Enrollment 22-23'!A:E,4,FALSE),0) -> 106 | J125: 45682 | K125: 141572 | L125: =IF(E125>$E$17,_xlfn.IFNA(VLOOKUP(C125,'other funds ftr 2022'!A:I,9,FALSE),0),1) -> 0.95 | M125: 134493 | N125: =1+IF(ISNA(VLOOKUP(VALUE(C125),'Rural and Low Income 22-23'!$A:$B,2,FALSE)),0,'2022-23 Final'!$N$17) -> 1 | O125: 134493 | R125: 0 | S125: 134493 | T125: =VLOOKUP(TRIM(C125),'2021-22 Final'!B:X,17,FALSE) -> 117227 | U125: 17266 | V125: Y | Y125: 2500 | Z125: 136993
A126: 108 | B126: 23309 | C126: 23309 | D126: SHELTON | E126: =IFERROR(VLOOKUP(C126,'Enrollment 22-23'!A:E,3,FALSE),0) -> 216 | F126: 93089 | G126: =IFERROR(VLOOKUP(C126,'Enrollment 22-23'!A:E,5,0),0) -> 49 | H126: 5279 | I126: =IFERROR(VLOOKUP(C126,'Enrollment 22-23'!A:E,4,FALSE),0) -> 77 | J126: 33184 | K126: 131552 | L126: =IF(E126>$E$17,_xlfn.IFNA(VLOOKUP(C126,'other funds ftr 2022'!A:I,9,FALSE),0),1) -> 0.85 | M126: 111819 | N126: =1+IF(ISNA(VLOOKUP(VALUE(C126),'Rural and Low Income 22-23'!$A:$B,2,FALSE)),0,'2022-23 Final'!$N$17) -> 1.1 | O126: 0 | R126: 0 | S126: 0 | T126: =VLOOKUP(TRIM(C126),'2021-22 Final'!B:X,17,FALSE) -> 134295 | U126: -134295 | V126: N | Y126: 0 | Z126: 0
A127: 109 | B127: 31201 | C127: 31201 | D127: SNOHOMISH | E127: =IFERROR(VLOOKUP(C127,'Enrollment 22-23'!A:E,3,FALSE),0) -> 90 | F127: 38787 | G127: =IFERROR(VLOOKUP(C127,'Enrollment 22-23'!A:E,5,0),0) -> 41 | H127: 4417 | I127: =IFERROR(VLOOKUP(C127,'Enrollment 22-23'!A:E,4,FALSE),0) -> 37 | J127: 15946 | K127: 59150 | L127: =IF(E127>$E$17,_xlfn.IFNA(VLOOKUP(C127,'other funds ftr 2022'!A:I,9,FALSE),0),1) -> 0.95 | M127: 56193 | N127: =1+IF(ISNA(VLOOKUP(VALUE(C127),'Rural and Low Income 22-23'!$A:$B,2,FALSE)),0,'2022-23 Final'!$N$17) -> 1 | O127: 56193 | R127: 0 | S127: 56193 | T127: =VLOOKUP(TRIM(C127),'2021-22 Final'!B:X,17,FALSE) -> 61352 | U127: -5159 | V127: Y | Y127: 1500 | Z127: 57693
A128: 110 | B128: 13156 | C128: 13156 | D128: SOAP LAKE | E128: =IFERROR(VLOOKUP(C128,'Enrollment 22-23'!A:E,3,FALSE),0) -> 51 | F128: 21979 | G128: =IFERROR(VLOOKUP(C128,'Enrollment 22-23'!A:E,5,0),0) -> 14 | H128: 1508 | I128: =IFERROR(VLOOKUP(C128,'Enrollment 22-23'!A:E,4,FALSE),0) -> 29 | J128: 12498 | K128: 35985 | L128: =IF(E128>$E$17,_xlfn.IFNA(VLOOKUP(C128,'other funds ftr 2022'!A:I,9,FALSE),0),1) -> 0 | M128: 35985 | N128: =1+IF(ISNA(VLOOKUP(VALUE(C128),'Rural and Low Income 22-23'!$A:$B,2,FALSE)),0,'2022-23 Final'!$N$17) -> 1.1 | O128: 0 | R128: 0 | S128: 0 | T128: =VLOOKUP(TRIM(C128),'2021-22 Final'!B:X,17,FALSE) -> 0 | U128: 0 | V128: N | Y128: 0 | Z128: 0
A129: 111 | B129: 32081 | C129: 32081 | D129: SPOKANE | E129: =IFERROR(VLOOKUP(C129,'Enrollment 22-23'!A:E,3,FALSE),0) -> 95 | F129: 40942 | G129: =IFERROR(VLOOKUP(C129,'Enrollment 22-23'!A:E,5,0),0) -> 17 | H129: 1832 | I129: =IFERROR(VLOOKUP(C129,'Enrollment 22-23'!A:E,4,FALSE),0) -> 42 | J129: 18101 | K129: 60875 | L129: =IF(E129>$E$17,_xlfn.IFNA(VLOOKUP(C129,'other funds ftr 2022'!A:I,9,FALSE),0),1) -> 0 | M129: 60875 | N129: =1+IF(ISNA(VLOOKUP(VALUE(C129),'Rural and Low Income 22-23'!$A:$B,2,FALSE)),0,'2022-23 Final'!$N$17) -> 1 | O129: 0 | R129: 0 | S129: 0 | T129: =VLOOKUP(TRIM(C129),'2021-22 Final'!B:X,17,FALSE) -> 0 | U129: 0 | V129: N | Y129: 0 | Z129: 0
A130: 112 | B130: 31401 | C130: 31401 | D130: STANWOOD-CAMANO | E130: =IFERROR(VLOOKUP(C130,'Enrollment 22-23'!A:E,3,FALSE),0) -> 22 | F130: 9481 | G130: =IFERROR(VLOOKUP(C130,'Enrollment 22-23'!A:E,5,0),0) -> 7 | H130: 754 | I130: =IFERROR(VLOOKUP(C130,'Enrollment 22-23'!A:E,4,FALSE),0) -> 6 | J130: 2586 | K130: 12821 | L130: =IF(E130>$E$17,_xlfn.IFNA(VLOOKUP(C130,'other funds ftr 2022'!A:I,9,FALSE),0),1) -> 0 | M130: 12821 | N130: =1+IF(ISNA(VLOOKUP(VALUE(C130),'Rural and Low Income 22-23'!$A:$B,2,FALSE)),0,'2022-23 Final'!$N$17) -> 1 | O130: 12821 | R130: 0 | S130: 12821 | T130: =VLOOKUP(TRIM(C130),'2021-22 Final'!B:X,17,FALSE) -> 0 | U130: 12821 | V130: Y | Y130: 1500 | Z130: 14321
A131: 113 | B131: 30303 | C131: 30303 | D131: STEVENSON-CARSON | E131: =IFERROR(VLOOKUP(C131,'Enrollment 22-23'!A:E,3,FALSE),0) -> 31 | F131: 13360 | G131: =IFERROR(VLOOKUP(C131,'Enrollment 22-23'!A:E,5,0),0) -> 2 | H131: 215 | I131: =IFERROR(VLOOKUP(C131,'Enrollment 22-23'!A:E,4,FALSE),0) -> 24 | J131: 10343 | K131: 23918 | L131: =IF(E131>$E$17,_xlfn.IFNA(VLOOKUP(C131,'other funds ftr 2022'!A:I,9,FALSE),0),1) -> 0.95 | M131: 22722 | N131: =1+IF(ISNA(VLOOKUP(VALUE(C131),'Rural and Low Income 22-23'!$A:$B,2,FALSE)),0,'2022-23 Final'!$N$17) -> 1.1 | O131: 0 | R131: 0 | S131: 0 | T131: =VLOOKUP(TRIM(C131),'2021-22 Final'!B:X,17,FALSE) -> 0 | U131: 0 | V131: N | Y131: 0 | Z131: 0
A132: 114 | B132: 31311 | C132: 31311 | D132: SULTAN | E132: =IFERROR(VLOOKUP(C132,'Enrollment 22-23'!A:E,3,FALSE),0) -> 21 | F132: 9050 | G132: =IFERROR(VLOOKUP(C132,'Enrollment 22-23'!A:E,5,0),0) -> 4 | H132: 431 | I132: =IFERROR(VLOOKUP(C132,'Enrollment 22-23'!A:E,4,FALSE),0) -> 4 | J132: 1724 | K132: 11205 | L132: =IF(E132>$E$17,_xlfn.IFNA(VLOOKUP(C132,'other funds ftr 2022'!A:I,9,FALSE),0),1) -> 0 | M132: 11205 | N132: =1+IF(ISNA(VLOOKUP(VALUE(C132),'Rural and Low Income 22-23'!$A:$B,2,FALSE)),0,'2022-23 Final'!$N$17) -> 1 | O132: 0 | R132: 0 | S132: 0 | T132: =VLOOKUP(TRIM(C132),'2021-22 Final'!B:X,17,FALSE) -> 0 | U132: 0 | V132: N | Y132: 0 | Z132: 0
A133: 115 | B133: 39201 | C133: 39201 | D133: SUNNYSIDE | E133: =IFERROR(VLOOKUP(C133,'Enrollment 22-23'!A:E,3,FALSE),0) -> 1849 | F133: 796855 | G133: =IFERROR(VLOOKUP(C133,'Enrollment 22-23'!A:E,5,0),0) -> 442 | H133: 47622 | I133: =IFERROR(VLOOKUP(C133,'Enrollment 22-23'!A:E,4,FALSE),0) -> 1054 | J133: 454238 | K133: 1298715 | L133: =IF(E133>$E$17,_xlfn.IFNA(VLOOKUP(C133,'other funds ftr 2022'!A:I,9,FALSE),0),1) -> 1.05 | M133: 1363651 | N133: =1+IF(ISNA(VLOOKUP(VALUE(C133),'Rural and Low Income 22-23'!$A:$B,2,FALSE)),0,'2022-23 Final'!$N$17) -> 1.1 | O133: 1500016 | R133: 0 | S133: 1500016 | T133: =VLOOKUP(TRIM(C133),'2021-22 Final'!B:X,17,FALSE) -> 1289231 | U133: 210785 | V133: Y | Y133: 4000 | Z133: 1504016
A134: 116 | B134: 27010 | C134: 27010 | D134: TACOMA | E134: =IFERROR(VLOOKUP(C134,'Enrollment 22-23'!A:E,3,FALSE),0) -> 25 | F134: 10774 | G134: =IFERROR(VLOOKUP(C134,'Enrollment 22-23'!A:E,5,0),0) -> 3 | H134: 323 | I134: =IFERROR(VLOOKUP(C134,'Enrollment 22-23'!A:E,4,FALSE),0) -> 14 | J134: 6034 | K134: 17131 | L134: =IF(E134>$E$17,_xlfn.IFNA(VLOOKUP(C134,'other funds ftr 2022'!A:I,9,FALSE),0),1) -> 0 | M134: 17131 | N134: =1+IF(ISNA(VLOOKUP(VALUE(C134),'Rural and Low Income 22-23'!$A:$B,2,FALSE)),0,'2022-23 Final'!$N$17) -> 1 | O134: 0 | R134: 0 | S134: 0 | T134: =VLOOKUP(TRIM(C134),'2021-22 Final'!B:X,17,FALSE) -> 0 | U134: 0 | V134: N | Y134: 0 | Z134: 0
A135: 117 | B135: 14077 | C135: 14077 | D135: TAHOLAH | E135: =IFERROR(VLOOKUP(C135,'Enrollment 22-23'!A:E,3,FALSE),0) -> 63 | F135: 27151 | G135: =IFERROR(VLOOKUP(C135,'Enrollment 22-23'!A:E,5,0),0) -> 18 | H135: 1939 | I135: =IFERROR(VLOOKUP(C135,'Enrollment 22-23'!A:E,4,FALSE),0) -> 22 | J135: 9481 | K135: 38571 | L135: =IF(E135>$E$17,_xlfn.IFNA(VLOOKUP(C135,'other funds ftr 2022'!A:I,9,FALSE),0),1) -> 0 | M135: 38571 | N135: =1+IF(ISNA(VLOOKUP(VALUE(C135),'Rural and Low Income 22-23'!$A:$B,2,FALSE)),0,'2022-23 Final'!$N$17) -> 1.1 | O135: 42428 | R135: 0 | S135: 42428 | T135: =VLOOKUP(TRIM(C135),'2021-22 Final'!B:X,17,FALSE) -> 0 | U135: 42428 | V135: Y | Y135: 1500 | Z135: 43928
A136: 118 | B136: 24404 | C136: 24404 | D136: TONASKET | E136: =IFERROR(VLOOKUP(C136,'Enrollment 22-23'!A:E,3,FALSE),0) -> 306 | F136: 131875 | G136: =IFERROR(VLOOKUP(C136,'Enrollment 22-23'!A:E,5,0),0) -> 76 | H136: 8188 | I136: =IFERROR(VLOOKUP(C136,'Enrollment 22-23'!A:E,4,FALSE),0) -> 181 | J136: 78005 | K136: 218068 | L136: =IF(E136>$E$17,_xlfn.IFNA(VLOOKUP(C136,'other funds ftr 2022'!A:I,9,FALSE),0),1) -> 1.15 | M136: 250778 | N136: =1+IF(ISNA(VLOOKUP(VALUE(C136),'Rural and Low Income 22-23'!$A:$B,2,FALSE)),0,'2022-23 Final'!$N$17) -> 1.1 | O136: 275856 | R136: 0 | S136: 275856 | T136: =VLOOKUP(TRIM(C136),'2021-22 Final'!B:X,17,FALSE) -> 257839 | U136: 18017 | V136: Y | Y136: 2500 | Z136: 278356
A137: 119 | B137: 39202 | C137: 39202 | D137: TOPPENISH | E137: =IFERROR(VLOOKUP(C137,'Enrollment 22-23'!A:E,3,FALSE),0) -> 853 | F137: 367614 | G137: =IFERROR(VLOOKUP(C137,'Enrollment 22-23'!A:E,5,0),0) -> 225 | H137: 24242 | I137: =IFERROR(VLOOKUP(C137,'Enrollment 22-23'!A:E,4,FALSE),0) -> 448 | J137: 193073 | K137: 584929 | L137: =IF(E137>$E$17,_xlfn.IFNA(VLOOKUP(C137,'other funds ftr 2022'!A:I,9,FALSE),0),1) -> 1.05 | M137: 614175 | N137: =1+IF(ISNA(VLOOKUP(VALUE(C137),'Rural and Low Income 22-23'!$A:$B,2,FALSE)),0,'2022-23 Final'!$N$17) -> 1 | O137: 614175 | R137: 0 | S137: 614175 | T137: =VLOOKUP(TRIM(C137),'2021-22 Final'!B:X,17,FALSE) -> 648079 | U137: -33904 | V137: Y | Y137: 4000 | Z137: 618175
A138: 120 | B138: 20400 | C138: 20400 | D138: TROUT LAKE | E138: =IFERROR(VLOOKUP(C138,'Enrollment 22-23'!A:E,3,FALSE),0) -> 119 | F138: 51285 | G138: =IFERROR(VLOOKUP(C138,'Enrollment 22-23'!A:E,5,0),0) -> 13 | H138: 1401 | I138: =IFERROR(VLOOKUP(C138,'Enrollment 22-23'!A:E,4,FALSE),0) -> 42 | J138: 18101 | K138: 70787 | L138: =IF(E138>$E$17,_xlfn.IFNA(VLOOKUP(C138,'other funds ftr 2022'!A:I,9,FALSE),0),1) -> 0 | M138: 70787 | N138: =1+IF(ISNA(VLOOKUP(VALUE(C138),'Rural and Low Income 22-23'!$A:$B,2,FALSE)),0,'2022-23 Final'!$N$17) -> 1.1 | O138: 0 | R138: 0 | S138: 0 | T138: =VLOOKUP(TRIM(C138),'2021-22 Final'!B:X,17,FALSE) -> 0 | U138: 0 | V138: N | Y138: 0 | Z138: 0
A139: 121 | B139: 39002 | C139: 39002 | D139: UNION GAP | E139: =IFERROR(VLOOKUP(C139,'Enrollment 22-23'!A:E,3,FALSE),0) -> 52 | F139: 22410 | G139: =IFERROR(VLOOKUP(C139,'Enrollment 22-23'!A:E,5,0),0) -> 15 | H139: 1616 | I139: =IFERROR(VLOOKUP(C139,'Enrollment 22-23'!A:E,4,FALSE),0) -> 31 | J139: 13360 | K139: 37386 | L139: =IF(E139>$E$17,_xlfn.IFNA(VLOOKUP(C139,'other funds ftr 2022'!A:I,9,FALSE),0),1) -> 0.95 | M139: 35517 | N139: =1+IF(ISNA(VLOOKUP(VALUE(C139),'Rural and Low Income 22-23'!$A:$B,2,FALSE)),0,'2022-23 Final'!$N$17) -> 1 | O139: 35517 | R139: 0 | S139: 35517 | T139: =VLOOKUP(TRIM(C139),'2021-22 Final'!B:X,17,FALSE) -> 33643 | U139: 1874 | V139: Y | Y139: 1500 | Z139: 37017
A140: 122 | B140: 06037 | C140: 06037 | D140: VANCOUVER | E140: =IFERROR(VLOOKUP(C140,'Enrollment 22-23'!A:E,3,FALSE),0) -> 68 | F140: 29306 | G140: =IFERROR(VLOOKUP(C140,'Enrollment 22-23'!A:E,5,0),0) -> 26 | H140: 2801 | I140: =IFERROR(VLOOKUP(C140,'Enrollment 22-23'!A:E,4,FALSE),0) -> 24 | J140: 10343 | K140: 42450 | L140: =IF(E140>$E$17,_xlfn.IFNA(VLOOKUP(C140,'other funds ftr 2022'!A:I,9,FALSE),0),1) -> 0 | M140: 42450 | N140: =1+IF(ISNA(VLOOKUP(VALUE(C140),'Rural and Low Income 22-23'!$A:$B,2,FALSE)),0,'2022-23 Final'!$N$17) -> 1 | O140: 42450 | R140: 0 | S140: 42450 | T140: =VLOOKUP(TRIM(C140),'2021-22 Final'!B:X,17,FALSE) -> 0 | U140: 42450 | V140: Y | Y140: 1500 | Z140: 43950
A141: 123 | B141: 34901 | C141: 34901 | D141: WA HE LUT INDIAN SCHOOL | E141: =IFERROR(VLOOKUP(C141,'Enrollment 22-23'!A:E,3,FALSE),0) -> 15 | F141: 6464 | G141: =IFERROR(VLOOKUP(C141,'Enrollment 22-23'!A:E,5,0),0) -> 0 | H141: 0 | I141: =IFERROR(VLOOKUP(C141,'Enrollment 22-23'!A:E,4,FALSE),0) -> 13 | J141: 5603 | K141: 12067 | L141: =IF(E141>$E$17,_xlfn.IFNA(VLOOKUP(C141,'other funds ftr 2022'!A:I,9,FALSE),0),1) -> 0 | M141: 12067 | N141: =1+IF(ISNA(VLOOKUP(VALUE(C141),'Rural and Low Income 22-23'!$A:$B,2,FALSE)),0,'2022-23 Final'!$N$17) -> 1 | O141: 12067 | R141: 0 | S141: 12067 | T141: =VLOOKUP(TRIM(C141),'2021-22 Final'!B:X,17,FALSE) -> 6822 | U141: 5245 | V141: Y | Y141: 1500 | Z141: 13567
A142: 124 | B142: 13073 | C142: 13073 | D142: WAHLUKE | E142: =IFERROR(VLOOKUP(C142,'Enrollment 22-23'!A:E,3,FALSE),0) -> 1773 | F142: 764102 | G142: =IFERROR(VLOOKUP(C142,'Enrollment 22-23'!A:E,5,0),0) -> 281 | H142: 30275 | I142: =IFERROR(VLOOKUP(C142,'Enrollment 22-23'!A:E,4,FALSE),0) -> 1322 | J142: 569736 | K142: 1364113 | L142: =IF(E142>$E$17,_xlfn.IFNA(VLOOKUP(C142,'other funds ftr 2022'!A:I,9,FALSE),0),1) -> 0 | M142: 1364113 | N142: =1+IF(ISNA(VLOOKUP(VALUE(C142),'Rural and Low Income 22-23'!$A:$B,2,FALSE)),0,'2022-23 Final'!$N$17) -> 1 | O142: 1364113 | R142: 0 | S142: 1364113 | T142: =VLOOKUP(TRIM(C142),'2021-22 Final'!B:X,17,FALSE) -> 1504422 | U142: -140309 | V142: Y | Y142: 4000 | Z142: 1368113
A143: 125 | B143: 36140 | C143: 36140 | D143: WALLA WALLA PUBLIC SCHOOLS | E143: =IFERROR(VLOOKUP(C143,'Enrollment 22-23'!A:E,3,FALSE),0) -> 119 | F143: 51285 | G143: =IFERROR(VLOOKUP(C143,'Enrollment 22-23'!A:E,5,0),0) -> 39 | H143: 4202 | I143: =IFERROR(VLOOKUP(C143,'Enrollment 22-23'!A:E,4,FALSE),0) -> 43 | J143: 18532 | K143: 74019 | L143: =IF(E143>$E$17,_xlfn.IFNA(VLOOKUP(C143,'other funds ftr 2022'!A:I,9,FALSE),0),1) -> 0.85 | M143: 62916 | N143: =1+IF(ISNA(VLOOKUP(VALUE(C143),'Rural and Low Income 22-23'!$A:$B,2,FALSE)),0,'2022-23 Final'!$N$17) -> 1 | O143: 62916 | R143: 0 | S143: 62916 | T143: =VLOOKUP(TRIM(C143),'2021-22 Final'!B:X,17,FALSE) -> 68692 | U143: -5776 | V143: Y | Y143: 2500 | Z143: 65416
A144: 126 | B144: 39207 | C144: 39207 | D144: WAPATO | E144: =IFERROR(VLOOKUP(C144,'Enrollment 22-23'!A:E,3,FALSE),0) -> 896 | F144: 386145 | G144: =IFERROR(VLOOKUP(C144,'Enrollment 22-23'!A:E,5,0),0) -> 181 | H144: 19501 | I144: =IFERROR(VLOOKUP(C144,'Enrollment 22-23'!A:E,4,FALSE),0) -> 569 | J144: 245219 | K144: 650865 | L144: =IF(E144>$E$17,_xlfn.IFNA(VLOOKUP(C144,'other funds ftr 2022'!A:I,9,FALSE),0),1) -> 1.05 | M144: 683408 | N144: =1+IF(ISNA(VLOOKUP(VALUE(C144),'Rural and Low Income 22-23'!$A:$B,2,FALSE)),0,'2022-23 Final'!$N$17) -> 1 | O144: 683408 | R144: 0 | S144: 683408 | T144: =VLOOKUP(TRIM(C144),'2021-22 Final'!B:X,17,FALSE) -> 668706 | U144: 14702 | V144: Y | Y144: 4000 | Z144: 687408
A145: 127 | B145: 13146 | C145: 13146 | D145: WARDEN | E145: =IFERROR(VLOOKUP(C145,'Enrollment 22-23'!A:E,3,FALSE),0) -> 276 | F145: 118946 | G145: =IFERROR(VLOOKUP(C145,'Enrollment 22-23'!A:E,5,0),0) -> 58 | H145: 6249 | I145: =IFERROR(VLOOKUP(C145,'Enrollment 22-23'!A:E,4,FALSE),0) -> 140 | J145: 60335 | K145: 185530 | L145: =IF(E145>$E$17,_xlfn.IFNA(VLOOKUP(C145,'other funds ftr 2022'!A:I,9,FALSE),0),1) -> 1.15 | M145: 213360 | N145: =1+IF(ISNA(VLOOKUP(VALUE(C145),'Rural and Low Income 22-23'!$A:$B,2,FALSE)),0,'2022-23 Final'!$N$17) -> 1.1 | O145: 234696 | R145: 0 | S145: 234696 | T145: =VLOOKUP(TRIM(C145),'2021-22 Final'!B:X,17,FALSE) -> 248208 | U145: -13512 | V145: Y | Y145: 2500 | Z145: 237196
A146: 128 | B146: 09209 | C146: 09209 | D146: WATERVILLE | E146: =IFERROR(VLOOKUP(C146,'Enrollment 22-23'!A:E,3,FALSE),0) -> 23 | F146: 9912 | G146: =IFERROR(VLOOKUP(C146,'Enrollment 22-23'!A:E,5,0),0) -> 7 | H146: 754 | I146: =IFERROR(VLOOKUP(C146,'Enrollment 22-23'!A:E,4,FALSE),0) -> 8 | J146: 3448 | K146: 14114 | L146: =IF(E146>$E$17,_xlfn.IFNA(VLOOKUP(C146,'other funds ftr 2022'!A:I,9,FALSE),0),1) -> 0 | M146: 14114 | N146: =1+IF(ISNA(VLOOKUP(VALUE(C146),'Rural and Low Income 22-23'!$A:$B,2,FALSE)),0,'2022-23 Final'!$N$17) -> 1.1 | O146: 0 | R146: 0 | S146: 0 | T146: =VLOOKUP(TRIM(C146),'2021-22 Final'!B:X,17,FALSE) -> 0 | U146: 0 | V146: N | Y146: 0 | Z146: 0
A147: 129 | B147: 33049 | C147: 33049 | D147: WELLPINIT | E147: =IFERROR(VLOOKUP(C147,'Enrollment 22-23'!A:E,3,FALSE),0) -> 96 | F147: 41373 | G147: =IFERROR(VLOOKUP(C147,'Enrollment 22-23'!A:E,5,0),0) -> 19 | H147: 2047 | I147: =IFERROR(VLOOKUP(C147,'Enrollment 22-23'!A:E,4,FALSE),0) -> 34 | J147: 14653 | K147: =+F147+H147+J147 -> 58073 | L147: =IF(E147>$E$17,_xlfn.IFNA(VLOOKUP(C147,'other funds ftr 2022'!A:I,9,FALSE),0),1) -> 0 | M147: =IF(L147=0,K147,ROUND(K147*L147,0)) -> 58073 | N147: =1+IF(ISNA(VLOOKUP(VALUE(C147),'Rural and Low Income 22-23'!$A:$B,2,FALSE)),0,'2022-23 Final'!$N$17) -> 1.1 | O147: =IF(V147="y",ROUND(M147*N147,0),0) -> 63880 | R147: 0 | S147: =O147+R147 -> 63880 | T147: =VLOOKUP(TRIM(C147),'2021-22 Final'!B:X,17,FALSE) ->  | U147: =S147-T147 ->  | V147: Y | Y147: 1500 | Z147: 65380
A148: 130 | B148: 04246 | C148: 04246 | D148: WENATCHEE | E148: =IFERROR(VLOOKUP(C148,'Enrollment 22-23'!A:E,3,FALSE),0) -> 1555 | F148: =IF(E148>=10,ROUND(E148*$G$3,0),0) -> 670151 | G148: =IFERROR(VLOOKUP(C148,'Enrollment 22-23'!A:E,5,0),0) -> 425 | H148: =IF(E148>=$E$17,ROUND(G148*$G$3*$G$17,0),0) -> 45790 | I148: =IFERROR(VLOOKUP(C148,'Enrollment 22-23'!A:E,4,FALSE),0) -> 1004 | J148: =IF(E148>=$E$17,ROUND(I148*$G$3*$I$17,0),0) -> 432689 | K148: 1148630 | L148: =IF(E148>$E$17,_xlfn.IFNA(VLOOKUP(C148,'other funds ftr 2022'!A:I,9,FALSE),0),1) -> 1.15 | M148: 1320925 | N148: =1+IF(ISNA(VLOOKUP(VALUE(C148),'Rural and Low Income 22-23'!$A:$B,2,FALSE)),0,'2022-23 Final'!$N$17) -> 1 | O148: 1320925 | R148: 0 | S148: 1320925 | T148: =VLOOKUP(TRIM(C148),'2021-22 Final'!B:X,17,FALSE) -> 1357645 | U148: -36720 | V148: Y | Y148: =IF(V148="Y",IF(E148<=99,1500,IF(AND(E148>=100,E148<=399),2500,4000)),0) -> 4000 | Z148: =IF(W148=1, 0, Y148+S148) -> 1324925
A149: 131 | B149: 39208 | C149: 39208 | D149: WEST VALLEY (YAKIMA) | E149: =IFERROR(VLOOKUP(C149,'Enrollment 22-23'!A:E,3,FALSE),0) -> 114 | F149: 49130 | G149: =IFERROR(VLOOKUP(C149,'Enrollment 22-23'!A:E,5,0),0) -> 40 | H149: 4310 | I149: =IFERROR(VLOOKUP(C149,'Enrollment 22-23'!A:E,4,FALSE),0) -> 48 | J149: 20686 | K149: 74126 | L149: =IF(E149>$E$17,_xlfn.IFNA(VLOOKUP(C149,'other funds ftr 2022'!A:I,9,FALSE),0),1) -> 0.85 | M149: 63007 | N149: =1+IF(ISNA(VLOOKUP(VALUE(C149),'Rural and Low Income 22-23'!$A:$B,2,FALSE)),0,'2022-23 Final'!$N$17) -> 1 | O149: 63007 | R149: 0 | S149: 63007 | T149: =VLOOKUP(TRIM(C149),'2021-22 Final'!B:X,17,FALSE) -> 48494 | U149: 14513 | V149: Y | Y149: 2500 | Z149: 65507
A150: 132 | B150: 21303 | C150: 21303 | D150: WHITE PASS | E150: =IFERROR(VLOOKUP(C150,'Enrollment 22-23'!A:E,3,FALSE),0) -> 55 | F150: 23703 | G150: =IFERROR(VLOOKUP(C150,'Enrollment 22-23'!A:E,5,0),0) -> 11 | H150: 1185 | I150: =IFERROR(VLOOKUP(C150,'Enrollment 22-23'!A:E,4,FALSE),0) -> 20 | J150: 8619 | K150: 33507 | L150: =IF(E150>$E$17,_xlfn.IFNA(VLOOKUP(C150,'other funds ftr 2022'!A:I,9,FALSE),0),1) -> 0 | M150: 33507 | N150: =1+IF(ISNA(VLOOKUP(VALUE(C150),'Rural and Low Income 22-23'!$A:$B,2,FALSE)),0,'2022-23 Final'!$N$17) -> 1.1 | O150: 0 | R150: 0 | S150: 0 | T150: =VLOOKUP(TRIM(C150),'2021-22 Final'!B:X,17,FALSE) -> 0 | U150: 0 | V150: N | Y150: 0 | Z150: 0
A151: 133 | B151: 20405 | C151: 20405 | D151: WHITE SALMON VALLEY | E151: =IFERROR(VLOOKUP(C151,'Enrollment 22-23'!A:E,3,FALSE),0) -> 60 | F151: 25858 | G151: =IFERROR(VLOOKUP(C151,'Enrollment 22-23'!A:E,5,0),0) -> 20 | H151: 2155 | I151: =IFERROR(VLOOKUP(C151,'Enrollment 22-23'!A:E,4,FALSE),0) -> 18 | J151: 7757 | K151: 35770 | L151: =IF(E151>$E$17,_xlfn.IFNA(VLOOKUP(C151,'other funds ftr 2022'!A:I,9,FALSE),0),1) -> 0 | M151: 35770 | N151: =1+IF(ISNA(VLOOKUP(VALUE(C151),'Rural and Low Income 22-23'!$A:$B,2,FALSE)),0,'2022-23 Final'!$N$17) -> 1 | O151: 0 | R151: 0 | S151: 0 | T151: =VLOOKUP(TRIM(C151),'2021-22 Final'!B:X,17,FALSE) -> 0 | U151: 0 | V151: N | Y151: 0 | Z151: 0
A152: 134 | B152: 21232 | C152: 21232 | D152: WINLOCK | E152: =IFERROR(VLOOKUP(C152,'Enrollment 22-23'!A:E,3,FALSE),0) -> 97 | F152: 41804 | G152: =IFERROR(VLOOKUP(C152,'Enrollment 22-23'!A:E,5,0),0) -> 28 | H152: 3017 | I152: =IFERROR(VLOOKUP(C152,'Enrollment 22-23'!A:E,4,FALSE),0) -> 39 | J152: 16808 | K152: 61629 | L152: =IF(E152>$E$17,_xlfn.IFNA(VLOOKUP(C152,'other funds ftr 2022'!A:I,9,FALSE),0),1) -> 1.05 | M152: 64710 | N152: =1+IF(ISNA(VLOOKUP(VALUE(C152),'Rural and Low Income 22-23'!$A:$B,2,FALSE)),0,'2022-23 Final'!$N$17) -> 1 | O152: 64710 | R152: 0 | S152: 64710 | T152: =VLOOKUP(TRIM(C152),'2021-22 Final'!B:X,17,FALSE) -> 69099 | U152: -4389 | V152: Y | Y152: 1500 | Z152: 66210
A153: 135 | B153: 39901 | C153: 39901 | D153: YAKAMA NATION TRIBAL COMPACT | E153: =IFERROR(VLOOKUP(C153,'Enrollment 22-23'!A:E,3,FALSE),0) -> 61 | F153: 26289 | G153: =IFERROR(VLOOKUP(C153,'Enrollment 22-23'!A:E,5,0),0) -> 49 | H153: 5279 | I153: =IFERROR(VLOOKUP(C153,'Enrollment 22-23'!A:E,4,FALSE),0) -> 31 | J153: 13360 | K153: 44928 | L153: =IF(E153>$E$17,_xlfn.IFNA(VLOOKUP(C153,'other funds ftr 2022'!A:I,9,FALSE),0),1) -> 0 | M153: 44928 | N153: =1+IF(ISNA(VLOOKUP(VALUE(C153),'Rural and Low Income 22-23'!$A:$B,2,FALSE)),0,'2022-23 Final'!$N$17) -> 1 | O153: 44928 | R153: 0 | S153: 44928 | T153: =VLOOKUP(TRIM(C153),'2021-22 Final'!B:X,17,FALSE) -> 49052 | U153: -4124 | V153: Y | Y153: 1500 | Z153: 46428
A154: 136 | B154: 39007 | C154: 39007 | D154: YAKIMA | E154: =IFERROR(VLOOKUP(C154,'Enrollment 22-23'!A:E,3,FALSE),0) -> 2039 | F154: 878739 | G154: =IFERROR(VLOOKUP(C154,'Enrollment 22-23'!A:E,5,0),0) -> 517 | H154: 55702 | I154: =IFERROR(VLOOKUP(C154,'Enrollment 22-23'!A:E,4,FALSE),0) -> 1279 | J154: 551205 | K154: 1485646 | L154: =IF(E154>$E$17,_xlfn.IFNA(VLOOKUP(C154,'other funds ftr 2022'!A:I,9,FALSE),0),1) -> 1 | M154: 1485646 | N154: =1+IF(ISNA(VLOOKUP(VALUE(C154),'Rural and Low Income 22-23'!$A:$B,2,FALSE)),0,'2022-23 Final'!$N$17) -> 1 | O154: 1485646 | R154: 0 | S154: 1485646 | T154: =VLOOKUP(TRIM(C154),'2021-22 Final'!B:X,17,FALSE) -> 1558044 | U154: -72398 | V154: Y | Y154: 4000 | Z154: 1489646
A155: 137 | B155: 34002 | C155: 34002 | D155: YELM | E155: =IFERROR(VLOOKUP(C155,'Enrollment 22-23'!A:E,3,FALSE),0) -> 62 | F155: 26720 | G155: =IFERROR(VLOOKUP(C155,'Enrollment 22-23'!A:E,5,0),0) -> 0 | H155: 0 | I155: =IFERROR(VLOOKUP(C155,'Enrollment 22-23'!A:E,4,FALSE),0) -> 53 | J155: 22841 | K155: 49561 | L155: =IF(E155>$E$17,_xlfn.IFNA(VLOOKUP(C155,'other funds ftr 2022'!A:I,9,FALSE),0),1) -> 0 | M155: 49561 | N155: =1+IF(ISNA(VLOOKUP(VALUE(C155),'Rural and Low Income 22-23'!$A:$B,2,FALSE)),0,'2022-23 Final'!$N$17) -> 1 | O155: 0 | R155: 0 | S155: 0 | T155: =VLOOKUP(TRIM(C155),'2021-22 Final'!B:X,17,FALSE) -> 0 | U155: 0 | V155: N | Y155: 0 | Z155: 0
A156: 138 | B156: 39205 | C156: 39205 | D156: ZILLAH | E156: =IFERROR(VLOOKUP(C156,'Enrollment 22-23'!A:E,3,FALSE),0) -> 96 | F156: 41373 | G156: =IFERROR(VLOOKUP(C156,'Enrollment 22-23'!A:E,5,0),0) -> 24 | H156: 2586 | I156: =IFERROR(VLOOKUP(C156,'Enrollment 22-23'!A:E,4,FALSE),0) -> 32 | J156: 13791 | K156: 57750 | L156: =IF(E156>$E$17,_xlfn.IFNA(VLOOKUP(C156,'other funds ftr 2022'!A:I,9,FALSE),0),1) -> 1 | M156: 57750 | N156: =1+IF(ISNA(VLOOKUP(VALUE(C156),'Rural and Low Income 22-23'!$A:$B,2,FALSE)),0,'2022-23 Final'!$N$17) -> 1 | O156: 57750 | R156: 0 | S156: 57750 | T156: =VLOOKUP(TRIM(C156),'2021-22 Final'!B:X,17,FALSE) -> 63051 | U156: -5301 | V156: Y | Y156: 1500 | Z156: 59250
O157: =SUM(O19:O156) -> 20768148 | R157: 0 | S157: 20768148

Sheet 2021-22 Final (hidden)
I1: From Assumptions Page:
C2: Constant Dollar Multipliers - Do Not Change Here | I2: Target Amounts | N2: =[2]Assumptions!E24 -> 20508825
C3: =[2]Assumptions!$AO$4 -> 0 | F3: 470.530457 | G3: Use CTRL K | I3: Actual Amounts | N3: =N18 -> 20508825
I4: Difference | N4: =N3-N2 -> 0
I6: =N18 -> 20508825
G7: Put total here | I7: =[2]Assumptions!D24 -> 20508825
I10: Go to H9 & Control K to set dollar amount
D14: Migrant Students | U14: Accepting Funding? | V14: HOLD HARMLESS
C15: =F3 -> 470.530457 | D15: K-12 | F15: Needs Support | H15: Priority Interuption | R15: =R18 -> 20508825
B16: CCDDD | C16: District | D16: Ave. number | E16: Regular Dollars | F16: Ave. number | G16: Regular Dollars | H16: Priority Number | I16: Priority Dollars | J16: Subtotal | K16: Other Funds Factor | L16: Subtotal 2 | M16: Add'l Rural Factor | N16: Total Allocated Amount | P16: MOE | Q16: MOE Red. | R16: Subtotal After MOE | U16: Y for yes, N for no (reallocates money) | V16: Override funding? Y for yes, otherwise blank. | W16: Health Support Grant | X16: Total
D17: 10 | E17: =E18/D18 -> 470.3543661 | F17: 0.25 | G17: =G18/F18 -> 120.1660716 | H17: 1 | I17: =I18/H18 -> 478.7491582 | M17: 0.1 | N17: 124
A18: 0 | B18: 99999 | C18: State Total | D18: =SUMIF(D19:D152,">-10") -> 32077 | E18: =SUM(E19:E271) -> 15087557 | F18: =SUMIF(F19:F271,">=10") -> 8683 | G18: 1043402 | H18: =SUMIF(H19:H271,">=10") -> 9504 | I18: 4550032 | J18: 20680991 | L18: =SUM(L19:L271) -> 21647433 | N18: =SUM(N19:N271) -> 20508825 | Q18: =SUM(Q19:Q152) -> 0 | R18: =SUM(R19:R271) -> 20508825 | S18: 20-21 Final Allocations | T18: Allocation Difference | W18: =SUM(W19:W152) -> 188000 | X18: =SUM(X19:X156) -> 20696825
A19: 1 | B19: 14005 | C19: ABERDEEN | D19: =IFERROR(VLOOKUP(B19,'[2]Enrollment 2122'!$A:$D,4,0),0) -> 130 | E19: =IF(D19>=10,ROUND(D19*$F$3,0),0) -> 61169 | F19: =IFERROR(VLOOKUP(B19,'[2]Enrollment 2122'!$A:$F,6,0),0) -> 30 | G19: =IF(D19>=$D$17,ROUND(F19*$F$3*$F$17,0),0) -> 3529 | H19: =IFERROR(VLOOKUP(B19,'[2]Enrollment 2122'!$A:$E,5,FALSE),0) -> 42 | I19: =IF(D19>=$D$17,ROUND(H19*$F$3*$H$17,0),0) -> 19762 | J19: =+E19+G19+I19 -> 84460 | K19: =IF(D19>$D$17,_xlfn.IFNA(VLOOKUP(B19,'[2]other funds ftr 2021 for 2122'!$A:$I,9,FALSE),0),1) -> 0.95 | L19: =IF(K19=0,J19,ROUND(J19*K19,0)) -> 80237 | M19: =1+IF(ISNA(VLOOKUP(B19,'[2]Rural and Low Income 2122'!$A:$B,2,FALSE)),0,'2021-22 Final'!$M$17) -> 1.1 | N19: =IF(U19="y",ROUND(L19*M19,0),0) -> 88261 | Q19: =ROUND(IF(P19>0,-(0.9-P19)*N19,0),0) -> 0 | R19: =N19+Q19 -> 88261 | S19: 75126 | T19: =R19-S19 -> 13135 | U19: Y | W19: =IF(U19="Y",IF(D19<=99,1500,IF(AND(D19>=100,D19<=399),2500,4000)),0) -> 2500 | X19: =W19+R19 -> 90761
A20: 2 | B20: 31016 | C20: ARLINGTON | D20: =IFERROR(VLOOKUP(B20,'[2]Enrollment 2122'!$A:$D,4,0),0) -> 53 | E20: =IF(D20>=10,ROUND(D20*$F$3,0),0) -> 24938 | F20: =IFERROR(VLOOKUP(B20,'[2]Enrollment 2122'!$A:$F,6,0),0) -> 24 | G20: =IF(D20>=$D$17,ROUND(F20*$F$3*$F$17,0),0) -> 2823 | H20: =IFERROR(VLOOKUP(B20,'[2]Enrollment 2122'!$A:$E,5,FALSE),0) -> 22 | I20: =IF(D20>=$D$17,ROUND(H20*$F$3*$H$17,0),0) -> 10352 | J20: 38113 | K20: =IF(D20>$D$17,_xlfn.IFNA(VLOOKUP(B20,'[2]other funds ftr 2021 for 2122'!$A:$I,9,FALSE),0),1) -> 0 | L20: 38113 | M20: =1+IF(ISNA(VLOOKUP(B20,'[2]Rural and Low Income 2122'!$A:$B,2,FALSE)),0,'2021-22 Final'!$M$17) -> 1 | N20: 0 | Q20: 0 | R20: 0 | S20: 0 | T20: 0 | U20: N | W20: =IF(U20="Y",IF(D20<=99,1500,IF(AND(D20>=100,D20<=399),2500,4000)),0) -> 0 | X20: =W20+R20 -> 0
A21: 3 | B21: 17408 | C21: AUBURN | D21: =IFERROR(VLOOKUP(B21,'[2]Enrollment 2122'!$A:$D,4,0),0) -> 39 | E21: 18351 | F21: =IFERROR(VLOOKUP(B21,'[2]Enrollment 2122'!$A:$F,6,0),0) -> 9 | G21: 1059 | H21: =IFERROR(VLOOKUP(B21,'[2]Enrollment 2122'!$A:$E,5,FALSE),0) -> 4 | I21: 1882 | J21: 21292 | K21: =IF(D21>$D$17,_xlfn.IFNA(VLOOKUP(B21,'[2]other funds ftr 2021 for 2122'!$A:$I,9,FALSE),0),1) -> 0 | L21: 21292 | M21: =1+IF(ISNA(VLOOKUP(B21,'[2]Rural and Low Income 2122'!$A:$B,2,FALSE)),0,'2021-22 Final'!$M$17) -> 1 | N21: 0 | Q21: 0 | R21: 0 | S21: 0 | T21: 0 | U21: N | W21: 0 | X21: 0
A22: 4 | B22: 06119 | C22: BATTLE GROUND | D22: =IFERROR(VLOOKUP(B22,'[2]Enrollment 2122'!$A:$D,4,0),0) -> 21 | E22: 9881 | F22: =IFERROR(VLOOKUP(B22,'[2]Enrollment 2122'!$A:$F,6,0),0) -> 5 | G22: 588 | H22: =IFERROR(VLOOKUP(B22,'[2]Enrollment 2122'!$A:$E,5,FALSE),0) -> 1 | I22: 471 | J22: 10940 | K22: =IF(D22>$D$17,_xlfn.IFNA(VLOOKUP(B22,'[2]other funds ftr 2021 for 2122'!$A:$I,9,FALSE),0),1) -> 0 | L22: 10940 | M22: =1+IF(ISNA(VLOOKUP(B22,'[2]Rural and Low Income 2122'!$A:$B,2,FALSE)),0,'2021-22 Final'!$M$17) -> 1 | N22: 0 | Q22: 0 | R22: 0 | S22: 0 | T22: 0 | U22: N | W22: 0 | X22: 0
A23: 5 | B23: 37501 | C23: BELLINGHAM | D23: =IFERROR(VLOOKUP(B23,'[2]Enrollment 2122'!$A:$D,4,0),0) -> 177 | E23: 83284 | F23: =IFERROR(VLOOKUP(B23,'[2]Enrollment 2122'!$A:$F,6,0),0) -> 49 | G23: 5764 | H23: =IFERROR(VLOOKUP(B23,'[2]Enrollment 2122'!$A:$E,5,FALSE),0) -> 33 | I23: 15528 | J23: 104576 | K23: =IF(D23>$D$17,_xlfn.IFNA(VLOOKUP(B23,'[2]other funds ftr 2021 for 2122'!$A:$I,9,FALSE),0),1) -> 0 | L23: 104576 | M23: =1+IF(ISNA(VLOOKUP(B23,'[2]Rural and Low Income 2122'!$A:$B,2,FALSE)),0,'2021-22 Final'!$M$17) -> 1 | N23: 0 | Q23: 0 | R23: 0 | S23: 0 | T23: 0 | U23: N | W23: 0 | X23: 0
A24: 6 | B24: 37503 | C24: BLAINE | D24: =IFERROR(VLOOKUP(B24,'[2]Enrollment 2122'!$A:$D,4,0),0) -> 9 | E24: 0 | F24: =IFERROR(VLOOKUP(B24,'[2]Enrollment 2122'!$A:$F,6,0),0) -> 3 | G24: 0 | H24: =IFERROR(VLOOKUP(B24,'[2]Enrollment 2122'!$A:$E,5,FALSE),0) -> 0 | I24: 0 | J24: 0 | K24: =IF(D24>$D$17,_xlfn.IFNA(VLOOKUP(B24,'[2]other funds ftr 2021 for 2122'!$A:$I,9,FALSE),0),1) -> 1 | L24: 0 | M24: =1+IF(ISNA(VLOOKUP(B24,'[2]Rural and Low Income 2122'!$A:$B,2,FALSE)),0,'2021-22 Final'!$M$17) -> 1 | N24: 0 | Q24: 0 | R24: 0 | S24: 0 | T24: 0 | U24: N | W24: 0 | X24: 0
A25: 7 | B25: 18100 | C25: BREMERTON | D25: =IFERROR(VLOOKUP(B25,'[2]Enrollment 2122'!$A:$D,4,0),0) -> 84 | E25: 39525 | F25: =IFERROR(VLOOKUP(B25,'[2]Enrollment 2122'!$A:$F,6,0),0) -> 21 | G25: 2470 | H25: =IFERROR(VLOOKUP(B25,'[2]Enrollment 2122'!$A:$E,5,FALSE),0) -> 17 | I25: 7999 | J25: 49994 | K25: =IF(D25>$D$17,_xlfn.IFNA(VLOOKUP(B25,'[2]other funds ftr 2021 for 2122'!$A:$I,9,FALSE),0),1) -> 0 | L25: 49994 | M25: =1+IF(ISNA(VLOOKUP(B25,'[2]Rural and Low Income 2122'!$A:$B,2,FALSE)),0,'2021-22 Final'!$M$17) -> 1 | N25: 0 | Q25: 0 | R25: 0 | S25: 0 | T25: 0 | U25: N | W25: 0 | X25: 0
A26: 8 | B26: 24111 | C26: BREWSTER | D26: =IFERROR(VLOOKUP(B26,'[2]Enrollment 2122'!$A:$D,4,0),0) -> 227 | E26: 106810 | F26: =IFERROR(VLOOKUP(B26,'[2]Enrollment 2122'!$A:$F,6,0),0) -> 34 | G26: 4000 | H26: =IFERROR(VLOOKUP(B26,'[2]Enrollment 2122'!$A:$E,5,FALSE),0) -> 66 | I26: 31055 | J26: 141865 | K26: =IF(D26>$D$17,_xlfn.IFNA(VLOOKUP(B26,'[2]other funds ftr 2021 for 2122'!$A:$I,9,FALSE),0),1) -> 1.05 | L26: 148958 | M26: =1+IF(ISNA(VLOOKUP(B26,'[2]Rural and Low Income 2122'!$A:$B,2,FALSE)),0,'2021-22 Final'!$M$17) -> 1.1 | N26: 163854 | Q26: 0 | R26: 163854 | S26: 138078 | T26: 25776 | U26: Y | W26: 2500 | X26: 166354
A27: 9 | B27: 09075 | C27: BRIDGEPORT | D27: =IFERROR(VLOOKUP(B27,'[2]Enrollment 2122'!$A:$D,4,0),0) -> 230 | E27: 108222 | F27: =IFERROR(VLOOKUP(B27,'[2]Enrollment 2122'!$A:$F,6,0),0) -> 47 | G27: 5529 | H27: =IFERROR(VLOOKUP(B27,'[2]Enrollment 2122'!$A:$E,5,FALSE),0) -> 38 | I27: 17880 | J27: 131631 | K27: =IF(D27>$D$17,_xlfn.IFNA(VLOOKUP(B27,'[2]other funds ftr 2021 for 2122'!$A:$I,9,FALSE),0),1) -> 1.05 | L27: 138213 | M27: =1+IF(ISNA(VLOOKUP(B27,'[2]Rural and Low Income 2122'!$A:$B,2,FALSE)),0,'2021-22 Final'!$M$17) -> 1.1 | N27: 152034 | Q27: 0 | R27: 152034 | S27: 129405 | T27: 22629 | U27: Y | W27: 2500 | X27: 154534
A28: 10 | B28: 29100 | C28: BURLINGTON-EDISON | D28: =IFERROR(VLOOKUP(B28,'[2]Enrollment 2122'!$A:$D,4,0),0) -> 338 | E28: 159039 | F28: =IFERROR(VLOOKUP(B28,'[2]Enrollment 2122'!$A:$F,6,0),0) -> 59 | G28: 6940 | H28: =IFERROR(VLOOKUP(B28,'[2]Enrollment 2122'!$A:$E,5,FALSE),0) -> 108 | I28: 50817 | J28: 216796 | K28: =IF(D28>$D$17,_xlfn.IFNA(VLOOKUP(B28,'[2]other funds ftr 2021 for 2122'!$A:$I,9,FALSE),0),1) -> 0.95 | L28: 205956 | M28: =1+IF(ISNA(VLOOKUP(B28,'[2]Rural and Low Income 2122'!$A:$B,2,FALSE)),0,'2021-22 Final'!$M$17) -> 1 | N28: 205956 | Q28: 0 | R28: 205956 | S28: 155613 | T28: 50343 | U28: Y | W28: 2500 | X28: 208456
A29: 11 | B29: 04228 | C29: CASCADE | D29: =IFERROR(VLOOKUP(B29,'[2]Enrollment 2122'!$A:$D,4,0),0) -> 64 | E29: 30114 | F29: =IFERROR(VLOOKUP(B29,'[2]Enrollment 2122'!$A:$F,6,0),0) -> 16 | G29: 1882 | H29: =IFERROR(VLOOKUP(B29,'[2]Enrollment 2122'!$A:$E,5,FALSE),0) -> 13 | I29: 6117 | J29: 38113 | K29: =IF(D29>$D$17,_xlfn.IFNA(VLOOKUP(B29,'[2]other funds ftr 2021 for 2122'!$A:$I,9,FALSE),0),1) -> 1 | L29: 38113 | M29: =1+IF(ISNA(VLOOKUP(B29,'[2]Rural and Low Income 2122'!$A:$B,2,FALSE)),0,'2021-22 Final'!$M$17) -> 1.1 | N29: 41924 | Q29: 0 | R29: 41924 | S29: 32840 | T29: 9084 | U29: Y | W29: 1500 | X29: 43424
A30: 12 | B30: 04222 | C30: CASHMERE | D30: =IFERROR(VLOOKUP(B30,'[2]Enrollment 2122'!$A:$D,4,0),0) -> 257 | E30: 120926 | F30: =IFERROR(VLOOKUP(B30,'[2]Enrollment 2122'!$A:$F,6,0),0) -> 20 | G30: 2353 | H30: =IFERROR(VLOOKUP(B30,'[2]Enrollment 2122'!$A:$E,5,FALSE),0) -> 44 | I30: 20703 | J30: 143982 | K30: =IF(D30>$D$17,_xlfn.IFNA(VLOOKUP(B30,'[2]other funds ftr 2021 for 2122'!$A:$I,9,FALSE),0),1) -> 1.15 | L30: 165579 | M30: =1+IF(ISNA(VLOOKUP(B30,'[2]Rural and Low Income 2122'!$A:$B,2,FALSE)),0,'2021-22 Final'!$M$17) -> 1 | N30: 165579 | Q30: 0 | R30: 165579 | S30: 140935 | T30: 24644 | U30: Y | W30: 2500 | X30: 168079
A31: 14 | B31: 18401 | C31: CENTRAL KITSAP | D31: =IFERROR(VLOOKUP(B31,'[2]Enrollment 2122'!$A:$D,4,0),0) -> 16 | E31: 7528 | F31: =IFERROR(VLOOKUP(B31,'[2]Enrollment 2122'!$A:$F,6,0),0) -> 5 | G31: 588 | H31: =IFERROR(VLOOKUP(B31,'[2]Enrollment 2122'!$A:$E,5,FALSE),0) -> 8 | I31: 3764 | J31: 11880 | K31: =IF(D31>$D$17,_xlfn.IFNA(VLOOKUP(B31,'[2]other funds ftr 2021 for 2122'!$A:$I,9,FALSE),0),1) -> 0 | L31: 11880 | M31: =1+IF(ISNA(VLOOKUP(B31,'[2]Rural and Low Income 2122'!$A:$B,2,FALSE)),0,'2021-22 Final'!$M$17) -> 1 | N31: 0 | Q31: 0 | R31: 0 | S31: 0 | T31: 0 | U31: N | W31: 0 | X31: 0
A32: 13 | B32: 32356 | C32: CENTRAL VALLEY | D32: =IFERROR(VLOOKUP(B32,'[2]Enrollment 2122'!$A:$D,4,0),0) -> 15 | E32: 7058 | F32: =IFERROR(VLOOKUP(B32,'[2]Enrollment 2122'!$A:$F,6,0),0) -> 1 | G32: 118 | H32: =IFERROR(VLOOKUP(B32,'[2]Enrollment 2122'!$A:$E,5,FALSE),0) -> 5 | I32: 2353 | J32: 9529 | K32: =IF(D32>$D$17,_xlfn.IFNA(VLOOKUP(B32,'[2]other funds ftr 2021 for 2122'!$A:$I,9,FALSE),0),1) -> 0 | L32: 9529 | M32: =1+IF(ISNA(VLOOKUP(B32,'[2]Rural and Low Income 2122'!$A:$B,2,FALSE)),0,'2021-22 Final'!$M$17) -> 1 | N32: 0 | Q32: =ROUND(IF(P32>0,-(0.9-P32)*N32,0),0) -> 0 | R32: 0 | S32: 0 | T32: 0 | U32: N | W32: 0 | X32: 0
A33: 15 | B33: 21401 | C33: CENTRALIA | D33: =IFERROR(VLOOKUP(B33,'[2]Enrollment 2122'!$A:$D,4,0),0) -> 97 | E33: 45641 | F33: =IFERROR(VLOOKUP(B33,'[2]Enrollment 2122'!$A:$F,6,0),0) -> 22 | G33: 2588 | H33: =IFERROR(VLOOKUP(B33,'[2]Enrollment 2122'!$A:$E,5,FALSE),0) -> 34 | I33: 15998 | J33: 64227 | K33: =IF(D33>$D$17,_xlfn.IFNA(VLOOKUP(B33,'[2]other funds ftr 2021 for 2122'!$A:$I,9,FALSE),0),1) -> 0.85 | L33: 54593 | M33: =1+IF(ISNA(VLOOKUP(B33,'[2]Rural and Low Income 2122'!$A:$B,2,FALSE)),0,'2021-22 Final'!$M$17) -> 1.1 | N33: 60052 | Q33: =ROUND(IF(P33>0,-(0.9-P33)*N33,0),0) -> 0 | R33: 60052 | S33: 51115 | T33: 8937 | U33: Y | W33: 1500 | X33: 61552
A34: 16 | B34: 21302 | C34: CHEHALIS | D34: =IFERROR(VLOOKUP(B34,'[2]Enrollment 2122'!$A:$D,4,0),0) -> 34 | E34: 15998 | F34: =IFERROR(VLOOKUP(B34,'[2]Enrollment 2122'!$A:$F,6,0),0) -> 14 | G34: 1647 | H34: =IFERROR(VLOOKUP(B34,'[2]Enrollment 2122'!$A:$E,5,FALSE),0) -> 14 | I34: 6587 | J34: 24232 | K34: =IF(D34>$D$17,_xlfn.IFNA(VLOOKUP(B34,'[2]other funds ftr 2021 for 2122'!$A:$I,9,FALSE),0),1) -> 0.85 | L34: 20597 | M34: =1+IF(ISNA(VLOOKUP(B34,'[2]Rural and Low Income 2122'!$A:$B,2,FALSE)),0,'2021-22 Final'!$M$17) -> 1 | N34: 20597 | Q34: =ROUND(IF(P34>0,-(0.9-P34)*N34,0),0) -> 0 | R34: 20597 | S34: 17532 | T34: 3065 | U34: Y | V34: Y | W34: 1500 | X34: 22097
A35: 17 | B35: 27901 | C35: CHIEF LESCHI TRIBAL | D35: =IFERROR(VLOOKUP(B35,'[2]Enrollment 2122'!$A:$D,4,0),0) -> 12 | E35: 5646 | F35: =IFERROR(VLOOKUP(B35,'[2]Enrollment 2122'!$A:$F,6,0),0) -> 0 | G35: 0 | H35: =IFERROR(VLOOKUP(B35,'[2]Enrollment 2122'!$A:$E,5,FALSE),0) -> 2 | I35: 941 | J35: 6587 | K35: =IF(D35>$D$17,_xlfn.IFNA(VLOOKUP(B35,'[2]other funds ftr 2021 for 2122'!$A:$I,9,FALSE),0),1) -> 0 | L35: 6587 | M35: =1+IF(ISNA(VLOOKUP(B35,'[2]Rural and Low Income 2122'!$A:$B,2,FALSE)),0,'2021-22 Final'!$M$17) -> 1 | N35: 6587 | Q35: 0 | R35: 6587 | S35: 5607 | T35: 980 | U35: Y | W35: 1500 | X35: 8087
A36: 18 | B36: 36250 | C36: COLLEGE PLACE | D36: =IFERROR(VLOOKUP(B36,'[2]Enrollment 2122'!$A:$D,4,0),0) -> 97 | E36: 45641 | F36: =IFERROR(VLOOKUP(B36,'[2]Enrollment 2122'!$A:$F,6,0),0) -> 27 | G36: 3176 | H36: =IFERROR(VLOOKUP(B36,'[2]Enrollment 2122'!$A:$E,5,FALSE),0) -> 25 | I36: 11763 | J36: 60580 | K36: =IF(D36>$D$17,_xlfn.IFNA(VLOOKUP(B36,'[2]other funds ftr 2021 for 2122'!$A:$I,9,FALSE),0),1) -> 0.95 | L36: 57551 | M36: =1+IF(ISNA(VLOOKUP(B36,'[2]Rural and Low Income 2122'!$A:$B,2,FALSE)),0,'2021-22 Final'!$M$17) -> 1 | N36: 57551 | Q36: =ROUND(IF(P36>0,-(0.9-P36)*N36,0),0) -> 0 | R36: 57551 | S36: 48985 | T36: 8566 | U36: Y | V36: Y | W36: 1500 | X36: 59051
A37: 19 | B37: 36400 | C37: COLUMBIA | D37: =IFERROR(VLOOKUP(B37,'[2]Enrollment 2122'!$A:$D,4,0),0) -> 60 | E37: 28232 | F37: =IFERROR(VLOOKUP(B37,'[2]Enrollment 2122'!$A:$F,6,0),0) -> 31 | G37: 3647 | H37: =IFERROR(VLOOKUP(B37,'[2]Enrollment 2122'!$A:$E,5,FALSE),0) -> 9 | I37: 4235 | J37: 36114 | K37: =IF(D37>$D$17,_xlfn.IFNA(VLOOKUP(B37,'[2]other funds ftr 2021 for 2122'!$A:$I,9,FALSE),0),1) -> 0.95 | L37: 34308 | M37: =1+IF(ISNA(VLOOKUP(B37,'[2]Rural and Low Income 2122'!$A:$B,2,FALSE)),0,'2021-22 Final'!$M$17) -> 1.1 | N37: 37739 | Q37: 0 | R37: 37739 | S37: 25396 | T37: 12343 | U37: Y | W37: 1500 | X37: 39239
A38: 20 | B38: 29317 | C38: CONWAY | D38: =IFERROR(VLOOKUP(B38,'[2]Enrollment 2122'!$A:$D,4,0),0) -> 31 | E38: 14586 | F38: =IFERROR(VLOOKUP(B38,'[2]Enrollment 2122'!$A:$F,6,0),0) -> 8 | G38: 941 | H38: =IFERROR(VLOOKUP(B38,'[2]Enrollment 2122'!$A:$E,5,FALSE),0) -> 13 | I38: 6117 | J38: 21644 | K38: =IF(D38>$D$17,_xlfn.IFNA(VLOOKUP(B38,'[2]other funds ftr 2021 for 2122'!$A:$I,9,FALSE),0),1) -> 1.15 | L38: 24891 | M38: =1+IF(ISNA(VLOOKUP(B38,'[2]Rural and Low Income 2122'!$A:$B,2,FALSE)),0,'2021-22 Final'!$M$17) -> 1 | N38: 24891 | Q38: 0 | R38: 24891 | S38: 23304 | T38: 1587 | U38: Y | W38: 1500 | X38: 26391
A39: 21 | B39: 15204 | C39: COUPEVILLE | D39: =IFERROR(VLOOKUP(B39,'[2]Enrollment 2122'!$A:$D,4,0),0) -> 15 | E39: 7058 | F39: =IFERROR(VLOOKUP(B39,'[2]Enrollment 2122'!$A:$F,6,0),0) -> 3 | G39: 353 | H39: =IFERROR(VLOOKUP(B39,'[2]Enrollment 2122'!$A:$E,5,FALSE),0) -> 2 | I39: 941 | J39: 8352 | K39: =IF(D39>$D$17,_xlfn.IFNA(VLOOKUP(B39,'[2]other funds ftr 2021 for 2122'!$A:$I,9,FALSE),0),1) -> 0.85 | L39: 7099 | M39: =1+IF(ISNA(VLOOKUP(B39,'[2]Rural and Low Income 2122'!$A:$B,2,FALSE)),0,'2021-22 Final'!$M$17) -> 1 | N39: 7099 | Q39: 0 | R39: 7099 | S39: 5361 | T39: 1738 | U39: Y | W39: 1500 | X39: 8599
A40: 22 | B40: 39090 | C40: EAST VALLEY | D40: =IFERROR(VLOOKUP(B40,'[2]Enrollment 2122'!$A:$D,4,0),0) -> 246 | E40: 115750 | F40: =IFERROR(VLOOKUP(B40,'[2]Enrollment 2122'!$A:$F,6,0),0) -> 95 | G40: 11175 | H40: =IFERROR(VLOOKUP(B40,'[2]Enrollment 2122'!$A:$E,5,FALSE),0) -> 113 | I40: 53170 | J40: 180095 | K40: =IF(D40>$D$17,_xlfn.IFNA(VLOOKUP(B40,'[2]other funds ftr 2021 for 2122'!$A:$I,9,FALSE),0),1) -> 0 | L40: 180095 | M40: =1+IF(ISNA(VLOOKUP(B40,'[2]Rural and Low Income 2122'!$A:$B,2,FALSE)),0,'2021-22 Final'!$M$17) -> 1 | N40: 0 | Q40: 0 | R40: 0 | S40: 0 | T40: 0 | U40: N | W40: 0 | X40: 0
A41: 23 | B41: 09206 | C41: EASTMONT | D41: =IFERROR(VLOOKUP(B41,'[2]Enrollment 2122'!$A:$D,4,0),0) -> 911 | E41: 428653 | F41: =IFERROR(VLOOKUP(B41,'[2]Enrollment 2122'!$A:$F,6,0),0) -> 262 | G41: 30820 | H41: =IFERROR(VLOOKUP(B41,'[2]Enrollment 2122'!$A:$E,5,FALSE),0) -> 241 | I41: 113398 | J41: 572871 | K41: =IF(D41>$D$17,_xlfn.IFNA(VLOOKUP(B41,'[2]other funds ftr 2021 for 2122'!$A:$I,9,FALSE),0),1) -> 1.05 | L41: 601515 | M41: =1+IF(ISNA(VLOOKUP(B41,'[2]Rural and Low Income 2122'!$A:$B,2,FALSE)),0,'2021-22 Final'!$M$17) -> 1 | N41: 601515 | Q41: 0 | R41: 601515 | S41: 511986 | T41: 89529 | U41: Y | W41: 4000 | X41: 605515
A42: 24 | B42: 31015 | C42: EDMONDS | D42: =IFERROR(VLOOKUP(B42,'[2]Enrollment 2122'!$A:$D,4,0),0) -> 19 | E42: 8940 | F42: =IFERROR(VLOOKUP(B42,'[2]Enrollment 2122'!$A:$F,6,0),0) -> 1 | G42: 118 | H42: =IFERROR(VLOOKUP(B42,'[2]Enrollment 2122'!$A:$E,5,FALSE),0) -> 5 | I42: 2353 | J42: 11411 | K42: =IF(D42>$D$17,_xlfn.IFNA(VLOOKUP(B42,'[2]other funds ftr 2021 for 2122'!$A:$I,9,FALSE),0),1) -> 0 | L42: 11411 | M42: =1+IF(ISNA(VLOOKUP(B42,'[2]Rural and Low Income 2122'!$A:$B,2,FALSE)),0,'2021-22 Final'!$M$17) -> 1 | N42: 0 | Q42: 0 | R42: 0 | S42: 0 | T42: 0 | U42: N | W42: 0 | X42: 0
A43: 25 | B43: 19401 | C43: ELLENSBURG | D43: =IFERROR(VLOOKUP(B43,'[2]Enrollment 2122'!$A:$D,4,0),0) -> 56 | E43: 26350 | F43: =IFERROR(VLOOKUP(B43,'[2]Enrollment 2122'!$A:$F,6,0),0) -> 20 | G43: 2353 | H43: =IFERROR(VLOOKUP(B43,'[2]Enrollment 2122'!$A:$E,5,FALSE),0) -> 15 | I43: 7058 | J43: 35761 | K43: =IF(D43>$D$17,_xlfn.IFNA(VLOOKUP(B43,'[2]other funds ftr 2021 for 2122'!$A:$I,9,FALSE),0),1) -> 0.85 | L43: 30397 | M43: =1+IF(ISNA(VLOOKUP(B43,'[2]Rural and Low Income 2122'!$A:$B,2,FALSE)),0,'2021-22 Final'!$M$17) -> 1 | N43: 30397 | Q43: 0 | R43: 30397 | S43: 21956 | T43: 8441 | U43: Y | W43: 1500 | X43: 31897
A44: 26 | B44: 14068 | C44: ELMA | D44: =IFERROR(VLOOKUP(B44,'[2]Enrollment 2122'!$A:$D,4,0),0) -> 50 | E44: 23527 | F44: =IFERROR(VLOOKUP(B44,'[2]Enrollment 2122'!$A:$F,6,0),0) -> 14 | G44: 1647 | H44: =IFERROR(VLOOKUP(B44,'[2]Enrollment 2122'!$A:$E,5,FALSE),0) -> 3 | I44: 1412 | J44: 26586 | K44: =IF(D44>$D$17,_xlfn.IFNA(VLOOKUP(B44,'[2]other funds ftr 2021 for 2122'!$A:$I,9,FALSE),0),1) -> 0 | L44: 26586 | M44: =1+IF(ISNA(VLOOKUP(B44,'[2]Rural and Low Income 2122'!$A:$B,2,FALSE)),0,'2021-22 Final'!$M$17) -> 1 | N44: 0 | Q44: 0 | R44: 0 | S44: 0 | T44: 0 | U44: N | W44: 0 | X44: 0
A45: 27 | B45: 04127 | C45: ENTIAT | D45: =IFERROR(VLOOKUP(B45,'[2]Enrollment 2122'!$A:$D,4,0),0) -> 35 | E45: 16469 | F45: =IFERROR(VLOOKUP(B45,'[2]Enrollment 2122'!$A:$F,6,0),0) -> 3 | G45: 353 | H45: =IFERROR(VLOOKUP(B45,'[2]Enrollment 2122'!$A:$E,5,FALSE),0) -> 12 | I45: 5646 | J45: 22468 | K45: =IF(D45>$D$17,_xlfn.IFNA(VLOOKUP(B45,'[2]other funds ftr 2021 for 2122'!$A:$I,9,FALSE),0),1) -> 0 | L45: 22468 | M45: =1+IF(ISNA(VLOOKUP(B45,'[2]Rural and Low Income 2122'!$A:$B,2,FALSE)),0,'2021-22 Final'!$M$17) -> 1 | N45: 0 | Q45: 0 | R45: 0 | S45: 0 | T45: 0 | U45: N | W45: 0 | X45: 0
A46: 28 | B46: 13165 | C46: EPHRATA | D46: =IFERROR(VLOOKUP(B46,'[2]Enrollment 2122'!$A:$D,4,0),0) -> 229 | E46: 107751 | F46: =IFERROR(VLOOKUP(B46,'[2]Enrollment 2122'!$A:$F,6,0),0) -> 57 | G46: 6705 | H46: =IFERROR(VLOOKUP(B46,'[2]Enrollment 2122'!$A:$E,5,FALSE),0) -> 62 | I46: 29173 | J46: 143629 | K46: =IF(D46>$D$17,_xlfn.IFNA(VLOOKUP(B46,'[2]other funds ftr 2021 for 2122'!$A:$I,9,FALSE),0),1) -> 0.95 | L46: 136448 | M46: =1+IF(ISNA(VLOOKUP(B46,'[2]Rural and Low Income 2122'!$A:$B,2,FALSE)),0,'2021-22 Final'!$M$17) -> 1 | N46: 136448 | Q46: 0 | R46: 136448 | S46: 114523 | T46: 21925 | U46: Y | W46: 2500 | X46: 138948
A47: 29 | B47: 31002 | C47: EVERETT | D47: =IFERROR(VLOOKUP(B47,'[2]Enrollment 2122'!$A:$D,4,0),0) -> 45 | E47: 21174 | F47: =IFERROR(VLOOKUP(B47,'[2]Enrollment 2122'!$A:$F,6,0),0) -> 14 | G47: 1647 | H47: =IFERROR(VLOOKUP(B47,'[2]Enrollment 2122'!$A:$E,5,FALSE),0) -> 16 | I47: 7528 | J47: 30349 | K47: =IF(D47>$D$17,_xlfn.IFNA(VLOOKUP(B47,'[2]other funds ftr 2021 for 2122'!$A:$I,9,FALSE),0),1) -> 0 | L47: 30349 | M47: =1+IF(ISNA(VLOOKUP(B47,'[2]Rural and Low Income 2122'!$A:$B,2,FALSE)),0,'2021-22 Final'!$M$17) -> 1 | N47: 0 | Q47: 0 | R47: 0 | S47: 0 | T47: 0 | U47: N | W47: 0 | X47: 0
A48: 30 | B48: 06114 | C48: EVERGREEN | D48: =IFERROR(VLOOKUP(B48,'[2]Enrollment 2122'!$A:$D,4,0),0) -> 41 | E48: 19292 | F48: =IFERROR(VLOOKUP(B48,'[2]Enrollment 2122'!$A:$F,6,0),0) -> 12 | G48: 1412 | H48: =IFERROR(VLOOKUP(B48,'[2]Enrollment 2122'!$A:$E,5,FALSE),0) -> 6 | I48: 2823 | J48: 23527 | K48: =IF(D48>$D$17,_xlfn.IFNA(VLOOKUP(B48,'[2]other funds ftr 2021 for 2122'!$A:$I,9,FALSE),0),1) -> 0 | L48: 23527 | M48: =1+IF(ISNA(VLOOKUP(B48,'[2]Rural and Low Income 2122'!$A:$B,2,FALSE)),0,'2021-22 Final'!$M$17) -> 1 | N48: 0 | Q48: 0 | R48: 0 | S48: 0 | T48: 0 | U48: N | W48: 0 | X48: 0
A49: 31 | B49: 17210 | C49: FEDERAL WAY | D49: =IFERROR(VLOOKUP(B49,'[2]Enrollment 2122'!$A:$D,4,0),0) -> 78 | E49: 36701 | F49: =IFERROR(VLOOKUP(B49,'[2]Enrollment 2122'!$A:$F,6,0),0) -> 7 | G49: 823 | H49: =IFERROR(VLOOKUP(B49,'[2]Enrollment 2122'!$A:$E,5,FALSE),0) -> 31 | I49: 14586 | J49: 52110 | K49: =IF(D49>$D$17,_xlfn.IFNA(VLOOKUP(B49,'[2]other funds ftr 2021 for 2122'!$A:$I,9,FALSE),0),1) -> 0 | L49: 52110 | M49: =1+IF(ISNA(VLOOKUP(B49,'[2]Rural and Low Income 2122'!$A:$B,2,FALSE)),0,'2021-22 Final'!$M$17) -> 1 | N49: 0 | Q49: 0 | R49: 0 | S49: 0 | T49: 0 | U49: N | W49: 0 | X49: 0
A50: 32 | B50: 37502 | C50: FERNDALE | D50: =IFERROR(VLOOKUP(B50,'[2]Enrollment 2122'!$A:$D,4,0),0) -> 187 | E50: 87989 | F50: =IFERROR(VLOOKUP(B50,'[2]Enrollment 2122'!$A:$F,6,0),0) -> 32 | G50: 3764 | H50: =IFERROR(VLOOKUP(B50,'[2]Enrollment 2122'!$A:$E,5,FALSE),0) -> 39 | I50: 18351 | J50: 110104 | K50: =IF(D50>$D$17,_xlfn.IFNA(VLOOKUP(B50,'[2]other funds ftr 2021 for 2122'!$A:$I,9,FALSE),0),1) -> 0.95 | L50: 104599 | M50: =1+IF(ISNA(VLOOKUP(B50,'[2]Rural and Low Income 2122'!$A:$B,2,FALSE)),0,'2021-22 Final'!$M$17) -> 1 | N50: 104599 | Q50: 0 | R50: 104599 | S50: 88174 | T50: 16425 | U50: Y | W50: 2500 | X50: 107099
A51: 33 | B51: 03053 | C51: FINLEY | D51: =IFERROR(VLOOKUP(B51,'[2]Enrollment 2122'!$A:$D,4,0),0) -> 86 | E51: 40466 | F51: =IFERROR(VLOOKUP(B51,'[2]Enrollment 2122'!$A:$F,6,0),0) -> 23 | G51: 2706 | H51: =IFERROR(VLOOKUP(B51,'[2]Enrollment 2122'!$A:$E,5,FALSE),0) -> 20 | I51: 9411 | J51: 52583 | K51: =IF(D51>$D$17,_xlfn.IFNA(VLOOKUP(B51,'[2]other funds ftr 2021 for 2122'!$A:$I,9,FALSE),0),1) -> 0.95 | L51: 49954 | M51: =1+IF(ISNA(VLOOKUP(B51,'[2]Rural and Low Income 2122'!$A:$B,2,FALSE)),0,'2021-22 Final'!$M$17) -> 1 | N51: 49954 | Q51: 0 | R51: 49954 | S51: 36335 | T51: 13619 | U51: Y | W51: 1500 | X51: 51454
A52: 34 | B52: 27402 | C52: FRANKLIN PIERCE | D52: =IFERROR(VLOOKUP(B52,'[2]Enrollment 2122'!$A:$D,4,0),0) -> 12 | E52: 5646 | F52: =IFERROR(VLOOKUP(B52,'[2]Enrollment 2122'!$A:$F,6,0),0) -> 0 | G52: 0 | H52: =IFERROR(VLOOKUP(B52,'[2]Enrollment 2122'!$A:$E,5,FALSE),0) -> 3 | I52: 1412 | J52: 7058 | K52: =IF(D52>$D$17,_xlfn.IFNA(VLOOKUP(B52,'[2]other funds ftr 2021 for 2122'!$A:$I,9,FALSE),0),1) -> 0 | L52: 7058 | M52: =1+IF(ISNA(VLOOKUP(B52,'[2]Rural and Low Income 2122'!$A:$B,2,FALSE)),0,'2021-22 Final'!$M$17) -> 1 | N52: 0 | Q52: 0 | R52: 0 | S52: 0 | T52: 0 | U52: N | W52: 0 | X52: 0
A53: 35 | B53: 20404 | C53: GOLDENDALE | D53: =IFERROR(VLOOKUP(B53,'[2]Enrollment 2122'!$A:$D,4,0),0) -> 85 | E53: 39995 | F53: =IFERROR(VLOOKUP(B53,'[2]Enrollment 2122'!$A:$F,6,0),0) -> 16 | G53: 1882 | H53: =IFERROR(VLOOKUP(B53,'[2]Enrollment 2122'!$A:$E,5,FALSE),0) -> 20 | I53: 9411 | J53: 51288 | K53: =IF(D53>$D$17,_xlfn.IFNA(VLOOKUP(B53,'[2]other funds ftr 2021 for 2122'!$A:$I,9,FALSE),0),1) -> 0 | L53: 51288 | M53: =1+IF(ISNA(VLOOKUP(B53,'[2]Rural and Low Income 2122'!$A:$B,2,FALSE)),0,'2021-22 Final'!$M$17) -> 1.1 | N53: 56417 | Q53: 0 | R53: 56417 | S53: 34693 | T53: 21724 | U53: Y | W53: 1500 | X53: 57917
A54: 36 | B54: 13301 | C54: GRAND COULEE DAM | D54: =IFERROR(VLOOKUP(B54,'[2]Enrollment 2122'!$A:$D,4,0),0) -> 174 | E54: 81872 | F54: =IFERROR(VLOOKUP(B54,'[2]Enrollment 2122'!$A:$F,6,0),0) -> 51 | G54: 5999 | H54: =IFERROR(VLOOKUP(B54,'[2]Enrollment 2122'!$A:$E,5,FALSE),0) -> 43 | I54: 20233 | J54: 108104 | K54: =IF(D54>$D$17,_xlfn.IFNA(VLOOKUP(B54,'[2]other funds ftr 2021 for 2122'!$A:$I,9,FALSE),0),1) -> 1.05 | L54: 113509 | M54: =1+IF(ISNA(VLOOKUP(B54,'[2]Rural and Low Income 2122'!$A:$B,2,FALSE)),0,'2021-22 Final'!$M$17) -> 1.1 | N54: 0 | Q54: 0 | R54: 0 | S54: 0 | T54: 0 | U54: N | W54: 0 | X54: 0
A55: 37 | B55: 39200 | C55: GRANDVIEW | D55: =IFERROR(VLOOKUP(B55,'[2]Enrollment 2122'!$A:$D,4,0),0) -> 575 | E55: 270555 | F55: =IFERROR(VLOOKUP(B55,'[2]Enrollment 2122'!$A:$F,6,0),0) -> 155 | G55: 18233 | H55: =IFERROR(VLOOKUP(B55,'[2]Enrollment 2122'!$A:$E,5,FALSE),0) -> 182 | I55: 85637 | J55: 374425 | K55: =IF(D55>$D$17,_xlfn.IFNA(VLOOKUP(B55,'[2]other funds ftr 2021 for 2122'!$A:$I,9,FALSE),0),1) -> 1 | L55: 374425 | M55: =1+IF(ISNA(VLOOKUP(B55,'[2]Rural and Low Income 2122'!$A:$B,2,FALSE)),0,'2021-22 Final'!$M$17) -> 1.1 | N55: 411868 | Q55: 0 | R55: 411868 | S55: 350565 | T55: 61303 | U55: Y | V55: Y | W55: 4000 | X55: 415868
A56: 38 | B56: 39204 | C56: GRANGER | D56: =IFERROR(VLOOKUP(B56,'[2]Enrollment 2122'!$A:$D,4,0),0) -> 410 | E56: 192917 | F56: =IFERROR(VLOOKUP(B56,'[2]Enrollment 2122'!$A:$F,6,0),0) -> 131 | G56: 15410 | H56: =IFERROR(VLOOKUP(B56,'[2]Enrollment 2122'!$A:$E,5,FALSE),0) -> 87 | I56: 40936 | J56: 249263 | K56: =IF(D56>$D$17,_xlfn.IFNA(VLOOKUP(B56,'[2]other funds ftr 2021 for 2122'!$A:$I,9,FALSE),0),1) -> 1.05 | L56: 261726 | M56: =1+IF(ISNA(VLOOKUP(B56,'[2]Rural and Low Income 2122'!$A:$B,2,FALSE)),0,'2021-22 Final'!$M$17) -> 1.1 | N56: 287899 | Q56: 0 | R56: 287899 | S56: 245048 | T56: 42851 | U56: Y | V56: Y | W56: 4000 | X56: 291899
A57: 39 | B57: 39203 | C57: HIGHLAND | D57: =IFERROR(VLOOKUP(B57,'[2]Enrollment 2122'!$A:$D,4,0),0) -> 205 | E57: 96459 | F57: =IFERROR(VLOOKUP(B57,'[2]Enrollment 2122'!$A:$F,6,0),0) -> 45 | G57: 5293 | H57: =IFERROR(VLOOKUP(B57,'[2]Enrollment 2122'!$A:$E,5,FALSE),0) -> 39 | I57: 18351 | J57: 120103 | K57: =IF(D57>$D$17,_xlfn.IFNA(VLOOKUP(B57,'[2]other funds ftr 2021 for 2122'!$A:$I,9,FALSE),0),1) -> 1.05 | L57: 126108 | M57: =1+IF(ISNA(VLOOKUP(B57,'[2]Rural and Low Income 2122'!$A:$B,2,FALSE)),0,'2021-22 Final'!$M$17) -> 1 | N57: 126108 | Q57: 0 | R57: 126108 | S57: 107338 | T57: 18770 | U57: Y | W57: 2500 | X57: 128608
A58: 40 | B58: 17401 | C58: HIGHLINE | D58: =IFERROR(VLOOKUP(B58,'[2]Enrollment 2122'!$A:$D,4,0),0) -> 10 | E58: 4705 | F58: =IFERROR(VLOOKUP(B58,'[2]Enrollment 2122'!$A:$F,6,0),0) -> 2 | G58: 235 | H58: =IFERROR(VLOOKUP(B58,'[2]Enrollment 2122'!$A:$E,5,FALSE),0) -> 3 | I58: 1412 | J58: 6352 | K58: =IF(D58>$D$17,_xlfn.IFNA(VLOOKUP(B58,'[2]other funds ftr 2021 for 2122'!$A:$I,9,FALSE),0),1) -> 1 | L58: 6352 | M58: =1+IF(ISNA(VLOOKUP(B58,'[2]Rural and Low Income 2122'!$A:$B,2,FALSE)),0,'2021-22 Final'!$M$17) -> 1 | N58: 0 | Q58: 0 | R58: 0 | S58: 0 | T58: 0 | U58: N | W58: 0 | X58: 0
A59: 41 | B59: 23404 | C59: HOOD CANAL | D59: =IFERROR(VLOOKUP(B59,'[2]Enrollment 2122'!$A:$D,4,0),0) -> 48 | E59: 22585 | F59: =IFERROR(VLOOKUP(B59,'[2]Enrollment 2122'!$A:$F,6,0),0) -> 17 | G59: 2000 | H59: =IFERROR(VLOOKUP(B59,'[2]Enrollment 2122'!$A:$E,5,FALSE),0) -> 13 | I59: 6117 | J59: 30702 | K59: =IF(D59>$D$17,_xlfn.IFNA(VLOOKUP(B59,'[2]other funds ftr 2021 for 2122'!$A:$I,9,FALSE),0),1) -> 1 | L59: 30702 | M59: =1+IF(ISNA(VLOOKUP(B59,'[2]Rural and Low Income 2122'!$A:$B,2,FALSE)),0,'2021-22 Final'!$M$17) -> 1.1 | N59: 0 | Q59: 0 | R59: 0 | S59: 0 | T59: 0 | U59: N | W59: 0 | X59: 0
A60: 42 | B60: 14028 | C60: HOQUIAM | D60: =IFERROR(VLOOKUP(B60,'[2]Enrollment 2122'!$A:$D,4,0),0) -> 34 | E60: 15998 | F60: =IFERROR(VLOOKUP(B60,'[2]Enrollment 2122'!$A:$F,6,0),0) -> 15 | G60: 1764 | H60: =IFERROR(VLOOKUP(B60,'[2]Enrollment 2122'!$A:$E,5,FALSE),0) -> 12 | I60: 5646 | J60: 23408 | K60: =IF(D60>$D$17,_xlfn.IFNA(VLOOKUP(B60,'[2]other funds ftr 2021 for 2122'!$A:$I,9,FALSE),0),1) -> 0.85 | L60: 19897 | M60: =1+IF(ISNA(VLOOKUP(B60,'[2]Rural and Low Income 2122'!$A:$B,2,FALSE)),0,'2021-22 Final'!$M$17) -> 1.1 | N60: 0 | Q60: 0 | R60: 0 | S60: 13761 | T60: -13761 | U60: N | W60: 0 | X60: 0
A61: 43 | B61: 08458 | C61: KELSO | D61: =IFERROR(VLOOKUP(B61,'[2]Enrollment 2122'!$A:$D,4,0),0) -> 34 | E61: 15998 | F61: =IFERROR(VLOOKUP(B61,'[2]Enrollment 2122'!$A:$F,6,0),0) -> 7 | G61: 823 | H61: =IFERROR(VLOOKUP(B61,'[2]Enrollment 2122'!$A:$E,5,FALSE),0) -> 10 | I61: 4705 | J61: 21526 | K61: =IF(D61>$D$17,_xlfn.IFNA(VLOOKUP(B61,'[2]other funds ftr 2021 for 2122'!$A:$I,9,FALSE),0),1) -> 0 | L61: 21526 | M61: =1+IF(ISNA(VLOOKUP(B61,'[2]Rural and Low Income 2122'!$A:$B,2,FALSE)),0,'2021-22 Final'!$M$17) -> 1 | N61: 0 | Q61: 0 | R61: 0 | S61: 0 | T61: 0 | U61: N | W61: 0 | X61: 0
A62: 44 | B62: 03017 | C62: KENNEWICK | D62: =IFERROR(VLOOKUP(B62,'[2]Enrollment 2122'!$A:$D,4,0),0) -> 3008 | E62: 1415356 | F62: =IFERROR(VLOOKUP(B62,'[2]Enrollment 2122'!$A:$F,6,0),0) -> 959 | G62: 112810 | H62: =IFERROR(VLOOKUP(B62,'[2]Enrollment 2122'!$A:$E,5,FALSE),0) -> 1020 | I62: 479941 | J62: 2008107 | K62: =IF(D62>$D$17,_xlfn.IFNA(VLOOKUP(B62,'[2]other funds ftr 2021 for 2122'!$A:$I,9,FALSE),0),1) -> 1.05 | L62: 2108512 | M62: =1+IF(ISNA(VLOOKUP(B62,'[2]Rural and Low Income 2122'!$A:$B,2,FALSE)),0,'2021-22 Final'!$M$17) -> 1 | N62: 2108512 | Q62: 0 | R62: 2108512 | S62: 1794682 | T62: 313830 | U62: Y | W62: 4000 | X62: 2112512
A63: 45 | B63: 17415 | C63: KENT | D63: =IFERROR(VLOOKUP(B63,'[2]Enrollment 2122'!$A:$D,4,0),0) -> 50 | E63: 23527 | F63: =IFERROR(VLOOKUP(B63,'[2]Enrollment 2122'!$A:$F,6,0),0) -> 15 | G63: 1764 | H63: =IFERROR(VLOOKUP(B63,'[2]Enrollment 2122'!$A:$E,5,FALSE),0) -> 15 | I63: 7058 | J63: 32349 | K63: =IF(D63>$D$17,_xlfn.IFNA(VLOOKUP(B63,'[2]other funds ftr 2021 for 2122'!$A:$I,9,FALSE),0),1) -> 0 | L63: 32349 | M63: =1+IF(ISNA(VLOOKUP(B63,'[2]Rural and Low Income 2122'!$A:$B,2,FALSE)),0,'2021-22 Final'!$M$17) -> 1 | N63: 0 | Q63: 0 | R63: 0 | S63: 0 | T63: 0 | U63: N | W63: 0 | X63: 0
A64: 46 | B64: 03052 | C64: KIONA BENTON | D64: =IFERROR(VLOOKUP(B64,'[2]Enrollment 2122'!$A:$D,4,0),0) -> 372 | E64: 175037 | F64: =IFERROR(VLOOKUP(B64,'[2]Enrollment 2122'!$A:$F,6,0),0) -> 124 | G64: 14586 | H64: =IFERROR(VLOOKUP(B64,'[2]Enrollment 2122'!$A:$E,5,FALSE),0) -> 83 | I64: 39054 | J64: 228677 | K64: =IF(D64>$D$17,_xlfn.IFNA(VLOOKUP(B64,'[2]other funds ftr 2021 for 2122'!$A:$I,9,FALSE),0),1) -> 1.15 | L64: 262979 | M64: =1+IF(ISNA(VLOOKUP(B64,'[2]Rural and Low Income 2122'!$A:$B,2,FALSE)),0,'2021-22 Final'!$M$17) -> 1 | N64: 262979 | Q64: 0 | R64: 262979 | S64: 204373 | T64: 58606 | U64: Y | V64: Y | W64: 2500 | X64: 265479
A65: 47 | B65: 19403 | C65: KITTITAS | D65: =IFERROR(VLOOKUP(B65,'[2]Enrollment 2122'!$A:$D,4,0),0) -> 23 | E65: 10822 | F65: =IFERROR(VLOOKUP(B65,'[2]Enrollment 2122'!$A:$F,6,0),0) -> 8 | G65: 941 | H65: =IFERROR(VLOOKUP(B65,'[2]Enrollment 2122'!$A:$E,5,FALSE),0) -> 4 | I65: 1882 | J65: 13645 | K65: =IF(D65>$D$17,_xlfn.IFNA(VLOOKUP(B65,'[2]other funds ftr 2021 for 2122'!$A:$I,9,FALSE),0),1) -> 0 | L65: 13645 | M65: =1+IF(ISNA(VLOOKUP(B65,'[2]Rural and Low Income 2122'!$A:$B,2,FALSE)),0,'2021-22 Final'!$M$17) -> 1 | N65: 0 | Q65: 0 | R65: 0 | S65: 0 | T65: 0 | U65: N | W65: 0 | X65: 0
A66: 48 | B66: 29311 | C66: LA CONNER | D66: =IFERROR(VLOOKUP(B66,'[2]Enrollment 2122'!$A:$D,4,0),0) -> 178 | E66: 83754 | F66: =IFERROR(VLOOKUP(B66,'[2]Enrollment 2122'!$A:$F,6,0),0) -> 72 | G66: 8470 | H66: =IFERROR(VLOOKUP(B66,'[2]Enrollment 2122'!$A:$E,5,FALSE),0) -> 59 | I66: 27761 | J66: 119985 | K66: =IF(D66>$D$17,_xlfn.IFNA(VLOOKUP(B66,'[2]other funds ftr 2021 for 2122'!$A:$I,9,FALSE),0),1) -> 1.15 | L66: 137983 | M66: =1+IF(ISNA(VLOOKUP(B66,'[2]Rural and Low Income 2122'!$A:$B,2,FALSE)),0,'2021-22 Final'!$M$17) -> 1 | N66: 137983 | Q66: 0 | R66: 137983 | S66: 127923 | T66: 10060 | U66: Y | W66: 2500 | X66: 140483
A67: 49 | B67: 04129 | C67: LAKE CHELAN | D67: =IFERROR(VLOOKUP(B67,'[2]Enrollment 2122'!$A:$D,4,0),0) -> 223 | E67: 104928 | F67: =IFERROR(VLOOKUP(B67,'[2]Enrollment 2122'!$A:$F,6,0),0) -> 52 | G67: 6117 | H67: =IFERROR(VLOOKUP(B67,'[2]Enrollment 2122'!$A:$E,5,FALSE),0) -> 69 | I67: 32467 | J67: 143512 | K67: =IF(D67>$D$17,_xlfn.IFNA(VLOOKUP(B67,'[2]other funds ftr 2021 for 2122'!$A:$I,9,FALSE),0),1) -> 1.05 | L67: 150688 | M67: =1+IF(ISNA(VLOOKUP(B67,'[2]Rural and Low Income 2122'!$A:$B,2,FALSE)),0,'2021-22 Final'!$M$17) -> 1 | N67: 150688 | Q67: 0 | R67: 150688 | S67: 128259 | T67: 22429 | U67: Y | W67: 2500 | X67: 153188
A68: 50 | B68: 34307 | C68: LAKE QUINAULT | D68: =IFERROR(VLOOKUP(B68,'[2]Enrollment 2122'!$A:$D,4,0),0) -> 0 | E68: 0 | F68: =IFERROR(VLOOKUP(B68,'[2]Enrollment 2122'!$A:$F,6,0),0) -> 0 | G68: 0 | H68: =IFERROR(VLOOKUP(B68,'[2]Enrollment 2122'!$A:$E,5,FALSE),0) -> 0 | I68: 0 | J68: 0 | K68: =IF(D68>$D$17,_xlfn.IFNA(VLOOKUP(B68,'[2]other funds ftr 2021 for 2122'!$A:$I,9,FALSE),0),1) -> 1 | L68: 0 | M68: =1+IF(ISNA(VLOOKUP(B68,'[2]Rural and Low Income 2122'!$A:$B,2,FALSE)),0,'2021-22 Final'!$M$17) -> 1 | N68: 0 | Q68: 0 | R68: 0 | S68: 0 | T68: 0 | U68: N | W68: 0 | X68: 0
A69: 51 | B69: 01158 | C69: LIND | D69: =IFERROR(VLOOKUP(B69,'[2]Enrollment 2122'!$A:$D,4,0),0) -> 48 | E69: 22585 | F69: =IFERROR(VLOOKUP(B69,'[2]Enrollment 2122'!$A:$F,6,0),0) -> 15 | G69: 1764 | H69: =IFERROR(VLOOKUP(B69,'[2]Enrollment 2122'!$A:$E,5,FALSE),0) -> 11 | I69: 5176 | J69: 29525 | K69: =IF(D69>$D$17,_xlfn.IFNA(VLOOKUP(B69,'[2]other funds ftr 2021 for 2122'!$A:$I,9,FALSE),0),1) -> 1.15 | L69: 33954 | M69: =1+IF(ISNA(VLOOKUP(B69,'[2]Rural and Low Income 2122'!$A:$B,2,FALSE)),0,'2021-22 Final'!$M$17) -> 1 | N69: 33954 | Q69: 0 | R69: 33954 | S69: 31791 | T69: 2163 | U69: Y | W69: 1500 | X69: 35454
A70: 52 | B70: 08122 | C70: LONGVIEW | D70: =IFERROR(VLOOKUP(B70,'[2]Enrollment 2122'!$A:$D,4,0),0) -> 52 | E70: 24468 | F70: =IFERROR(VLOOKUP(B70,'[2]Enrollment 2122'!$A:$F,6,0),0) -> 13 | G70: 1529 | H70: =IFERROR(VLOOKUP(B70,'[2]Enrollment 2122'!$A:$E,5,FALSE),0) -> 9 | I70: 4235 | J70: 30232 | K70: =IF(D70>$D$17,_xlfn.IFNA(VLOOKUP(B70,'[2]other funds ftr 2021 for 2122'!$A:$I,9,FALSE),0),1) -> 0 | L70: 30232 | M70: =1+IF(ISNA(VLOOKUP(B70,'[2]Rural and Low Income 2122'!$A:$B,2,FALSE)),0,'2021-22 Final'!$M$17) -> 1 | N70: 0 | Q70: 0 | R70: 0 | S70: 0 | T70: 0 | U70: N | W70: 0 | X70: 0
A71: 53 | B71: 37903 | C71: LUMMI TRIBAL AGENCY | D71: =IFERROR(VLOOKUP(B71,'[2]Enrollment 2122'!$A:$D,4,0),0) -> 15 | E71: 7058 | F71: =IFERROR(VLOOKUP(B71,'[2]Enrollment 2122'!$A:$F,6,0),0) -> 8 | G71: 941 | H71: =IFERROR(VLOOKUP(B71,'[2]Enrollment 2122'!$A:$E,5,FALSE),0) -> 2 | I71: 941 | J71: 8940 | K71: =IF(D71>$D$17,_xlfn.IFNA(VLOOKUP(B71,'[2]other funds ftr 2021 for 2122'!$A:$I,9,FALSE),0),1) -> 0 | L71: 8940 | M71: =1+IF(ISNA(VLOOKUP(B71,'[2]Rural and Low Income 2122'!$A:$B,2,FALSE)),0,'2021-22 Final'!$M$17) -> 1 | N71: 8940 | Q71: 0 | R71: 8940 | S71: 7609 | T71: 1331 | U71: Y | W71: 1500 | X71: 10440
A72: 54 | B72: 20406 | C72: LYLE | D72: =IFERROR(VLOOKUP(B72,'[2]Enrollment 2122'!$A:$D,4,0),0) -> 42 | E72: 19762 | F72: =IFERROR(VLOOKUP(B72,'[2]Enrollment 2122'!$A:$F,6,0),0) -> 6 | G72: 706 | H72: =IFERROR(VLOOKUP(B72,'[2]Enrollment 2122'!$A:$E,5,FALSE),0) -> 10 | I72: 4705 | J72: 25173 | K72: =IF(D72>$D$17,_xlfn.IFNA(VLOOKUP(B72,'[2]other funds ftr 2021 for 2122'!$A:$I,9,FALSE),0),1) -> 1 | L72: 25173 | M72: =1+IF(ISNA(VLOOKUP(B72,'[2]Rural and Low Income 2122'!$A:$B,2,FALSE)),0,'2021-22 Final'!$M$17) -> 1 | N72: 0 | Q72: 0 | R72: 0 | S72: 0 | T72: 0 | U72: N | W72: 0 | X72: 0
A73: 55 | B73: 37504 | C73: LYNDEN | D73: =IFERROR(VLOOKUP(B73,'[2]Enrollment 2122'!$A:$D,4,0),0) -> 190 | E73: 89401 | F73: =IFERROR(VLOOKUP(B73,'[2]Enrollment 2122'!$A:$F,6,0),0) -> 26 | G73: 3058 | H73: =IFERROR(VLOOKUP(B73,'[2]Enrollment 2122'!$A:$E,5,FALSE),0) -> 43 | I73: 20233 | J73: 112692 | K73: =IF(D73>$D$17,_xlfn.IFNA(VLOOKUP(B73,'[2]other funds ftr 2021 for 2122'!$A:$I,9,FALSE),0),1) -> 1 | L73: 112692 | M73: =1+IF(ISNA(VLOOKUP(B73,'[2]Rural and Low Income 2122'!$A:$B,2,FALSE)),0,'2021-22 Final'!$M$17) -> 1 | N73: 112692 | Q73: 0 | R73: 112692 | S73: 95918 | T73: 16774 | U73: Y | W73: 2500 | X73: 115192
A74: 56 | B74: 39120 | C74: MABTON | D74: =IFERROR(VLOOKUP(B74,'[2]Enrollment 2122'!$A:$D,4,0),0) -> 364 | E74: 171273 | F74: =IFERROR(VLOOKUP(B74,'[2]Enrollment 2122'!$A:$F,6,0),0) -> 107 | G74: 12587 | H74: =IFERROR(VLOOKUP(B74,'[2]Enrollment 2122'!$A:$E,5,FALSE),0) -> 96 | I74: 45171 | J74: 229031 | K74: =IF(D74>$D$17,_xlfn.IFNA(VLOOKUP(B74,'[2]other funds ftr 2021 for 2122'!$A:$I,9,FALSE),0),1) -> 1.15 | L74: 263386 | M74: =1+IF(ISNA(VLOOKUP(B74,'[2]Rural and Low Income 2122'!$A:$B,2,FALSE)),0,'2021-22 Final'!$M$17) -> 1.1 | N74: 289725 | Q74: 0 | R74: 289725 | S74: 222916 | T74: 66809 | U74: Y | W74: 2500 | X74: 292225
A75: 57 | B75: 04019 | C75: MANSON | D75: =IFERROR(VLOOKUP(B75,'[2]Enrollment 2122'!$A:$D,4,0),0) -> 100 | E75: 47053 | F75: =IFERROR(VLOOKUP(B75,'[2]Enrollment 2122'!$A:$F,6,0),0) -> 9 | G75: 1059 | H75: =IFERROR(VLOOKUP(B75,'[2]Enrollment 2122'!$A:$E,5,FALSE),0) -> 31 | I75: 14586 | J75: 62698 | K75: =IF(D75>$D$17,_xlfn.IFNA(VLOOKUP(B75,'[2]other funds ftr 2021 for 2122'!$A:$I,9,FALSE),0),1) -> 1 | L75: 62698 | M75: =1+IF(ISNA(VLOOKUP(B75,'[2]Rural and Low Income 2122'!$A:$B,2,FALSE)),0,'2021-22 Final'!$M$17) -> 1 | N75: 62698 | Q75: 0 | R75: 62698 | S75: 53366 | T75: 9332 | U75: Y | W75: 2500 | X75: 65198
A76: 58 | B76: 31025 | C76: MARYSVILLE | D76: =IFERROR(VLOOKUP(B76,'[2]Enrollment 2122'!$A:$D,4,0),0) -> 247 | E76: 116221 | F76: =IFERROR(VLOOKUP(B76,'[2]Enrollment 2122'!$A:$F,6,0),0) -> 75 | G76: 8822 | H76: =IFERROR(VLOOKUP(B76,'[2]Enrollment 2122'!$A:$E,5,FALSE),0) -> 61 | I76: 28702 | J76: 153745 | K76: =IF(D76>$D$17,_xlfn.IFNA(VLOOKUP(B76,'[2]other funds ftr 2021 for 2122'!$A:$I,9,FALSE),0),1) -> 0.85 | L76: 130683 | M76: =1+IF(ISNA(VLOOKUP(B76,'[2]Rural and Low Income 2122'!$A:$B,2,FALSE)),0,'2021-22 Final'!$M$17) -> 1 | N76: 130683 | Q76: 0 | R76: 130683 | S76: 114381 | T76: 16302 | U76: Y | W76: 2500 | X76: 133183
A77: 59 | B77: 37505 | C77: MERIDIAN | D77: =IFERROR(VLOOKUP(B77,'[2]Enrollment 2122'!$A:$D,4,0),0) -> 48 | E77: 22585 | F77: =IFERROR(VLOOKUP(B77,'[2]Enrollment 2122'!$A:$F,6,0),0) -> 19 | G77: 2235 | H77: =IFERROR(VLOOKUP(B77,'[2]Enrollment 2122'!$A:$E,5,FALSE),0) -> 10 | I77: 4705 | J77: 29525 | K77: =IF(D77>$D$17,_xlfn.IFNA(VLOOKUP(B77,'[2]other funds ftr 2021 for 2122'!$A:$I,9,FALSE),0),1) -> 0 | L77: 29525 | M77: =1+IF(ISNA(VLOOKUP(B77,'[2]Rural and Low Income 2122'!$A:$B,2,FALSE)),0,'2021-22 Final'!$M$17) -> 1 | N77: 0 | Q77: 0 | R77: 0 | S77: 0 | T77: 0 | U77: N | W77: 0 | X77: 0
A78: 60 | B78: 31103 | C78: MONROE | D78: =IFERROR(VLOOKUP(B78,'[2]Enrollment 2122'!$A:$D,4,0),0) -> 10 | E78: 4705 | F78: =IFERROR(VLOOKUP(B78,'[2]Enrollment 2122'!$A:$F,6,0),0) -> 3 | G78: 353 | H78: =IFERROR(VLOOKUP(B78,'[2]Enrollment 2122'!$A:$E,5,FALSE),0) -> 0 | I78: 0 | J78: 5058 | K78: =IF(D78>$D$17,_xlfn.IFNA(VLOOKUP(B78,'[2]other funds ftr 2021 for 2122'!$A:$I,9,FALSE),0),1) -> 1 | L78: 5058 | M78: =1+IF(ISNA(VLOOKUP(B78,'[2]Rural and Low Income 2122'!$A:$B,2,FALSE)),0,'2021-22 Final'!$M$17) -> 1 | N78: 0 | Q78: 0 | R78: 0 | S78: 0 | T78: 0 | U78: N | W78: 0 | X78: 0
A79: 61 | B79: 13161 | C79: MOSES LAKE | D79: =IFERROR(VLOOKUP(B79,'[2]Enrollment 2122'!$A:$D,4,0),0) -> 497 | E79: 233854 | F79: =IFERROR(VLOOKUP(B79,'[2]Enrollment 2122'!$A:$F,6,0),0) -> 139 | G79: 16351 | H79: =IFERROR(VLOOKUP(B79,'[2]Enrollment 2122'!$A:$E,5,FALSE),0) -> 142 | I79: 66815 | J79: 317020 | K79: =IF(D79>$D$17,_xlfn.IFNA(VLOOKUP(B79,'[2]other funds ftr 2021 for 2122'!$A:$I,9,FALSE),0),1) -> 0.95 | L79: 301169 | M79: =1+IF(ISNA(VLOOKUP(B79,'[2]Rural and Low Income 2122'!$A:$B,2,FALSE)),0,'2021-22 Final'!$M$17) -> 1 | N79: 301169 | Q79: 0 | R79: 301169 | S79: 256343 | T79: 44826 | U79: Y | W79: 4000 | X79: 305169
A80: 62 | B80: 21206 | C80: MOSSYROCK | D80: =IFERROR(VLOOKUP(B80,'[2]Enrollment 2122'!$A:$D,4,0),0) -> 49 | E80: 23056 | F80: =IFERROR(VLOOKUP(B80,'[2]Enrollment 2122'!$A:$F,6,0),0) -> 9 | G80: 1059 | H80: =IFERROR(VLOOKUP(B80,'[2]Enrollment 2122'!$A:$E,5,FALSE),0) -> 21 | I80: 9881 | J80: 33996 | K80: =IF(D80>$D$17,_xlfn.IFNA(VLOOKUP(B80,'[2]other funds ftr 2021 for 2122'!$A:$I,9,FALSE),0),1) -> 0.95 | L80: 32296 | M80: =1+IF(ISNA(VLOOKUP(B80,'[2]Rural and Low Income 2122'!$A:$B,2,FALSE)),0,'2021-22 Final'!$M$17) -> 1 | N80: 32296 | Q80: 0 | R80: 32296 | S80: 25425 | T80: 6871 | U80: Y | W80: 1500 | X80: 33796
A81: 63 | B81: 29320 | C81: MOUNT VERNON | D81: =IFERROR(VLOOKUP(B81,'[2]Enrollment 2122'!$A:$D,4,0),0) -> 1586 | E81: 746261 | F81: =IFERROR(VLOOKUP(B81,'[2]Enrollment 2122'!$A:$F,6,0),0) -> 549 | G81: 64580 | H81: =IFERROR(VLOOKUP(B81,'[2]Enrollment 2122'!$A:$E,5,FALSE),0) -> 490 | I81: 230560 | J81: 1041401 | K81: =IF(D81>$D$17,_xlfn.IFNA(VLOOKUP(B81,'[2]other funds ftr 2021 for 2122'!$A:$I,9,FALSE),0),1) -> 1.15 | L81: 1197611 | M81: =1+IF(ISNA(VLOOKUP(B81,'[2]Rural and Low Income 2122'!$A:$B,2,FALSE)),0,'2021-22 Final'!$M$17) -> 1 | N81: 1197611 | Q81: 0 | R81: 1197611 | S81: 930719 | T81: 266892 | U81: Y | W81: 4000 | X81: 1201611
A82: 64 | B82: 39209 | C82: MT ADAMS | D82: =IFERROR(VLOOKUP(B82,'[2]Enrollment 2122'!$A:$D,4,0),0) -> 159 | E82: 74814 | F82: =IFERROR(VLOOKUP(B82,'[2]Enrollment 2122'!$A:$F,6,0),0) -> 34 | G82: 4000 | H82: =IFERROR(VLOOKUP(B82,'[2]Enrollment 2122'!$A:$E,5,FALSE),0) -> 33 | I82: 15528 | J82: 94342 | K82: =IF(D82>$D$17,_xlfn.IFNA(VLOOKUP(B82,'[2]other funds ftr 2021 for 2122'!$A:$I,9,FALSE),0),1) -> 0 | L82: 94342 | M82: =1+IF(ISNA(VLOOKUP(B82,'[2]Rural and Low Income 2122'!$A:$B,2,FALSE)),0,'2021-22 Final'!$M$17) -> 1.1 | N82: 103776 | Q82: 0 | R82: 103776 | S82: 0 | T82: 103776 | U82: Y | W82: 2500 | X82: 106276
A83: 65 | B83: 37507 | C83: MT BAKER | D83: =IFERROR(VLOOKUP(B83,'[2]Enrollment 2122'!$A:$D,4,0),0) -> 46 | E83: 21644 | F83: =IFERROR(VLOOKUP(B83,'[2]Enrollment 2122'!$A:$F,6,0),0) -> 3 | G83: 353 | H83: =IFERROR(VLOOKUP(B83,'[2]Enrollment 2122'!$A:$E,5,FALSE),0) -> 18 | I83: 8470 | J83: =+E83+G83+I83 -> 30467 | K83: =IF(D83>$D$17,_xlfn.IFNA(VLOOKUP(B83,'[2]other funds ftr 2021 for 2122'!$A:$I,9,FALSE),0),1) -> 0.85 | L83: =IF(K83=0,J83,ROUND(J83*K83,0)) -> 25897 | M83: =1+IF(ISNA(VLOOKUP(B83,'[2]Rural and Low Income 2122'!$A:$B,2,FALSE)),0,'2021-22 Final'!$M$17) -> 1 | N83: =IF(U83="y",ROUND(L83*M83,0),0) -> 25897 | Q83: 0 | R83: =N83+Q83 -> 25897 | S83: 14723 | T83: =R83-S83 -> 11174 | U83: Y | W83: 1500 | X83: 27397
A84: 66 | B84: 17903 | C84: MUCKLESHOOT TRIBAL SCHOOL | D84: =IFERROR(VLOOKUP(B84,'[2]Enrollment 2122'!$A:$D,4,0),0) -> 24 | E84: =IF(D84>=10,ROUND(D84*$F$3,0),0) -> 11293 | F84: =IFERROR(VLOOKUP(B84,'[2]Enrollment 2122'!$A:$F,6,0),0) -> 8 | G84: =IF(D84>=$D$17,ROUND(F84*$F$3*$F$17,0),0) -> 941 | H84: =IFERROR(VLOOKUP(B84,'[2]Enrollment 2122'!$A:$E,5,FALSE),0) -> 6 | I84: =IF(D84>=$D$17,ROUND(H84*$F$3*$H$17,0),0) -> 2823 | J84: 15057 | K84: =IF(D84>$D$17,_xlfn.IFNA(VLOOKUP(B84,'[2]other funds ftr 2021 for 2122'!$A:$I,9,FALSE),0),1) -> 0 | L84: 15057 | M84: =1+IF(ISNA(VLOOKUP(B84,'[2]Rural and Low Income 2122'!$A:$B,2,FALSE)),0,'2021-22 Final'!$M$17) -> 1 | N84: 15057 | Q84: 0 | R84: 15057 | S84: 8009 | T84: 7048 | U84: Y | W84: =IF(U84="Y",IF(D84<=99,1500,IF(AND(D84>=100,D84<=399),2500,4000)),0) -> 1500 | X84: =W84+R84 -> 16557
A85: 67 | B85: 31006 | C85: MUKILTEO | D85: =IFERROR(VLOOKUP(B85,'[2]Enrollment 2122'!$A:$D,4,0),0) -> 33 | E85: 15528 | F85: =IFERROR(VLOOKUP(B85,'[2]Enrollment 2122'!$A:$F,6,0),0) -> 15 | G85: 1764 | H85: =IFERROR(VLOOKUP(B85,'[2]Enrollment 2122'!$A:$E,5,FALSE),0) -> 8 | I85: 3764 | J85: 21056 | K85: =IF(D85>$D$17,_xlfn.IFNA(VLOOKUP(B85,'[2]other funds ftr 2021 for 2122'!$A:$I,9,FALSE),0),1) -> 0 | L85: 21056 | M85: =1+IF(ISNA(VLOOKUP(B85,'[2]Rural and Low Income 2122'!$A:$B,2,FALSE)),0,'2021-22 Final'!$M$17) -> 1 | N85: 0 | Q85: 0 | R85: 0 | S85: 0 | T85: 0 | U85: N | V85: Y | W85: 0 | X85: 0
A86: 68 | B86: 39003 | C86: NACHES VALLEY | D86: =IFERROR(VLOOKUP(B86,'[2]Enrollment 2122'!$A:$D,4,0),0) -> 128 | E86: 60228 | F86: =IFERROR(VLOOKUP(B86,'[2]Enrollment 2122'!$A:$F,6,0),0) -> 35 | G86: 4117 | H86: =IFERROR(VLOOKUP(B86,'[2]Enrollment 2122'!$A:$E,5,FALSE),0) -> 40 | I86: 18821 | J86: 83166 | K86: =IF(D86>$D$17,_xlfn.IFNA(VLOOKUP(B86,'[2]other funds ftr 2021 for 2122'!$A:$I,9,FALSE),0),1) -> 0 | L86: 83166 | M86: =1+IF(ISNA(VLOOKUP(B86,'[2]Rural and Low Income 2122'!$A:$B,2,FALSE)),0,'2021-22 Final'!$M$17) -> 1 | N86: 0 | Q86: 0 | R86: 0 | S86: 0 | T86: 0 | U86: N | V86: Y | W86: 0 | X86: 0
A87: 69 | B87: 25155 | C87: NASELLE-GRAYS RIVER | D87: =IFERROR(VLOOKUP(B87,'[2]Enrollment 2122'!$A:$D,4,0),0) -> 75 | E87: 35290 | F87: =IFERROR(VLOOKUP(B87,'[2]Enrollment 2122'!$A:$F,6,0),0) -> 18 | G87: 2117 | H87: =IFERROR(VLOOKUP(B87,'[2]Enrollment 2122'!$A:$E,5,FALSE),0) -> 12 | I87: 5646 | J87: 43053 | K87: =IF(D87>$D$17,_xlfn.IFNA(VLOOKUP(B87,'[2]other funds ftr 2021 for 2122'!$A:$I,9,FALSE),0),1) -> 1.15 | L87: 49511 | M87: =1+IF(ISNA(VLOOKUP(B87,'[2]Rural and Low Income 2122'!$A:$B,2,FALSE)),0,'2021-22 Final'!$M$17) -> 1 | N87: 49511 | Q87: 0 | R87: 49511 | S87: 46356 | T87: 3155 | U87: Y | W87: 1500 | X87: 51011
A88: 70 | B88: 24014 | C88: NESPELEM | D88: =IFERROR(VLOOKUP(B88,'[2]Enrollment 2122'!$A:$D,4,0),0) -> 44 | E88: 20703 | F88: =IFERROR(VLOOKUP(B88,'[2]Enrollment 2122'!$A:$F,6,0),0) -> 9 | G88: 1059 | H88: =IFERROR(VLOOKUP(B88,'[2]Enrollment 2122'!$A:$E,5,FALSE),0) -> 7 | I88: 3294 | J88: 25056 | K88: =IF(D88>$D$17,_xlfn.IFNA(VLOOKUP(B88,'[2]other funds ftr 2021 for 2122'!$A:$I,9,FALSE),0),1) -> 1 | L88: 25056 | M88: =1+IF(ISNA(VLOOKUP(B88,'[2]Rural and Low Income 2122'!$A:$B,2,FALSE)),0,'2021-22 Final'!$M$17) -> 1 | N88: 25056 | Q88: 0 | R88: 25056 | S88: 17402 | T88: 7654 | U88: Y | W88: 1500 | X88: 26556
A89: 71 | B89: 37506 | C89: NOOKSACK VALLEY | D89: =IFERROR(VLOOKUP(B89,'[2]Enrollment 2122'!$A:$D,4,0),0) -> 201 | E89: 94577 | F89: =IFERROR(VLOOKUP(B89,'[2]Enrollment 2122'!$A:$F,6,0),0) -> 27 | G89: 3176 | H89: =IFERROR(VLOOKUP(B89,'[2]Enrollment 2122'!$A:$E,5,FALSE),0) -> 29 | I89: 13645 | J89: 111398 | K89: =IF(D89>$D$17,_xlfn.IFNA(VLOOKUP(B89,'[2]other funds ftr 2021 for 2122'!$A:$I,9,FALSE),0),1) -> 1 | L89: 111398 | M89: =1+IF(ISNA(VLOOKUP(B89,'[2]Rural and Low Income 2122'!$A:$B,2,FALSE)),0,'2021-22 Final'!$M$17) -> 1 | N89: 111398 | Q89: 0 | R89: 111398 | S89: 94817 | T89: 16581 | U89: Y | W89: 2500 | X89: 113898
A90: 72 | B90: 14064 | C90: NORTH BEACH | D90: =IFERROR(VLOOKUP(B90,'[2]Enrollment 2122'!$A:$D,4,0),0) -> 26 | E90: 12234 | F90: =IFERROR(VLOOKUP(B90,'[2]Enrollment 2122'!$A:$F,6,0),0) -> 6 | G90: 706 | H90: =IFERROR(VLOOKUP(B90,'[2]Enrollment 2122'!$A:$E,5,FALSE),0) -> 7 | I90: 3294 | J90: 16234 | K90: =IF(D90>$D$17,_xlfn.IFNA(VLOOKUP(B90,'[2]other funds ftr 2021 for 2122'!$A:$I,9,FALSE),0),1) -> 0.85 | L90: 13799 | M90: =1+IF(ISNA(VLOOKUP(B90,'[2]Rural and Low Income 2122'!$A:$B,2,FALSE)),0,'2021-22 Final'!$M$17) -> 1 | N90: 13799 | Q90: 0 | R90: 13799 | S90: 7914 | T90: 5885 | U90: Y | W90: 1500 | X90: 15299
A91: 73 | B91: 11051 | C91: NORTH FRANKLIN | D91: =IFERROR(VLOOKUP(B91,'[2]Enrollment 2122'!$A:$D,4,0),0) -> 657 | E91: 309139 | F91: =IFERROR(VLOOKUP(B91,'[2]Enrollment 2122'!$A:$F,6,0),0) -> 231 | G91: 27173 | H91: =IFERROR(VLOOKUP(B91,'[2]Enrollment 2122'!$A:$E,5,FALSE),0) -> 251 | I91: 118103 | J91: 454415 | K91: =IF(D91>$D$17,_xlfn.IFNA(VLOOKUP(B91,'[2]other funds ftr 2021 for 2122'!$A:$I,9,FALSE),0),1) -> 1.15 | L91: 522577 | M91: =1+IF(ISNA(VLOOKUP(B91,'[2]Rural and Low Income 2122'!$A:$B,2,FALSE)),0,'2021-22 Final'!$M$17) -> 1.1 | N91: 574835 | Q91: 0 | R91: 574835 | S91: 489277 | T91: 85558 | U91: Y | W91: 4000 | X91: 578835
A92: 74 | B92: 18400 | C92: NORTH KITSAP | D92: =IFERROR(VLOOKUP(B92,'[2]Enrollment 2122'!$A:$D,4,0),0) -> 65 | E92: 30584 | F92: =IFERROR(VLOOKUP(B92,'[2]Enrollment 2122'!$A:$F,6,0),0) -> 28 | G92: 3294 | H92: =IFERROR(VLOOKUP(B92,'[2]Enrollment 2122'!$A:$E,5,FALSE),0) -> 12 | I92: 5646 | J92: 39524 | K92: =IF(D92>$D$17,_xlfn.IFNA(VLOOKUP(B92,'[2]other funds ftr 2021 for 2122'!$A:$I,9,FALSE),0),1) -> 0 | L92: 39524 | M92: =1+IF(ISNA(VLOOKUP(B92,'[2]Rural and Low Income 2122'!$A:$B,2,FALSE)),0,'2021-22 Final'!$M$17) -> 1 | N92: 0 | Q92: 0 | R92: 0 | S92: 0 | T92: 0 | U92: N | W92: 0 | X92: 0
A93: 75 | B93: 34003 | C93: NORTH THURSTON | D93: =IFERROR(VLOOKUP(B93,'[2]Enrollment 2122'!$A:$D,4,0),0) -> 39 | E93: 18351 | F93: =IFERROR(VLOOKUP(B93,'[2]Enrollment 2122'!$A:$F,6,0),0) -> 14 | G93: 1647 | H93: =IFERROR(VLOOKUP(B93,'[2]Enrollment 2122'!$A:$E,5,FALSE),0) -> 16 | I93: 7528 | J93: 27526 | K93: =IF(D93>$D$17,_xlfn.IFNA(VLOOKUP(B93,'[2]other funds ftr 2021 for 2122'!$A:$I,9,FALSE),0),1) -> 0 | L93: 27526 | M93: =1+IF(ISNA(VLOOKUP(B93,'[2]Rural and Low Income 2122'!$A:$B,2,FALSE)),0,'2021-22 Final'!$M$17) -> 1 | N93: 0 | Q93: 0 | R93: 0 | S93: 0 | T93: 0 | U93: N | W93: 0 | X93: 0
A94: 76 | B94: 15201 | C94: OAK HARBOR | D94: =IFERROR(VLOOKUP(B94,'[2]Enrollment 2122'!$A:$D,4,0),0) -> 23 | E94: 10822 | F94: =IFERROR(VLOOKUP(B94,'[2]Enrollment 2122'!$A:$F,6,0),0) -> 8 | G94: 941 | H94: =IFERROR(VLOOKUP(B94,'[2]Enrollment 2122'!$A:$E,5,FALSE),0) -> 12 | I94: 5646 | J94: 17409 | K94: =IF(D94>$D$17,_xlfn.IFNA(VLOOKUP(B94,'[2]other funds ftr 2021 for 2122'!$A:$I,9,FALSE),0),1) -> 0 | L94: 17409 | M94: =1+IF(ISNA(VLOOKUP(B94,'[2]Rural and Low Income 2122'!$A:$B,2,FALSE)),0,'2021-22 Final'!$M$17) -> 1 | N94: 0 | Q94: 0 | R94: 0 | S94: 0 | T94: 0 | U94: N | W94: 0 | X94: 0
A95: 77 | B95: 25101 | C95: OCEAN BEACH | D95: =IFERROR(VLOOKUP(B95,'[2]Enrollment 2122'!$A:$D,4,0),0) -> 56 | E95: 26350 | F95: =IFERROR(VLOOKUP(B95,'[2]Enrollment 2122'!$A:$F,6,0),0) -> 24 | G95: 2823 | H95: =IFERROR(VLOOKUP(B95,'[2]Enrollment 2122'!$A:$E,5,FALSE),0) -> 15 | I95: 7058 | J95: 36231 | K95: =IF(D95>$D$17,_xlfn.IFNA(VLOOKUP(B95,'[2]other funds ftr 2021 for 2122'!$A:$I,9,FALSE),0),1) -> 0.95 | L95: 34419 | M95: =1+IF(ISNA(VLOOKUP(B95,'[2]Rural and Low Income 2122'!$A:$B,2,FALSE)),0,'2021-22 Final'!$M$17) -> 1 | N95: 34419 | Q95: 0 | R95: 34419 | S95: 35143 | T95: -724 | U95: Y | W95: 1500 | X95: 35919
A96: 78 | B96: 14172 | C96: OCOSTA | D96: =IFERROR(VLOOKUP(B96,'[2]Enrollment 2122'!$A:$D,4,0),0) -> 56 | E96: 26350 | F96: =IFERROR(VLOOKUP(B96,'[2]Enrollment 2122'!$A:$F,6,0),0) -> 15 | G96: 1764 | H96: =IFERROR(VLOOKUP(B96,'[2]Enrollment 2122'!$A:$E,5,FALSE),0) -> 18 | I96: 8470 | J96: 36584 | K96: =IF(D96>$D$17,_xlfn.IFNA(VLOOKUP(B96,'[2]other funds ftr 2021 for 2122'!$A:$I,9,FALSE),0),1) -> 0.95 | L96: 34755 | M96: =1+IF(ISNA(VLOOKUP(B96,'[2]Rural and Low Income 2122'!$A:$B,2,FALSE)),0,'2021-22 Final'!$M$17) -> 1.1 | N96: 38231 | Q96: 0 | R96: 38231 | S96: 32540 | T96: 5691 | U96: Y | W96: 1500 | X96: 39731
A97: 79 | B97: 24105 | C97: OKANOGAN | D97: =IFERROR(VLOOKUP(B97,'[2]Enrollment 2122'!$A:$D,4,0),0) -> 83 | E97: 39054 | F97: =IFERROR(VLOOKUP(B97,'[2]Enrollment 2122'!$A:$F,6,0),0) -> 24 | G97: 2823 | H97: =IFERROR(VLOOKUP(B97,'[2]Enrollment 2122'!$A:$E,5,FALSE),0) -> 23 | I97: 10822 | J97: 52699 | K97: =IF(D97>$D$17,_xlfn.IFNA(VLOOKUP(B97,'[2]other funds ftr 2021 for 2122'!$A:$I,9,FALSE),0),1) -> 0 | L97: 52699 | M97: =1+IF(ISNA(VLOOKUP(B97,'[2]Rural and Low Income 2122'!$A:$B,2,FALSE)),0,'2021-22 Final'!$M$17) -> 1.1 | N97: 0 | Q97: 0 | R97: 0 | S97: 0 | T97: 0 | U97: N | W97: 0 | X97: 0
A98: 80 | B98: 34111 | C98: OLYMPIA | D98: =IFERROR(VLOOKUP(B98,'[2]Enrollment 2122'!$A:$D,4,0),0) -> 30 | E98: 14116 | F98: =IFERROR(VLOOKUP(B98,'[2]Enrollment 2122'!$A:$F,6,0),0) -> 5 | G98: 588 | H98: =IFERROR(VLOOKUP(B98,'[2]Enrollment 2122'!$A:$E,5,FALSE),0) -> 10 | I98: 4705 | J98: 19409 | K98: =IF(D98>$D$17,_xlfn.IFNA(VLOOKUP(B98,'[2]other funds ftr 2021 for 2122'!$A:$I,9,FALSE),0),1) -> 0.85 | L98: 16498 | M98: =1+IF(ISNA(VLOOKUP(B98,'[2]Rural and Low Income 2122'!$A:$B,2,FALSE)),0,'2021-22 Final'!$M$17) -> 1 | N98: 16498 | Q98: 0 | R98: 16498 | S98: 8681 | T98: 7817 | U98: Y | W98: 1500 | X98: 17998
A99: 81 | B99: 24019 | C99: OMAK | D99: =IFERROR(VLOOKUP(B99,'[2]Enrollment 2122'!$A:$D,4,0),0) -> 60 | E99: 28232 | F99: =IFERROR(VLOOKUP(B99,'[2]Enrollment 2122'!$A:$F,6,0),0) -> 24 | G99: 2823 | H99: =IFERROR(VLOOKUP(B99,'[2]Enrollment 2122'!$A:$E,5,FALSE),0) -> 15 | I99: 7058 | J99: 38113 | K99: =IF(D99>$D$17,_xlfn.IFNA(VLOOKUP(B99,'[2]other funds ftr 2021 for 2122'!$A:$I,9,FALSE),0),1) -> 0 | L99: 38113 | M99: =1+IF(ISNA(VLOOKUP(B99,'[2]Rural and Low Income 2122'!$A:$B,2,FALSE)),0,'2021-22 Final'!$M$17) -> 1.1 | N99: 0 | Q99: 0 | R99: 0 | S99: 0 | T99: 0 | U99: N | W99: 0 | X99: 0
A100: 82 | B100: 09013 | C100: ORONDO | D100: =IFERROR(VLOOKUP(B100,'[2]Enrollment 2122'!$A:$D,4,0),0) -> 89 | E100: 41877 | F100: =IFERROR(VLOOKUP(B100,'[2]Enrollment 2122'!$A:$F,6,0),0) -> 15 | G100: 1764 | H100: =IFERROR(VLOOKUP(B100,'[2]Enrollment 2122'!$A:$E,5,FALSE),0) -> 11 | I100: 5176 | J100: 48817 | K100: =IF(D100>$D$17,_xlfn.IFNA(VLOOKUP(B100,'[2]other funds ftr 2021 for 2122'!$A:$I,9,FALSE),0),1) -> 1.15 | L100: 56140 | M100: =1+IF(ISNA(VLOOKUP(B100,'[2]Rural and Low Income 2122'!$A:$B,2,FALSE)),0,'2021-22 Final'!$M$17) -> 1 | N100: 56140 | Q100: =ROUND(IF(P100>0,-(0.9-P100)*N100,0),0) -> 0 | R100: 56140 | S100: 52562 | T100: 3578 | U100: Y | W100: 1500 | X100: 57640
A101: 83 | B101: 24410 | C101: OROVILLE | D101: =IFERROR(VLOOKUP(B101,'[2]Enrollment 2122'!$A:$D,4,0),0) -> 79 | E101: 37172 | F101: =IFERROR(VLOOKUP(B101,'[2]Enrollment 2122'!$A:$F,6,0),0) -> 21 | G101: 2470 | H101: =IFERROR(VLOOKUP(B101,'[2]Enrollment 2122'!$A:$E,5,FALSE),0) -> 14 | I101: 6587 | J101: 46229 | K101: =IF(D101>$D$17,_xlfn.IFNA(VLOOKUP(B101,'[2]other funds ftr 2021 for 2122'!$A:$I,9,FALSE),0),1) -> 0 | L101: 46229 | M101: =1+IF(ISNA(VLOOKUP(B101,'[2]Rural and Low Income 2122'!$A:$B,2,FALSE)),0,'2021-22 Final'!$M$17) -> 1.1 | N101: 0 | Q101: 0 | R101: 0 | S101: 0 | T101: 0 | U101: N | W101: 0 | X101: 0
A102: 84 | B102: 01147 | C102: OTHELLO | D102: =IFERROR(VLOOKUP(B102,'[2]Enrollment 2122'!$A:$D,4,0),0) -> 1003 | E102: 471942 | F102: =IFERROR(VLOOKUP(B102,'[2]Enrollment 2122'!$A:$F,6,0),0) -> 252 | G102: 29643 | H102: =IFERROR(VLOOKUP(B102,'[2]Enrollment 2122'!$A:$E,5,FALSE),0) -> 271 | I102: 127514 | J102: 629099 | K102: =IF(D102>$D$17,_xlfn.IFNA(VLOOKUP(B102,'[2]other funds ftr 2021 for 2122'!$A:$I,9,FALSE),0),1) -> 1.05 | L102: 660554 | M102: =1+IF(ISNA(VLOOKUP(B102,'[2]Rural and Low Income 2122'!$A:$B,2,FALSE)),0,'2021-22 Final'!$M$17) -> 1.1 | N102: 726609 | Q102: 0 | R102: 726609 | S102: 618461 | T102: 108148 | U102: Y | W102: 4000 | X102: 730609
A103: 85 | B103: 11001 | C103: PASCO | D103: =IFERROR(VLOOKUP(B103,'[2]Enrollment 2122'!$A:$D,4,0),0) -> 1971 | E103: 927416 | F103: =IFERROR(VLOOKUP(B103,'[2]Enrollment 2122'!$A:$F,6,0),0) -> 510 | G103: 59993 | H103: =IFERROR(VLOOKUP(B103,'[2]Enrollment 2122'!$A:$E,5,FALSE),0) -> 499 | I103: 234795 | J103: 1222204 | K103: =IF(D103>$D$17,_xlfn.IFNA(VLOOKUP(B103,'[2]other funds ftr 2021 for 2122'!$A:$I,9,FALSE),0),1) -> 1 | L103: 1222204 | M103: =1+IF(ISNA(VLOOKUP(B103,'[2]Rural and Low Income 2122'!$A:$B,2,FALSE)),0,'2021-22 Final'!$M$17) -> 1 | N103: 1222204 | Q103: 0 | R103: 1222204 | S103: 1040290 | T103: 181914 | U103: Y | W103: 4000 | X103: 1226204
A104: 86 | B104: 24122 | C104: PATEROS | D104: =IFERROR(VLOOKUP(B104,'[2]Enrollment 2122'!$A:$D,4,0),0) -> 68 | E104: 31996 | F104: =IFERROR(VLOOKUP(B104,'[2]Enrollment 2122'!$A:$F,6,0),0) -> 11 | G104: 1294 | H104: =IFERROR(VLOOKUP(B104,'[2]Enrollment 2122'!$A:$E,5,FALSE),0) -> 23 | I104: 10822 | J104: 44112 | K104: =IF(D104>$D$17,_xlfn.IFNA(VLOOKUP(B104,'[2]other funds ftr 2021 for 2122'!$A:$I,9,FALSE),0),1) -> 1.05 | L104: 46318 | M104: =1+IF(ISNA(VLOOKUP(B104,'[2]Rural and Low Income 2122'!$A:$B,2,FALSE)),0,'2021-22 Final'!$M$17) -> 1 | N104: 46318 | Q104: 0 | R104: 46318 | S104: 43365 | T104: 2953 | U104: Y | W104: 1500 | X104: 47818
A105: 87 | B105: 03050 | C105: PATERSON | D105: =IFERROR(VLOOKUP(B105,'[2]Enrollment 2122'!$A:$D,4,0),0) -> 22 | E105: 10352 | F105: =IFERROR(VLOOKUP(B105,'[2]Enrollment 2122'!$A:$F,6,0),0) -> 5 | G105: 588 | H105: =IFERROR(VLOOKUP(B105,'[2]Enrollment 2122'!$A:$E,5,FALSE),0) -> 7 | I105: 3294 | J105: 14234 | K105: =IF(D105>$D$17,_xlfn.IFNA(VLOOKUP(B105,'[2]other funds ftr 2021 for 2122'!$A:$I,9,FALSE),0),1) -> 1.05 | L105: 14946 | M105: =1+IF(ISNA(VLOOKUP(B105,'[2]Rural and Low Income 2122'!$A:$B,2,FALSE)),0,'2021-22 Final'!$M$17) -> 1 | N105: 14946 | Q105: 0 | R105: 14946 | S105: 15325 | T105: -379 | U105: Y | W105: 1500 | X105: 16446
A106: 88 | B106: 36402 | C106: PRESCOTT | D106: =IFERROR(VLOOKUP(B106,'[2]Enrollment 2122'!$A:$D,4,0),0) -> 41 | E106: 19292 | F106: =IFERROR(VLOOKUP(B106,'[2]Enrollment 2122'!$A:$F,6,0),0) -> 9 | G106: 1059 | H106: =IFERROR(VLOOKUP(B106,'[2]Enrollment 2122'!$A:$E,5,FALSE),0) -> 4 | I106: 1882 | J106: 22233 | K106: =IF(D106>$D$17,_xlfn.IFNA(VLOOKUP(B106,'[2]other funds ftr 2021 for 2122'!$A:$I,9,FALSE),0),1) -> 0.95 | L106: 21121 | M106: =1+IF(ISNA(VLOOKUP(B106,'[2]Rural and Low Income 2122'!$A:$B,2,FALSE)),0,'2021-22 Final'!$M$17) -> 1 | N106: 21121 | Q106: 0 | R106: 21121 | S106: 19775 | T106: 1346 | U106: Y | W106: 1500 | X106: 22621
A107: 89 | B107: 03116 | C107: PROSSER | D107: =IFERROR(VLOOKUP(B107,'[2]Enrollment 2122'!$A:$D,4,0),0) -> 728 | E107: 342546 | F107: =IFERROR(VLOOKUP(B107,'[2]Enrollment 2122'!$A:$F,6,0),0) -> 262 | G107: 30820 | H107: =IFERROR(VLOOKUP(B107,'[2]Enrollment 2122'!$A:$E,5,FALSE),0) -> 209 | I107: 98341 | J107: 471707 | K107: =IF(D107>$D$17,_xlfn.IFNA(VLOOKUP(B107,'[2]other funds ftr 2021 for 2122'!$A:$I,9,FALSE),0),1) -> 1.15 | L107: 542463 | M107: =1+IF(ISNA(VLOOKUP(B107,'[2]Rural and Low Income 2122'!$A:$B,2,FALSE)),0,'2021-22 Final'!$M$17) -> 1 | N107: 542463 | Q107: 0 | R107: 542463 | S107: 461724 | T107: 80739 | U107: Y | W107: 4000 | X107: 546463
A108: 90 | B108: 27003 | C108: PUYALLUP | D108: =IFERROR(VLOOKUP(B108,'[2]Enrollment 2122'!$A:$D,4,0),0) -> 13 | E108: 6117 | F108: =IFERROR(VLOOKUP(B108,'[2]Enrollment 2122'!$A:$F,6,0),0) -> 5 | G108: 588 | H108: =IFERROR(VLOOKUP(B108,'[2]Enrollment 2122'!$A:$E,5,FALSE),0) -> 7 | I108: 3294 | J108: 9999 | K108: =IF(D108>$D$17,_xlfn.IFNA(VLOOKUP(B108,'[2]other funds ftr 2021 for 2122'!$A:$I,9,FALSE),0),1) -> 0 | L108: 9999 | M108: =1+IF(ISNA(VLOOKUP(B108,'[2]Rural and Low Income 2122'!$A:$B,2,FALSE)),0,'2021-22 Final'!$M$17) -> 1 | N108: 0 | Q108: 0 | R108: 0 | S108: 0 | T108: 0 | U108: N | W108: 0 | X108: 0
A109: 91 | B109: 05903 | C109: QUILEUTE TRIBAL | D109: =IFERROR(VLOOKUP(B109,'[2]Enrollment 2122'!$A:$D,4,0),0) -> 3 | E109: 0 | F109: =IFERROR(VLOOKUP(B109,'[2]Enrollment 2122'!$A:$F,6,0),0) -> 0 | G109: 0 | H109: =IFERROR(VLOOKUP(B109,'[2]Enrollment 2122'!$A:$E,5,FALSE),0) -> 0 | I109: 0 | J109: 0 | K109: =IF(D109>$D$17,_xlfn.IFNA(VLOOKUP(B109,'[2]other funds ftr 2021 for 2122'!$A:$I,9,FALSE),0),1) -> 1 | L109: 0 | M109: =1+IF(ISNA(VLOOKUP(B109,'[2]Rural and Low Income 2122'!$A:$B,2,FALSE)),0,'2021-22 Final'!$M$17) -> 1 | N109: 0 | Q109: 0 | R109: 0 | S109: 0 | T109: 0 | U109: N | W109: 0 | X109: 0
A110: 92 | B110: 05402 | C110: QUILLAYUTE VALLEY | D110: =IFERROR(VLOOKUP(B110,'[2]Enrollment 2122'!$A:$D,4,0),0) -> 86 | E110: 40466 | F110: =IFERROR(VLOOKUP(B110,'[2]Enrollment 2122'!$A:$F,6,0),0) -> 25 | G110: 2941 | H110: =IFERROR(VLOOKUP(B110,'[2]Enrollment 2122'!$A:$E,5,FALSE),0) -> 22 | I110: 10352 | J110: 53759 | K110: =IF(D110>$D$17,_xlfn.IFNA(VLOOKUP(B110,'[2]other funds ftr 2021 for 2122'!$A:$I,9,FALSE),0),1) -> 0.85 | L110: 45695 | M110: =1+IF(ISNA(VLOOKUP(B110,'[2]Rural and Low Income 2122'!$A:$B,2,FALSE)),0,'2021-22 Final'!$M$17) -> 1.1 | N110: 50265 | Q110: 0 | R110: 50265 | S110: 35948 | T110: 14317 | U110: Y | W110: 1500 | X110: 51765
A111: 93 | B111: 13144 | C111: QUINCY | D111: =IFERROR(VLOOKUP(B111,'[2]Enrollment 2122'!$A:$D,4,0),0) -> 512 | E111: 240912 | F111: =IFERROR(VLOOKUP(B111,'[2]Enrollment 2122'!$A:$F,6,0),0) -> 109 | G111: 12822 | H111: =IFERROR(VLOOKUP(B111,'[2]Enrollment 2122'!$A:$E,5,FALSE),0) -> 149 | I111: 70109 | J111: 323843 | K111: =IF(D111>$D$17,_xlfn.IFNA(VLOOKUP(B111,'[2]other funds ftr 2021 for 2122'!$A:$I,9,FALSE),0),1) -> 1 | L111: 323843 | M111: =1+IF(ISNA(VLOOKUP(B111,'[2]Rural and Low Income 2122'!$A:$B,2,FALSE)),0,'2021-22 Final'!$M$17) -> 1.1 | N111: 356227 | Q111: 0 | R111: 356227 | S111: 303206 | T111: 53021 | U111: Y | W111: 4000 | X111: 360227
A112: 94 | B112: 17403 | C112: RENTON | D112: =IFERROR(VLOOKUP(B112,'[2]Enrollment 2122'!$A:$D,4,0),0) -> 32 | E112: 15057 | F112: =IFERROR(VLOOKUP(B112,'[2]Enrollment 2122'!$A:$F,6,0),0) -> 12 | G112: 1412 | H112: =IFERROR(VLOOKUP(B112,'[2]Enrollment 2122'!$A:$E,5,FALSE),0) -> 9 | I112: 4235 | J112: 20704 | K112: =IF(D112>$D$17,_xlfn.IFNA(VLOOKUP(B112,'[2]other funds ftr 2021 for 2122'!$A:$I,9,FALSE),0),1) -> 0 | L112: 20704 | M112: =1+IF(ISNA(VLOOKUP(B112,'[2]Rural and Low Income 2122'!$A:$B,2,FALSE)),0,'2021-22 Final'!$M$17) -> 1 | N112: 0 | Q112: 0 | R112: 0 | S112: 0 | T112: 0 | U112: N | W112: 0 | X112: 0
A113: 95 | B113: 03400 | C113: RICHLAND | D113: =IFERROR(VLOOKUP(B113,'[2]Enrollment 2122'!$A:$D,4,0),0) -> 206 | E113: 96929 | F113: =IFERROR(VLOOKUP(B113,'[2]Enrollment 2122'!$A:$F,6,0),0) -> 64 | G113: 7528 | H113: =IFERROR(VLOOKUP(B113,'[2]Enrollment 2122'!$A:$E,5,FALSE),0) -> 73 | I113: 34349 | J113: 138806 | K113: =IF(D113>$D$17,_xlfn.IFNA(VLOOKUP(B113,'[2]other funds ftr 2021 for 2122'!$A:$I,9,FALSE),0),1) -> 0 | L113: 138806 | M113: =1+IF(ISNA(VLOOKUP(B113,'[2]Rural and Low Income 2122'!$A:$B,2,FALSE)),0,'2021-22 Final'!$M$17) -> 1 | N113: 138806 | Q113: 0 | R113: 138806 | S113: 0 | T113: 138806 | U113: Y | W113: 2500 | X113: 141306
A114: 96 | B114: 17407 | C114: RIVERVIEW | D114: =IFERROR(VLOOKUP(B114,'[2]Enrollment 2122'!$A:$D,4,0),0) -> 11 | E114: 5176 | F114: =IFERROR(VLOOKUP(B114,'[2]Enrollment 2122'!$A:$F,6,0),0) -> 3 | G114: 353 | H114: =IFERROR(VLOOKUP(B114,'[2]Enrollment 2122'!$A:$E,5,FALSE),0) -> 3 | I114: 1412 | J114: 6941 | K114: =IF(D114>$D$17,_xlfn.IFNA(VLOOKUP(B114,'[2]other funds ftr 2021 for 2122'!$A:$I,9,FALSE),0),1) -> 0 | L114: 6941 | M114: =1+IF(ISNA(VLOOKUP(B114,'[2]Rural and Low Income 2122'!$A:$B,2,FALSE)),0,'2021-22 Final'!$M$17) -> 1 | N114: 0 | Q114: 0 | R114: 0 | S114: 0 | T114: 0 | U114: N | W114: 0 | X114: 0
A115: 97 | B115: 34401 | C115: ROCHESTER | D115: =IFERROR(VLOOKUP(B115,'[2]Enrollment 2122'!$A:$D,4,0),0) -> 38 | E115: 17880 | F115: =IFERROR(VLOOKUP(B115,'[2]Enrollment 2122'!$A:$F,6,0),0) -> 13 | G115: 1529 | H115: =IFERROR(VLOOKUP(B115,'[2]Enrollment 2122'!$A:$E,5,FALSE),0) -> 9 | I115: 4235 | J115: 23644 | K115: =IF(D115>$D$17,_xlfn.IFNA(VLOOKUP(B115,'[2]other funds ftr 2021 for 2122'!$A:$I,9,FALSE),0),1) -> 0 | L115: 23644 | M115: =1+IF(ISNA(VLOOKUP(B115,'[2]Rural and Low Income 2122'!$A:$B,2,FALSE)),0,'2021-22 Final'!$M$17) -> 1 | N115: 23644 | Q115: 0 | R115: 23644 | S115: 0 | T115: 23644 | U115: Y | W115: 1500 | X115: 25144
A116: 98 | B116: 20403 | C116: ROOSEVELT | D116: =IFERROR(VLOOKUP(B116,'[2]Enrollment 2122'!$A:$D,4,0),0) -> 29 | E116: 13645 | F116: =IFERROR(VLOOKUP(B116,'[2]Enrollment 2122'!$A:$F,6,0),0) -> 1 | G116: 118 | H116: =IFERROR(VLOOKUP(B116,'[2]Enrollment 2122'!$A:$E,5,FALSE),0) -> 4 | I116: 1882 | J116: 15645 | K116: =IF(D116>$D$17,_xlfn.IFNA(VLOOKUP(B116,'[2]other funds ftr 2021 for 2122'!$A:$I,9,FALSE),0),1) -> 0 | L116: 15645 | M116: =1+IF(ISNA(VLOOKUP(B116,'[2]Rural and Low Income 2122'!$A:$B,2,FALSE)),0,'2021-22 Final'!$M$17) -> 1 | N116: 0 | Q116: 0 | R116: 0 | S116: 0 | T116: 0 | U116: N | W116: 0 | X116: 0
A117: 99 | B117: 13160 | C117: ROYAL CITY | D117: =IFERROR(VLOOKUP(B117,'[2]Enrollment 2122'!$A:$D,4,0),0) -> 258 | E117: 121397 | F117: =IFERROR(VLOOKUP(B117,'[2]Enrollment 2122'!$A:$F,6,0),0) -> 34 | G117: 4000 | H117: =IFERROR(VLOOKUP(B117,'[2]Enrollment 2122'!$A:$E,5,FALSE),0) -> 57 | I117: 26820 | J117: 152217 | K117: =IF(D117>$D$17,_xlfn.IFNA(VLOOKUP(B117,'[2]other funds ftr 2021 for 2122'!$A:$I,9,FALSE),0),1) -> 1 | L117: 152217 | M117: =1+IF(ISNA(VLOOKUP(B117,'[2]Rural and Low Income 2122'!$A:$B,2,FALSE)),0,'2021-22 Final'!$M$17) -> 1.1 | N117: 167439 | Q117: 0 | R117: 167439 | S117: 129560 | T117: 37879 | U117: Y | W117: 2500 | X117: 169939
A118: 100 | B118: 17001 | C118: SEATTLE | D118: =IFERROR(VLOOKUP(B118,'[2]Enrollment 2122'!$A:$D,4,0),0) -> 226 | E118: 106340 | F118: =IFERROR(VLOOKUP(B118,'[2]Enrollment 2122'!$A:$F,6,0),0) -> 66 | G118: 7764 | H118: =IFERROR(VLOOKUP(B118,'[2]Enrollment 2122'!$A:$E,5,FALSE),0) -> 90 | I118: 42348 | J118: 156452 | K118: =IF(D118>$D$17,_xlfn.IFNA(VLOOKUP(B118,'[2]other funds ftr 2021 for 2122'!$A:$I,9,FALSE),0),1) -> 0.85 | L118: 132984 | M118: =1+IF(ISNA(VLOOKUP(B118,'[2]Rural and Low Income 2122'!$A:$B,2,FALSE)),0,'2021-22 Final'!$M$17) -> 1 | N118: 132984 | Q118: 0 | R118: 132984 | S118: 113190 | T118: 19794 | U118: Y | W118: 2500 | X118: 135484
A119: 101 | B119: 29101 | C119: SEDRO WOOLLEY | D119: =IFERROR(VLOOKUP(B119,'[2]Enrollment 2122'!$A:$D,4,0),0) -> 207 | E119: 97400 | F119: =IFERROR(VLOOKUP(B119,'[2]Enrollment 2122'!$A:$F,6,0),0) -> 38 | G119: 4470 | H119: =IFERROR(VLOOKUP(B119,'[2]Enrollment 2122'!$A:$E,5,FALSE),0) -> 89 | I119: 41877 | J119: 143747 | K119: =IF(D119>$D$17,_xlfn.IFNA(VLOOKUP(B119,'[2]other funds ftr 2021 for 2122'!$A:$I,9,FALSE),0),1) -> 0.95 | L119: 136560 | M119: =1+IF(ISNA(VLOOKUP(B119,'[2]Rural and Low Income 2122'!$A:$B,2,FALSE)),0,'2021-22 Final'!$M$17) -> 1 | N119: 136560 | Q119: 0 | R119: 136560 | S119: 116234 | T119: 20326 | U119: Y | W119: 2500 | X119: 139060
A120: 102 | B120: 39119 | C120: SELAH | D120: =IFERROR(VLOOKUP(B120,'[2]Enrollment 2122'!$A:$D,4,0),0) -> 181 | E120: 85166 | F120: =IFERROR(VLOOKUP(B120,'[2]Enrollment 2122'!$A:$F,6,0),0) -> 61 | G120: 7176 | H120: =IFERROR(VLOOKUP(B120,'[2]Enrollment 2122'!$A:$E,5,FALSE),0) -> 66 | I120: 31055 | J120: 123397 | K120: =IF(D120>$D$17,_xlfn.IFNA(VLOOKUP(B120,'[2]other funds ftr 2021 for 2122'!$A:$I,9,FALSE),0),1) -> 0.95 | L120: 117227 | M120: =1+IF(ISNA(VLOOKUP(B120,'[2]Rural and Low Income 2122'!$A:$B,2,FALSE)),0,'2021-22 Final'!$M$17) -> 1 | N120: 117227 | Q120: 0 | R120: 117227 | S120: 99399 | T120: 17828 | U120: Y | W120: 2500 | X120: 119727
A121: 103 | B121: 23309 | C121: SHELTON | D121: =IFERROR(VLOOKUP(B121,'[2]Enrollment 2122'!$A:$D,4,0),0) -> 216 | E121: 101635 | F121: =IFERROR(VLOOKUP(B121,'[2]Enrollment 2122'!$A:$F,6,0),0) -> 49 | G121: 5764 | H121: =IFERROR(VLOOKUP(B121,'[2]Enrollment 2122'!$A:$E,5,FALSE),0) -> 77 | I121: 36231 | J121: 143630 | K121: =IF(D121>$D$17,_xlfn.IFNA(VLOOKUP(B121,'[2]other funds ftr 2021 for 2122'!$A:$I,9,FALSE),0),1) -> 0.85 | L121: 122086 | M121: =1+IF(ISNA(VLOOKUP(B121,'[2]Rural and Low Income 2122'!$A:$B,2,FALSE)),0,'2021-22 Final'!$M$17) -> 1.1 | N121: 134295 | Q121: 0 | R121: 134295 | S121: 74612 | T121: 59683 | U121: Y | W121: 2500 | X121: 136795
A122: 104 | B122: 31201 | C122: SNOHOMISH | D122: =IFERROR(VLOOKUP(B122,'[2]Enrollment 2122'!$A:$D,4,0),0) -> 90 | E122: 42348 | F122: =IFERROR(VLOOKUP(B122,'[2]Enrollment 2122'!$A:$F,6,0),0) -> 41 | G122: 4823 | H122: =IFERROR(VLOOKUP(B122,'[2]Enrollment 2122'!$A:$E,5,FALSE),0) -> 37 | I122: 17410 | J122: 64581 | K122: =IF(D122>$D$17,_xlfn.IFNA(VLOOKUP(B122,'[2]other funds ftr 2021 for 2122'!$A:$I,9,FALSE),0),1) -> 0.95 | L122: 61352 | M122: =1+IF(ISNA(VLOOKUP(B122,'[2]Rural and Low Income 2122'!$A:$B,2,FALSE)),0,'2021-22 Final'!$M$17) -> 1 | N122: 61352 | Q122: 0 | R122: 61352 | S122: 44135 | T122: 17217 | U122: Y | W122: 1500 | X122: 62852
A123: 105 | B123: 13156 | C123: SOAP LAKE | D123: =IFERROR(VLOOKUP(B123,'[2]Enrollment 2122'!$A:$D,4,0),0) -> 47 | E123: 22115 | F123: =IFERROR(VLOOKUP(B123,'[2]Enrollment 2122'!$A:$F,6,0),0) -> 12 | G123: 1412 | H123: =IFERROR(VLOOKUP(B123,'[2]Enrollment 2122'!$A:$E,5,FALSE),0) -> 13 | I123: 6117 | J123: 29644 | K123: =IF(D123>$D$17,_xlfn.IFNA(VLOOKUP(B123,'[2]other funds ftr 2021 for 2122'!$A:$I,9,FALSE),0),1) -> 0 | L123: 29644 | M123: =1+IF(ISNA(VLOOKUP(B123,'[2]Rural and Low Income 2122'!$A:$B,2,FALSE)),0,'2021-22 Final'!$M$17) -> 1 | N123: 0 | Q123: 0 | R123: 0 | S123: 0 | T123: 0 | U123: N | W123: 0 | X123: 0
A124: 106 | B124: 25118 | C124: SOUTH BEND | D124: =IFERROR(VLOOKUP(B124,'[2]Enrollment 2122'!$A:$D,4,0),0) -> 13 | E124: 6117 | F124: =IFERROR(VLOOKUP(B124,'[2]Enrollment 2122'!$A:$F,6,0),0) -> 3 | G124: 353 | H124: =IFERROR(VLOOKUP(B124,'[2]Enrollment 2122'!$A:$E,5,FALSE),0) -> 4 | I124: 1882 | J124: 8352 | K124: =IF(D124>$D$17,_xlfn.IFNA(VLOOKUP(B124,'[2]other funds ftr 2021 for 2122'!$A:$I,9,FALSE),0),1) -> 0 | L124: 8352 | M124: =1+IF(ISNA(VLOOKUP(B124,'[2]Rural and Low Income 2122'!$A:$B,2,FALSE)),0,'2021-22 Final'!$M$17) -> 1.1 | N124: 0 | Q124: 0 | R124: 0 | S124: 0 | T124: 0 | U124: N | W124: 0 | X124: 0
A125: 107 | B125: 32081 | C125: SPOKANE | D125: =IFERROR(VLOOKUP(B125,'[2]Enrollment 2122'!$A:$D,4,0),0) -> 86 | E125: 40466 | F125: =IFERROR(VLOOKUP(B125,'[2]Enrollment 2122'!$A:$F,6,0),0) -> 13 | G125: 1529 | H125: =IFERROR(VLOOKUP(B125,'[2]Enrollment 2122'!$A:$E,5,FALSE),0) -> 26 | I125: 12234 | J125: 54229 | K125: =IF(D125>$D$17,_xlfn.IFNA(VLOOKUP(B125,'[2]other funds ftr 2021 for 2122'!$A:$I,9,FALSE),0),1) -> 0 | L125: 54229 | M125: =1+IF(ISNA(VLOOKUP(B125,'[2]Rural and Low Income 2122'!$A:$B,2,FALSE)),0,'2021-22 Final'!$M$17) -> 1 | N125: 0 | Q125: 0 | R125: 0 | S125: 0 | T125: 0 | U125: N | W125: 0 | X125: 0
A126: 108 | B126: 31401 | C126: STANWOOD-CAMANO | D126: =IFERROR(VLOOKUP(B126,'[2]Enrollment 2122'!$A:$D,4,0),0) -> 22 | E126: 10352 | F126: =IFERROR(VLOOKUP(B126,'[2]Enrollment 2122'!$A:$F,6,0),0) -> 7 | G126: 823 | H126: =IFERROR(VLOOKUP(B126,'[2]Enrollment 2122'!$A:$E,5,FALSE),0) -> 6 | I126: 2823 | J126: 13998 | K126: =IF(D126>$D$17,_xlfn.IFNA(VLOOKUP(B126,'[2]other funds ftr 2021 for 2122'!$A:$I,9,FALSE),0),1) -> 0 | L126: 13998 | M126: =1+IF(ISNA(VLOOKUP(B126,'[2]Rural and Low Income 2122'!$A:$B,2,FALSE)),0,'2021-22 Final'!$M$17) -> 1 | N126: 0 | Q126: 0 | R126: 0 | S126: 0 | T126: 0 | U126: N | W126: 0 | X126: 0
A127: 109 | B127: 30303 | C127: STEVENSON-CARSON | D127: =IFERROR(VLOOKUP(B127,'[2]Enrollment 2122'!$A:$D,4,0),0) -> 28 | E127: 13175 | F127: =IFERROR(VLOOKUP(B127,'[2]Enrollment 2122'!$A:$F,6,0),0) -> 2 | G127: 235 | H127: =IFERROR(VLOOKUP(B127,'[2]Enrollment 2122'!$A:$E,5,FALSE),0) -> 6 | I127: 2823 | J127: 16233 | K127: =IF(D127>$D$17,_xlfn.IFNA(VLOOKUP(B127,'[2]other funds ftr 2021 for 2122'!$A:$I,9,FALSE),0),1) -> 0 | L127: 16233 | M127: =1+IF(ISNA(VLOOKUP(B127,'[2]Rural and Low Income 2122'!$A:$B,2,FALSE)),0,'2021-22 Final'!$M$17) -> 1 | N127: 0 | Q127: 0 | R127: 0 | S127: 15199 | T127: -15199 | U127: N | W127: 0 | X127: 0
A128: 110 | B128: 31311 | C128: SULTAN | D128: =IFERROR(VLOOKUP(B128,'[2]Enrollment 2122'!$A:$D,4,0),0) -> 21 | E128: 9881 | F128: =IFERROR(VLOOKUP(B128,'[2]Enrollment 2122'!$A:$F,6,0),0) -> 4 | G128: 471 | H128: =IFERROR(VLOOKUP(B128,'[2]Enrollment 2122'!$A:$E,5,FALSE),0) -> 4 | I128: 1882 | J128: 12234 | K128: =IF(D128>$D$17,_xlfn.IFNA(VLOOKUP(B128,'[2]other funds ftr 2021 for 2122'!$A:$I,9,FALSE),0),1) -> 0 | L128: 12234 | M128: =1+IF(ISNA(VLOOKUP(B128,'[2]Rural and Low Income 2122'!$A:$B,2,FALSE)),0,'2021-22 Final'!$M$17) -> 1 | N128: 0 | Q128: 0 | R128: 0 | S128: 0 | T128: 0 | U128: N | W128: 0 | X128: 0
A129: 111 | B129: 39201 | C129: SUNNYSIDE | D129: =IFERROR(VLOOKUP(B129,'[2]Enrollment 2122'!$A:$D,4,0),0) -> 1719 | E129: 808842 | F129: =IFERROR(VLOOKUP(B129,'[2]Enrollment 2122'!$A:$F,6,0),0) -> 445 | G129: 52347 | H129: =IFERROR(VLOOKUP(B129,'[2]Enrollment 2122'!$A:$E,5,FALSE),0) -> 542 | I129: 255028 | J129: 1116217 | K129: =IF(D129>$D$17,_xlfn.IFNA(VLOOKUP(B129,'[2]other funds ftr 2021 for 2122'!$A:$I,9,FALSE),0),1) -> 1.05 | L129: 1172028 | M129: =1+IF(ISNA(VLOOKUP(B129,'[2]Rural and Low Income 2122'!$A:$B,2,FALSE)),0,'2021-22 Final'!$M$17) -> 1.1 | N129: 1289231 | Q129: 0 | R129: 1289231 | S129: 982970 | T129: 306261 | U129: Y | W129: 4000 | X129: 1293231
A130: 112 | B130: 18902 | C130: SUQUAMISH TRIBAL EDUCATION DEPARTMENT | D130: =IFERROR(VLOOKUP(B130,'[2]Enrollment 2122'!$A:$D,4,0),0) -> 16 | E130: 7528 | F130: =IFERROR(VLOOKUP(B130,'[2]Enrollment 2122'!$A:$F,6,0),0) -> 5 | G130: 588 | H130: =IFERROR(VLOOKUP(B130,'[2]Enrollment 2122'!$A:$E,5,FALSE),0) -> 10 | I130: 4705 | J130: 12821 | K130: =IF(D130>$D$17,_xlfn.IFNA(VLOOKUP(B130,'[2]other funds ftr 2021 for 2122'!$A:$I,9,FALSE),0),1) -> 1.05 | L130: 13462 | M130: =1+IF(ISNA(VLOOKUP(B130,'[2]Rural and Low Income 2122'!$A:$B,2,FALSE)),0,'2021-22 Final'!$M$17) -> 1 | N130: 13462 | Q130: 0 | R130: 13462 | S130: 12551 | T130: 911 | U130: Y | W130: 1500 | X130: 14962
A131: 113 | B131: 27010 | C131: TACOMA | D131: =IFERROR(VLOOKUP(B131,'[2]Enrollment 2122'!$A:$D,4,0),0) -> 25 | E131: 11763 | F131: =IFERROR(VLOOKUP(B131,'[2]Enrollment 2122'!$A:$F,6,0),0) -> 3 | G131: 353 | H131: =IFERROR(VLOOKUP(B131,'[2]Enrollment 2122'!$A:$E,5,FALSE),0) -> 14 | I131: 6587 | J131: 18703 | K131: =IF(D131>$D$17,_xlfn.IFNA(VLOOKUP(B131,'[2]other funds ftr 2021 for 2122'!$A:$I,9,FALSE),0),1) -> 0 | L131: 18703 | M131: =1+IF(ISNA(VLOOKUP(B131,'[2]Rural and Low Income 2122'!$A:$B,2,FALSE)),0,'2021-22 Final'!$M$17) -> 1 | N131: 0 | Q131: 0 | R131: 0 | S131: 0 | T131: 0 | U131: N | W131: 0 | X131: 0
A132: 114 | B132: 14077 | C132: TAHOLA | D132: =IFERROR(VLOOKUP(B132,'[2]Enrollment 2122'!$A:$D,4,0),0) -> 61 | E132: 28702 | F132: =IFERROR(VLOOKUP(B132,'[2]Enrollment 2122'!$A:$F,6,0),0) -> 10 | G132: 1176 | H132: =IFERROR(VLOOKUP(B132,'[2]Enrollment 2122'!$A:$E,5,FALSE),0) -> 22 | I132: 10352 | J132: 40230 | K132: =IF(D132>$D$17,_xlfn.IFNA(VLOOKUP(B132,'[2]other funds ftr 2021 for 2122'!$A:$I,9,FALSE),0),1) -> 0 | L132: 40230 | M132: =1+IF(ISNA(VLOOKUP(B132,'[2]Rural and Low Income 2122'!$A:$B,2,FALSE)),0,'2021-22 Final'!$M$17) -> 1 | N132: 0 | Q132: 0 | R132: 0 | S132: 0 | T132: 0 | U132: N | W132: 0 | X132: 0
A133: 115 | B133: 24404 | C133: TONASKET | D133: =IFERROR(VLOOKUP(B133,'[2]Enrollment 2122'!$A:$D,4,0),0) -> 357 | E133: 167979 | F133: =IFERROR(VLOOKUP(B133,'[2]Enrollment 2122'!$A:$F,6,0),0) -> 126 | G133: 14822 | H133: =IFERROR(VLOOKUP(B133,'[2]Enrollment 2122'!$A:$E,5,FALSE),0) -> 88 | I133: 41407 | J133: 224208 | K133: =IF(D133>$D$17,_xlfn.IFNA(VLOOKUP(B133,'[2]other funds ftr 2021 for 2122'!$A:$I,9,FALSE),0),1) -> 1.15 | L133: 257839 | M133: =1+IF(ISNA(VLOOKUP(B133,'[2]Rural and Low Income 2122'!$A:$B,2,FALSE)),0,'2021-22 Final'!$M$17) -> 1 | N133: 257839 | Q133: 0 | R133: 257839 | S133: 241409 | T133: 16430 | U133: Y | W133: 2500 | X133: 260339
A134: 116 | B134: 39202 | C134: TOPPENISH | D134: =IFERROR(VLOOKUP(B134,'[2]Enrollment 2122'!$A:$D,4,0),0) -> 992 | E134: 466766 | F134: =IFERROR(VLOOKUP(B134,'[2]Enrollment 2122'!$A:$F,6,0),0) -> 259 | G134: 30467 | H134: =IFERROR(VLOOKUP(B134,'[2]Enrollment 2122'!$A:$E,5,FALSE),0) -> 255 | I134: 119985 | J134: 617218 | K134: =IF(D134>$D$17,_xlfn.IFNA(VLOOKUP(B134,'[2]other funds ftr 2021 for 2122'!$A:$I,9,FALSE),0),1) -> 1.05 | L134: 648079 | M134: =1+IF(ISNA(VLOOKUP(B134,'[2]Rural and Low Income 2122'!$A:$B,2,FALSE)),0,'2021-22 Final'!$M$17) -> 1 | N134: 648079 | Q134: 0 | R134: 648079 | S134: 551620 | T134: 96459 | U134: Y | W134: 4000 | X134: 652079
A135: 117 | B135: 20400 | C135: TROUT LAKE | D135: =IFERROR(VLOOKUP(B135,'[2]Enrollment 2122'!$A:$D,4,0),0) -> 119 | E135: 55993 | F135: =IFERROR(VLOOKUP(B135,'[2]Enrollment 2122'!$A:$F,6,0),0) -> 13 | G135: 1529 | H135: =IFERROR(VLOOKUP(B135,'[2]Enrollment 2122'!$A:$E,5,FALSE),0) -> 42 | I135: 19762 | J135: 77284 | K135: =IF(D135>$D$17,_xlfn.IFNA(VLOOKUP(B135,'[2]other funds ftr 2021 for 2122'!$A:$I,9,FALSE),0),1) -> 0 | L135: 77284 | M135: =1+IF(ISNA(VLOOKUP(B135,'[2]Rural and Low Income 2122'!$A:$B,2,FALSE)),0,'2021-22 Final'!$M$17) -> 1 | N135: 0 | Q135: 0 | R135: 0 | S135: 0 | T135: 0 | U135: N | W135: 0 | X135: 0
A136: 118 | B136: 39002 | C136: UNION GAP | D136: =IFERROR(VLOOKUP(B136,'[2]Enrollment 2122'!$A:$D,4,0),0) -> 61 | E136: 28702 | F136: =IFERROR(VLOOKUP(B136,'[2]Enrollment 2122'!$A:$F,6,0),0) -> 14 | G136: 1647 | H136: =IFERROR(VLOOKUP(B136,'[2]Enrollment 2122'!$A:$E,5,FALSE),0) -> 7 | I136: 3294 | J136: 33643 | K136: =IF(D136>$D$17,_xlfn.IFNA(VLOOKUP(B136,'[2]other funds ftr 2021 for 2122'!$A:$I,9,FALSE),0),1) -> 1 | L136: 33643 | M136: =1+IF(ISNA(VLOOKUP(B136,'[2]Rural and Low Income 2122'!$A:$B,2,FALSE)),0,'2021-22 Final'!$M$17) -> 1 | N136: 33643 | Q136: 0 | R136: 33643 | S136: 27203 | T136: 6440 | U136: Y | W136: 1500 | X136: 35143
A137: 119 | B137: 06037 | C137: VANCOUVER | D137: =IFERROR(VLOOKUP(B137,'[2]Enrollment 2122'!$A:$D,4,0),0) -> 68 | E137: 31996 | F137: =IFERROR(VLOOKUP(B137,'[2]Enrollment 2122'!$A:$F,6,0),0) -> 26 | G137: 3058 | H137: =IFERROR(VLOOKUP(B137,'[2]Enrollment 2122'!$A:$E,5,FALSE),0) -> 24 | I137: 11293 | J137: 46347 | K137: =IF(D137>$D$17,_xlfn.IFNA(VLOOKUP(B137,'[2]other funds ftr 2021 for 2122'!$A:$I,9,FALSE),0),1) -> 0 | L137: 46347 | M137: =1+IF(ISNA(VLOOKUP(B137,'[2]Rural and Low Income 2122'!$A:$B,2,FALSE)),0,'2021-22 Final'!$M$17) -> 1 | N137: 0 | Q137: 0 | R137: 0 | S137: 0 | T137: 0 | U137: N | W137: 0 | X137: 0
A138: 120 | B138: 34901 | C138: WA HE LUT INDIAN TRIBAL SCHOOL | D138: =IFERROR(VLOOKUP(B138,'[2]Enrollment 2122'!$A:$D,4,0),0) -> 12 | E138: 5646 | F138: =IFERROR(VLOOKUP(B138,'[2]Enrollment 2122'!$A:$F,6,0),0) -> 2 | G138: 235 | H138: =IFERROR(VLOOKUP(B138,'[2]Enrollment 2122'!$A:$E,5,FALSE),0) -> 2 | I138: 941 | J138: 6822 | K138: =IF(D138>$D$17,_xlfn.IFNA(VLOOKUP(B138,'[2]other funds ftr 2021 for 2122'!$A:$I,9,FALSE),0),1) -> 0 | L138: 6822 | M138: =1+IF(ISNA(VLOOKUP(B138,'[2]Rural and Low Income 2122'!$A:$B,2,FALSE)),0,'2021-22 Final'!$M$17) -> 1 | N138: 6822 | Q138: 0 | R138: 6822 | S138: 5807 | T138: 1015 | U138: Y | W138: 1500 | X138: 8322
A139: 121 | B139: 13073 | C139: WAHLUKE | D139: =IFERROR(VLOOKUP(B139,'[2]Enrollment 2122'!$A:$D,4,0),0) -> 1655 | E139: 778728 | F139: =IFERROR(VLOOKUP(B139,'[2]Enrollment 2122'!$A:$F,6,0),0) -> 258 | G139: 30349 | H139: =IFERROR(VLOOKUP(B139,'[2]Enrollment 2122'!$A:$E,5,FALSE),0) -> 808 | I139: 380189 | J139: 1189266 | K139: =IF(D139>$D$17,_xlfn.IFNA(VLOOKUP(B139,'[2]other funds ftr 2021 for 2122'!$A:$I,9,FALSE),0),1) -> 1.15 | L139: 1367656 | M139: =1+IF(ISNA(VLOOKUP(B139,'[2]Rural and Low Income 2122'!$A:$B,2,FALSE)),0,'2021-22 Final'!$M$17) -> 1.1 | N139: 1504422 | Q139: 0 | R139: 1504422 | S139: 1192096 | T139: 312326 | U139: Y | W139: 4000 | X139: 1508422
A140: 122 | B140: 36140 | C140: WALLA WALLA | D140: =IFERROR(VLOOKUP(B140,'[2]Enrollment 2122'!$A:$D,4,0),0) -> 119 | E140: 55993 | F140: =IFERROR(VLOOKUP(B140,'[2]Enrollment 2122'!$A:$F,6,0),0) -> 39 | G140: 4588 | H140: =IFERROR(VLOOKUP(B140,'[2]Enrollment 2122'!$A:$E,5,FALSE),0) -> 43 | I140: 20233 | J140: 80814 | K140: =IF(D140>$D$17,_xlfn.IFNA(VLOOKUP(B140,'[2]other funds ftr 2021 for 2122'!$A:$I,9,FALSE),0),1) -> 0.85 | L140: 68692 | M140: =1+IF(ISNA(VLOOKUP(B140,'[2]Rural and Low Income 2122'!$A:$B,2,FALSE)),0,'2021-22 Final'!$M$17) -> 1 | N140: 68692 | Q140: 0 | R140: 68692 | S140: 56340 | T140: 12352 | U140: Y | W140: 2500 | X140: 71192
A141: 123 | B141: 39207 | C141: WAPATO | D141: =IFERROR(VLOOKUP(B141,'[2]Enrollment 2122'!$A:$D,4,0),0) -> 960 | E141: 451709 | F141: =IFERROR(VLOOKUP(B141,'[2]Enrollment 2122'!$A:$F,6,0),0) -> 278 | G141: 32702 | H141: =IFERROR(VLOOKUP(B141,'[2]Enrollment 2122'!$A:$E,5,FALSE),0) -> 324 | I141: 152452 | J141: 636863 | K141: =IF(D141>$D$17,_xlfn.IFNA(VLOOKUP(B141,'[2]other funds ftr 2021 for 2122'!$A:$I,9,FALSE),0),1) -> 1.05 | L141: 668706 | M141: =1+IF(ISNA(VLOOKUP(B141,'[2]Rural and Low Income 2122'!$A:$B,2,FALSE)),0,'2021-22 Final'!$M$17) -> 1 | N141: 668706 | Q141: 0 | R141: 668706 | S141: 569177 | T141: 99529 | U141: Y | W141: 4000 | X141: 672706
A142: 124 | B142: 13146 | C142: WARDEN | D142: =IFERROR(VLOOKUP(B142,'[2]Enrollment 2122'!$A:$D,4,0),0) -> 312 | E142: 146806 | F142: =IFERROR(VLOOKUP(B142,'[2]Enrollment 2122'!$A:$F,6,0),0) -> 52 | G142: 6117 | H142: =IFERROR(VLOOKUP(B142,'[2]Enrollment 2122'!$A:$E,5,FALSE),0) -> 92 | I142: 43289 | J142: 196212 | K142: =IF(D142>$D$17,_xlfn.IFNA(VLOOKUP(B142,'[2]other funds ftr 2021 for 2122'!$A:$I,9,FALSE),0),1) -> 1.15 | L142: 225644 | M142: =1+IF(ISNA(VLOOKUP(B142,'[2]Rural and Low Income 2122'!$A:$B,2,FALSE)),0,'2021-22 Final'!$M$17) -> 1.1 | N142: 248208 | Q142: 0 | R142: 248208 | S142: 211264 | T142: 36944 | U142: Y | W142: 2500 | X142: 250708
A143: 125 | B143: 09209 | C143: WATERVILLE | D143: =IFERROR(VLOOKUP(B143,'[2]Enrollment 2122'!$A:$D,4,0),0) -> 25 | E143: 11763 | F143: =IFERROR(VLOOKUP(B143,'[2]Enrollment 2122'!$A:$F,6,0),0) -> 5 | G143: 588 | H143: =IFERROR(VLOOKUP(B143,'[2]Enrollment 2122'!$A:$E,5,FALSE),0) -> 10 | I143: 4705 | J143: 17056 | K143: =IF(D143>$D$17,_xlfn.IFNA(VLOOKUP(B143,'[2]other funds ftr 2021 for 2122'!$A:$I,9,FALSE),0),1) -> 0 | L143: 17056 | M143: =1+IF(ISNA(VLOOKUP(B143,'[2]Rural and Low Income 2122'!$A:$B,2,FALSE)),0,'2021-22 Final'!$M$17) -> 1 | N143: 0 | Q143: 0 | R143: 0 | S143: 0 | T143: 0 | U143: N | W143: 0 | X143: 0
A144: 126 | B144: 04246 | C144: WENATCHEE | D144: =IFERROR(VLOOKUP(B144,'[2]Enrollment 2122'!$A:$D,4,0),0) -> 1819 | E144: 855895 | F144: =IFERROR(VLOOKUP(B144,'[2]Enrollment 2122'!$A:$F,6,0),0) -> 548 | G144: 64463 | H144: =IFERROR(VLOOKUP(B144,'[2]Enrollment 2122'!$A:$E,5,FALSE),0) -> 553 | I144: 260203 | J144: 1180561 | K144: =IF(D144>$D$17,_xlfn.IFNA(VLOOKUP(B144,'[2]other funds ftr 2021 for 2122'!$A:$I,9,FALSE),0),1) -> 1.15 | L144: 1357645 | M144: =1+IF(ISNA(VLOOKUP(B144,'[2]Rural and Low Income 2122'!$A:$B,2,FALSE)),0,'2021-22 Final'!$M$17) -> 1 | N144: 1357645 | Q144: 0 | R144: 1357645 | S144: 1155574 | T144: 202071 | U144: Y | W144: 4000 | X144: 1361645
A145: 127 | B145: 39208 | C145: WEST VALLEY | D145: =IFERROR(VLOOKUP(B145,'[2]Enrollment 2122'!$A:$D,4,0),0) -> 99 | E145: 46583 | F145: =IFERROR(VLOOKUP(B145,'[2]Enrollment 2122'!$A:$F,6,0),0) -> 21 | G145: 2470 | H145: =IFERROR(VLOOKUP(B145,'[2]Enrollment 2122'!$A:$E,5,FALSE),0) -> 17 | I145: 7999 | J145: 57052 | K145: =IF(D145>$D$17,_xlfn.IFNA(VLOOKUP(B145,'[2]other funds ftr 2021 for 2122'!$A:$I,9,FALSE),0),1) -> 0.85 | L145: 48494 | M145: =1+IF(ISNA(VLOOKUP(B145,'[2]Rural and Low Income 2122'!$A:$B,2,FALSE)),0,'2021-22 Final'!$M$17) -> 1 | N145: 48494 | Q145: 0 | R145: 48494 | S145: 41276 | T145: 7218 | U145: Y | W145: 1500 | X145: 49994
A146: 128 | B146: 21303 | C146: WHITE PASS | D146: =IFERROR(VLOOKUP(B146,'[2]Enrollment 2122'!$A:$D,4,0),0) -> 55 | E146: 25879 | F146: =IFERROR(VLOOKUP(B146,'[2]Enrollment 2122'!$A:$F,6,0),0) -> 11 | G146: 1294 | H146: =IFERROR(VLOOKUP(B146,'[2]Enrollment 2122'!$A:$E,5,FALSE),0) -> 20 | I146: 9411 | J146: 36584 | K146: =IF(D146>$D$17,_xlfn.IFNA(VLOOKUP(B146,'[2]other funds ftr 2021 for 2122'!$A:$I,9,FALSE),0),1) -> 0 | L146: 36584 | M146: =1+IF(ISNA(VLOOKUP(B146,'[2]Rural and Low Income 2122'!$A:$B,2,FALSE)),0,'2021-22 Final'!$M$17) -> 1.1 | N146: 0 | Q146: 0 | R146: 0 | S146: 0 | T146: 0 | U146: N | W146: 0 | X146: 0
A147: 129 | B147: 20405 | C147: WHITE SALMON | D147: =IFERROR(VLOOKUP(B147,'[2]Enrollment 2122'!$A:$D,4,0),0) -> 60 | E147: 28232 | F147: =IFERROR(VLOOKUP(B147,'[2]Enrollment 2122'!$A:$F,6,0),0) -> 20 | G147: 2353 | H147: =IFERROR(VLOOKUP(B147,'[2]Enrollment 2122'!$A:$E,5,FALSE),0) -> 18 | I147: 8470 | J147: =+E147+G147+I147 -> 39055 | K147: =IF(D147>$D$17,_xlfn.IFNA(VLOOKUP(B147,'[2]other funds ftr 2021 for 2122'!$A:$I,9,FALSE),0),1) -> 0 | L147: =IF(K147=0,J147,ROUND(J147*K147,0)) -> 39055 | M147: =1+IF(ISNA(VLOOKUP(B147,'[2]Rural and Low Income 2122'!$A:$B,2,FALSE)),0,'2021-22 Final'!$M$17) -> 1 | N147: =IF(U147="y",ROUND(L147*M147,0),0) -> 0 | Q147: 0 | R147: =N147+Q147 -> 0 | S147: 0 | T147: =R147-S147 -> 0 | U147: N | W147: 0 | X147: 0
A148: 130 | B148: 21232 | C148: WINLOCK | D148: =IFERROR(VLOOKUP(B148,'[2]Enrollment 2122'!$A:$D,4,0),0) -> 101 | E148: =IF(D148>=10,ROUND(D148*$F$3,0),0) -> 47524 | F148: =IFERROR(VLOOKUP(B148,'[2]Enrollment 2122'!$A:$F,6,0),0) -> 50 | G148: =IF(D148>=$D$17,ROUND(F148*$F$3*$F$17,0),0) -> 5882 | H148: =IFERROR(VLOOKUP(B148,'[2]Enrollment 2122'!$A:$E,5,FALSE),0) -> 20 | I148: =IF(D148>=$D$17,ROUND(H148*$F$3*$H$17,0),0) -> 9411 | J148: 62817 | K148: =IF(D148>$D$17,_xlfn.IFNA(VLOOKUP(B148,'[2]other funds ftr 2021 for 2122'!$A:$I,9,FALSE),0),1) -> 1 | L148: 62817 | M148: =1+IF(ISNA(VLOOKUP(B148,'[2]Rural and Low Income 2122'!$A:$B,2,FALSE)),0,'2021-22 Final'!$M$17) -> 1.1 | N148: 69099 | Q148: 0 | R148: 69099 | S148: 58813 | T148: 10286 | U148: Y | W148: =IF(U148="Y",IF(D148<=99,1500,IF(AND(D148>=100,D148<=399),2500,4000)),0) -> 2500 | X148: =W148+R148 -> 71599
A149: 131 | B149: 39901 | C149: YAKAMA TRIBAL SCHOOL | D149: =IFERROR(VLOOKUP(B149,'[2]Enrollment 2122'!$A:$D,4,0),0) -> 61 | E149: 28702 | F149: =IFERROR(VLOOKUP(B149,'[2]Enrollment 2122'!$A:$F,6,0),0) -> 49 | G149: 5764 | H149: =IFERROR(VLOOKUP(B149,'[2]Enrollment 2122'!$A:$E,5,FALSE),0) -> 31 | I149: 14586 | J149: 49052 | K149: =IF(D149>$D$17,_xlfn.IFNA(VLOOKUP(B149,'[2]other funds ftr 2021 for 2122'!$A:$I,9,FALSE),0),1) -> 0 | L149: 49052 | M149: =1+IF(ISNA(VLOOKUP(B149,'[2]Rural and Low Income 2122'!$A:$B,2,FALSE)),0,'2021-22 Final'!$M$17) -> 1 | N149: 49052 | Q149: 0 | R149: 49052 | S149: 33942 | T149: 15110 | U149: Y | W149: 1500 | X149: 50552
A150: 132 | B150: 39007 | C150: YAKIMA | D150: =IFERROR(VLOOKUP(B150,'[2]Enrollment 2122'!$A:$D,4,0),0) -> 2399 | E150: 1128803 | F150: =IFERROR(VLOOKUP(B150,'[2]Enrollment 2122'!$A:$F,6,0),0) -> 813 | G150: 95635 | H150: =IFERROR(VLOOKUP(B150,'[2]Enrollment 2122'!$A:$E,5,FALSE),0) -> 709 | I150: 333606 | J150: 1558044 | K150: =IF(D150>$D$17,_xlfn.IFNA(VLOOKUP(B150,'[2]other funds ftr 2021 for 2122'!$A:$I,9,FALSE),0),1) -> 1 | L150: 1558044 | M150: =1+IF(ISNA(VLOOKUP(B150,'[2]Rural and Low Income 2122'!$A:$B,2,FALSE)),0,'2021-22 Final'!$M$17) -> 1 | N150: 1558044 | Q150: 0 | R150: 1558044 | S150: 1326145 | T150: 231899 | U150: Y | W150: 4000 | X150: 1562044
A151: 133 | B151: 34002 | C151: YELM | D151: =IFERROR(VLOOKUP(B151,'[2]Enrollment 2122'!$A:$D,4,0),0) -> 77 | E151: 36231 | F151: =IFERROR(VLOOKUP(B151,'[2]Enrollment 2122'!$A:$F,6,0),0) -> 12 | G151: 1412 | H151: =IFERROR(VLOOKUP(B151,'[2]Enrollment 2122'!$A:$E,5,FALSE),0) -> 15 | I151: 7058 | J151: 44701 | K151: =IF(D151>$D$17,_xlfn.IFNA(VLOOKUP(B151,'[2]other funds ftr 2021 for 2122'!$A:$I,9,FALSE),0),1) -> 0 | L151: 44701 | M151: =1+IF(ISNA(VLOOKUP(B151,'[2]Rural and Low Income 2122'!$A:$B,2,FALSE)),0,'2021-22 Final'!$M$17) -> 1 | N151: 0 | Q151: 0 | R151: 0 | S151: 0 | T151: 0 | U151: N | W151: 0 | X151: 0
A152: 134 | B152: 39205 | C152: ZILLAH | D152: =IFERROR(VLOOKUP(B152,'[2]Enrollment 2122'!$A:$D,4,0),0) -> 96 | E152: 45171 | F152: =IFERROR(VLOOKUP(B152,'[2]Enrollment 2122'!$A:$F,6,0),0) -> 24 | G152: 2823 | H152: =IFERROR(VLOOKUP(B152,'[2]Enrollment 2122'!$A:$E,5,FALSE),0) -> 32 | I152: 15057 | J152: 63051 | K152: =IF(D152>$D$17,_xlfn.IFNA(VLOOKUP(B152,'[2]other funds ftr 2021 for 2122'!$A:$I,9,FALSE),0),1) -> 1 | L152: 63051 | M152: =1+IF(ISNA(VLOOKUP(B152,'[2]Rural and Low Income 2122'!$A:$B,2,FALSE)),0,'2021-22 Final'!$M$17) -> 1 | N152: 63051 | Q152: 0 | R152: 63051 | S152: 53667 | T152: 9384 | U152: Y | W152: 1500 | X152: 64551
T154: consortium
T155: declined
S156: =S153+S154+S155 -> 0

Sheet Enrollment 22-23 (hidden)
A1: CO_DIST_NUM | B1: DIST_TITLE | C1: Avg Students | D1: Priority | E1: Needs
A2: 14005 | B2: ABERDEEN | C2: 130 | D2: 42 | E2: 30 | F2: =TEXT(A2,"00000") -> 14005
A3: 29103 | B3: ANACORTES | C3: 13 | D3: 6 | E3: 2 | F3: =TEXT(A3,"00000") -> 29103
A4: 31016 | B4: ARLINGTON | C4: 48 | D4: 31 | E4: 13 | F4: 31016
A5: 17408 | B5: AUBURN | C5: 39 | D5: 4 | E5: 9 | F5: 17408
A6: 06119 | B6: BATTLE GROUND | C6: 21 | D6: 1 | E6: 5 | F6: 06119
A7: 17405 | B7: BELLEVUE | C7: 10 | D7: 2 | E7: 3 | F7: 17405
A8: 37501 | B8: BELLINGHAM | C8: 163 | D8: 63 | E8: 46 | F8: 37501
A9: 27403 | B9: BETHEL | C9: 11 | D9: 8 | E9: 3 | F9: 27403
A10: 18100 | B10: BREMERTON | C10: 84 | D10: 17 | E10: 21 | F10: 18100
A11: 24111 | B11: BREWSTER | C11: 220 | D11: 108 | E11: 50 | F11: 24111
A12: 09075 | B12: BRIDGEPORT | C12: 230 | D12: 38 | E12: 47 | F12: 09075
A13: 29100 | B13: BURLINGTON-EDISON | C13: 388 | D13: 183 | E13: 123 | F13: 29100
A14: 04228 | B14: CASCADE | C14: 59 | D14: 36 | E14: 12 | F14: 04228
A15: 04222 | B15: CASHMERE | C15: 257 | D15: 44 | E15: 20 | F15: 04222
A16: 18401 | B16: CENTRAL KITSAP | C16: 16 | D16: 8 | E16: 5 | F16: 18401
A17: 32356 | B17: CENTRAL VALLEY | C17: 16 | D17: 5 | E17: 4 | F17: 32356
A18: 21401 | B18: CENTRALIA | C18: 122 | D18: 51 | E18: 42 | F18: 21401
A19: 21302 | B19: CHEHALIS | C19: 34 | D19: 14 | E19: 14 | F19: 21302
A20: 32360 | B20: CHENEY | C20: 10 | D20: 7 | E20: 0 | F20: 32360
A21: 27901 | B21: CHIEF LESCHI TRIBAL COMPACT | C21: 13 | D21: 11 | E21: 0 | F21: 27901
A22: 27400 | B22: CLOVER PARK | C22: 13 | D22: 9 | E22: 2 | F22: 27400
A23: 36250 | B23: COLLEGE PLACE | C23: 116 | D23: 62 | E23: 31 | F23: 36250
A24: 36400 | B24: COLUMBIA (WALLA WALLA) | C24: 44 | D24: 29 | E24: 4 | F24: 36400
A25: 29317 | B25: CONWAY | C25: 31 | D25: 13 | E25: 8 | F25: 29317
A26: 15204 | B26: COUPEVILLE | C26: 16 | D26: 6 | E26: 7 | F26: 15204
A27: 39090 | B27: EAST VALLEY (YAKIMA) | C27: 235 | D27: 160 | E27: 32 | F27: 39090
A28: 09206 | B28: EASTMONT | C28: 852 | D28: 521 | E28: 174 | F28: 09206
A29: 31015 | B29: EDMONDS | C29: 19 | D29: 5 | E29: 1 | F29: 31015
A30: 19401 | B30: ELLENSBURG | C30: 64 | D30: 24 | E30: 23 | F30: 19401
A31: 14068 | B31: ELMA | C31: 35 | D31: 19 | E31: 13 | F31: 14068
A32: 04127 | B32: ENTIAT | C32: 35 | D32: 12 | E32: 3 | F32: 04127
A33: 13165 | B33: EPHRATA | C33: 218 | D33: 99 | E33: 57 | F33: 13165
A34: 31002 | B34: EVERETT | C34: 50 | D34: 39 | E34: 3 | F34: 31002
A35: 06114 | B35: EVERGREEN (CLARK) | C35: 37 | D35: 15 | E35: 13 | F35: 06114
A36: 17210 | B36: FEDERAL WAY | C36: 78 | D36: 31 | E36: 7 | F36: 17210
A37: 37502 | B37: FERNDALE | C37: 187 | D37: 39 | E37: 32 | F37: 37502
A38: 03053 | B38: FINLEY | C38: 106 | D38: 61 | E38: 23 | F38: 03053
A39: 27402 | B39: FRANKLIN PIERCE | C39: 11 | D39: 6 | E39: 1 | F39: 27402
A40: 20404 | B40: GOLDENDALE | C40: 67 | D40: 41 | E40: 10 | F40: 20404
A41: 13301 | B41: GRAND COULEE DAM | C41: 164 | D41: 87 | E41: 31 | F41: 13301
A42: 39200 | B42: GRANDVIEW | C42: 512 | D42: 299 | E42: 122 | F42: 39200
A43: 39204 | B43: GRANGER | C43: 350 | D43: 156 | E43: 119 | F43: 39204
A44: 39203 | B44: HIGHLAND | C44: 205 | D44: 39 | E44: 45 | F44: 39203
A45: 17401 | B45: HIGHLINE | C45: 17 | D45: 11 | E45: 5 | F45: 17401
A46: 23404 | B46: HOOD CANAL | C46: 41 | D46: 30 | E46: 1 | F46: 23404
A47: 14028 | B47: HOQUIAM | C47: 42 | D47: 19 | E47: 12 | F47: 14028
A48: 10070 | B48: INCHELIUM | C48: 18 | D48: 13 | E48: 0 | F48: 10070
A49: 08458 | B49: KELSO | C49: 29 | D49: 18 | E49: 12 | F49: 08458
A50: 03017 | B50: KENNEWICK | C50: 3001 | D50: 1405 | E50: 1012 | F50: 03017
A51: 17415 | B51: KENT | C51: 50 | D51: 15 | E51: 15 | F51: 17415
A52: 03052 | B52: KIONA-BENTON CITY | C52: 343 | D52: 209 | E52: 113 | F52: 03052
A53: 19403 | B53: KITTITAS | C53: 23 | D53: 4 | E53: 8 | F53: 19403
A54: 29311 | B54: LA CONNER | C54: 185 | D54: 139 | E54: 24 | F54: 29311
A55: 04129 | B55: LAKE CHELAN | C55: 223 | D55: 69 | E55: 52 | F55: 04129
A56: 31306 | B56: LAKEWOOD | C56: 14 | D56: 3 | E56: 3 | F56: 31306
A57: 01158 | B57: LIND | C57: 48 | D57: 32 | E57: 11 | F57: 01158
A58: 08122 | B58: LONGVIEW | C58: 43 | D58: 23 | E58: 14 | F58: 08122
A59: 20406 | B59: LYLE | C59: 42 | D59: 10 | E59: 6 | F59: 20406
A60: 37504 | B60: LYNDEN | C60: 172 | D60: 64 | E60: 30 | F60: 37504
A61: 39120 | B61: MABTON | C61: 355 | D61: 208 | E61: 117 | F61: 39120
A62: 04019 | B62: MANSON | C62: 82 | D62: 52 | E62: 13 | F62: 04019
A63: 31025 | B63: MARYSVILLE | C63: 299 | D63: 180 | E63: 52 | F63: 31025
A64: 37505 | B64: MERIDIAN | C64: 46 | D64: 33 | E64: 10 | F64: 37505
A65: 31103 | B65: MONROE | C65: 15 | D65: 8 | E65: 4 | F65: 31103
A66: 13161 | B66: MOSES LAKE | C66: 497 | D66: 142 | E66: 139 | F66: 13161
A67: 21206 | B67: MOSSYROCK | C67: 49 | D67: 21 | E67: 9 | F67: =TEXT(A67,"00000") -> 21206
A68: 39209 | B68: MOUNT ADAMS | C68: 193 | D68: 158 | E68: 18 | F68: 39209
A69: 37507 | B69: MOUNT BAKER | C69: 55 | D69: 30 | E69: 11 | F69: 37507
A70: 29320 | B70: MOUNT VERNON | C70: 1586 | D70: 490 | E70: 549 | F70: 29320
A71: 17903 | B71: MUCKLESHOOT INDIAN TRIBE | C71: 22 | D71: 14 | E71: 1 | F71: 17903
A72: 31006 | B72: MUKILTEO | C72: 33 | D72: 8 | E72: 15 | F72: 31006
A73: 39003 | B73: NACHES VALLEY | C73: 118 | D73: 58 | E73: 30 | F73: 39003
A74: 25155 | B74: NASELLE-GRAYS RIVER VALLEY | C74: 55 | D74: 33 | E74: 12 | F74: 25155
A75: 24014 | B75: NESPELEM | C75: 44 | D75: 7 | E75: 9 | F75: 24014
A76: 37506 | B76: NOOKSACK VALLEY | C76: 201 | D76: 29 | E76: 27 | F76: 37506
A77: 14064 | B77: NORTH BEACH | C77: 45 | D77: 26 | E77: 5 | F77: 14064
A78: 11051 | B78: NORTH FRANKLIN | C78: 686 | D78: 466 | E78: 179 | F78: 11051
A79: 18400 | B79: NORTH KITSAP | C79: 65 | D79: 12 | E79: 28 | F79: 18400
A80: 23403 | B80: NORTH MASON | C80: 14 | D80: 1 | E80: 3 | F80: 23403
A81: 34003 | B81: NORTH THURSTON PUBLIC SCHOOLS | C81: 47 | D81: 30 | E81: 6 | F81: 34003
A82: 15201 | B82: OAK HARBOR | C82: 23 | D82: 12 | E82: 8 | F82: 15201
A83: 25101 | B83: OCEAN BEACH | C83: 56 | D83: 27 | E83: 19 | F83: 25101
A84: 14172 | B84: OCOSTA | C84: 56 | D84: 18 | E84: 15 | F84: 14172
A85: 24105 | B85: OKANOGAN | C85: 83 | D85: 23 | E85: 24 | F85: 24105
A86: 34111 | B86: OLYMPIA | C86: 32 | D86: 15 | E86: 11 | F86: 34111
A87: 24019 | B87: OMAK | C87: 51 | D87: 28 | E87: 5 | F87: 24019
A88: 09013 | B88: ORONDO | C88: 89 | D88: 11 | E88: 15 | F88: 09013
A89: 24410 | B89: OROVILLE | C89: 79 | D89: 14 | E89: 21 | F89: 24410
A90: 01147 | B90: OTHELLO | C90: 894 | D90: 475 | E90: 255 | F90: 01147
A91: 11001 | B91: PASCO | C91: 1939 | D91: 1044 | E91: 635 | F91: 11001
A92: 24122 | B92: PATEROS | C92: 68 | D92: 23 | E92: 11 | F92: 24122
A93: 03050 | B93: PATERSON | C93: 27 | D93: 13 | E93: 7 | F93: 03050
A94: 36402 | B94: PRESCOTT | C94: 41 | D94: 4 | E94: 9 | F94: 36402
A95: 03116 | B95: PROSSER | C95: 782 | D95: 451 | E95: 284 | F95: 03116
A96: 16020 | B96: QUEETS-CLEARWATER | C96: 11 | D96: 5 | E96: 2 | F96: 16020
A97: 05402 | B97: QUILLAYUTE VALLEY | C97: 85 | D97: 35 | E97: 32 | F97: 05402
A98: 13144 | B98: QUINCY | C98: 520 | D98: 284 | E98: 144 | F98: 13144
A99: 17403 | B99: RENTON | C99: 26 | D99: 18 | E99: 3 | F99: 17403
A100: 03400 | B100: RICHLAND | C100: 230 | D100: 143 | E100: 63 | F100: 03400
A101: 06122 | B101: RIDGEFIELD | C101: 26 | D101: 14 | E101: 10 | F101: 06122
A102: 34401 | B102: ROCHESTER | C102: 38 | D102: 9 | E102: 13 | F102: 34401
A103: 20403 | B103: ROOSEVELT | C103: 29 | D103: 4 | E103: 1 | F103: 20403
A104: 13160 | B104: ROYAL | C104: 213 | D104: 119 | E104: 40 | F104: 13160
A105: 28149 | B105: SAN JUAN ISLAND | C105: 15 | D105: 12 | E105: 2 | F105: 28149
A106: 17001 | B106: SEATTLE PUBLIC SCHOOLS | C106: 226 | D106: 90 | E106: 66 | F106: 17001
A107: 29101 | B107: SEDRO-WOOLLEY | C107: 207 | D107: 89 | E107: 38 | F107: 29101
A108: 39119 | B108: SELAH | C108: 204 | D108: 106 | E108: 74 | F108: 39119
A109: 23309 | B109: SHELTON | C109: 216 | D109: 77 | E109: 49 | F109: 23309
A110: 31201 | B110: SNOHOMISH | C110: 90 | D110: 37 | E110: 41 | F110: 31201
A111: 13156 | B111: SOAP LAKE | C111: 51 | D111: 29 | E111: 14 | F111: 13156
A112: 32081 | B112: SPOKANE | C112: 95 | D112: 42 | E112: 17 | F112: 32081
A113: 31401 | B113: STANWOOD-CAMANO | C113: 22 | D113: 6 | E113: 7 | F113: 31401
A114: 30303 | B114: STEVENSON-CARSON | C114: 31 | D114: 24 | E114: 2 | F114: 30303
A115: 31311 | B115: SULTAN | C115: 21 | D115: 4 | E115: 4 | F115: 31311
A116: 39201 | B116: SUNNYSIDE | C116: 1849 | D116: 1054 | E116: 442 | F116: 39201
A117: 27010 | B117: TACOMA | C117: 25 | D117: 14 | E117: 3 | F117: 27010
A118: 14077 | B118: TAHOLAH | C118: 63 | D118: 22 | E118: 18 | F118: 14077
A119: 24404 | B119: TONASKET | C119: 306 | D119: 181 | E119: 76 | F119: 24404
A120: 39202 | B120: TOPPENISH | C120: 853 | D120: 448 | E120: 225 | F120: 39202
A121: 20400 | B121: TROUT LAKE | C121: 119 | D121: 42 | E121: 13 | F121: 20400
A122: 39002 | B122: UNION GAP | C122: 52 | D122: 31 | E122: 15 | F122: 39002
A123: 06037 | B123: VANCOUVER | C123: 68 | D123: 24 | E123: 26 | F123: 06037
A124: 34901 | B124: WA HE LUT INDIAN SCHOOL | C124: 15 | D124: 13 | E124: 0 | F124: 34901
A125: 13073 | B125: WAHLUKE | C125: 1773 | D125: 1322 | E125: 281 | F125: 13073
A126: 36140 | B126: WALLA WALLA PUBLIC SCHOOLS | C126: 119 | D126: 43 | E126: 39 | F126: 36140
A127: 39207 | B127: WAPATO | C127: 896 | D127: 569 | E127: 181 | F127: 39207
A128: 13146 | B128: WARDEN | C128: 276 | D128: 140 | E128: 58 | F128: 13146
A129: 09209 | B129: WATERVILLE | C129: 23 | D129: 8 | E129: 7 | F129: 09209
A130: 33049 | B130: WELLPINIT | C130: 96 | D130: 34 | E130: 19 | F130: 33049
A131: 04246 | B131: WENATCHEE | C131: 1555 | D131: 1004 | E131: 425 | F131: =TEXT(A131,"00000") -> 04246
A132: 39208 | B132: WEST VALLEY (YAKIMA) | C132: 114 | D132: 48 | E132: 40 | F132: 39208
A133: 21303 | B133: WHITE PASS | C133: 55 | D133: 20 | E133: 11 | F133: 21303
A134: 20405 | B134: WHITE SALMON VALLEY | C134: 60 | D134: 18 | E134: 20 | F134: 20405
A135: 21232 | B135: WINLOCK | C135: 97 | D135: 39 | E135: 28 | F135: 21232
A136: 39901 | B136: YAKAMA NATION TRIBAL COMPACT | C136: 61 | D136: 31 | E136: 49 | F136: 39901
A137: 39007 | B137: YAKIMA | C137: 2039 | D137: 1279 | E137: 517 | F137: 39007
A138: 34002 | B138: YELM | C138: 62 | D138: 53 | E138: 0 | F138: 34002
A139: 39205 | B139: ZILLAH | C139: 96 | D139: 32 | E139: 24 | F139: 39205

Sheet Rural and Low Income 22-23 (hidden)
A1: CoDis | B1: District | D1: Ask Tony May for the list of current year REAP amd RLIS districts
A2: 14005 | B2: Aberdeen School District
A3: 22017 | B3: Almira School District
A4: 1122 | B4: Benge School District
A5: 20203 | B5: Bickleton School District
A6: 21234 | B6: Boistfort School District
A7: 24111 | B7: Brewster School District
A8: 16046 | B8: Brinnon School District
A9: 5401 | B9: Cape Flattery School District
A10: 27019 | B10: Carbonado School District
A11: 20215 | B11: Centerville School District
A12: 33036 | B12: Chewelah School District
A13: 38300 | B13: Colfax School District
A14: 38306 | B14: Colton School District
A15: 33206 | B15: Columbia (Stevens) School District
A16: 29011 | B16: Concrete School District
A17: 29317 | B17: Conway School District
A18: 14099 | B18: Cosmopolis School District
A19: 13151 | B19: Coulee-Hartline School District
A20: 5313 | B20: Crescent School District
A21: 22073 | B21: Creston School District
A22: 10050 | B22: Curlew School District
A23: 26059 | B23: Cusick School District
A24: 19007 | B24: Damman School District
A25: 31330 | B25: Darrington School District
A26: 22207 | B26: Davenport School District
A27: 7002 | B27: Dayton School District
A28: 36101 | B28: Dixie School District
A29: 19028 | B29: Easton School District
A30: 38308 | B30: Endicott School District
A31: 4127 | B31: Entiat School District
A32: 21036 | B32: Evaline School District
A33: 33205 | B33: Evergreen School District (Stevens)
A34: 38302 | B34: Garfield School District
A35: 20401 | B35: Glenwood School District
A36: 39204 | B36: Granger School District
A37: 23054 | B37: Grapeview School District
A38: 32312 | B38: Great Northern School District
A39: 6103 | B39: Green Mountain School District
A40: 22204 | B40: Harrington School District
A41: 23404 | B41: Hood Canal School District
A42: 14028 | B42: Hoquiam School District
A43: 10070 | B43: Inchelium School District
A44: 31063 | B44: Index Elementary School District 63
A45: 36901 | B45: Innovation Schools
A46: 11056 | B46: Kahlotus School District
A47: 10003 | B47: Keller School District
A48: 20402 | B48: Klickitat School District
A49: 38126 | B49: LaCrosse School District
A50: 14097 | B50: Lake Quinault School District
A51: 38264 | B51: Lamont School District
A52: 32362 | B52: Liberty School District
A53: 1158 | B53: Lind School District
A54: 33183 | B54: Loon Lake School District
A55: 28144 | B55: Lopez School District
A56: 20406 | B56: Lyle School District
A57: 39120 | B57: Mabton School District
A58: 9207 | B58: Mansfield School District
A59: 33207 | B59: Mary Walker School District
A60: 14065 | B60: McCleary School District
A61: 24350 | B61: Methow Valley School District
A62: 30031 | B62: Mill A School District
A63: 21214 | B63: Morton School District
A64: 21206 | B64: Mossyrock School District
A65: 39209 | B65: Mount Adams School District
A66: 30029 | B66: Mount Pleasant School District
A67: 25155 | B67: Naselle-Grays River Valley School District
A68: 24014 | B68: Nespelem School District #14
A69: 26056 | B69: Newport School District
A70: 25200 | B70: North River School District
A71: 33211 | B71: Northport School District
A72: 38324 | B72: Oakesdale School District
A73: 14400 | B73: Oakville School District
A74: 14172 | B74: Ocosta School District
A75: 22105 | B75: Odessa School District
A76: 24105 | B76: Okanogan School District
A77: 24019 | B77: Omak School District
A78: 33030 | B78: Onion Creek School District
A79: 32123 | B79: Orchard Prairie School District
A80: 10065 | B80: Orient School District
A81: 9013 | B81: Orondo School District
A82: 24410 | B82: Oroville School District
A83: 9102 | B83: Palisades School District
A84: 38301 | B84: Palouse School District
A85: 24122 | B85: Pateros School District
A86: 3050 | B86: Paterson School District
A87: 21301 | B87: Pe Ell School District
A88: 12110 | B88: Pomeroy School District
A89: 16050 | B89: Port Townsend School District
A90: 36402 | B90: Prescott School District
A91: 16020 | B91: Queets-Clearwater School District
A92: 5402 | B92: Quillayute Valley School District
A93: 25116 | B93: Raymond School District
A94: 22009 | B94: Reardan-Edwall School District
A95: 10309 | B95: Republic School District
A96: 1160 | B96: Ritzville School District
A97: 20403 | B97: Roosevelt School District
A98: 38320 | B98: Rosalia School District
A99: 13160 | B99: Royal School District
A100: 14104 | B100: Satsop School District
A101: 26070 | B101: Selkirk School District
A102: 28010 | B102: Shaw Island School District
A103: 23309 | B103: Shelton School District
A104: 30002 | B104: Skamania School District
A105: 17404 | B105: Skykomish School District
A106: 13156 | B106: Soap Lake School District
A107: 25118 | B107: South Bend School District
A108: 23042 | B108: Southside School District
A109: 22008 | B109: Sprague School District
A110: 38322 | B110: St. John School District
A111: 11054 | B111: Star School District No. 054
A112: 7035 | B112: Starbuck School District
A113: 4069 | B113: Stehekin School District
A114: 38304 | B114: Steptoe School District
A115: 30303 | B115: Stevenson-Carson School District
A116: 33202 | B116: Summit Valley School District
A117: 39201 | B117: Sunnyside School District
A118: 14077 | B118: Taholah School District
A119: 38265 | B119: Tekoa School District
A120: 19400 | B120: Thorp School District
A121: 24404 | B121: Tonasket School District
A122: 36300 | B122: Touchet School District
A123: 20400 | B123: Trout Lake School District
A124: 35200 | B124: Wahkiakum School District
A125: 36401 | B125: Waitsburg School District
A126: 13146 | B126: Warden School District
A127: 1109 | B127: Washtucna School District
A128: 9209 | B128: Waterville School District
A129: 33049 | B129: Wellpinit School District #49
A130: 21303 | B130: White Pass School District
A131: 22200 | B131: Wilbur School District
A132: 25160 | B132: Willapa Valley School District
A133: 13167 | B133: Wilson Creek School District
A134: 14117 | B134: Wishkah Valley School District
A135: 20094 | B135: Wishram School District

Sheet other funds ftr 2022 (hidden)
A1: CCDDD | B1: Migrant Districts | C1: Title III 21-22 | D1: Title I A 21-22 | E1: LAP 21-22 | F1: TBIP 21-22 | G1: Title I C 21-22 | H1: Title I C as % of Revs | I1: "Other Funds" Factor
A2: 14005 | B2: ABERDEEN | C2: =IFERROR(VLOOKUP(TRIM(A2),[3]iGRANTS!$B:$E,3,FALSE),0) + IFERROR(VLOOKUP(TRIM(A2),[3]iGRANTS!$G:$I,3,FALSE),0) -> 59966 | D2: =IFERROR(VLOOKUP(TRIM(A2),'[4]2021-22 Rev Final'!$A:$CL,81,FALSE),0) -> 1558636 | E2: =IFERROR(VLOOKUP(TRIM(A2),[5]Sheet1!$A:$E,5,FALSE),0) -> 2272017.16 | F2: =IFERROR(VLOOKUP(TRIM(A2),[5]Sheet1!$A:$E,4,FALSE),0) -> 644755.75 | G2: =IFERROR(VLOOKUP(TRIM(A2),'[6]2021-22 Final'!$B:$X,18,FALSE),0) -> 75126 | H2: =IFERROR(G2/SUM(C2:G2),0) -> 0.01629454184 | I2: =IF(AND(H2>=[2]Assumptions!$E$56,H2<[2]Assumptions!$E$57),[2]Assumptions!$B$61,IF(AND(H2>=[2]Assumptions!$E$57,H2<[2]Assumptions!$E$58),[2]Assumptions!$B$60,IF(AND(H2>=[2]Assumptions!$E$58,H2<[2]Assumptions!$E$59),[2]Assumptions!$B$59,IF(AND(H2>=[2]Assumptions!$E$59,H2<[2]Assumptions!$E$60),[2]Assumptions!$B$58,IF(AND(H2>=[2]Assumptions!$E$60,H2<=[2]Assumptions!$E$61),[2]Assumptions!$B$57,0))))) -> 0.95
A3: 29103 | B3: ANACORTES | C3: =IFERROR(VLOOKUP(TRIM(A3),[3]iGRANTS!$B:$E,3,FALSE),0) + IFERROR(VLOOKUP(TRIM(A3),[3]iGRANTS!$G:$I,3,FALSE),0) -> 0 | D3: =IFERROR(VLOOKUP(TRIM(A3),'[4]2021-22 Rev Final'!$A:$CL,81,FALSE),0) -> 451693 | E3: =IFERROR(VLOOKUP(TRIM(A3),[5]Sheet1!$A:$E,5,FALSE),0) -> 473494.53 | F3: =IFERROR(VLOOKUP(TRIM(A3),[5]Sheet1!$A:$E,4,FALSE),0) -> 89453.12 | G3: =IFERROR(VLOOKUP(TRIM(A3),'[6]2021-22 Final'!$B:$X,18,FALSE),0) -> 0 | H3: 0 | I3: =IF(AND(H3>=[2]Assumptions!$E$56,H3<[2]Assumptions!$E$57),[2]Assumptions!$B$61,IF(AND(H3>=[2]Assumptions!$E$57,H3<[2]Assumptions!$E$58),[2]Assumptions!$B$60,IF(AND(H3>=[2]Assumptions!$E$58,H3<[2]Assumptions!$E$59),[2]Assumptions!$B$59,IF(AND(H3>=[2]Assumptions!$E$59,H3<[2]Assumptions!$E$60),[2]Assumptions!$B$58,IF(AND(H3>=[2]Assumptions!$E$60,H3<=[2]Assumptions!$E$61),[2]Assumptions!$B$57,0))))) -> 0
A4: 31016 | B4: ARLINGTON | C4: =IFERROR(VLOOKUP(TRIM(A4),[3]iGRANTS!$B:$E,3,FALSE),0) + IFERROR(VLOOKUP(TRIM(A4),[3]iGRANTS!$G:$I,3,FALSE),0) -> 37980 | D4: =IFERROR(VLOOKUP(TRIM(A4),'[4]2021-22 Rev Final'!$A:$CL,81,FALSE),0) -> 560273 | E4: =IFERROR(VLOOKUP(TRIM(A4),[5]Sheet1!$A:$E,5,FALSE),0) -> 1299384.44 | F4: =IFERROR(VLOOKUP(TRIM(A4),[5]Sheet1!$A:$E,4,FALSE),0) -> 506103.66 | G4: =IFERROR(VLOOKUP(TRIM(A4),'[6]2021-22 Final'!$B:$X,18,FALSE),0) -> 0 | H4: 0 | I4: =IF(AND(H4>=[2]Assumptions!$E$56,H4<[2]Assumptions!$E$57),[2]Assumptions!$B$61,IF(AND(H4>=[2]Assumptions!$E$57,H4<[2]Assumptions!$E$58),[2]Assumptions!$B$60,IF(AND(H4>=[2]Assumptions!$E$58,H4<[2]Assumptions!$E$59),[2]Assumptions!$B$59,IF(AND(H4>=[2]Assumptions!$E$59,H4<[2]Assumptions!$E$60),[2]Assumptions!$B$58,IF(AND(H4>=[2]Assumptions!$E$60,H4<=[2]Assumptions!$E$61),[2]Assumptions!$B$57,0))))) -> 0
A5: 17408 | B5: AUBURN | C5: =IFERROR(VLOOKUP(TRIM(A5),[3]iGRANTS!$B:$E,3,FALSE),0) + IFERROR(VLOOKUP(TRIM(A5),[3]iGRANTS!$G:$I,3,FALSE),0) -> 513944 | D5: =IFERROR(VLOOKUP(TRIM(A5),'[4]2021-22 Rev Final'!$A:$CL,81,FALSE),0) -> 4113446 | E5: =IFERROR(VLOOKUP(TRIM(A5),[5]Sheet1!$A:$E,5,FALSE),0) -> 10007514.33 | F5: =IFERROR(VLOOKUP(TRIM(A5),[5]Sheet1!$A:$E,4,FALSE),0) -> 6939660.12 | G5: =IFERROR(VLOOKUP(TRIM(A5),'[6]2021-22 Final'!$B:$X,18,FALSE),0) -> 0 | H5: 0 | I5: =IF(AND(H5>=[2]Assumptions!$E$56,H5<[2]Assumptions!$E$57),[2]Assumptions!$B$61,IF(AND(H5>=[2]Assumptions!$E$57,H5<[2]Assumptions!$E$58),[2]Assumptions!$B$60,IF(AND(H5>=[2]Assumptions!$E$58,H5<[2]Assumptions!$E$59),[2]Assumptions!$B$59,IF(AND(H5>=[2]Assumptions!$E$59,H5<[2]Assumptions!$E$60),[2]Assumptions!$B$58,IF(AND(H5>=[2]Assumptions!$E$60,H5<=[2]Assumptions!$E$61),[2]Assumptions!$B$57,0))))) -> 0
A6: 06119 | B6: BATTLE GROUND | C6: =IFERROR(VLOOKUP(TRIM(A6),[3]iGRANTS!$B:$E,3,FALSE),0) + IFERROR(VLOOKUP(TRIM(A6),[3]iGRANTS!$G:$I,3,FALSE),0) -> 110326 | D6: =IFERROR(VLOOKUP(TRIM(A6),'[4]2021-22 Rev Final'!$A:$CL,81,FALSE),0) -> 1798707 | E6: =IFERROR(VLOOKUP(TRIM(A6),[5]Sheet1!$A:$E,5,FALSE),0) -> 2458260.09 | F6: =IFERROR(VLOOKUP(TRIM(A6),[5]Sheet1!$A:$E,4,FALSE),0) -> 1297720.14 | G6: =IFERROR(VLOOKUP(TRIM(A6),'[6]2021-22 Final'!$B:$X,18,FALSE),0) -> 0 | H6: 0 | I6: =IF(AND(H6>=[2]Assumptions!$E$56,H6<[2]Assumptions!$E$57),[2]Assumptions!$B$61,IF(AND(H6>=[2]Assumptions!$E$57,H6<[2]Assumptions!$E$58),[2]Assumptions!$B$60,IF(AND(H6>=[2]Assumptions!$E$58,H6<[2]Assumptions!$E$59),[2]Assumptions!$B$59,IF(AND(H6>=[2]Assumptions!$E$59,H6<[2]Assumptions!$E$60),[2]Assumptions!$B$58,IF(AND(H6>=[2]Assumptions!$E$60,H6<=[2]Assumptions!$E$61),[2]Assumptions!$B$57,0))))) -> 0
A7: 17405 | B7: BELLEVUE | C7: =IFERROR(VLOOKUP(TRIM(A7),[3]iGRANTS!$B:$E,3,FALSE),0) + IFERROR(VLOOKUP(TRIM(A7),[3]iGRANTS!$G:$I,3,FALSE),0) -> 424255 | D7: =IFERROR(VLOOKUP(TRIM(A7),'[4]2021-22 Rev Final'!$A:$CL,81,FALSE),0) -> 1852875 | E7: =IFERROR(VLOOKUP(TRIM(A7),[5]Sheet1!$A:$E,5,FALSE),0) -> 2404488 | F7: =IFERROR(VLOOKUP(TRIM(A7),[5]Sheet1!$A:$E,4,FALSE),0) -> 5612529.96 | G7: =IFERROR(VLOOKUP(TRIM(A7),'[6]2021-22 Final'!$B:$X,18,FALSE),0) -> 0 | H7: 0 | I7: =IF(AND(H7>=[2]Assumptions!$E$56,H7<[2]Assumptions!$E$57),[2]Assumptions!$B$61,IF(AND(H7>=[2]Assumptions!$E$57,H7<[2]Assumptions!$E$58),[2]Assumptions!$B$60,IF(AND(H7>=[2]Assumptions!$E$58,H7<[2]Assumptions!$E$59),[2]Assumptions!$B$59,IF(AND(H7>=[2]Assumptions!$E$59,H7<[2]Assumptions!$E$60),[2]Assumptions!$B$58,IF(AND(H7>=[2]Assumptions!$E$60,H7<=[2]Assumptions!$E$61),[2]Assumptions!$B$57,0))))) -> 0
A8: 37501 | B8: BELLINGHAM | C8: =IFERROR(VLOOKUP(TRIM(A8),[3]iGRANTS!$B:$E,3,FALSE),0) + IFERROR(VLOOKUP(TRIM(A8),[3]iGRANTS!$G:$I,3,FALSE),0) -> 118517 | D8: =IFERROR(VLOOKUP(TRIM(A8),'[4]2021-22 Rev Final'!$A:$CL,81,FALSE),0) -> 2135829 | E8: =IFERROR(VLOOKUP(TRIM(A8),[5]Sheet1!$A:$E,5,FALSE),0) -> 3455680.57 | F8: =IFERROR(VLOOKUP(TRIM(A8),[5]Sheet1!$A:$E,4,FALSE),0) -> 1320356.35 | G8: =IFERROR(VLOOKUP(TRIM(A8),'[6]2021-22 Final'!$B:$X,18,FALSE),0) -> 0 | H8: 0 | I8: =IF(AND(H8>=[2]Assumptions!$E$56,H8<[2]Assumptions!$E$57),[2]Assumptions!$B$61,IF(AND(H8>=[2]Assumptions!$E$57,H8<[2]Assumptions!$E$58),[2]Assumptions!$B$60,IF(AND(H8>=[2]Assumptions!$E$58,H8<[2]Assumptions!$E$59),[2]Assumptions!$B$59,IF(AND(H8>=[2]Assumptions!$E$59,H8<[2]Assumptions!$E$60),[2]Assumptions!$B$58,IF(AND(H8>=[2]Assumptions!$E$60,H8<=[2]Assumptions!$E$61),[2]Assumptions!$B$57,0))))) -> 0
A9: 27403 | B9: BETHEL | C9: =IFERROR(VLOOKUP(TRIM(A9),[3]iGRANTS!$B:$E,3,FALSE),0) + IFERROR(VLOOKUP(TRIM(A9),[3]iGRANTS!$G:$I,3,FALSE),0) -> 149952 | D9: =IFERROR(VLOOKUP(TRIM(A9),'[4]2021-22 Rev Final'!$A:$CL,81,FALSE),0) -> 4111949 | E9: =IFERROR(VLOOKUP(TRIM(A9),[5]Sheet1!$A:$E,5,FALSE),0) -> 8918618.83 | F9: =IFERROR(VLOOKUP(TRIM(A9),[5]Sheet1!$A:$E,4,FALSE),0) -> 1963963.1 | G9: =IFERROR(VLOOKUP(TRIM(A9),'[6]2021-22 Final'!$B:$X,18,FALSE),0) -> 0 | H9: 0 | I9: =IF(AND(H9>=[2]Assumptions!$E$56,H9<[2]Assumptions!$E$57),[2]Assumptions!$B$61,IF(AND(H9>=[2]Assumptions!$E$57,H9<[2]Assumptions!$E$58),[2]Assumptions!$B$60,IF(AND(H9>=[2]Assumptions!$E$58,H9<[2]Assumptions!$E$59),[2]Assumptions!$B$59,IF(AND(H9>=[2]Assumptions!$E$59,H9<[2]Assumptions!$E$60),[2]Assumptions!$B$58,IF(AND(H9>=[2]Assumptions!$E$60,H9<=[2]Assumptions!$E$61),[2]Assumptions!$B$57,0))))) -> 0
A10: 18100 | B10: BREMERTON | C10: =IFERROR(VLOOKUP(TRIM(A10),[3]iGRANTS!$B:$E,3,FALSE),0) + IFERROR(VLOOKUP(TRIM(A10),[3]iGRANTS!$G:$I,3,FALSE),0) -> 62827 | D10: =IFERROR(VLOOKUP(TRIM(A10),'[4]2021-22 Rev Final'!$A:$CL,81,FALSE),0) -> 1359921 | E10: =IFERROR(VLOOKUP(TRIM(A10),[5]Sheet1!$A:$E,5,FALSE),0) -> 3392005.12 | F10: =IFERROR(VLOOKUP(TRIM(A10),[5]Sheet1!$A:$E,4,FALSE),0) -> 779926.18 | G10: =IFERROR(VLOOKUP(TRIM(A10),'[6]2021-22 Final'!$B:$X,18,FALSE),0) -> 0 | H10: 0 | I10: =IF(AND(H10>=[2]Assumptions!$E$56,H10<[2]Assumptions!$E$57),[2]Assumptions!$B$61,IF(AND(H10>=[2]Assumptions!$E$57,H10<[2]Assumptions!$E$58),[2]Assumptions!$B$60,IF(AND(H10>=[2]Assumptions!$E$58,H10<[2]Assumptions!$E$59),[2]Assumptions!$B$59,IF(AND(H10>=[2]Assumptions!$E$59,H10<[2]Assumptions!$E$60),[2]Assumptions!$B$58,IF(AND(H10>=[2]Assumptions!$E$60,H10<=[2]Assumptions!$E$61),[2]Assumptions!$B$57,0))))) -> 0
A11: 24111 | B11: BREWSTER | C11: =IFERROR(VLOOKUP(TRIM(A11),[3]iGRANTS!$B:$E,3,FALSE),0) + IFERROR(VLOOKUP(TRIM(A11),[3]iGRANTS!$G:$I,3,FALSE),0) -> 47588 | D11: =IFERROR(VLOOKUP(TRIM(A11),'[4]2021-22 Rev Final'!$A:$CL,81,FALSE),0) -> 282888 | E11: =IFERROR(VLOOKUP(TRIM(A11),[5]Sheet1!$A:$E,5,FALSE),0) -> 820148.96 | F11: =IFERROR(VLOOKUP(TRIM(A11),[5]Sheet1!$A:$E,4,FALSE),0) -> 530873.57 | G11: =IFERROR(VLOOKUP(TRIM(A11),'[6]2021-22 Final'!$B:$X,18,FALSE),0) -> 138078 | H11: 0.0758846895 | I11: =IF(AND(H11>=[2]Assumptions!$E$56,H11<[2]Assumptions!$E$57),[2]Assumptions!$B$61,IF(AND(H11>=[2]Assumptions!$E$57,H11<[2]Assumptions!$E$58),[2]Assumptions!$B$60,IF(AND(H11>=[2]Assumptions!$E$58,H11<[2]Assumptions!$E$59),[2]Assumptions!$B$59,IF(AND(H11>=[2]Assumptions!$E$59,H11<[2]Assumptions!$E$60),[2]Assumptions!$B$58,IF(AND(H11>=[2]Assumptions!$E$60,H11<=[2]Assumptions!$E$61),[2]Assumptions!$B$57,0))))) -> 1.05
A12: 09075 | B12: BRIDGEPORT | C12: =IFERROR(VLOOKUP(TRIM(A12),[3]iGRANTS!$B:$E,3,FALSE),0) + IFERROR(VLOOKUP(TRIM(A12),[3]iGRANTS!$G:$I,3,FALSE),0) -> 51960 | D12: =IFERROR(VLOOKUP(TRIM(A12),'[4]2021-22 Rev Final'!$A:$CL,81,FALSE),0) -> 374502 | E12: =IFERROR(VLOOKUP(TRIM(A12),[5]Sheet1!$A:$E,5,FALSE),0) -> 654710.36 | F12: =IFERROR(VLOOKUP(TRIM(A12),[5]Sheet1!$A:$E,4,FALSE),0) -> 537120.26 | G12: =IFERROR(VLOOKUP(TRIM(A12),'[6]2021-22 Final'!$B:$X,18,FALSE),0) -> 129405 | H12: 0.07404312881 | I12: =IF(AND(H12>=[2]Assumptions!$E$56,H12<[2]Assumptions!$E$57),[2]Assumptions!$B$61,IF(AND(H12>=[2]Assumptions!$E$57,H12<[2]Assumptions!$E$58),[2]Assumptions!$B$60,IF(AND(H12>=[2]Assumptions!$E$58,H12<[2]Assumptions!$E$59),[2]Assumptions!$B$59,IF(AND(H12>=[2]Assumptions!$E$59,H12<[2]Assumptions!$E$60),[2]Assumptions!$B$58,IF(AND(H12>=[2]Assumptions!$E$60,H12<=[2]Assumptions!$E$61),[2]Assumptions!$B$57,0))))) -> 1.05
A13: 29100 | B13: BURLINGTON-EDISON | C13: =IFERROR(VLOOKUP(TRIM(A13),[3]iGRANTS!$B:$E,3,FALSE),0) + IFERROR(VLOOKUP(TRIM(A13),[3]iGRANTS!$G:$I,3,FALSE),0) -> 100165 | D13: =IFERROR(VLOOKUP(TRIM(A13),'[4]2021-22 Rev Final'!$A:$CL,81,FALSE),0) -> 1281342 | E13: =IFERROR(VLOOKUP(TRIM(A13),[5]Sheet1!$A:$E,5,FALSE),0) -> 1656815.58 | F13: =IFERROR(VLOOKUP(TRIM(A13),[5]Sheet1!$A:$E,4,FALSE),0) -> 1277371.89 | G13: =IFERROR(VLOOKUP(TRIM(A13),'[6]2021-22 Final'!$B:$X,18,FALSE),0) -> 155613 | H13: 0.03480257196 | I13: =IF(AND(H13>=[2]Assumptions!$E$56,H13<[2]Assumptions!$E$57),[2]Assumptions!$B$61,IF(AND(H13>=[2]Assumptions!$E$57,H13<[2]Assumptions!$E$58),[2]Assumptions!$B$60,IF(AND(H13>=[2]Assumptions!$E$58,H13<[2]Assumptions!$E$59),[2]Assumptions!$B$59,IF(AND(H13>=[2]Assumptions!$E$59,H13<[2]Assumptions!$E$60),[2]Assumptions!$B$58,IF(AND(H13>=[2]Assumptions!$E$60,H13<=[2]Assumptions!$E$61),[2]Assumptions!$B$57,0))))) -> 0.95
A14: 04228 | B14: CASCADE | C14: =IFERROR(VLOOKUP(TRIM(A14),[3]iGRANTS!$B:$E,3,FALSE),0) + IFERROR(VLOOKUP(TRIM(A14),[3]iGRANTS!$G:$I,3,FALSE),0) -> 19813 | D14: =IFERROR(VLOOKUP(TRIM(A14),'[4]2021-22 Rev Final'!$A:$CL,81,FALSE),0) -> 432551 | E14: =IFERROR(VLOOKUP(TRIM(A14),[5]Sheet1!$A:$E,5,FALSE),0) -> 330877.24 | F14: =IFERROR(VLOOKUP(TRIM(A14),[5]Sheet1!$A:$E,4,FALSE),0) -> 228052.67 | G14: =IFERROR(VLOOKUP(TRIM(A14),'[6]2021-22 Final'!$B:$X,18,FALSE),0) -> 32840 | H14: 0.03145190448 | I14: =IF(AND(H14>=[2]Assumptions!$E$56,H14<[2]Assumptions!$E$57),[2]Assumptions!$B$61,IF(AND(H14>=[2]Assumptions!$E$57,H14<[2]Assumptions!$E$58),[2]Assumptions!$B$60,IF(AND(H14>=[2]Assumptions!$E$58,H14<[2]Assumptions!$E$59),[2]Assumptions!$B$59,IF(AND(H14>=[2]Assumptions!$E$59,H14<[2]Assumptions!$E$60),[2]Assumptions!$B$58,IF(AND(H14>=[2]Assumptions!$E$60,H14<=[2]Assumptions!$E$61),[2]Assumptions!$B$57,0))))) -> 0.95
A15: 04222 | B15: CASHMERE | C15: =IFERROR(VLOOKUP(TRIM(A15),[3]iGRANTS!$B:$E,3,FALSE),0) + IFERROR(VLOOKUP(TRIM(A15),[3]iGRANTS!$G:$I,3,FALSE),0) -> 28646 | D15: =IFERROR(VLOOKUP(TRIM(A15),'[4]2021-22 Rev Final'!$A:$CL,81,FALSE),0) -> 397676 | E15: =IFERROR(VLOOKUP(TRIM(A15),[5]Sheet1!$A:$E,5,FALSE),0) -> 417887.4 | F15: =IFERROR(VLOOKUP(TRIM(A15),[5]Sheet1!$A:$E,4,FALSE),0) -> 309235.72 | G15: =IFERROR(VLOOKUP(TRIM(A15),'[6]2021-22 Final'!$B:$X,18,FALSE),0) -> 140935 | H15: 0.1088822347 | I15: =IF(AND(H15>=[2]Assumptions!$E$56,H15<[2]Assumptions!$E$57),[2]Assumptions!$B$61,IF(AND(H15>=[2]Assumptions!$E$57,H15<[2]Assumptions!$E$58),[2]Assumptions!$B$60,IF(AND(H15>=[2]Assumptions!$E$58,H15<[2]Assumptions!$E$59),[2]Assumptions!$B$59,IF(AND(H15>=[2]Assumptions!$E$59,H15<[2]Assumptions!$E$60),[2]Assumptions!$B$58,IF(AND(H15>=[2]Assumptions!$E$60,H15<=[2]Assumptions!$E$61),[2]Assumptions!$B$57,0))))) -> 1.15
A16: 18401 | B16: CENTRAL KITSAP | C16: =IFERROR(VLOOKUP(TRIM(A16),[3]iGRANTS!$B:$E,3,FALSE),0) + IFERROR(VLOOKUP(TRIM(A16),[3]iGRANTS!$G:$I,3,FALSE),0) -> 52189 | D16: =IFERROR(VLOOKUP(TRIM(A16),'[4]2021-22 Rev Final'!$A:$CL,81,FALSE),0) -> 1250820 | E16: =IFERROR(VLOOKUP(TRIM(A16),[5]Sheet1!$A:$E,5,FALSE),0) -> 2939548.91 | F16: =IFERROR(VLOOKUP(TRIM(A16),[5]Sheet1!$A:$E,4,FALSE),0) -> 751988.19 | G16: =IFERROR(VLOOKUP(TRIM(A16),'[6]2021-22 Final'!$B:$X,18,FALSE),0) -> 0 | H16: 0 | I16: =IF(AND(H16>=[2]Assumptions!$E$56,H16<[2]Assumptions!$E$57),[2]Assumptions!$B$61,IF(AND(H16>=[2]Assumptions!$E$57,H16<[2]Assumptions!$E$58),[2]Assumptions!$B$60,IF(AND(H16>=[2]Assumptions!$E$58,H16<[2]Assumptions!$E$59),[2]Assumptions!$B$59,IF(AND(H16>=[2]Assumptions!$E$59,H16<[2]Assumptions!$E$60),[2]Assumptions!$B$58,IF(AND(H16>=[2]Assumptions!$E$60,H16<=[2]Assumptions!$E$61),[2]Assumptions!$B$57,0))))) -> 0
A17: 32356 | B17: CENTRAL VALLEY | C17: =IFERROR(VLOOKUP(TRIM(A17),[3]iGRANTS!$B:$E,3,FALSE),0) + IFERROR(VLOOKUP(TRIM(A17),[3]iGRANTS!$G:$I,3,FALSE),0) -> 70103 | D17: =IFERROR(VLOOKUP(TRIM(A17),'[4]2021-22 Rev Final'!$A:$CL,81,FALSE),0) -> 2798634 | E17: =IFERROR(VLOOKUP(TRIM(A17),[5]Sheet1!$A:$E,5,FALSE),0) -> 3540249.48 | F17: =IFERROR(VLOOKUP(TRIM(A17),[5]Sheet1!$A:$E,4,FALSE),0) -> 765941.77 | G17: =IFERROR(VLOOKUP(TRIM(A17),'[6]2021-22 Final'!$B:$X,18,FALSE),0) -> 0 | H17: 0 | I17: =IF(AND(H17>=[2]Assumptions!$E$56,H17<[2]Assumptions!$E$57),[2]Assumptions!$B$61,IF(AND(H17>=[2]Assumptions!$E$57,H17<[2]Assumptions!$E$58),[2]Assumptions!$B$60,IF(AND(H17>=[2]Assumptions!$E$58,H17<[2]Assumptions!$E$59),[2]Assumptions!$B$59,IF(AND(H17>=[2]Assumptions!$E$59,H17<[2]Assumptions!$E$60),[2]Assumptions!$B$58,IF(AND(H17>=[2]Assumptions!$E$60,H17<=[2]Assumptions!$E$61),[2]Assumptions!$B$57,0))))) -> 0
A18: 21401 | B18: CENTRALIA | C18: =IFERROR(VLOOKUP(TRIM(A18),[3]iGRANTS!$B:$E,3,FALSE),0) + IFERROR(VLOOKUP(TRIM(A18),[3]iGRANTS!$G:$I,3,FALSE),0) -> 60265 | D18: =IFERROR(VLOOKUP(TRIM(A18),'[4]2021-22 Rev Final'!$A:$CL,81,FALSE),0) -> 1200611 | E18: =IFERROR(VLOOKUP(TRIM(A18),[5]Sheet1!$A:$E,5,FALSE),0) -> 2557303.41 | F18: =IFERROR(VLOOKUP(TRIM(A18),[5]Sheet1!$A:$E,4,FALSE),0) -> 722695.37 | G18: =IFERROR(VLOOKUP(TRIM(A18),'[6]2021-22 Final'!$B:$X,18,FALSE),0) -> 51115 | H18: 0.01113134011 | I18: =IF(AND(H18>=[2]Assumptions!$E$56,H18<[2]Assumptions!$E$57),[2]Assumptions!$B$61,IF(AND(H18>=[2]Assumptions!$E$57,H18<[2]Assumptions!$E$58),[2]Assumptions!$B$60,IF(AND(H18>=[2]Assumptions!$E$58,H18<[2]Assumptions!$E$59),[2]Assumptions!$B$59,IF(AND(H18>=[2]Assumptions!$E$59,H18<[2]Assumptions!$E$60),[2]Assumptions!$B$58,IF(AND(H18>=[2]Assumptions!$E$60,H18<=[2]Assumptions!$E$61),[2]Assumptions!$B$57,0))))) -> 0.85
A19: 21302 | B19: CHEHALIS | C19: =IFERROR(VLOOKUP(TRIM(A19),[3]iGRANTS!$B:$E,3,FALSE),0) + IFERROR(VLOOKUP(TRIM(A19),[3]iGRANTS!$G:$I,3,FALSE),0) -> 16016 | D19: =IFERROR(VLOOKUP(TRIM(A19),'[4]2021-22 Rev Final'!$A:$CL,81,FALSE),0) -> 457793 | E19: =IFERROR(VLOOKUP(TRIM(A19),[5]Sheet1!$A:$E,5,FALSE),0) -> 1227436.62 | F19: =IFERROR(VLOOKUP(TRIM(A19),[5]Sheet1!$A:$E,4,FALSE),0) -> 181025.73 | G19: =IFERROR(VLOOKUP(TRIM(A19),'[6]2021-22 Final'!$B:$X,18,FALSE),0) -> 17532 | H19: 0.009228323553 | I19: =IF(AND(H19>=[2]Assumptions!$E$56,H19<[2]Assumptions!$E$57),[2]Assumptions!$B$61,IF(AND(H19>=[2]Assumptions!$E$57,H19<[2]Assumptions!$E$58),[2]Assumptions!$B$60,IF(AND(H19>=[2]Assumptions!$E$58,H19<[2]Assumptions!$E$59),[2]Assumptions!$B$59,IF(AND(H19>=[2]Assumptions!$E$59,H19<[2]Assumptions!$E$60),[2]Assumptions!$B$58,IF(AND(H19>=[2]Assumptions!$E$60,H19<=[2]Assumptions!$E$61),[2]Assumptions!$B$57,0))))) -> 0.85
A20: 32360 | B20: CHENEY | C20: =IFERROR(VLOOKUP(TRIM(A20),[3]iGRANTS!$B:$E,3,FALSE),0) + IFERROR(VLOOKUP(TRIM(A20),[3]iGRANTS!$G:$I,3,FALSE),0) -> 27844 | D20: =IFERROR(VLOOKUP(TRIM(A20),'[4]2021-22 Rev Final'!$A:$CL,81,FALSE),0) -> 911337 | E20: =IFERROR(VLOOKUP(TRIM(A20),[5]Sheet1!$A:$E,5,FALSE),0) -> 1851131.94 | F20: =IFERROR(VLOOKUP(TRIM(A20),[5]Sheet1!$A:$E,4,FALSE),0) -> 391427.96 | G20: =IFERROR(VLOOKUP(TRIM(A20),'[6]2021-22 Final'!$B:$X,18,FALSE),0) -> 0 | H20: 0 | I20: =IF(AND(H20>=[2]Assumptions!$E$56,H20<[2]Assumptions!$E$57),[2]Assumptions!$B$61,IF(AND(H20>=[2]Assumptions!$E$57,H20<[2]Assumptions!$E$58),[2]Assumptions!$B$60,IF(AND(H20>=[2]Assumptions!$E$58,H20<[2]Assumptions!$E$59),[2]Assumptions!$B$59,IF(AND(H20>=[2]Assumptions!$E$59,H20<[2]Assumptions!$E$60),[2]Assumptions!$B$58,IF(AND(H20>=[2]Assumptions!$E$60,H20<=[2]Assumptions!$E$61),[2]Assumptions!$B$57,0))))) -> 0
A21: 27901 | B21: CHIEF LESCHI TRIBAL COMPACT | C21: =IFERROR(VLOOKUP(TRIM(A21),[3]iGRANTS!$B:$E,3,FALSE),0) + IFERROR(VLOOKUP(TRIM(A21),[3]iGRANTS!$G:$I,3,FALSE),0) -> 0 | D21: =IFERROR(VLOOKUP(TRIM(A21),'[4]2021-22 Rev Final'!$A:$CL,81,FALSE),0) -> 0 | E21: =IFERROR(VLOOKUP(TRIM(A21),[5]Sheet1!$A:$E,5,FALSE),0) -> 0 | F21: =IFERROR(VLOOKUP(TRIM(A21),[5]Sheet1!$A:$E,4,FALSE),0) -> 0 | G21: =IFERROR(VLOOKUP(TRIM(A21),'[6]2021-22 Final'!$B:$X,18,FALSE),0) -> 5607 | H21: 1 | I21: =IF(AND(H21>=[2]Assumptions!$E$56,H21<[2]Assumptions!$E$57),[2]Assumptions!$B$61,IF(AND(H21>=[2]Assumptions!$E$57,H21<[2]Assumptions!$E$58),[2]Assumptions!$B$60,IF(AND(H21>=[2]Assumptions!$E$58,H21<[2]Assumptions!$E$59),[2]Assumptions!$B$59,IF(AND(H21>=[2]Assumptions!$E$59,H21<[2]Assumptions!$E$60),[2]Assumptions!$B$58,IF(AND(H21>=[2]Assumptions!$E$60,H21<=[2]Assumptions!$E$61),[2]Assumptions!$B$57,0))))) -> 0
A22: 27400 | B22: CLOVER PARK | C22: =IFERROR(VLOOKUP(TRIM(A22),[3]iGRANTS!$B:$E,3,FALSE),0) + IFERROR(VLOOKUP(TRIM(A22),[3]iGRANTS!$G:$I,3,FALSE),0) -> 225889 | D22: =IFERROR(VLOOKUP(TRIM(A22),'[4]2021-22 Rev Final'!$A:$CL,81,FALSE),0) -> 4625743 | E22: =IFERROR(VLOOKUP(TRIM(A22),[5]Sheet1!$A:$E,5,FALSE),0) -> 8177721.28 | F22: =IFERROR(VLOOKUP(TRIM(A22),[5]Sheet1!$A:$E,4,FALSE),0) -> 2681030.91 | G22: =IFERROR(VLOOKUP(TRIM(A22),'[6]2021-22 Final'!$B:$X,18,FALSE),0) -> 0 | H22: 0 | I22: =IF(AND(H22>=[2]Assumptions!$E$56,H22<[2]Assumptions!$E$57),[2]Assumptions!$B$61,IF(AND(H22>=[2]Assumptions!$E$57,H22<[2]Assumptions!$E$58),[2]Assumptions!$B$60,IF(AND(H22>=[2]Assumptions!$E$58,H22<[2]Assumptions!$E$59),[2]Assumptions!$B$59,IF(AND(H22>=[2]Assumptions!$E$59,H22<[2]Assumptions!$E$60),[2]Assumptions!$B$58,IF(AND(H22>=[2]Assumptions!$E$60,H22<=[2]Assumptions!$E$61),[2]Assumptions!$B$57,0))))) -> 0
A23: 36250 | B23: COLLEGE PLACE | C23: =IFERROR(VLOOKUP(TRIM(A23),[3]iGRANTS!$B:$E,3,FALSE),0) + IFERROR(VLOOKUP(TRIM(A23),[3]iGRANTS!$G:$I,3,FALSE),0) -> 42441 | D23: =IFERROR(VLOOKUP(TRIM(A23),'[4]2021-22 Rev Final'!$A:$CL,81,FALSE),0) -> 377073 | E23: =IFERROR(VLOOKUP(TRIM(A23),[5]Sheet1!$A:$E,5,FALSE),0) -> 965140.13 | F23: =IFERROR(VLOOKUP(TRIM(A23),[5]Sheet1!$A:$E,4,FALSE),0) -> 451396.3 | G23: =IFERROR(VLOOKUP(TRIM(A23),'[6]2021-22 Final'!$B:$X,18,FALSE),0) -> 48985 | H23: 0.02598624897 | I23: =IF(AND(H23>=[2]Assumptions!$E$56,H23<[2]Assumptions!$E$57),[2]Assumptions!$B$61,IF(AND(H23>=[2]Assumptions!$E$57,H23<[2]Assumptions!$E$58),[2]Assumptions!$B$60,IF(AND(H23>=[2]Assumptions!$E$58,H23<[2]Assumptions!$E$59),[2]Assumptions!$B$59,IF(AND(H23>=[2]Assumptions!$E$59,H23<[2]Assumptions!$E$60),[2]Assumptions!$B$58,IF(AND(H23>=[2]Assumptions!$E$60,H23<=[2]Assumptions!$E$61),[2]Assumptions!$B$57,0))))) -> 0.95
A24: 36400 | B24: COLUMBIA (WALLA WALLA) | C24: =IFERROR(VLOOKUP(TRIM(A24),[3]iGRANTS!$B:$E,3,FALSE),0) + IFERROR(VLOOKUP(TRIM(A24),[3]iGRANTS!$G:$I,3,FALSE),0) -> 15673 | D24: =IFERROR(VLOOKUP(TRIM(A24),'[4]2021-22 Rev Final'!$A:$CL,81,FALSE),0) -> 283444 | E24: =IFERROR(VLOOKUP(TRIM(A24),[5]Sheet1!$A:$E,5,FALSE),0) -> 452922.3 | F24: =IFERROR(VLOOKUP(TRIM(A24),[5]Sheet1!$A:$E,4,FALSE),0) -> 213749.63 | G24: =IFERROR(VLOOKUP(TRIM(A24),'[6]2021-22 Final'!$B:$X,18,FALSE),0) -> 25396 | H24: 0.02562185848 | I24: =IF(AND(H24>=[2]Assumptions!$E$56,H24<[2]Assumptions!$E$57),[2]Assumptions!$B$61,IF(AND(H24>=[2]Assumptions!$E$57,H24<[2]Assumptions!$E$58),[2]Assumptions!$B$60,IF(AND(H24>=[2]Assumptions!$E$58,H24<[2]Assumptions!$E$59),[2]Assumptions!$B$59,IF(AND(H24>=[2]Assumptions!$E$59,H24<[2]Assumptions!$E$60),[2]Assumptions!$B$58,IF(AND(H24>=[2]Assumptions!$E$60,H24<=[2]Assumptions!$E$61),[2]Assumptions!$B$57,0))))) -> 0.95
A25: 29317 | B25: CONWAY | C25: =IFERROR(VLOOKUP(TRIM(A25),[3]iGRANTS!$B:$E,3,FALSE),0) + IFERROR(VLOOKUP(TRIM(A25),[3]iGRANTS!$G:$I,3,FALSE),0) -> 0 | D25: =IFERROR(VLOOKUP(TRIM(A25),'[4]2021-22 Rev Final'!$A:$CL,81,FALSE),0) -> 62253 | E25: =IFERROR(VLOOKUP(TRIM(A25),[5]Sheet1!$A:$E,5,FALSE),0) -> 57124.91 | F25: =IFERROR(VLOOKUP(TRIM(A25),[5]Sheet1!$A:$E,4,FALSE),0) -> 47480.89 | G25: =IFERROR(VLOOKUP(TRIM(A25),'[6]2021-22 Final'!$B:$X,18,FALSE),0) -> 23304 | H25: 0.1225476276 | I25: =IF(AND(H25>=[2]Assumptions!$E$56,H25<[2]Assumptions!$E$57),[2]Assumptions!$B$61,IF(AND(H25>=[2]Assumptions!$E$57,H25<[2]Assumptions!$E$58),[2]Assumptions!$B$60,IF(AND(H25>=[2]Assumptions!$E$58,H25<[2]Assumptions!$E$59),[2]Assumptions!$B$59,IF(AND(H25>=[2]Assumptions!$E$59,H25<[2]Assumptions!$E$60),[2]Assumptions!$B$58,IF(AND(H25>=[2]Assumptions!$E$60,H25<=[2]Assumptions!$E$61),[2]Assumptions!$B$57,0))))) -> 1.15
A26: 15204 | B26: COUPEVILLE | C26: =IFERROR(VLOOKUP(TRIM(A26),[3]iGRANTS!$B:$E,3,FALSE),0) + IFERROR(VLOOKUP(TRIM(A26),[3]iGRANTS!$G:$I,3,FALSE),0) -> 0 | D26: =IFERROR(VLOOKUP(TRIM(A26),'[4]2021-22 Rev Final'!$A:$CL,81,FALSE),0) -> 223375 | E26: =IFERROR(VLOOKUP(TRIM(A26),[5]Sheet1!$A:$E,5,FALSE),0) -> 228952.55 | F26: =IFERROR(VLOOKUP(TRIM(A26),[5]Sheet1!$A:$E,4,FALSE),0) -> 61266.65 | G26: =IFERROR(VLOOKUP(TRIM(A26),'[6]2021-22 Final'!$B:$X,18,FALSE),0) -> 5361 | H26: 0.01033037148 | I26: =IF(AND(H26>=[2]Assumptions!$E$56,H26<[2]Assumptions!$E$57),[2]Assumptions!$B$61,IF(AND(H26>=[2]Assumptions!$E$57,H26<[2]Assumptions!$E$58),[2]Assumptions!$B$60,IF(AND(H26>=[2]Assumptions!$E$58,H26<[2]Assumptions!$E$59),[2]Assumptions!$B$59,IF(AND(H26>=[2]Assumptions!$E$59,H26<[2]Assumptions!$E$60),[2]Assumptions!$B$58,IF(AND(H26>=[2]Assumptions!$E$60,H26<=[2]Assumptions!$E$61),[2]Assumptions!$B$57,0))))) -> 0.85
A27: 39090 | B27: EAST VALLEY (YAKIMA) | C27: =IFERROR(VLOOKUP(TRIM(A27),[3]iGRANTS!$B:$E,3,FALSE),0) + IFERROR(VLOOKUP(TRIM(A27),[3]iGRANTS!$G:$I,3,FALSE),0) -> 47429 | D27: =IFERROR(VLOOKUP(TRIM(A27),'[4]2021-22 Rev Final'!$A:$CL,81,FALSE),0) -> 713563 | E27: =IFERROR(VLOOKUP(TRIM(A27),[5]Sheet1!$A:$E,5,FALSE),0) -> 1987024.43 | F27: =IFERROR(VLOOKUP(TRIM(A27),[5]Sheet1!$A:$E,4,FALSE),0) -> 540579.97 | G27: =IFERROR(VLOOKUP(TRIM(A27),'[6]2021-22 Final'!$B:$X,18,FALSE),0) -> 0 | H27: 0 | I27: =IF(AND(H27>=[2]Assumptions!$E$56,H27<[2]Assumptions!$E$57),[2]Assumptions!$B$61,IF(AND(H27>=[2]Assumptions!$E$57,H27<[2]Assumptions!$E$58),[2]Assumptions!$B$60,IF(AND(H27>=[2]Assumptions!$E$58,H27<[2]Assumptions!$E$59),[2]Assumptions!$B$59,IF(AND(H27>=[2]Assumptions!$E$59,H27<[2]Assumptions!$E$60),[2]Assumptions!$B$58,IF(AND(H27>=[2]Assumptions!$E$60,H27<=[2]Assumptions!$E$61),[2]Assumptions!$B$57,0))))) -> 0
A28: 09206 | B28: EASTMONT | C28: =IFERROR(VLOOKUP(TRIM(A28),[3]iGRANTS!$B:$E,3,FALSE),0) + IFERROR(VLOOKUP(TRIM(A28),[3]iGRANTS!$G:$I,3,FALSE),0) -> 141213 | D28: =IFERROR(VLOOKUP(TRIM(A28),'[4]2021-22 Rev Final'!$A:$CL,81,FALSE),0) -> 1393249 | E28: =IFERROR(VLOOKUP(TRIM(A28),[5]Sheet1!$A:$E,5,FALSE),0) -> 3699133.16 | F28: =IFERROR(VLOOKUP(TRIM(A28),[5]Sheet1!$A:$E,4,FALSE),0) -> 1642017.7 | G28: =IFERROR(VLOOKUP(TRIM(A28),'[6]2021-22 Final'!$B:$X,18,FALSE),0) -> 511986 | H28: 0.06930343806 | I28: =IF(AND(H28>=[2]Assumptions!$E$56,H28<[2]Assumptions!$E$57),[2]Assumptions!$B$61,IF(AND(H28>=[2]Assumptions!$E$57,H28<[2]Assumptions!$E$58),[2]Assumptions!$B$60,IF(AND(H28>=[2]Assumptions!$E$58,H28<[2]Assumptions!$E$59),[2]Assumptions!$B$59,IF(AND(H28>=[2]Assumptions!$E$59,H28<[2]Assumptions!$E$60),[2]Assumptions!$B$58,IF(AND(H28>=[2]Assumptions!$E$60,H28<=[2]Assumptions!$E$61),[2]Assumptions!$B$57,0))))) -> 1.05
A29: 31015 | B29: EDMONDS | C29: =IFERROR(VLOOKUP(TRIM(A29),[3]iGRANTS!$B:$E,3,FALSE),0) + IFERROR(VLOOKUP(TRIM(A29),[3]iGRANTS!$G:$I,3,FALSE),0) -> 427780 | D29: =IFERROR(VLOOKUP(TRIM(A29),'[4]2021-22 Rev Final'!$A:$CL,81,FALSE),0) -> 3233897 | E29: =IFERROR(VLOOKUP(TRIM(A29),[5]Sheet1!$A:$E,5,FALSE),0) -> 5727712.48 | F29: =IFERROR(VLOOKUP(TRIM(A29),[5]Sheet1!$A:$E,4,FALSE),0) -> 5854510.76 | G29: =IFERROR(VLOOKUP(TRIM(A29),'[6]2021-22 Final'!$B:$X,18,FALSE),0) -> 0 | H29: 0 | I29: =IF(AND(H29>=[2]Assumptions!$E$56,H29<[2]Assumptions!$E$57),[2]Assumptions!$B$61,IF(AND(H29>=[2]Assumptions!$E$57,H29<[2]Assumptions!$E$58),[2]Assumptions!$B$60,IF(AND(H29>=[2]Assumptions!$E$58,H29<[2]Assumptions!$E$59),[2]Assumptions!$B$59,IF(AND(H29>=[2]Assumptions!$E$59,H29<[2]Assumptions!$E$60),[2]Assumptions!$B$58,IF(AND(H29>=[2]Assumptions!$E$60,H29<=[2]Assumptions!$E$61),[2]Assumptions!$B$57,0))))) -> 0
A30: 19401 | B30: ELLENSBURG | C30: =IFERROR(VLOOKUP(TRIM(A30),[3]iGRANTS!$B:$E,3,FALSE),0) + IFERROR(VLOOKUP(TRIM(A30),[3]iGRANTS!$G:$I,3,FALSE),0) -> 32512 | D30: =IFERROR(VLOOKUP(TRIM(A30),'[4]2021-22 Rev Final'!$A:$CL,81,FALSE),0) -> 659864 | E30: =IFERROR(VLOOKUP(TRIM(A30),[5]Sheet1!$A:$E,5,FALSE),0) -> 1002513.04 | F30: =IFERROR(VLOOKUP(TRIM(A30),[5]Sheet1!$A:$E,4,FALSE),0) -> 347316.63 | G30: =IFERROR(VLOOKUP(TRIM(A30),'[6]2021-22 Final'!$B:$X,18,FALSE),0) -> 21956 | H30: 0.01063676374 | I30: =IF(AND(H30>=[2]Assumptions!$E$56,H30<[2]Assumptions!$E$57),[2]Assumptions!$B$61,IF(AND(H30>=[2]Assumptions!$E$57,H30<[2]Assumptions!$E$58),[2]Assumptions!$B$60,IF(AND(H30>=[2]Assumptions!$E$58,H30<[2]Assumptions!$E$59),[2]Assumptions!$B$59,IF(AND(H30>=[2]Assumptions!$E$59,H30<[2]Assumptions!$E$60),[2]Assumptions!$B$58,IF(AND(H30>=[2]Assumptions!$E$60,H30<=[2]Assumptions!$E$61),[2]Assumptions!$B$57,0))))) -> 0.85
A31: 14068 | B31: ELMA | C31: =IFERROR(VLOOKUP(TRIM(A31),[3]iGRANTS!$B:$E,3,FALSE),0) + IFERROR(VLOOKUP(TRIM(A31),[3]iGRANTS!$G:$I,3,FALSE),0) -> 16176 | D31: =IFERROR(VLOOKUP(TRIM(A31),'[4]2021-22 Rev Final'!$A:$CL,81,FALSE),0) -> 420396 | E31: =IFERROR(VLOOKUP(TRIM(A31),[5]Sheet1!$A:$E,5,FALSE),0) -> 1138938.06 | F31: =IFERROR(VLOOKUP(TRIM(A31),[5]Sheet1!$A:$E,4,FALSE),0) -> 194254.56 | G31: =IFERROR(VLOOKUP(TRIM(A31),'[6]2021-22 Final'!$B:$X,18,FALSE),0) -> 0 | H31: 0 | I31: =IF(AND(H31>=[2]Assumptions!$E$56,H31<[2]Assumptions!$E$57),[2]Assumptions!$B$61,IF(AND(H31>=[2]Assumptions!$E$57,H31<[2]Assumptions!$E$58),[2]Assumptions!$B$60,IF(AND(H31>=[2]Assumptions!$E$58,H31<[2]Assumptions!$E$59),[2]Assumptions!$B$59,IF(AND(H31>=[2]Assumptions!$E$59,H31<[2]Assumptions!$E$60),[2]Assumptions!$B$58,IF(AND(H31>=[2]Assumptions!$E$60,H31<=[2]Assumptions!$E$61),[2]Assumptions!$B$57,0))))) -> 0
A32: 04127 | B32: ENTIAT | C32: =IFERROR(VLOOKUP(TRIM(A32),[3]iGRANTS!$B:$E,3,FALSE),0) + IFERROR(VLOOKUP(TRIM(A32),[3]iGRANTS!$G:$I,3,FALSE),0) -> 0 | D32: =IFERROR(VLOOKUP(TRIM(A32),'[4]2021-22 Rev Final'!$A:$CL,81,FALSE),0) -> 158499 | E32: =IFERROR(VLOOKUP(TRIM(A32),[5]Sheet1!$A:$E,5,FALSE),0) -> 217297.4 | F32: =IFERROR(VLOOKUP(TRIM(A32),[5]Sheet1!$A:$E,4,FALSE),0) -> 80566.41 | G32: =IFERROR(VLOOKUP(TRIM(A32),'[6]2021-22 Final'!$B:$X,18,FALSE),0) -> 0 | H32: 0 | I32: =IF(AND(H32>=[2]Assumptions!$E$56,H32<[2]Assumptions!$E$57),[2]Assumptions!$B$61,IF(AND(H32>=[2]Assumptions!$E$57,H32<[2]Assumptions!$E$58),[2]Assumptions!$B$60,IF(AND(H32>=[2]Assumptions!$E$58,H32<[2]Assumptions!$E$59),[2]Assumptions!$B$59,IF(AND(H32>=[2]Assumptions!$E$59,H32<[2]Assumptions!$E$60),[2]Assumptions!$B$58,IF(AND(H32>=[2]Assumptions!$E$60,H32<=[2]Assumptions!$E$61),[2]Assumptions!$B$57,0))))) -> 0
A33: 13165 | B33: EPHRATA | C33: =IFERROR(VLOOKUP(TRIM(A33),[3]iGRANTS!$B:$E,3,FALSE),0) + IFERROR(VLOOKUP(TRIM(A33),[3]iGRANTS!$G:$I,3,FALSE),0) -> 47682 | D33: =IFERROR(VLOOKUP(TRIM(A33),'[4]2021-22 Rev Final'!$A:$CL,81,FALSE),0) -> 551228 | E33: =IFERROR(VLOOKUP(TRIM(A33),[5]Sheet1!$A:$E,5,FALSE),0) -> 1442607.63 | F33: =IFERROR(VLOOKUP(TRIM(A33),[5]Sheet1!$A:$E,4,FALSE),0) -> 576596.82 | G33: =IFERROR(VLOOKUP(TRIM(A33),'[6]2021-22 Final'!$B:$X,18,FALSE),0) -> 114523 | H33: 0.04190932829 | I33: =IF(AND(H33>=[2]Assumptions!$E$56,H33<[2]Assumptions!$E$57),[2]Assumptions!$B$61,IF(AND(H33>=[2]Assumptions!$E$57,H33<[2]Assumptions!$E$58),[2]Assumptions!$B$60,IF(AND(H33>=[2]Assumptions!$E$58,H33<[2]Assumptions!$E$59),[2]Assumptions!$B$59,IF(AND(H33>=[2]Assumptions!$E$59,H33<[2]Assumptions!$E$60),[2]Assumptions!$B$58,IF(AND(H33>=[2]Assumptions!$E$60,H33<=[2]Assumptions!$E$61),[2]Assumptions!$B$57,0))))) -> 1
A34: 31002 | B34: EVERETT | C34: =IFERROR(VLOOKUP(TRIM(A34),[3]iGRANTS!$B:$E,3,FALSE),0) + IFERROR(VLOOKUP(TRIM(A34),[3]iGRANTS!$G:$I,3,FALSE),0) -> 438098 | D34: =IFERROR(VLOOKUP(TRIM(A34),'[4]2021-22 Rev Final'!$A:$CL,81,FALSE),0) -> 3108318 | E34: =IFERROR(VLOOKUP(TRIM(A34),[5]Sheet1!$A:$E,5,FALSE),0) -> 7603275.11 | F34: =IFERROR(VLOOKUP(TRIM(A34),[5]Sheet1!$A:$E,4,FALSE),0) -> 5796356.23 | G34: =IFERROR(VLOOKUP(TRIM(A34),'[6]2021-22 Final'!$B:$X,18,FALSE),0) -> 0 | H34: =IFERROR(G34/SUM(C34:G34),0) -> 0 | I34: =IF(AND(H34>=[2]Assumptions!$E$56,H34<[2]Assumptions!$E$57),[2]Assumptions!$B$61,IF(AND(H34>=[2]Assumptions!$E$57,H34<[2]Assumptions!$E$58),[2]Assumptions!$B$60,IF(AND(H34>=[2]Assumptions!$E$58,H34<[2]Assumptions!$E$59),[2]Assumptions!$B$59,IF(AND(H34>=[2]Assumptions!$E$59,H34<[2]Assumptions!$E$60),[2]Assumptions!$B$58,IF(AND(H34>=[2]Assumptions!$E$60,H34<=[2]Assumptions!$E$61),[2]Assumptions!$B$57,0))))) -> 0
A35: 06114 | B35: EVERGREEN (CLARK) | C35: =IFERROR(VLOOKUP(TRIM(A35),[3]iGRANTS!$B:$E,3,FALSE),0) + IFERROR(VLOOKUP(TRIM(A35),[3]iGRANTS!$G:$I,3,FALSE),0) -> 465827 | D35: =IFERROR(VLOOKUP(TRIM(A35),'[4]2021-22 Rev Final'!$A:$CL,81,FALSE),0) -> 6812654 | E35: =IFERROR(VLOOKUP(TRIM(A35),[5]Sheet1!$A:$E,5,FALSE),0) -> 11519257.67 | F35: =IFERROR(VLOOKUP(TRIM(A35),[5]Sheet1!$A:$E,4,FALSE),0) -> 5388163.93 | G35: =IFERROR(VLOOKUP(TRIM(A35),'[6]2021-22 Final'!$B:$X,18,FALSE),0) -> 0 | H35: 0 | I35: =IF(AND(H35>=[2]Assumptions!$E$56,H35<[2]Assumptions!$E$57),[2]Assumptions!$B$61,IF(AND(H35>=[2]Assumptions!$E$57,H35<[2]Assumptions!$E$58),[2]Assumptions!$B$60,IF(AND(H35>=[2]Assumptions!$E$58,H35<[2]Assumptions!$E$59),[2]Assumptions!$B$59,IF(AND(H35>=[2]Assumptions!$E$59,H35<[2]Assumptions!$E$60),[2]Assumptions!$B$58,IF(AND(H35>=[2]Assumptions!$E$60,H35<=[2]Assumptions!$E$61),[2]Assumptions!$B$57,0))))) -> 0
A36: 17210 | B36: FEDERAL WAY | C36: =IFERROR(VLOOKUP(TRIM(A36),[3]iGRANTS!$B:$E,3,FALSE),0) + IFERROR(VLOOKUP(TRIM(A36),[3]iGRANTS!$G:$I,3,FALSE),0) -> 674030 | D36: =IFERROR(VLOOKUP(TRIM(A36),'[4]2021-22 Rev Final'!$A:$CL,81,FALSE),0) -> 6768344 | E36: =IFERROR(VLOOKUP(TRIM(A36),[5]Sheet1!$A:$E,5,FALSE),0) -> 15289179.45 | F36: =IFERROR(VLOOKUP(TRIM(A36),[5]Sheet1!$A:$E,4,FALSE),0) -> 8521099.26 | G36: =IFERROR(VLOOKUP(TRIM(A36),'[6]2021-22 Final'!$B:$X,18,FALSE),0) -> 0 | H36: 0 | I36: =IF(AND(H36>=[2]Assumptions!$E$56,H36<[2]Assumptions!$E$57),[2]Assumptions!$B$61,IF(AND(H36>=[2]Assumptions!$E$57,H36<[2]Assumptions!$E$58),[2]Assumptions!$B$60,IF(AND(H36>=[2]Assumptions!$E$58,H36<[2]Assumptions!$E$59),[2]Assumptions!$B$59,IF(AND(H36>=[2]Assumptions!$E$59,H36<[2]Assumptions!$E$60),[2]Assumptions!$B$58,IF(AND(H36>=[2]Assumptions!$E$60,H36<=[2]Assumptions!$E$61),[2]Assumptions!$B$57,0))))) -> 0
A37: 37502 | B37: FERNDALE | C37: =IFERROR(VLOOKUP(TRIM(A37),[3]iGRANTS!$B:$E,3,FALSE),0) + IFERROR(VLOOKUP(TRIM(A37),[3]iGRANTS!$G:$I,3,FALSE),0) -> 0 | D37: =IFERROR(VLOOKUP(TRIM(A37),'[4]2021-22 Rev Final'!$A:$CL,81,FALSE),0) -> 1041645 | E37: =IFERROR(VLOOKUP(TRIM(A37),[5]Sheet1!$A:$E,5,FALSE),0) -> 1729436.79 | F37: =IFERROR(VLOOKUP(TRIM(A37),[5]Sheet1!$A:$E,4,FALSE),0) -> 586523.02 | G37: =IFERROR(VLOOKUP(TRIM(A37),'[6]2021-22 Final'!$B:$X,18,FALSE),0) -> 88174 | H37: 0.02558899014 | I37: =IF(AND(H37>=[2]Assumptions!$E$56,H37<[2]Assumptions!$E$57),[2]Assumptions!$B$61,IF(AND(H37>=[2]Assumptions!$E$57,H37<[2]Assumptions!$E$58),[2]Assumptions!$B$60,IF(AND(H37>=[2]Assumptions!$E$58,H37<[2]Assumptions!$E$59),[2]Assumptions!$B$59,IF(AND(H37>=[2]Assumptions!$E$59,H37<[2]Assumptions!$E$60),[2]Assumptions!$B$58,IF(AND(H37>=[2]Assumptions!$E$60,H37<=[2]Assumptions!$E$61),[2]Assumptions!$B$57,0))))) -> 0.95
A38: 03053 | B38: FINLEY | C38: =IFERROR(VLOOKUP(TRIM(A38),[3]iGRANTS!$B:$E,3,FALSE),0) + IFERROR(VLOOKUP(TRIM(A38),[3]iGRANTS!$G:$I,3,FALSE),0) -> 25283 | D38: =IFERROR(VLOOKUP(TRIM(A38),'[4]2021-22 Rev Final'!$A:$CL,81,FALSE),0) -> 388276 | E38: =IFERROR(VLOOKUP(TRIM(A38),[5]Sheet1!$A:$E,5,FALSE),0) -> 665570.02 | F38: =IFERROR(VLOOKUP(TRIM(A38),[5]Sheet1!$A:$E,4,FALSE),0) -> 255153.76 | G38: =IFERROR(VLOOKUP(TRIM(A38),'[6]2021-22 Final'!$B:$X,18,FALSE),0) -> 36335 | H38: 0.02650994357 | I38: =IF(AND(H38>=[2]Assumptions!$E$56,H38<[2]Assumptions!$E$57),[2]Assumptions!$B$61,IF(AND(H38>=[2]Assumptions!$E$57,H38<[2]Assumptions!$E$58),[2]Assumptions!$B$60,IF(AND(H38>=[2]Assumptions!$E$58,H38<[2]Assumptions!$E$59),[2]Assumptions!$B$59,IF(AND(H38>=[2]Assumptions!$E$59,H38<[2]Assumptions!$E$60),[2]Assumptions!$B$58,IF(AND(H38>=[2]Assumptions!$E$60,H38<=[2]Assumptions!$E$61),[2]Assumptions!$B$57,0))))) -> 0.95
A39: 27402 | B39: FRANKLIN PIERCE | C39: =IFERROR(VLOOKUP(TRIM(A39),[3]iGRANTS!$B:$E,3,FALSE),0) + IFERROR(VLOOKUP(TRIM(A39),[3]iGRANTS!$G:$I,3,FALSE),0) -> 123732 | D39: =IFERROR(VLOOKUP(TRIM(A39),'[4]2021-22 Rev Final'!$A:$CL,81,FALSE),0) -> 2898300 | E39: =IFERROR(VLOOKUP(TRIM(A39),[5]Sheet1!$A:$E,5,FALSE),0) -> 5764366.57 | F39: =IFERROR(VLOOKUP(TRIM(A39),[5]Sheet1!$A:$E,4,FALSE),0) -> 1512000.26 | G39: =IFERROR(VLOOKUP(TRIM(A39),'[6]2021-22 Final'!$B:$X,18,FALSE),0) -> 0 | H39: 0 | I39: =IF(AND(H39>=[2]Assumptions!$E$56,H39<[2]Assumptions!$E$57),[2]Assumptions!$B$61,IF(AND(H39>=[2]Assumptions!$E$57,H39<[2]Assumptions!$E$58),[2]Assumptions!$B$60,IF(AND(H39>=[2]Assumptions!$E$58,H39<[2]Assumptions!$E$59),[2]Assumptions!$B$59,IF(AND(H39>=[2]Assumptions!$E$59,H39<[2]Assumptions!$E$60),[2]Assumptions!$B$58,IF(AND(H39>=[2]Assumptions!$E$60,H39<=[2]Assumptions!$E$61),[2]Assumptions!$B$57,0))))) -> 0
A40: 20404 | B40: GOLDENDALE | C40: =IFERROR(VLOOKUP(TRIM(A40),[3]iGRANTS!$B:$E,3,FALSE),0) + IFERROR(VLOOKUP(TRIM(A40),[3]iGRANTS!$G:$I,3,FALSE),0) -> 0 | D40: =IFERROR(VLOOKUP(TRIM(A40),'[4]2021-22 Rev Final'!$A:$CL,81,FALSE),0) -> 393264 | E40: =IFERROR(VLOOKUP(TRIM(A40),[5]Sheet1!$A:$E,5,FALSE),0) -> 714878.76 | F40: =IFERROR(VLOOKUP(TRIM(A40),[5]Sheet1!$A:$E,4,FALSE),0) -> 120705.5 | G40: =IFERROR(VLOOKUP(TRIM(A40),'[6]2021-22 Final'!$B:$X,18,FALSE),0) -> 34693 | H40: 0.02745695855 | I40: =IF(AND(H40>=[2]Assumptions!$E$56,H40<[2]Assumptions!$E$57),[2]Assumptions!$B$61,IF(AND(H40>=[2]Assumptions!$E$57,H40<[2]Assumptions!$E$58),[2]Assumptions!$B$60,IF(AND(H40>=[2]Assumptions!$E$58,H40<[2]Assumptions!$E$59),[2]Assumptions!$B$59,IF(AND(H40>=[2]Assumptions!$E$59,H40<[2]Assumptions!$E$60),[2]Assumptions!$B$58,IF(AND(H40>=[2]Assumptions!$E$60,H40<=[2]Assumptions!$E$61),[2]Assumptions!$B$57,0))))) -> 0.95
A41: 13301 | B41: GRAND COULEE DAM | C41: =IFERROR(VLOOKUP(TRIM(A41),[3]iGRANTS!$B:$E,3,FALSE),0) + IFERROR(VLOOKUP(TRIM(A41),[3]iGRANTS!$G:$I,3,FALSE),0) -> 16382 | D41: =IFERROR(VLOOKUP(TRIM(A41),'[4]2021-22 Rev Final'!$A:$CL,81,FALSE),0) -> 189526 | E41: =IFERROR(VLOOKUP(TRIM(A41),[5]Sheet1!$A:$E,5,FALSE),0) -> 532808.22 | F41: =IFERROR(VLOOKUP(TRIM(A41),[5]Sheet1!$A:$E,4,FALSE),0) -> 0 | G41: =IFERROR(VLOOKUP(TRIM(A41),'[6]2021-22 Final'!$B:$X,18,FALSE),0) -> 0 | H41: 0 | I41: =IF(AND(H41>=[2]Assumptions!$E$56,H41<[2]Assumptions!$E$57),[2]Assumptions!$B$61,IF(AND(H41>=[2]Assumptions!$E$57,H41<[2]Assumptions!$E$58),[2]Assumptions!$B$60,IF(AND(H41>=[2]Assumptions!$E$58,H41<[2]Assumptions!$E$59),[2]Assumptions!$B$59,IF(AND(H41>=[2]Assumptions!$E$59,H41<[2]Assumptions!$E$60),[2]Assumptions!$B$58,IF(AND(H41>=[2]Assumptions!$E$60,H41<=[2]Assumptions!$E$61),[2]Assumptions!$B$57,0))))) -> 0
A42: 39200 | B42: GRANDVIEW | C42: =IFERROR(VLOOKUP(TRIM(A42),[3]iGRANTS!$B:$E,3,FALSE),0) + IFERROR(VLOOKUP(TRIM(A42),[3]iGRANTS!$G:$I,3,FALSE),0) -> 156726 | D42: =IFERROR(VLOOKUP(TRIM(A42),'[4]2021-22 Rev Final'!$A:$CL,81,FALSE),0) -> 1328000 | E42: =IFERROR(VLOOKUP(TRIM(A42),[5]Sheet1!$A:$E,5,FALSE),0) -> 2847774.88 | F42: =IFERROR(VLOOKUP(TRIM(A42),[5]Sheet1!$A:$E,4,FALSE),0) -> 1699391.25 | G42: =IFERROR(VLOOKUP(TRIM(A42),'[6]2021-22 Final'!$B:$X,18,FALSE),0) -> 350565 | H42: 0.05492633838 | I42: =IF(AND(H42>=[2]Assumptions!$E$56,H42<[2]Assumptions!$E$57),[2]Assumptions!$B$61,IF(AND(H42>=[2]Assumptions!$E$57,H42<[2]Assumptions!$E$58),[2]Assumptions!$B$60,IF(AND(H42>=[2]Assumptions!$E$58,H42<[2]Assumptions!$E$59),[2]Assumptions!$B$59,IF(AND(H42>=[2]Assumptions!$E$59,H42<[2]Assumptions!$E$60),[2]Assumptions!$B$58,IF(AND(H42>=[2]Assumptions!$E$60,H42<=[2]Assumptions!$E$61),[2]Assumptions!$B$57,0))))) -> 1
A43: 39204 | B43: GRANGER | C43: =IFERROR(VLOOKUP(TRIM(A43),[3]iGRANTS!$B:$E,3,FALSE),0) + IFERROR(VLOOKUP(TRIM(A43),[3]iGRANTS!$G:$I,3,FALSE),0) -> 78409 | D43: =IFERROR(VLOOKUP(TRIM(A43),'[4]2021-22 Rev Final'!$A:$CL,81,FALSE),0) -> 962129 | E43: =IFERROR(VLOOKUP(TRIM(A43),[5]Sheet1!$A:$E,5,FALSE),0) -> 1224989.33 | F43: =IFERROR(VLOOKUP(TRIM(A43),[5]Sheet1!$A:$E,4,FALSE),0) -> 947480.54 | G43: =IFERROR(VLOOKUP(TRIM(A43),'[6]2021-22 Final'!$B:$X,18,FALSE),0) -> 245048 | H43: 0.07086293837 | I43: =IF(AND(H43>=[2]Assumptions!$E$56,H43<[2]Assumptions!$E$57),[2]Assumptions!$B$61,IF(AND(H43>=[2]Assumptions!$E$57,H43<[2]Assumptions!$E$58),[2]Assumptions!$B$60,IF(AND(H43>=[2]Assumptions!$E$58,H43<[2]Assumptions!$E$59),[2]Assumptions!$B$59,IF(AND(H43>=[2]Assumptions!$E$59,H43<[2]Assumptions!$E$60),[2]Assumptions!$B$58,IF(AND(H43>=[2]Assumptions!$E$60,H43<=[2]Assumptions!$E$61),[2]Assumptions!$B$57,0))))) -> 1.05
A44: 39203 | B44: HIGHLAND | C44: =IFERROR(VLOOKUP(TRIM(A44),[3]iGRANTS!$B:$E,3,FALSE),0) + IFERROR(VLOOKUP(TRIM(A44),[3]iGRANTS!$G:$I,3,FALSE),0) -> 40040 | D44: =IFERROR(VLOOKUP(TRIM(A44),'[4]2021-22 Rev Final'!$A:$CL,81,FALSE),0) -> 302719 | E44: =IFERROR(VLOOKUP(TRIM(A44),[5]Sheet1!$A:$E,5,FALSE),0) -> 831008.65 | F44: =IFERROR(VLOOKUP(TRIM(A44),[5]Sheet1!$A:$E,4,FALSE),0) -> 476094.8 | G44: =IFERROR(VLOOKUP(TRIM(A44),'[6]2021-22 Final'!$B:$X,18,FALSE),0) -> 107338 | H44: 0.06108466453 | I44: =IF(AND(H44>=[2]Assumptions!$E$56,H44<[2]Assumptions!$E$57),[2]Assumptions!$B$61,IF(AND(H44>=[2]Assumptions!$E$57,H44<[2]Assumptions!$E$58),[2]Assumptions!$B$60,IF(AND(H44>=[2]Assumptions!$E$58,H44<[2]Assumptions!$E$59),[2]Assumptions!$B$59,IF(AND(H44>=[2]Assumptions!$E$59,H44<[2]Assumptions!$E$60),[2]Assumptions!$B$58,IF(AND(H44>=[2]Assumptions!$E$60,H44<=[2]Assumptions!$E$61),[2]Assumptions!$B$57,0))))) -> 1
A45: 17401 | B45: HIGHLINE | C45: =IFERROR(VLOOKUP(TRIM(A45),[3]iGRANTS!$B:$E,3,FALSE),0) + IFERROR(VLOOKUP(TRIM(A45),[3]iGRANTS!$G:$I,3,FALSE),0) -> 852880 | D45: =IFERROR(VLOOKUP(TRIM(A45),'[4]2021-22 Rev Final'!$A:$CL,81,FALSE),0) -> 6525589 | E45: =IFERROR(VLOOKUP(TRIM(A45),[5]Sheet1!$A:$E,5,FALSE),0) -> 14608680.96 | F45: =IFERROR(VLOOKUP(TRIM(A45),[5]Sheet1!$A:$E,4,FALSE),0) -> 9871124.98 | G45: =IFERROR(VLOOKUP(TRIM(A45),'[6]2021-22 Final'!$B:$X,18,FALSE),0) -> 0 | H45: 0 | I45: =IF(AND(H45>=[2]Assumptions!$E$56,H45<[2]Assumptions!$E$57),[2]Assumptions!$B$61,IF(AND(H45>=[2]Assumptions!$E$57,H45<[2]Assumptions!$E$58),[2]Assumptions!$B$60,IF(AND(H45>=[2]Assumptions!$E$58,H45<[2]Assumptions!$E$59),[2]Assumptions!$B$59,IF(AND(H45>=[2]Assumptions!$E$59,H45<[2]Assumptions!$E$60),[2]Assumptions!$B$58,IF(AND(H45>=[2]Assumptions!$E$60,H45<=[2]Assumptions!$E$61),[2]Assumptions!$B$57,0))))) -> 0
A46: 23404 | B46: HOOD CANAL | C46: =IFERROR(VLOOKUP(TRIM(A46),[3]iGRANTS!$B:$E,3,FALSE),0) + IFERROR(VLOOKUP(TRIM(A46),[3]iGRANTS!$G:$I,3,FALSE),0) -> 0 | D46: =IFERROR(VLOOKUP(TRIM(A46),'[4]2021-22 Rev Final'!$A:$CL,81,FALSE),0) -> 225690 | E46: =IFERROR(VLOOKUP(TRIM(A46),[5]Sheet1!$A:$E,5,FALSE),0) -> 218660.75 | F46: =IFERROR(VLOOKUP(TRIM(A46),[5]Sheet1!$A:$E,4,FALSE),0) -> 0 | G46: =IFERROR(VLOOKUP(TRIM(A46),'[6]2021-22 Final'!$B:$X,18,FALSE),0) -> 0 | H46: 0 | I46: =IF(AND(H46>=[2]Assumptions!$E$56,H46<[2]Assumptions!$E$57),[2]Assumptions!$B$61,IF(AND(H46>=[2]Assumptions!$E$57,H46<[2]Assumptions!$E$58),[2]Assumptions!$B$60,IF(AND(H46>=[2]Assumptions!$E$58,H46<[2]Assumptions!$E$59),[2]Assumptions!$B$59,IF(AND(H46>=[2]Assumptions!$E$59,H46<[2]Assumptions!$E$60),[2]Assumptions!$B$58,IF(AND(H46>=[2]Assumptions!$E$60,H46<=[2]Assumptions!$E$61),[2]Assumptions!$B$57,0))))) -> 0
A47: 14028 | B47: HOQUIAM | C47: =IFERROR(VLOOKUP(TRIM(A47),[3]iGRANTS!$B:$E,3,FALSE),0) + IFERROR(VLOOKUP(TRIM(A47),[3]iGRANTS!$G:$I,3,FALSE),0) -> 12333 | D47: =IFERROR(VLOOKUP(TRIM(A47),'[4]2021-22 Rev Final'!$A:$CL,81,FALSE),0) -> 663137 | E47: =IFERROR(VLOOKUP(TRIM(A47),[5]Sheet1!$A:$E,5,FALSE),0) -> 1135763.99 | F47: =IFERROR(VLOOKUP(TRIM(A47),[5]Sheet1!$A:$E,4,FALSE),0) -> 138868.99 | G47: =IFERROR(VLOOKUP(TRIM(A47),'[6]2021-22 Final'!$B:$X,18,FALSE),0) -> 13761 | H47: 0.007007104433 | I47: =IF(AND(H47>=[2]Assumptions!$E$56,H47<[2]Assumptions!$E$57),[2]Assumptions!$B$61,IF(AND(H47>=[2]Assumptions!$E$57,H47<[2]Assumptions!$E$58),[2]Assumptions!$B$60,IF(AND(H47>=[2]Assumptions!$E$58,H47<[2]Assumptions!$E$59),[2]Assumptions!$B$59,IF(AND(H47>=[2]Assumptions!$E$59,H47<[2]Assumptions!$E$60),[2]Assumptions!$B$58,IF(AND(H47>=[2]Assumptions!$E$60,H47<=[2]Assumptions!$E$61),[2]Assumptions!$B$57,0))))) -> 0.85
A48: 10070 | B48: INCHELIUM | C48: =IFERROR(VLOOKUP(TRIM(A48),[3]iGRANTS!$B:$E,3,FALSE),0) + IFERROR(VLOOKUP(TRIM(A48),[3]iGRANTS!$G:$I,3,FALSE),0) -> 13704 | D48: =IFERROR(VLOOKUP(TRIM(A48),'[4]2021-22 Rev Final'!$A:$CL,81,FALSE),0) -> 122412 | E48: =IFERROR(VLOOKUP(TRIM(A48),[5]Sheet1!$A:$E,5,FALSE),0) -> 175809.1 | F48: =IFERROR(VLOOKUP(TRIM(A48),[5]Sheet1!$A:$E,4,FALSE),0) -> 0 | G48: =IFERROR(VLOOKUP(TRIM(A48),'[6]2021-22 Final'!$B:$X,18,FALSE),0) -> 0 | H48: 0 | I48: =IF(AND(H48>=[2]Assumptions!$E$56,H48<[2]Assumptions!$E$57),[2]Assumptions!$B$61,IF(AND(H48>=[2]Assumptions!$E$57,H48<[2]Assumptions!$E$58),[2]Assumptions!$B$60,IF(AND(H48>=[2]Assumptions!$E$58,H48<[2]Assumptions!$E$59),[2]Assumptions!$B$59,IF(AND(H48>=[2]Assumptions!$E$59,H48<[2]Assumptions!$E$60),[2]Assumptions!$B$58,IF(AND(H48>=[2]Assumptions!$E$60,H48<=[2]Assumptions!$E$61),[2]Assumptions!$B$57,0))))) -> 0
A49: 08458 | B49: KELSO | C49: =IFERROR(VLOOKUP(TRIM(A49),[3]iGRANTS!$B:$E,3,FALSE),0) + IFERROR(VLOOKUP(TRIM(A49),[3]iGRANTS!$G:$I,3,FALSE),0) -> 41801 | D49: =IFERROR(VLOOKUP(TRIM(A49),'[4]2021-22 Rev Final'!$A:$CL,81,FALSE),0) -> 1514199 | E49: =IFERROR(VLOOKUP(TRIM(A49),[5]Sheet1!$A:$E,5,FALSE),0) -> 3083361.02 | F49: =IFERROR(VLOOKUP(TRIM(A49),[5]Sheet1!$A:$E,4,FALSE),0) -> 454183.28 | G49: =IFERROR(VLOOKUP(TRIM(A49),'[6]2021-22 Final'!$B:$X,18,FALSE),0) -> 0 | H49: 0 | I49: =IF(AND(H49>=[2]Assumptions!$E$56,H49<[2]Assumptions!$E$57),[2]Assumptions!$B$61,IF(AND(H49>=[2]Assumptions!$E$57,H49<[2]Assumptions!$E$58),[2]Assumptions!$B$60,IF(AND(H49>=[2]Assumptions!$E$58,H49<[2]Assumptions!$E$59),[2]Assumptions!$B$59,IF(AND(H49>=[2]Assumptions!$E$59,H49<[2]Assumptions!$E$60),[2]Assumptions!$B$58,IF(AND(H49>=[2]Assumptions!$E$60,H49<=[2]Assumptions!$E$61),[2]Assumptions!$B$57,0))))) -> 0
A50: 03017 | B50: KENNEWICK | C50: =IFERROR(VLOOKUP(TRIM(A50),[3]iGRANTS!$B:$E,3,FALSE),0) + IFERROR(VLOOKUP(TRIM(A50),[3]iGRANTS!$G:$I,3,FALSE),0) -> 367697 | D50: =IFERROR(VLOOKUP(TRIM(A50),'[4]2021-22 Rev Final'!$A:$CL,81,FALSE),0) -> 7177009 | E50: =IFERROR(VLOOKUP(TRIM(A50),[5]Sheet1!$A:$E,5,FALSE),0) -> 10330276.92 | F50: =IFERROR(VLOOKUP(TRIM(A50),[5]Sheet1!$A:$E,4,FALSE),0) -> 4138007.61 | G50: =IFERROR(VLOOKUP(TRIM(A50),'[6]2021-22 Final'!$B:$X,18,FALSE),0) -> 1794682 | H50: 0.07538250527 | I50: =IF(AND(H50>=[2]Assumptions!$E$56,H50<[2]Assumptions!$E$57),[2]Assumptions!$B$61,IF(AND(H50>=[2]Assumptions!$E$57,H50<[2]Assumptions!$E$58),[2]Assumptions!$B$60,IF(AND(H50>=[2]Assumptions!$E$58,H50<[2]Assumptions!$E$59),[2]Assumptions!$B$59,IF(AND(H50>=[2]Assumptions!$E$59,H50<[2]Assumptions!$E$60),[2]Assumptions!$B$58,IF(AND(H50>=[2]Assumptions!$E$60,H50<=[2]Assumptions!$E$61),[2]Assumptions!$B$57,0))))) -> 1.05
A51: 17415 | B51: KENT | C51: =IFERROR(VLOOKUP(TRIM(A51),[3]iGRANTS!$B:$E,3,FALSE),0) + IFERROR(VLOOKUP(TRIM(A51),[3]iGRANTS!$G:$I,3,FALSE),0) -> 784310 | D51: =IFERROR(VLOOKUP(TRIM(A51),'[4]2021-22 Rev Final'!$A:$CL,81,FALSE),0) -> 8212446 | E51: =IFERROR(VLOOKUP(TRIM(A51),[5]Sheet1!$A:$E,5,FALSE),0) -> 13288592.13 | F51: =IFERROR(VLOOKUP(TRIM(A51),[5]Sheet1!$A:$E,4,FALSE),0) -> 10216398.42 | G51: =IFERROR(VLOOKUP(TRIM(A51),'[6]2021-22 Final'!$B:$X,18,FALSE),0) -> 0 | H51: 0 | I51: =IF(AND(H51>=[2]Assumptions!$E$56,H51<[2]Assumptions!$E$57),[2]Assumptions!$B$61,IF(AND(H51>=[2]Assumptions!$E$57,H51<[2]Assumptions!$E$58),[2]Assumptions!$B$60,IF(AND(H51>=[2]Assumptions!$E$58,H51<[2]Assumptions!$E$59),[2]Assumptions!$B$59,IF(AND(H51>=[2]Assumptions!$E$59,H51<[2]Assumptions!$E$60),[2]Assumptions!$B$58,IF(AND(H51>=[2]Assumptions!$E$60,H51<=[2]Assumptions!$E$61),[2]Assumptions!$B$57,0))))) -> 0
A52: 03052 | B52: KIONA-BENTON CITY | C52: =IFERROR(VLOOKUP(TRIM(A52),[3]iGRANTS!$B:$E,3,FALSE),0) + IFERROR(VLOOKUP(TRIM(A52),[3]iGRANTS!$G:$I,3,FALSE),0) -> 44937 | D52: =IFERROR(VLOOKUP(TRIM(A52),'[4]2021-22 Rev Final'!$A:$CL,81,FALSE),0) -> 416390 | E52: =IFERROR(VLOOKUP(TRIM(A52),[5]Sheet1!$A:$E,5,FALSE),0) -> 983728.74 | F52: =IFERROR(VLOOKUP(TRIM(A52),[5]Sheet1!$A:$E,4,FALSE),0) -> 538850.11 | G52: =IFERROR(VLOOKUP(TRIM(A52),'[6]2021-22 Final'!$B:$X,18,FALSE),0) -> 204373 | H52: 0.09339440447 | I52: =IF(AND(H52>=[2]Assumptions!$E$56,H52<[2]Assumptions!$E$57),[2]Assumptions!$B$61,IF(AND(H52>=[2]Assumptions!$E$57,H52<[2]Assumptions!$E$58),[2]Assumptions!$B$60,IF(AND(H52>=[2]Assumptions!$E$58,H52<[2]Assumptions!$E$59),[2]Assumptions!$B$59,IF(AND(H52>=[2]Assumptions!$E$59,H52<[2]Assumptions!$E$60),[2]Assumptions!$B$58,IF(AND(H52>=[2]Assumptions!$E$60,H52<=[2]Assumptions!$E$61),[2]Assumptions!$B$57,0))))) -> 1.15
A53: 19403 | B53: KITTITAS | C53: =IFERROR(VLOOKUP(TRIM(A53),[3]iGRANTS!$B:$E,3,FALSE),0) + IFERROR(VLOOKUP(TRIM(A53),[3]iGRANTS!$G:$I,3,FALSE),0) -> 0 | D53: =IFERROR(VLOOKUP(TRIM(A53),'[4]2021-22 Rev Final'!$A:$CL,81,FALSE),0) -> 99108 | E53: =IFERROR(VLOOKUP(TRIM(A53),[5]Sheet1!$A:$E,5,FALSE),0) -> 175711.26 | F53: =IFERROR(VLOOKUP(TRIM(A53),[5]Sheet1!$A:$E,4,FALSE),0) -> 53721.63 | G53: =IFERROR(VLOOKUP(TRIM(A53),'[6]2021-22 Final'!$B:$X,18,FALSE),0) -> 0 | H53: 0 | I53: =IF(AND(H53>=[2]Assumptions!$E$56,H53<[2]Assumptions!$E$57),[2]Assumptions!$B$61,IF(AND(H53>=[2]Assumptions!$E$57,H53<[2]Assumptions!$E$58),[2]Assumptions!$B$60,IF(AND(H53>=[2]Assumptions!$E$58,H53<[2]Assumptions!$E$59),[2]Assumptions!$B$59,IF(AND(H53>=[2]Assumptions!$E$59,H53<[2]Assumptions!$E$60),[2]Assumptions!$B$58,IF(AND(H53>=[2]Assumptions!$E$60,H53<=[2]Assumptions!$E$61),[2]Assumptions!$B$57,0))))) -> 0
A54: 29311 | B54: LA CONNER | C54: =IFERROR(VLOOKUP(TRIM(A54),[3]iGRANTS!$B:$E,3,FALSE),0) + IFERROR(VLOOKUP(TRIM(A54),[3]iGRANTS!$G:$I,3,FALSE),0) -> 21919 | D54: =IFERROR(VLOOKUP(TRIM(A54),'[4]2021-22 Rev Final'!$A:$CL,81,FALSE),0) -> 140457 | E54: =IFERROR(VLOOKUP(TRIM(A54),[5]Sheet1!$A:$E,5,FALSE),0) -> 362508.2 | F54: =IFERROR(VLOOKUP(TRIM(A54),[5]Sheet1!$A:$E,4,FALSE),0) -> 24002.5 | G54: =IFERROR(VLOOKUP(TRIM(A54),'[6]2021-22 Final'!$B:$X,18,FALSE),0) -> 127923 | H54: 0.1890088159 | I54: =IF(AND(H54>=[2]Assumptions!$E$56,H54<[2]Assumptions!$E$57),[2]Assumptions!$B$61,IF(AND(H54>=[2]Assumptions!$E$57,H54<[2]Assumptions!$E$58),[2]Assumptions!$B$60,IF(AND(H54>=[2]Assumptions!$E$58,H54<[2]Assumptions!$E$59),[2]Assumptions!$B$59,IF(AND(H54>=[2]Assumptions!$E$59,H54<[2]Assumptions!$E$60),[2]Assumptions!$B$58,IF(AND(H54>=[2]Assumptions!$E$60,H54<=[2]Assumptions!$E$61),[2]Assumptions!$B$57,0))))) -> 0
A55: 04129 | B55: LAKE CHELAN | C55: =IFERROR(VLOOKUP(TRIM(A55),[3]iGRANTS!$B:$E,3,FALSE),0) + IFERROR(VLOOKUP(TRIM(A55),[3]iGRANTS!$G:$I,3,FALSE),0) -> 49604 | D55: =IFERROR(VLOOKUP(TRIM(A55),'[4]2021-22 Rev Final'!$A:$CL,81,FALSE),0) -> 224231 | E55: =IFERROR(VLOOKUP(TRIM(A55),[5]Sheet1!$A:$E,5,FALSE),0) -> 852043.14 | F55: =IFERROR(VLOOKUP(TRIM(A55),[5]Sheet1!$A:$E,4,FALSE),0) -> 531930.71 | G55: =IFERROR(VLOOKUP(TRIM(A55),'[6]2021-22 Final'!$B:$X,18,FALSE),0) -> 128259 | H55: 0.07181082174 | I55: =IF(AND(H55>=[2]Assumptions!$E$56,H55<[2]Assumptions!$E$57),[2]Assumptions!$B$61,IF(AND(H55>=[2]Assumptions!$E$57,H55<[2]Assumptions!$E$58),[2]Assumptions!$B$60,IF(AND(H55>=[2]Assumptions!$E$58,H55<[2]Assumptions!$E$59),[2]Assumptions!$B$59,IF(AND(H55>=[2]Assumptions!$E$59,H55<[2]Assumptions!$E$60),[2]Assumptions!$B$58,IF(AND(H55>=[2]Assumptions!$E$60,H55<=[2]Assumptions!$E$61),[2]Assumptions!$B$57,0))))) -> 1.05
A56: 31306 | B56: LAKEWOOD | C56: =IFERROR(VLOOKUP(TRIM(A56),[3]iGRANTS!$B:$E,3,FALSE),0) + IFERROR(VLOOKUP(TRIM(A56),[3]iGRANTS!$G:$I,3,FALSE),0) -> 23932 | D56: =IFERROR(VLOOKUP(TRIM(A56),'[4]2021-22 Rev Final'!$A:$CL,81,FALSE),0) -> 334426 | E56: =IFERROR(VLOOKUP(TRIM(A56),[5]Sheet1!$A:$E,5,FALSE),0) -> 681384.52 | F56: =IFERROR(VLOOKUP(TRIM(A56),[5]Sheet1!$A:$E,4,FALSE),0) -> 362066.37 | G56: =IFERROR(VLOOKUP(TRIM(A56),'[6]2021-22 Final'!$B:$X,18,FALSE),0) -> 0 | H56: 0 | I56: =IF(AND(H56>=[2]Assumptions!$E$56,H56<[2]Assumptions!$E$57),[2]Assumptions!$B$61,IF(AND(H56>=[2]Assumptions!$E$57,H56<[2]Assumptions!$E$58),[2]Assumptions!$B$60,IF(AND(H56>=[2]Assumptions!$E$58,H56<[2]Assumptions!$E$59),[2]Assumptions!$B$59,IF(AND(H56>=[2]Assumptions!$E$59,H56<[2]Assumptions!$E$60),[2]Assumptions!$B$58,IF(AND(H56>=[2]Assumptions!$E$60,H56<=[2]Assumptions!$E$61),[2]Assumptions!$B$57,0))))) -> 0
A57: 01158 | B57: LIND | C57: =IFERROR(VLOOKUP(TRIM(A57),[3]iGRANTS!$B:$E,3,FALSE),0) + IFERROR(VLOOKUP(TRIM(A57),[3]iGRANTS!$G:$I,3,FALSE),0) -> 0 | D57: =IFERROR(VLOOKUP(TRIM(A57),'[4]2021-22 Rev Final'!$A:$CL,81,FALSE),0) -> 65750 | E57: =IFERROR(VLOOKUP(TRIM(A57),[5]Sheet1!$A:$E,5,FALSE),0) -> 141077.76 | F57: =IFERROR(VLOOKUP(TRIM(A57),[5]Sheet1!$A:$E,4,FALSE),0) -> 45264.57 | G57: =IFERROR(VLOOKUP(TRIM(A57),'[6]2021-22 Final'!$B:$X,18,FALSE),0) -> 31791 | H57: 0.1119861459 | I57: =IF(AND(H57>=[2]Assumptions!$E$56,H57<[2]Assumptions!$E$57),[2]Assumptions!$B$61,IF(AND(H57>=[2]Assumptions!$E$57,H57<[2]Assumptions!$E$58),[2]Assumptions!$B$60,IF(AND(H57>=[2]Assumptions!$E$58,H57<[2]Assumptions!$E$59),[2]Assumptions!$B$59,IF(AND(H57>=[2]Assumptions!$E$59,H57<[2]Assumptions!$E$60),[2]Assumptions!$B$58,IF(AND(H57>=[2]Assumptions!$E$60,H57<=[2]Assumptions!$E$61),[2]Assumptions!$B$57,0))))) -> 1.15
A58: 08122 | B58: LONGVIEW | C58: =IFERROR(VLOOKUP(TRIM(A58),[3]iGRANTS!$B:$E,3,FALSE),0) + IFERROR(VLOOKUP(TRIM(A58),[3]iGRANTS!$G:$I,3,FALSE),0) -> 58365 | D58: =IFERROR(VLOOKUP(TRIM(A58),'[4]2021-22 Rev Final'!$A:$CL,81,FALSE),0) -> 2445538 | E58: =IFERROR(VLOOKUP(TRIM(A58),[5]Sheet1!$A:$E,5,FALSE),0) -> 3632703.33 | F58: =IFERROR(VLOOKUP(TRIM(A58),[5]Sheet1!$A:$E,4,FALSE),0) -> 623324.75 | G58: =IFERROR(VLOOKUP(TRIM(A58),'[6]2021-22 Final'!$B:$X,18,FALSE),0) -> 0 | H58: 0 | I58: =IF(AND(H58>=[2]Assumptions!$E$56,H58<[2]Assumptions!$E$57),[2]Assumptions!$B$61,IF(AND(H58>=[2]Assumptions!$E$57,H58<[2]Assumptions!$E$58),[2]Assumptions!$B$60,IF(AND(H58>=[2]Assumptions!$E$58,H58<[2]Assumptions!$E$59),[2]Assumptions!$B$59,IF(AND(H58>=[2]Assumptions!$E$59,H58<[2]Assumptions!$E$60),[2]Assumptions!$B$58,IF(AND(H58>=[2]Assumptions!$E$60,H58<=[2]Assumptions!$E$61),[2]Assumptions!$B$57,0))))) -> 0
A59: 20406 | B59: LYLE | C59: =IFERROR(VLOOKUP(TRIM(A59),[3]iGRANTS!$B:$E,3,FALSE),0) + IFERROR(VLOOKUP(TRIM(A59),[3]iGRANTS!$G:$I,3,FALSE),0) -> 0 | D59: =IFERROR(VLOOKUP(TRIM(A59),'[4]2021-22 Rev Final'!$A:$CL,81,FALSE),0) -> 232969 | E59: =IFERROR(VLOOKUP(TRIM(A59),[5]Sheet1!$A:$E,5,FALSE),0) -> 140882.08 | F59: =IFERROR(VLOOKUP(TRIM(A59),[5]Sheet1!$A:$E,4,FALSE),0) -> 11147.96 | G59: =IFERROR(VLOOKUP(TRIM(A59),'[6]2021-22 Final'!$B:$X,18,FALSE),0) -> 0 | H59: 0 | I59: =IF(AND(H59>=[2]Assumptions!$E$56,H59<[2]Assumptions!$E$57),[2]Assumptions!$B$61,IF(AND(H59>=[2]Assumptions!$E$57,H59<[2]Assumptions!$E$58),[2]Assumptions!$B$60,IF(AND(H59>=[2]Assumptions!$E$58,H59<[2]Assumptions!$E$59),[2]Assumptions!$B$59,IF(AND(H59>=[2]Assumptions!$E$59,H59<[2]Assumptions!$E$60),[2]Assumptions!$B$58,IF(AND(H59>=[2]Assumptions!$E$60,H59<=[2]Assumptions!$E$61),[2]Assumptions!$B$57,0))))) -> 0
A60: 37504 | B60: LYNDEN | C60: =IFERROR(VLOOKUP(TRIM(A60),[3]iGRANTS!$B:$E,3,FALSE),0) + IFERROR(VLOOKUP(TRIM(A60),[3]iGRANTS!$G:$I,3,FALSE),0) -> 49053 | D60: =IFERROR(VLOOKUP(TRIM(A60),'[4]2021-22 Rev Final'!$A:$CL,81,FALSE),0) -> 411156 | E60: =IFERROR(VLOOKUP(TRIM(A60),[5]Sheet1!$A:$E,5,FALSE),0) -> 624658.44 | F60: =IFERROR(VLOOKUP(TRIM(A60),[5]Sheet1!$A:$E,4,FALSE),0) -> 578394.49 | G60: =IFERROR(VLOOKUP(TRIM(A60),'[6]2021-22 Final'!$B:$X,18,FALSE),0) -> 95918 | H60: 0.05452426916 | I60: =IF(AND(H60>=[2]Assumptions!$E$56,H60<[2]Assumptions!$E$57),[2]Assumptions!$B$61,IF(AND(H60>=[2]Assumptions!$E$57,H60<[2]Assumptions!$E$58),[2]Assumptions!$B$60,IF(AND(H60>=[2]Assumptions!$E$58,H60<[2]Assumptions!$E$59),[2]Assumptions!$B$59,IF(AND(H60>=[2]Assumptions!$E$59,H60<[2]Assumptions!$E$60),[2]Assumptions!$B$58,IF(AND(H60>=[2]Assumptions!$E$60,H60<=[2]Assumptions!$E$61),[2]Assumptions!$B$57,0))))) -> 1
A61: 39120 | B61: MABTON | C61: =IFERROR(VLOOKUP(TRIM(A61),[3]iGRANTS!$B:$E,3,FALSE),0) + IFERROR(VLOOKUP(TRIM(A61),[3]iGRANTS!$G:$I,3,FALSE),0) -> 49168 | D61: =IFERROR(VLOOKUP(TRIM(A61),'[4]2021-22 Rev Final'!$A:$CL,81,FALSE),0) -> 361457 | E61: =IFERROR(VLOOKUP(TRIM(A61),[5]Sheet1!$A:$E,5,FALSE),0) -> 762524.3 | F61: =IFERROR(VLOOKUP(TRIM(A61),[5]Sheet1!$A:$E,4,FALSE),0) -> 519821.71 | G61: =IFERROR(VLOOKUP(TRIM(A61),'[6]2021-22 Final'!$B:$X,18,FALSE),0) -> 222916 | H61: 0.1163513291 | I61: =IF(AND(H61>=[2]Assumptions!$E$56,H61<[2]Assumptions!$E$57),[2]Assumptions!$B$61,IF(AND(H61>=[2]Assumptions!$E$57,H61<[2]Assumptions!$E$58),[2]Assumptions!$B$60,IF(AND(H61>=[2]Assumptions!$E$58,H61<[2]Assumptions!$E$59),[2]Assumptions!$B$59,IF(AND(H61>=[2]Assumptions!$E$59,H61<[2]Assumptions!$E$60),[2]Assumptions!$B$58,IF(AND(H61>=[2]Assumptions!$E$60,H61<=[2]Assumptions!$E$61),[2]Assumptions!$B$57,0))))) -> 1.15
A62: 04019 | B62: MANSON | C62: =IFERROR(VLOOKUP(TRIM(A62),[3]iGRANTS!$B:$E,3,FALSE),0) + IFERROR(VLOOKUP(TRIM(A62),[3]iGRANTS!$G:$I,3,FALSE),0) -> 30085 | D62: =IFERROR(VLOOKUP(TRIM(A62),'[4]2021-22 Rev Final'!$A:$CL,81,FALSE),0) -> 108161 | E62: =IFERROR(VLOOKUP(TRIM(A62),[5]Sheet1!$A:$E,5,FALSE),0) -> 432527.58 | F62: =IFERROR(VLOOKUP(TRIM(A62),[5]Sheet1!$A:$E,4,FALSE),0) -> 335592.04 | G62: =IFERROR(VLOOKUP(TRIM(A62),'[6]2021-22 Final'!$B:$X,18,FALSE),0) -> 53366 | H62: 0.05560512844 | I62: =IF(AND(H62>=[2]Assumptions!$E$56,H62<[2]Assumptions!$E$57),[2]Assumptions!$B$61,IF(AND(H62>=[2]Assumptions!$E$57,H62<[2]Assumptions!$E$58),[2]Assumptions!$B$60,IF(AND(H62>=[2]Assumptions!$E$58,H62<[2]Assumptions!$E$59),[2]Assumptions!$B$59,IF(AND(H62>=[2]Assumptions!$E$59,H62<[2]Assumptions!$E$60),[2]Assumptions!$B$58,IF(AND(H62>=[2]Assumptions!$E$60,H62<=[2]Assumptions!$E$61),[2]Assumptions!$B$57,0))))) -> 1
A63: 31025 | B63: MARYSVILLE | C63: =IFERROR(VLOOKUP(TRIM(A63),[3]iGRANTS!$B:$E,3,FALSE),0) + IFERROR(VLOOKUP(TRIM(A63),[3]iGRANTS!$G:$I,3,FALSE),0) -> 175509 | D63: =IFERROR(VLOOKUP(TRIM(A63),'[4]2021-22 Rev Final'!$A:$CL,81,FALSE),0) -> 1976312 | E63: =IFERROR(VLOOKUP(TRIM(A63),[5]Sheet1!$A:$E,5,FALSE),0) -> 5056484.68 | F63: =IFERROR(VLOOKUP(TRIM(A63),[5]Sheet1!$A:$E,4,FALSE),0) -> 1863825.13 | G63: =IFERROR(VLOOKUP(TRIM(A63),'[6]2021-22 Final'!$B:$X,18,FALSE),0) -> 114381 | H63: 0.01245097186 | I63: =IF(AND(H63>=[2]Assumptions!$E$56,H63<[2]Assumptions!$E$57),[2]Assumptions!$B$61,IF(AND(H63>=[2]Assumptions!$E$57,H63<[2]Assumptions!$E$58),[2]Assumptions!$B$60,IF(AND(H63>=[2]Assumptions!$E$58,H63<[2]Assumptions!$E$59),[2]Assumptions!$B$59,IF(AND(H63>=[2]Assumptions!$E$59,H63<[2]Assumptions!$E$60),[2]Assumptions!$B$58,IF(AND(H63>=[2]Assumptions!$E$60,H63<=[2]Assumptions!$E$61),[2]Assumptions!$B$57,0))))) -> 0.85
A64: 37505 | B64: MERIDIAN | C64: =IFERROR(VLOOKUP(TRIM(A64),[3]iGRANTS!$B:$E,3,FALSE),0) + IFERROR(VLOOKUP(TRIM(A64),[3]iGRANTS!$G:$I,3,FALSE),0) -> 31208 | D64: =IFERROR(VLOOKUP(TRIM(A64),'[4]2021-22 Rev Final'!$A:$CL,81,FALSE),0) -> 277965 | E64: =IFERROR(VLOOKUP(TRIM(A64),[5]Sheet1!$A:$E,5,FALSE),0) -> 376854.93 | F64: =IFERROR(VLOOKUP(TRIM(A64),[5]Sheet1!$A:$E,4,FALSE),0) -> 292282.96 | G64: =IFERROR(VLOOKUP(TRIM(A64),'[6]2021-22 Final'!$B:$X,18,FALSE),0) -> 0 | H64: 0 | I64: =IF(AND(H64>=[2]Assumptions!$E$56,H64<[2]Assumptions!$E$57),[2]Assumptions!$B$61,IF(AND(H64>=[2]Assumptions!$E$57,H64<[2]Assumptions!$E$58),[2]Assumptions!$B$60,IF(AND(H64>=[2]Assumptions!$E$58,H64<[2]Assumptions!$E$59),[2]Assumptions!$B$59,IF(AND(H64>=[2]Assumptions!$E$59,H64<[2]Assumptions!$E$60),[2]Assumptions!$B$58,IF(AND(H64>=[2]Assumptions!$E$60,H64<=[2]Assumptions!$E$61),[2]Assumptions!$B$57,0))))) -> 0
A65: 31103 | B65: MONROE | C65: =IFERROR(VLOOKUP(TRIM(A65),[3]iGRANTS!$B:$E,3,FALSE),0) + IFERROR(VLOOKUP(TRIM(A65),[3]iGRANTS!$G:$I,3,FALSE),0) -> 89185 | D65: =IFERROR(VLOOKUP(TRIM(A65),'[4]2021-22 Rev Final'!$A:$CL,81,FALSE),0) -> 578293 | E65: =IFERROR(VLOOKUP(TRIM(A65),[5]Sheet1!$A:$E,5,FALSE),0) -> 1358728.35 | F65: =IFERROR(VLOOKUP(TRIM(A65),[5]Sheet1!$A:$E,4,FALSE),0) -> 1198995.97 | G65: =IFERROR(VLOOKUP(TRIM(A65),'[6]2021-22 Final'!$B:$X,18,FALSE),0) -> 0 | H65: 0 | I65: =IF(AND(H65>=[2]Assumptions!$E$56,H65<[2]Assumptions!$E$57),[2]Assumptions!$B$61,IF(AND(H65>=[2]Assumptions!$E$57,H65<[2]Assumptions!$E$58),[2]Assumptions!$B$60,IF(AND(H65>=[2]Assumptions!$E$58,H65<[2]Assumptions!$E$59),[2]Assumptions!$B$59,IF(AND(H65>=[2]Assumptions!$E$59,H65<[2]Assumptions!$E$60),[2]Assumptions!$B$58,IF(AND(H65>=[2]Assumptions!$E$60,H65<=[2]Assumptions!$E$61),[2]Assumptions!$B$57,0))))) -> 0
A66: 13161 | B66: MOSES LAKE | C66: =IFERROR(VLOOKUP(TRIM(A66),[3]iGRANTS!$B:$E,3,FALSE),0) + IFERROR(VLOOKUP(TRIM(A66),[3]iGRANTS!$G:$I,3,FALSE),0) -> 162377 | D66: =IFERROR(VLOOKUP(TRIM(A66),'[4]2021-22 Rev Final'!$A:$CL,81,FALSE),0) -> 2584544 | E66: =IFERROR(VLOOKUP(TRIM(A66),[5]Sheet1!$A:$E,5,FALSE),0) -> 5598946.45 | F66: =IFERROR(VLOOKUP(TRIM(A66),[5]Sheet1!$A:$E,4,FALSE),0) -> 1937007.94 | G66: =IFERROR(VLOOKUP(TRIM(A66),'[6]2021-22 Final'!$B:$X,18,FALSE),0) -> 256343 | H66: =IFERROR(G66/SUM(C66:G66),0) -> 0.02432277143 | I66: =IF(AND(H66>=[2]Assumptions!$E$56,H66<[2]Assumptions!$E$57),[2]Assumptions!$B$61,IF(AND(H66>=[2]Assumptions!$E$57,H66<[2]Assumptions!$E$58),[2]Assumptions!$B$60,IF(AND(H66>=[2]Assumptions!$E$58,H66<[2]Assumptions!$E$59),[2]Assumptions!$B$59,IF(AND(H66>=[2]Assumptions!$E$59,H66<[2]Assumptions!$E$60),[2]Assumptions!$B$58,IF(AND(H66>=[2]Assumptions!$E$60,H66<=[2]Assumptions!$E$61),[2]Assumptions!$B$57,0))))) -> 0.95
A67: 21206 | B67: MOSSYROCK | C67: =IFERROR(VLOOKUP(TRIM(A67),[3]iGRANTS!$B:$E,3,FALSE),0) + IFERROR(VLOOKUP(TRIM(A67),[3]iGRANTS!$G:$I,3,FALSE),0) -> 0 | D67: =IFERROR(VLOOKUP(TRIM(A67),'[4]2021-22 Rev Final'!$A:$CL,81,FALSE),0) -> 174601 | E67: =IFERROR(VLOOKUP(TRIM(A67),[5]Sheet1!$A:$E,5,FALSE),0) -> 350444.19 | F67: =IFERROR(VLOOKUP(TRIM(A67),[5]Sheet1!$A:$E,4,FALSE),0) -> 88030.45 | G67: =IFERROR(VLOOKUP(TRIM(A67),'[6]2021-22 Final'!$B:$X,18,FALSE),0) -> 25425 | H67: 0.03981985045 | I67: =IF(AND(H67>=[2]Assumptions!$E$56,H67<[2]Assumptions!$E$57),[2]Assumptions!$B$61,IF(AND(H67>=[2]Assumptions!$E$57,H67<[2]Assumptions!$E$58),[2]Assumptions!$B$60,IF(AND(H67>=[2]Assumptions!$E$58,H67<[2]Assumptions!$E$59),[2]Assumptions!$B$59,IF(AND(H67>=[2]Assumptions!$E$59,H67<[2]Assumptions!$E$60),[2]Assumptions!$B$58,IF(AND(H67>=[2]Assumptions!$E$60,H67<=[2]Assumptions!$E$61),[2]Assumptions!$B$57,0))))) -> 1
A68: 39209 | B68: MOUNT ADAMS | C68: =IFERROR(VLOOKUP(TRIM(A68),[3]iGRANTS!$B:$E,3,FALSE),0) + IFERROR(VLOOKUP(TRIM(A68),[3]iGRANTS!$G:$I,3,FALSE),0) -> 60951 | D68: =IFERROR(VLOOKUP(TRIM(A68),'[4]2021-22 Rev Final'!$A:$CL,81,FALSE),0) -> 449765 | E68: =IFERROR(VLOOKUP(TRIM(A68),[5]Sheet1!$A:$E,5,FALSE),0) -> 778960.55 | F68: =IFERROR(VLOOKUP(TRIM(A68),[5]Sheet1!$A:$E,4,FALSE),0) -> 192302.33 | G68: =IFERROR(VLOOKUP(TRIM(A68),'[6]2021-22 Final'!$B:$X,18,FALSE),0) -> 0 | H68: 0 | I68: =IF(AND(H68>=[2]Assumptions!$E$56,H68<[2]Assumptions!$E$57),[2]Assumptions!$B$61,IF(AND(H68>=[2]Assumptions!$E$57,H68<[2]Assumptions!$E$58),[2]Assumptions!$B$60,IF(AND(H68>=[2]Assumptions!$E$58,H68<[2]Assumptions!$E$59),[2]Assumptions!$B$59,IF(AND(H68>=[2]Assumptions!$E$59,H68<[2]Assumptions!$E$60),[2]Assumptions!$B$58,IF(AND(H68>=[2]Assumptions!$E$60,H68<=[2]Assumptions!$E$61),[2]Assumptions!$B$57,0))))) -> 0
A69: 37507 | B69: MOUNT BAKER | C69: =IFERROR(VLOOKUP(TRIM(A69),[3]iGRANTS!$B:$E,3,FALSE),0) + IFERROR(VLOOKUP(TRIM(A69),[3]iGRANTS!$G:$I,3,FALSE),0) -> 17297 | D69: =IFERROR(VLOOKUP(TRIM(A69),'[4]2021-22 Rev Final'!$A:$CL,81,FALSE),0) -> 681686 | E69: =IFERROR(VLOOKUP(TRIM(A69),[5]Sheet1!$A:$E,5,FALSE),0) -> 867388.31 | F69: =IFERROR(VLOOKUP(TRIM(A69),[5]Sheet1!$A:$E,4,FALSE),0) -> 154046.32 | G69: =IFERROR(VLOOKUP(TRIM(A69),'[6]2021-22 Final'!$B:$X,18,FALSE),0) -> 14723 | H69: 0.008485191197 | I69: =IF(AND(H69>=[2]Assumptions!$E$56,H69<[2]Assumptions!$E$57),[2]Assumptions!$B$61,IF(AND(H69>=[2]Assumptions!$E$57,H69<[2]Assumptions!$E$58),[2]Assumptions!$B$60,IF(AND(H69>=[2]Assumptions!$E$58,H69<[2]Assumptions!$E$59),[2]Assumptions!$B$59,IF(AND(H69>=[2]Assumptions!$E$59,H69<[2]Assumptions!$E$60),[2]Assumptions!$B$58,IF(AND(H69>=[2]Assumptions!$E$60,H69<=[2]Assumptions!$E$61),[2]Assumptions!$B$57,0))))) -> 0.85
A70: 29320 | B70: MOUNT VERNON | C70: =IFERROR(VLOOKUP(TRIM(A70),[3]iGRANTS!$B:$E,3,FALSE),0) + IFERROR(VLOOKUP(TRIM(A70),[3]iGRANTS!$G:$I,3,FALSE),0) -> 225616 | D70: =IFERROR(VLOOKUP(TRIM(A70),'[4]2021-22 Rev Final'!$A:$CL,81,FALSE),0) -> 2096038 | E70: =IFERROR(VLOOKUP(TRIM(A70),[5]Sheet1!$A:$E,5,FALSE),0) -> 4783722.36 | F70: =IFERROR(VLOOKUP(TRIM(A70),[5]Sheet1!$A:$E,4,FALSE),0) -> 2633979.76 | G70: =IFERROR(VLOOKUP(TRIM(A70),'[6]2021-22 Final'!$B:$X,18,FALSE),0) -> 930719 | H70: 0.08722703351 | I70: =IF(AND(H70>=[2]Assumptions!$E$56,H70<[2]Assumptions!$E$57),[2]Assumptions!$B$61,IF(AND(H70>=[2]Assumptions!$E$57,H70<[2]Assumptions!$E$58),[2]Assumptions!$B$60,IF(AND(H70>=[2]Assumptions!$E$58,H70<[2]Assumptions!$E$59),[2]Assumptions!$B$59,IF(AND(H70>=[2]Assumptions!$E$59,H70<[2]Assumptions!$E$60),[2]Assumptions!$B$58,IF(AND(H70>=[2]Assumptions!$E$60,H70<=[2]Assumptions!$E$61),[2]Assumptions!$B$57,0))))) -> 1.05
A71: 17903 | B71: MUCKLESHOOT INDIAN TRIBE | C71: =IFERROR(VLOOKUP(TRIM(A71),[3]iGRANTS!$B:$E,3,FALSE),0) + IFERROR(VLOOKUP(TRIM(A71),[3]iGRANTS!$G:$I,3,FALSE),0) -> 0 | D71: =IFERROR(VLOOKUP(TRIM(A71),'[4]2021-22 Rev Final'!$A:$CL,81,FALSE),0) -> 0 | E71: =IFERROR(VLOOKUP(TRIM(A71),[5]Sheet1!$A:$E,5,FALSE),0) -> 0 | F71: =IFERROR(VLOOKUP(TRIM(A71),[5]Sheet1!$A:$E,4,FALSE),0) -> 0 | G71: =IFERROR(VLOOKUP(TRIM(A71),'[6]2021-22 Final'!$B:$X,18,FALSE),0) -> 8009 | H71: 1 | I71: =IF(AND(H71>=[2]Assumptions!$E$56,H71<[2]Assumptions!$E$57),[2]Assumptions!$B$61,IF(AND(H71>=[2]Assumptions!$E$57,H71<[2]Assumptions!$E$58),[2]Assumptions!$B$60,IF(AND(H71>=[2]Assumptions!$E$58,H71<[2]Assumptions!$E$59),[2]Assumptions!$B$59,IF(AND(H71>=[2]Assumptions!$E$59,H71<[2]Assumptions!$E$60),[2]Assumptions!$B$58,IF(AND(H71>=[2]Assumptions!$E$60,H71<=[2]Assumptions!$E$61),[2]Assumptions!$B$57,0))))) -> 0
A72: 31006 | B72: MUKILTEO | C72: =IFERROR(VLOOKUP(TRIM(A72),[3]iGRANTS!$B:$E,3,FALSE),0) + IFERROR(VLOOKUP(TRIM(A72),[3]iGRANTS!$G:$I,3,FALSE),0) -> 430023 | D72: =IFERROR(VLOOKUP(TRIM(A72),'[4]2021-22 Rev Final'!$A:$CL,81,FALSE),0) -> 3416813 | E72: =IFERROR(VLOOKUP(TRIM(A72),[5]Sheet1!$A:$E,5,FALSE),0) -> 8263099.12 | F72: =IFERROR(VLOOKUP(TRIM(A72),[5]Sheet1!$A:$E,4,FALSE),0) -> 5822006.33 | G72: =IFERROR(VLOOKUP(TRIM(A72),'[6]2021-22 Final'!$B:$X,18,FALSE),0) -> 0 | H72: 0 | I72: =IF(AND(H72>=[2]Assumptions!$E$56,H72<[2]Assumptions!$E$57),[2]Assumptions!$B$61,IF(AND(H72>=[2]Assumptions!$E$57,H72<[2]Assumptions!$E$58),[2]Assumptions!$B$60,IF(AND(H72>=[2]Assumptions!$E$58,H72<[2]Assumptions!$E$59),[2]Assumptions!$B$59,IF(AND(H72>=[2]Assumptions!$E$59,H72<[2]Assumptions!$E$60),[2]Assumptions!$B$58,IF(AND(H72>=[2]Assumptions!$E$60,H72<=[2]Assumptions!$E$61),[2]Assumptions!$B$57,0))))) -> 0
A73: 39003 | B73: NACHES VALLEY | C73: =IFERROR(VLOOKUP(TRIM(A73),[3]iGRANTS!$B:$E,3,FALSE),0) + IFERROR(VLOOKUP(TRIM(A73),[3]iGRANTS!$G:$I,3,FALSE),0) -> 10663 | D73: =IFERROR(VLOOKUP(TRIM(A73),'[4]2021-22 Rev Final'!$A:$CL,81,FALSE),0) -> 295193 | E73: =IFERROR(VLOOKUP(TRIM(A73),[5]Sheet1!$A:$E,5,FALSE),0) -> 627414.48 | F73: =IFERROR(VLOOKUP(TRIM(A73),[5]Sheet1!$A:$E,4,FALSE),0) -> 127336.61 | G73: =IFERROR(VLOOKUP(TRIM(A73),'[6]2021-22 Final'!$B:$X,18,FALSE),0) -> 0 | H73: 0 | I73: =IF(AND(H73>=[2]Assumptions!$E$56,H73<[2]Assumptions!$E$57),[2]Assumptions!$B$61,IF(AND(H73>=[2]Assumptions!$E$57,H73<[2]Assumptions!$E$58),[2]Assumptions!$B$60,IF(AND(H73>=[2]Assumptions!$E$58,H73<[2]Assumptions!$E$59),[2]Assumptions!$B$59,IF(AND(H73>=[2]Assumptions!$E$59,H73<[2]Assumptions!$E$60),[2]Assumptions!$B$58,IF(AND(H73>=[2]Assumptions!$E$60,H73<=[2]Assumptions!$E$61),[2]Assumptions!$B$57,0))))) -> 0
A74: 25155 | B74: NASELLE-GRAYS RIVER VALLEY | C74: =IFERROR(VLOOKUP(TRIM(A74),[3]iGRANTS!$B:$E,3,FALSE),0) + IFERROR(VLOOKUP(TRIM(A74),[3]iGRANTS!$G:$I,3,FALSE),0) -> 0 | D74: =IFERROR(VLOOKUP(TRIM(A74),'[4]2021-22 Rev Final'!$A:$CL,81,FALSE),0) -> 77685 | E74: =IFERROR(VLOOKUP(TRIM(A74),[5]Sheet1!$A:$E,5,FALSE),0) -> 194008.3 | F74: =IFERROR(VLOOKUP(TRIM(A74),[5]Sheet1!$A:$E,4,FALSE),0) -> 19892.93 | G74: =IFERROR(VLOOKUP(TRIM(A74),'[6]2021-22 Final'!$B:$X,18,FALSE),0) -> 46356 | H74: 0.1371713739 | I74: =IF(AND(H74>=[2]Assumptions!$E$56,H74<[2]Assumptions!$E$57),[2]Assumptions!$B$61,IF(AND(H74>=[2]Assumptions!$E$57,H74<[2]Assumptions!$E$58),[2]Assumptions!$B$60,IF(AND(H74>=[2]Assumptions!$E$58,H74<[2]Assumptions!$E$59),[2]Assumptions!$B$59,IF(AND(H74>=[2]Assumptions!$E$59,H74<[2]Assumptions!$E$60),[2]Assumptions!$B$58,IF(AND(H74>=[2]Assumptions!$E$60,H74<=[2]Assumptions!$E$61),[2]Assumptions!$B$57,0))))) -> 1.15
A75: 24014 | B75: NESPELEM | C75: =IFERROR(VLOOKUP(TRIM(A75),[3]iGRANTS!$B:$E,3,FALSE),0) + IFERROR(VLOOKUP(TRIM(A75),[3]iGRANTS!$G:$I,3,FALSE),0) -> 17274 | D75: =IFERROR(VLOOKUP(TRIM(A75),'[4]2021-22 Rev Final'!$A:$CL,81,FALSE),0) -> 139780 | E75: =IFERROR(VLOOKUP(TRIM(A75),[5]Sheet1!$A:$E,5,FALSE),0) -> 120336.76 | F75: =IFERROR(VLOOKUP(TRIM(A75),[5]Sheet1!$A:$E,4,FALSE),0) -> 0 | G75: =IFERROR(VLOOKUP(TRIM(A75),'[6]2021-22 Final'!$B:$X,18,FALSE),0) -> 17402 | H75: 0.0590313005 | I75: =IF(AND(H75>=[2]Assumptions!$E$56,H75<[2]Assumptions!$E$57),[2]Assumptions!$B$61,IF(AND(H75>=[2]Assumptions!$E$57,H75<[2]Assumptions!$E$58),[2]Assumptions!$B$60,IF(AND(H75>=[2]Assumptions!$E$58,H75<[2]Assumptions!$E$59),[2]Assumptions!$B$59,IF(AND(H75>=[2]Assumptions!$E$59,H75<[2]Assumptions!$E$60),[2]Assumptions!$B$58,IF(AND(H75>=[2]Assumptions!$E$60,H75<=[2]Assumptions!$E$61),[2]Assumptions!$B$57,0))))) -> 1
A76: 37506 | B76: NOOKSACK VALLEY | C76: =IFERROR(VLOOKUP(TRIM(A76),[3]iGRANTS!$B:$E,3,FALSE),0) + IFERROR(VLOOKUP(TRIM(A76),[3]iGRANTS!$G:$I,3,FALSE),0) -> 36173 | D76: =IFERROR(VLOOKUP(TRIM(A76),'[4]2021-22 Rev Final'!$A:$CL,81,FALSE),0) -> 351294 | E76: =IFERROR(VLOOKUP(TRIM(A76),[5]Sheet1!$A:$E,5,FALSE),0) -> 1078449.87 | F76: =IFERROR(VLOOKUP(TRIM(A76),[5]Sheet1!$A:$E,4,FALSE),0) -> 390014.11 | G76: =IFERROR(VLOOKUP(TRIM(A76),'[6]2021-22 Final'!$B:$X,18,FALSE),0) -> 94817 | H76: 0.04860545851 | I76: =IF(AND(H76>=[2]Assumptions!$E$56,H76<[2]Assumptions!$E$57),[2]Assumptions!$B$61,IF(AND(H76>=[2]Assumptions!$E$57,H76<[2]Assumptions!$E$58),[2]Assumptions!$B$60,IF(AND(H76>=[2]Assumptions!$E$58,H76<[2]Assumptions!$E$59),[2]Assumptions!$B$59,IF(AND(H76>=[2]Assumptions!$E$59,H76<[2]Assumptions!$E$60),[2]Assumptions!$B$58,IF(AND(H76>=[2]Assumptions!$E$60,H76<=[2]Assumptions!$E$61),[2]Assumptions!$B$57,0))))) -> 1
A77: 14064 | B77: NORTH BEACH | C77: =IFERROR(VLOOKUP(TRIM(A77),[3]iGRANTS!$B:$E,3,FALSE),0) + IFERROR(VLOOKUP(TRIM(A77),[3]iGRANTS!$G:$I,3,FALSE),0) -> 0 | D77: =IFERROR(VLOOKUP(TRIM(A77),'[4]2021-22 Rev Final'!$A:$CL,81,FALSE),0) -> 167564 | E77: =IFERROR(VLOOKUP(TRIM(A77),[5]Sheet1!$A:$E,5,FALSE),0) -> 547287.79 | F77: =IFERROR(VLOOKUP(TRIM(A77),[5]Sheet1!$A:$E,4,FALSE),0) -> 27966 | G77: =IFERROR(VLOOKUP(TRIM(A77),'[6]2021-22 Final'!$B:$X,18,FALSE),0) -> 7914 | H77: 0.01054171424 | I77: =IF(AND(H77>=[2]Assumptions!$E$56,H77<[2]Assumptions!$E$57),[2]Assumptions!$B$61,IF(AND(H77>=[2]Assumptions!$E$57,H77<[2]Assumptions!$E$58),[2]Assumptions!$B$60,IF(AND(H77>=[2]Assumptions!$E$58,H77<[2]Assumptions!$E$59),[2]Assumptions!$B$59,IF(AND(H77>=[2]Assumptions!$E$59,H77<[2]Assumptions!$E$60),[2]Assumptions!$B$58,IF(AND(H77>=[2]Assumptions!$E$60,H77<=[2]Assumptions!$E$61),[2]Assumptions!$B$57,0))))) -> 0.85
A78: 11051 | B78: NORTH FRANKLIN | C78: =IFERROR(VLOOKUP(TRIM(A78),[3]iGRANTS!$B:$E,3,FALSE),0) + IFERROR(VLOOKUP(TRIM(A78),[3]iGRANTS!$G:$I,3,FALSE),0) -> 104033 | D78: =IFERROR(VLOOKUP(TRIM(A78),'[4]2021-22 Rev Final'!$A:$CL,81,FALSE),0) -> 861504 | E78: =IFERROR(VLOOKUP(TRIM(A78),[5]Sheet1!$A:$E,5,FALSE),0) -> 1527103.15 | F78: =IFERROR(VLOOKUP(TRIM(A78),[5]Sheet1!$A:$E,4,FALSE),0) -> 1116718.11 | G78: =IFERROR(VLOOKUP(TRIM(A78),'[6]2021-22 Final'!$B:$X,18,FALSE),0) -> 489277 | H78: 0.1193755894 | I78: =IF(AND(H78>=[2]Assumptions!$E$56,H78<[2]Assumptions!$E$57),[2]Assumptions!$B$61,IF(AND(H78>=[2]Assumptions!$E$57,H78<[2]Assumptions!$E$58),[2]Assumptions!$B$60,IF(AND(H78>=[2]Assumptions!$E$58,H78<[2]Assumptions!$E$59),[2]Assumptions!$B$59,IF(AND(H78>=[2]Assumptions!$E$59,H78<[2]Assumptions!$E$60),[2]Assumptions!$B$58,IF(AND(H78>=[2]Assumptions!$E$60,H78<=[2]Assumptions!$E$61),[2]Assumptions!$B$57,0))))) -> 1.15
A79: 18400 | B79: NORTH KITSAP | C79: =IFERROR(VLOOKUP(TRIM(A79),[3]iGRANTS!$B:$E,3,FALSE),0) + IFERROR(VLOOKUP(TRIM(A79),[3]iGRANTS!$G:$I,3,FALSE),0) -> 33108 | D79: =IFERROR(VLOOKUP(TRIM(A79),'[4]2021-22 Rev Final'!$A:$CL,81,FALSE),0) -> 777432 | E79: =IFERROR(VLOOKUP(TRIM(A79),[5]Sheet1!$A:$E,5,FALSE),0) -> 1306944.6 | F79: =IFERROR(VLOOKUP(TRIM(A79),[5]Sheet1!$A:$E,4,FALSE),0) -> 425414.28 | G79: =IFERROR(VLOOKUP(TRIM(A79),'[6]2021-22 Final'!$B:$X,18,FALSE),0) -> 0 | H79: 0 | I79: =IF(AND(H79>=[2]Assumptions!$E$56,H79<[2]Assumptions!$E$57),[2]Assumptions!$B$61,IF(AND(H79>=[2]Assumptions!$E$57,H79<[2]Assumptions!$E$58),[2]Assumptions!$B$60,IF(AND(H79>=[2]Assumptions!$E$58,H79<[2]Assumptions!$E$59),[2]Assumptions!$B$59,IF(AND(H79>=[2]Assumptions!$E$59,H79<[2]Assumptions!$E$60),[2]Assumptions!$B$58,IF(AND(H79>=[2]Assumptions!$E$60,H79<=[2]Assumptions!$E$61),[2]Assumptions!$B$57,0))))) -> 0
A80: 23403 | B80: NORTH MASON | C80: =IFERROR(VLOOKUP(TRIM(A80),[3]iGRANTS!$B:$E,3,FALSE),0) + IFERROR(VLOOKUP(TRIM(A80),[3]iGRANTS!$G:$I,3,FALSE),0) -> 47978 | D80: =IFERROR(VLOOKUP(TRIM(A80),'[4]2021-22 Rev Final'!$A:$CL,81,FALSE),0) -> 606691 | E80: =IFERROR(VLOOKUP(TRIM(A80),[5]Sheet1!$A:$E,5,FALSE),0) -> 1223568.34 | F80: =IFERROR(VLOOKUP(TRIM(A80),[5]Sheet1!$A:$E,4,FALSE),0) -> 479145.74 | G80: =IFERROR(VLOOKUP(TRIM(A80),'[6]2021-22 Final'!$B:$X,18,FALSE),0) -> 0 | H80: 0 | I80: =IF(AND(H80>=[2]Assumptions!$E$56,H80<[2]Assumptions!$E$57),[2]Assumptions!$B$61,IF(AND(H80>=[2]Assumptions!$E$57,H80<[2]Assumptions!$E$58),[2]Assumptions!$B$60,IF(AND(H80>=[2]Assumptions!$E$58,H80<[2]Assumptions!$E$59),[2]Assumptions!$B$59,IF(AND(H80>=[2]Assumptions!$E$59,H80<[2]Assumptions!$E$60),[2]Assumptions!$B$58,IF(AND(H80>=[2]Assumptions!$E$60,H80<=[2]Assumptions!$E$61),[2]Assumptions!$B$57,0))))) -> 0
A81: 34003 | B81: NORTH THURSTON PUBLIC SCHOOLS | C81: =IFERROR(VLOOKUP(TRIM(A81),[3]iGRANTS!$B:$E,3,FALSE),0) + IFERROR(VLOOKUP(TRIM(A81),[3]iGRANTS!$G:$I,3,FALSE),0) -> 117212 | D81: =IFERROR(VLOOKUP(TRIM(A81),'[4]2021-22 Rev Final'!$A:$CL,81,FALSE),0) -> 2708259 | E81: =IFERROR(VLOOKUP(TRIM(A81),[5]Sheet1!$A:$E,5,FALSE),0) -> 4653146.29 | F81: =IFERROR(VLOOKUP(TRIM(A81),[5]Sheet1!$A:$E,4,FALSE),0) -> 1405079.37 | G81: =IFERROR(VLOOKUP(TRIM(A81),'[6]2021-22 Final'!$B:$X,18,FALSE),0) -> 0 | H81: 0 | I81: =IF(AND(H81>=[2]Assumptions!$E$56,H81<[2]Assumptions!$E$57),[2]Assumptions!$B$61,IF(AND(H81>=[2]Assumptions!$E$57,H81<[2]Assumptions!$E$58),[2]Assumptions!$B$60,IF(AND(H81>=[2]Assumptions!$E$58,H81<[2]Assumptions!$E$59),[2]Assumptions!$B$59,IF(AND(H81>=[2]Assumptions!$E$59,H81<[2]Assumptions!$E$60),[2]Assumptions!$B$58,IF(AND(H81>=[2]Assumptions!$E$60,H81<=[2]Assumptions!$E$61),[2]Assumptions!$B$57,0))))) -> 0
A82: 15201 | B82: OAK HARBOR | C82: =IFERROR(VLOOKUP(TRIM(A82),[3]iGRANTS!$B:$E,3,FALSE),0) + IFERROR(VLOOKUP(TRIM(A82),[3]iGRANTS!$G:$I,3,FALSE),0) -> 31619 | D82: =IFERROR(VLOOKUP(TRIM(A82),'[4]2021-22 Rev Final'!$A:$CL,81,FALSE),0) -> 889896 | E82: =IFERROR(VLOOKUP(TRIM(A82),[5]Sheet1!$A:$E,5,FALSE),0) -> 1634302.38 | F82: =IFERROR(VLOOKUP(TRIM(A82),[5]Sheet1!$A:$E,4,FALSE),0) -> 367692.66 | G82: =IFERROR(VLOOKUP(TRIM(A82),'[6]2021-22 Final'!$B:$X,18,FALSE),0) -> 0 | H82: 0 | I82: =IF(AND(H82>=[2]Assumptions!$E$56,H82<[2]Assumptions!$E$57),[2]Assumptions!$B$61,IF(AND(H82>=[2]Assumptions!$E$57,H82<[2]Assumptions!$E$58),[2]Assumptions!$B$60,IF(AND(H82>=[2]Assumptions!$E$58,H82<[2]Assumptions!$E$59),[2]Assumptions!$B$59,IF(AND(H82>=[2]Assumptions!$E$59,H82<[2]Assumptions!$E$60),[2]Assumptions!$B$58,IF(AND(H82>=[2]Assumptions!$E$60,H82<=[2]Assumptions!$E$61),[2]Assumptions!$B$57,0))))) -> 0
A83: 25101 | B83: OCEAN BEACH | C83: =IFERROR(VLOOKUP(TRIM(A83),[3]iGRANTS!$B:$E,3,FALSE),0) + IFERROR(VLOOKUP(TRIM(A83),[3]iGRANTS!$G:$I,3,FALSE),0) -> 41503 | D83: =IFERROR(VLOOKUP(TRIM(A83),'[4]2021-22 Rev Final'!$A:$CL,81,FALSE),0) -> 345140 | E83: =IFERROR(VLOOKUP(TRIM(A83),[5]Sheet1!$A:$E,5,FALSE),0) -> 695409.65 | F83: =IFERROR(VLOOKUP(TRIM(A83),[5]Sheet1!$A:$E,4,FALSE),0) -> 69002.04 | G83: =IFERROR(VLOOKUP(TRIM(A83),'[6]2021-22 Final'!$B:$X,18,FALSE),0) -> 35143 | H83: 0.02962659622 | I83: =IF(AND(H83>=[2]Assumptions!$E$56,H83<[2]Assumptions!$E$57),[2]Assumptions!$B$61,IF(AND(H83>=[2]Assumptions!$E$57,H83<[2]Assumptions!$E$58),[2]Assumptions!$B$60,IF(AND(H83>=[2]Assumptions!$E$58,H83<[2]Assumptions!$E$59),[2]Assumptions!$B$59,IF(AND(H83>=[2]Assumptions!$E$59,H83<[2]Assumptions!$E$60),[2]Assumptions!$B$58,IF(AND(H83>=[2]Assumptions!$E$60,H83<=[2]Assumptions!$E$61),[2]Assumptions!$B$57,0))))) -> 0.95
A84: 14172 | B84: OCOSTA | C84: =IFERROR(VLOOKUP(TRIM(A84),[3]iGRANTS!$B:$E,3,FALSE),0) + IFERROR(VLOOKUP(TRIM(A84),[3]iGRANTS!$G:$I,3,FALSE),0) -> 0 | D84: =IFERROR(VLOOKUP(TRIM(A84),'[4]2021-22 Rev Final'!$A:$CL,81,FALSE),0) -> 252144 | E84: =IFERROR(VLOOKUP(TRIM(A84),[5]Sheet1!$A:$E,5,FALSE),0) -> 463834.7 | F84: =IFERROR(VLOOKUP(TRIM(A84),[5]Sheet1!$A:$E,4,FALSE),0) -> 75440.95 | G84: =IFERROR(VLOOKUP(TRIM(A84),'[6]2021-22 Final'!$B:$X,18,FALSE),0) -> 32540 | H84: 0.03949222514 | I84: =IF(AND(H84>=[2]Assumptions!$E$56,H84<[2]Assumptions!$E$57),[2]Assumptions!$B$61,IF(AND(H84>=[2]Assumptions!$E$57,H84<[2]Assumptions!$E$58),[2]Assumptions!$B$60,IF(AND(H84>=[2]Assumptions!$E$58,H84<[2]Assumptions!$E$59),[2]Assumptions!$B$59,IF(AND(H84>=[2]Assumptions!$E$59,H84<[2]Assumptions!$E$60),[2]Assumptions!$B$58,IF(AND(H84>=[2]Assumptions!$E$60,H84<=[2]Assumptions!$E$61),[2]Assumptions!$B$57,0))))) -> 1
A85: 24105 | B85: OKANOGAN | C85: =IFERROR(VLOOKUP(TRIM(A85),[3]iGRANTS!$B:$E,3,FALSE),0) + IFERROR(VLOOKUP(TRIM(A85),[3]iGRANTS!$G:$I,3,FALSE),0) -> 11944 | D85: =IFERROR(VLOOKUP(TRIM(A85),'[4]2021-22 Rev Final'!$A:$CL,81,FALSE),0) -> 543102 | E85: =IFERROR(VLOOKUP(TRIM(A85),[5]Sheet1!$A:$E,5,FALSE),0) -> 659486.45 | F85: =IFERROR(VLOOKUP(TRIM(A85),[5]Sheet1!$A:$E,4,FALSE),0) -> 130597.13 | G85: =IFERROR(VLOOKUP(TRIM(A85),'[6]2021-22 Final'!$B:$X,18,FALSE),0) -> 0 | H85: 0 | I85: =IF(AND(H85>=[2]Assumptions!$E$56,H85<[2]Assumptions!$E$57),[2]Assumptions!$B$61,IF(AND(H85>=[2]Assumptions!$E$57,H85<[2]Assumptions!$E$58),[2]Assumptions!$B$60,IF(AND(H85>=[2]Assumptions!$E$58,H85<[2]Assumptions!$E$59),[2]Assumptions!$B$59,IF(AND(H85>=[2]Assumptions!$E$59,H85<[2]Assumptions!$E$60),[2]Assumptions!$B$58,IF(AND(H85>=[2]Assumptions!$E$60,H85<=[2]Assumptions!$E$61),[2]Assumptions!$B$57,0))))) -> 0
A86: 34111 | B86: OLYMPIA | C86: =IFERROR(VLOOKUP(TRIM(A86),[3]iGRANTS!$B:$E,3,FALSE),0) + IFERROR(VLOOKUP(TRIM(A86),[3]iGRANTS!$G:$I,3,FALSE),0) -> 40452 | D86: =IFERROR(VLOOKUP(TRIM(A86),'[4]2021-22 Rev Final'!$A:$CL,81,FALSE),0) -> 1680304 | E86: =IFERROR(VLOOKUP(TRIM(A86),[5]Sheet1!$A:$E,5,FALSE),0) -> 1980585.75 | F86: =IFERROR(VLOOKUP(TRIM(A86),[5]Sheet1!$A:$E,4,FALSE),0) -> 490659.32 | G86: =IFERROR(VLOOKUP(TRIM(A86),'[6]2021-22 Final'!$B:$X,18,FALSE),0) -> 8681 | H86: 0.002066569156 | I86: =IF(AND(H86>=[2]Assumptions!$E$56,H86<[2]Assumptions!$E$57),[2]Assumptions!$B$61,IF(AND(H86>=[2]Assumptions!$E$57,H86<[2]Assumptions!$E$58),[2]Assumptions!$B$60,IF(AND(H86>=[2]Assumptions!$E$58,H86<[2]Assumptions!$E$59),[2]Assumptions!$B$59,IF(AND(H86>=[2]Assumptions!$E$59,H86<[2]Assumptions!$E$60),[2]Assumptions!$B$58,IF(AND(H86>=[2]Assumptions!$E$60,H86<=[2]Assumptions!$E$61),[2]Assumptions!$B$57,0))))) -> 0
A87: 24019 | B87: OMAK | C87: =IFERROR(VLOOKUP(TRIM(A87),[3]iGRANTS!$B:$E,3,FALSE),0) + IFERROR(VLOOKUP(TRIM(A87),[3]iGRANTS!$G:$I,3,FALSE),0) -> 37591 | D87: =IFERROR(VLOOKUP(TRIM(A87),'[4]2021-22 Rev Final'!$A:$CL,81,FALSE),0) -> 644732 | E87: =IFERROR(VLOOKUP(TRIM(A87),[5]Sheet1!$A:$E,5,FALSE),0) -> 2809130.13 | F87: =IFERROR(VLOOKUP(TRIM(A87),[5]Sheet1!$A:$E,4,FALSE),0) -> 439575.62 | G87: =IFERROR(VLOOKUP(TRIM(A87),'[6]2021-22 Final'!$B:$X,18,FALSE),0) -> 0 | H87: 0 | I87: =IF(AND(H87>=[2]Assumptions!$E$56,H87<[2]Assumptions!$E$57),[2]Assumptions!$B$61,IF(AND(H87>=[2]Assumptions!$E$57,H87<[2]Assumptions!$E$58),[2]Assumptions!$B$60,IF(AND(H87>=[2]Assumptions!$E$58,H87<[2]Assumptions!$E$59),[2]Assumptions!$B$59,IF(AND(H87>=[2]Assumptions!$E$59,H87<[2]Assumptions!$E$60),[2]Assumptions!$B$58,IF(AND(H87>=[2]Assumptions!$E$60,H87<=[2]Assumptions!$E$61),[2]Assumptions!$B$57,0))))) -> 0
A88: 09013 | B88: ORONDO | C88: =IFERROR(VLOOKUP(TRIM(A88),[3]iGRANTS!$B:$E,3,FALSE),0) + IFERROR(VLOOKUP(TRIM(A88),[3]iGRANTS!$G:$I,3,FALSE),0) -> 0 | D88: =IFERROR(VLOOKUP(TRIM(A88),'[4]2021-22 Rev Final'!$A:$CL,81,FALSE),0) -> 132979 | E88: =IFERROR(VLOOKUP(TRIM(A88),[5]Sheet1!$A:$E,5,FALSE),0) -> 130805.09 | F88: =IFERROR(VLOOKUP(TRIM(A88),[5]Sheet1!$A:$E,4,FALSE),0) -> 88895.39 | G88: =IFERROR(VLOOKUP(TRIM(A88),'[6]2021-22 Final'!$B:$X,18,FALSE),0) -> 52562 | H88: 0.1297053796 | I88: =IF(AND(H88>=[2]Assumptions!$E$56,H88<[2]Assumptions!$E$57),[2]Assumptions!$B$61,IF(AND(H88>=[2]Assumptions!$E$57,H88<[2]Assumptions!$E$58),[2]Assumptions!$B$60,IF(AND(H88>=[2]Assumptions!$E$58,H88<[2]Assumptions!$E$59),[2]Assumptions!$B$59,IF(AND(H88>=[2]Assumptions!$E$59,H88<[2]Assumptions!$E$60),[2]Assumptions!$B$58,IF(AND(H88>=[2]Assumptions!$E$60,H88<=[2]Assumptions!$E$61),[2]Assumptions!$B$57,0))))) -> 1.15
A89: 24410 | B89: OROVILLE | C89: =IFERROR(VLOOKUP(TRIM(A89),[3]iGRANTS!$B:$E,3,FALSE),0) + IFERROR(VLOOKUP(TRIM(A89),[3]iGRANTS!$G:$I,3,FALSE),0) -> 0 | D89: =IFERROR(VLOOKUP(TRIM(A89),'[4]2021-22 Rev Final'!$A:$CL,81,FALSE),0) -> 518076 | E89: =IFERROR(VLOOKUP(TRIM(A89),[5]Sheet1!$A:$E,5,FALSE),0) -> 401024.78 | F89: =IFERROR(VLOOKUP(TRIM(A89),[5]Sheet1!$A:$E,4,FALSE),0) -> 97448.55 | G89: =IFERROR(VLOOKUP(TRIM(A89),'[6]2021-22 Final'!$B:$X,18,FALSE),0) -> 0 | H89: 0 | I89: =IF(AND(H89>=[2]Assumptions!$E$56,H89<[2]Assumptions!$E$57),[2]Assumptions!$B$61,IF(AND(H89>=[2]Assumptions!$E$57,H89<[2]Assumptions!$E$58),[2]Assumptions!$B$60,IF(AND(H89>=[2]Assumptions!$E$58,H89<[2]Assumptions!$E$59),[2]Assumptions!$B$59,IF(AND(H89>=[2]Assumptions!$E$59,H89<[2]Assumptions!$E$60),[2]Assumptions!$B$58,IF(AND(H89>=[2]Assumptions!$E$60,H89<=[2]Assumptions!$E$61),[2]Assumptions!$B$57,0))))) -> 0
A90: 01147 | B90: OTHELLO | C90: =IFERROR(VLOOKUP(TRIM(A90),[3]iGRANTS!$B:$E,3,FALSE),0) + IFERROR(VLOOKUP(TRIM(A90),[3]iGRANTS!$G:$I,3,FALSE),0) -> 241333 | D90: =IFERROR(VLOOKUP(TRIM(A90),'[4]2021-22 Rev Final'!$A:$CL,81,FALSE),0) -> 1878543 | E90: =IFERROR(VLOOKUP(TRIM(A90),[5]Sheet1!$A:$E,5,FALSE),0) -> 3548565.43 | F90: =IFERROR(VLOOKUP(TRIM(A90),[5]Sheet1!$A:$E,4,FALSE),0) -> 2724234.8 | G90: =IFERROR(VLOOKUP(TRIM(A90),'[6]2021-22 Final'!$B:$X,18,FALSE),0) -> 618461 | H90: 0.06863295766 | I90: =IF(AND(H90>=[2]Assumptions!$E$56,H90<[2]Assumptions!$E$57),[2]Assumptions!$B$61,IF(AND(H90>=[2]Assumptions!$E$57,H90<[2]Assumptions!$E$58),[2]Assumptions!$B$60,IF(AND(H90>=[2]Assumptions!$E$58,H90<[2]Assumptions!$E$59),[2]Assumptions!$B$59,IF(AND(H90>=[2]Assumptions!$E$59,H90<[2]Assumptions!$E$60),[2]Assumptions!$B$58,IF(AND(H90>=[2]Assumptions!$E$60,H90<=[2]Assumptions!$E$61),[2]Assumptions!$B$57,0))))) -> 1.05
A91: 11001 | B91: PASCO | C91: =IFERROR(VLOOKUP(TRIM(A91),[3]iGRANTS!$B:$E,3,FALSE),0) + IFERROR(VLOOKUP(TRIM(A91),[3]iGRANTS!$G:$I,3,FALSE),0) -> 831602 | D91: =IFERROR(VLOOKUP(TRIM(A91),'[4]2021-22 Rev Final'!$A:$CL,81,FALSE),0) -> 6589332 | E91: =IFERROR(VLOOKUP(TRIM(A91),[5]Sheet1!$A:$E,5,FALSE),0) -> 12766460.86 | F91: =IFERROR(VLOOKUP(TRIM(A91),[5]Sheet1!$A:$E,4,FALSE),0) -> 9860947.66 | G91: =IFERROR(VLOOKUP(TRIM(A91),'[6]2021-22 Final'!$B:$X,18,FALSE),0) -> 1040290 | H91: 0.03346207008 | I91: =IF(AND(H91>=[2]Assumptions!$E$56,H91<[2]Assumptions!$E$57),[2]Assumptions!$B$61,IF(AND(H91>=[2]Assumptions!$E$57,H91<[2]Assumptions!$E$58),[2]Assumptions!$B$60,IF(AND(H91>=[2]Assumptions!$E$58,H91<[2]Assumptions!$E$59),[2]Assumptions!$B$59,IF(AND(H91>=[2]Assumptions!$E$59,H91<[2]Assumptions!$E$60),[2]Assumptions!$B$58,IF(AND(H91>=[2]Assumptions!$E$60,H91<=[2]Assumptions!$E$61),[2]Assumptions!$B$57,0))))) -> 0.95
A92: 24122 | B92: PATEROS | C92: =IFERROR(VLOOKUP(TRIM(A92),[3]iGRANTS!$B:$E,3,FALSE),0) + IFERROR(VLOOKUP(TRIM(A92),[3]iGRANTS!$G:$I,3,FALSE),0) -> 0 | D92: =IFERROR(VLOOKUP(TRIM(A92),'[4]2021-22 Rev Final'!$A:$CL,81,FALSE),0) -> 75219 | E92: =IFERROR(VLOOKUP(TRIM(A92),[5]Sheet1!$A:$E,5,FALSE),0) -> 226410.5 | F92: =IFERROR(VLOOKUP(TRIM(A92),[5]Sheet1!$A:$E,4,FALSE),0) -> 55899.17 | G92: =IFERROR(VLOOKUP(TRIM(A92),'[6]2021-22 Final'!$B:$X,18,FALSE),0) -> 43365 | H92: 0.1081708274 | I92: =IF(AND(H92>=[2]Assumptions!$E$56,H92<[2]Assumptions!$E$57),[2]Assumptions!$B$61,IF(AND(H92>=[2]Assumptions!$E$57,H92<[2]Assumptions!$E$58),[2]Assumptions!$B$60,IF(AND(H92>=[2]Assumptions!$E$58,H92<[2]Assumptions!$E$59),[2]Assumptions!$B$59,IF(AND(H92>=[2]Assumptions!$E$59,H92<[2]Assumptions!$E$60),[2]Assumptions!$B$58,IF(AND(H92>=[2]Assumptions!$E$60,H92<=[2]Assumptions!$E$61),[2]Assumptions!$B$57,0))))) -> 1.15
A93: 03050 | B93: PATERSON | C93: =IFERROR(VLOOKUP(TRIM(A93),[3]iGRANTS!$B:$E,3,FALSE),0) + IFERROR(VLOOKUP(TRIM(A93),[3]iGRANTS!$G:$I,3,FALSE),0) -> 0 | D93: =IFERROR(VLOOKUP(TRIM(A93),'[4]2021-22 Rev Final'!$A:$CL,81,FALSE),0) -> 18821 | E93: =IFERROR(VLOOKUP(TRIM(A93),[5]Sheet1!$A:$E,5,FALSE),0) -> 125619.88 | F93: =IFERROR(VLOOKUP(TRIM(A93),[5]Sheet1!$A:$E,4,FALSE),0) -> 41804.85 | G93: =IFERROR(VLOOKUP(TRIM(A93),'[6]2021-22 Final'!$B:$X,18,FALSE),0) -> 15325 | H93: 0.07602790346 | I93: =IF(AND(H93>=[2]Assumptions!$E$56,H93<[2]Assumptions!$E$57),[2]Assumptions!$B$61,IF(AND(H93>=[2]Assumptions!$E$57,H93<[2]Assumptions!$E$58),[2]Assumptions!$B$60,IF(AND(H93>=[2]Assumptions!$E$58,H93<[2]Assumptions!$E$59),[2]Assumptions!$B$59,IF(AND(H93>=[2]Assumptions!$E$59,H93<[2]Assumptions!$E$60),[2]Assumptions!$B$58,IF(AND(H93>=[2]Assumptions!$E$60,H93<=[2]Assumptions!$E$61),[2]Assumptions!$B$57,0))))) -> 1.05
A94: 36402 | B94: PRESCOTT | C94: =IFERROR(VLOOKUP(TRIM(A94),[3]iGRANTS!$B:$E,3,FALSE),0) + IFERROR(VLOOKUP(TRIM(A94),[3]iGRANTS!$G:$I,3,FALSE),0) -> 11073 | D94: =IFERROR(VLOOKUP(TRIM(A94),'[4]2021-22 Rev Final'!$A:$CL,81,FALSE),0) -> 72780 | E94: =IFERROR(VLOOKUP(TRIM(A94),[5]Sheet1!$A:$E,5,FALSE),0) -> 197626.26 | F94: =IFERROR(VLOOKUP(TRIM(A94),[5]Sheet1!$A:$E,4,FALSE),0) -> 0 | G94: =IFERROR(VLOOKUP(TRIM(A94),'[6]2021-22 Final'!$B:$X,18,FALSE),0) -> 19775 | H94: 0.06564222528 | I94: =IF(AND(H94>=[2]Assumptions!$E$56,H94<[2]Assumptions!$E$57),[2]Assumptions!$B$61,IF(AND(H94>=[2]Assumptions!$E$57,H94<[2]Assumptions!$E$58),[2]Assumptions!$B$60,IF(AND(H94>=[2]Assumptions!$E$58,H94<[2]Assumptions!$E$59),[2]Assumptions!$B$59,IF(AND(H94>=[2]Assumptions!$E$59,H94<[2]Assumptions!$E$60),[2]Assumptions!$B$58,IF(AND(H94>=[2]Assumptions!$E$60,H94<=[2]Assumptions!$E$61),[2]Assumptions!$B$57,0))))) -> 1.05
A95: 03116 | B95: PROSSER | C95: =IFERROR(VLOOKUP(TRIM(A95),[3]iGRANTS!$B:$E,3,FALSE),0) + IFERROR(VLOOKUP(TRIM(A95),[3]iGRANTS!$G:$I,3,FALSE),0) -> 79964 | D95: =IFERROR(VLOOKUP(TRIM(A95),'[4]2021-22 Rev Final'!$A:$CL,81,FALSE),0) -> 1003796 | E95: =IFERROR(VLOOKUP(TRIM(A95),[5]Sheet1!$A:$E,5,FALSE),0) -> 1842131.15 | F95: =IFERROR(VLOOKUP(TRIM(A95),[5]Sheet1!$A:$E,4,FALSE),0) -> 882514.83 | G95: =IFERROR(VLOOKUP(TRIM(A95),'[6]2021-22 Final'!$B:$X,18,FALSE),0) -> 461724 | H95: 0.1081287928 | I95: =IF(AND(H95>=[2]Assumptions!$E$56,H95<[2]Assumptions!$E$57),[2]Assumptions!$B$61,IF(AND(H95>=[2]Assumptions!$E$57,H95<[2]Assumptions!$E$58),[2]Assumptions!$B$60,IF(AND(H95>=[2]Assumptions!$E$58,H95<[2]Assumptions!$E$59),[2]Assumptions!$B$59,IF(AND(H95>=[2]Assumptions!$E$59,H95<[2]Assumptions!$E$60),[2]Assumptions!$B$58,IF(AND(H95>=[2]Assumptions!$E$60,H95<=[2]Assumptions!$E$61),[2]Assumptions!$B$57,0))))) -> 1.15
